Workbook

Sheet modList00 (hidden)

Sheet modHTTP (hidden)

Sheet modPreload (hidden)

Sheet modProvGeneralProc (hidden)

Sheet modReestr (hidden)

Sheet modList02 (hidden)

Sheet modfrmReestrSource (hidden)

Sheet modProv (hidden)

Sheet Инструкция
AA1: (требуется обновление)
B2: ="Код шаблона: " & GetCode() -> Код шаблона: EXPERT.VSVO.INDEX
B3: ="Версия " & Getversion() -> Версия 4.2
B5: Экспертное заключение об установлении тарифов в сфере холодного водоснабжения/водоотведения методом индексации (первый год ДПР)
E7: • На рабочем месте должен быть установлен MS Office 2007 SP3, 2010, 2013, 2016, 2019 с полной версией MS Excel • Макросы во время работы должны быть включены (!) • Для корректной работы отчёта требуется выбрать низкий уровень безопасности (В меню MS Excel 2007 и выше: Параметры Excel | Центр управления безопасностью | Параметры центра управления безопасностью | Параметры макросов | Включить все макросы | ОК)
E14: • Если Вы работаете в табличном процессоре MS Excel 2007 и выше, то можете использовать для работы формат XLSB (Двоичная книга Excel). При работе в формате XLSB заметно быстрее происходит сохранение файла, а также уменьшается размер по сравнению с форматами XLS и XLSM • Не рекомендуется снимать защиту с листов и каким-либо образом модифицировать защищаемые формулы и расчётные поля, в противном случае, отчёт будет отклонён системой • При сохранении не следует выбирать формат XLSX (Книга Excel), так как в указанном формате макросы, необходимые для работы отчёта, безвозвратно удаляются
E21: A | F21: - предназначенные для заполнения | O21: A | P21: - ссылки и автозаполняемые поля
E22: A | F22: - с формулами и константами | O22: A | P22: - обязательные для заполнения
E35: Если в предложенном Вам списке необходимая организация, МР/МО отсутствуют, обновите реестры с помощью кнопок В результате синхронизации с базой данных список организаций (МР/МО) будет заменён актуальным (механизм синхронизации требует подключения к сети Интернет и основан на использовании протокола HTTPS (TCP порт 443))
E46: • При сохранении шаблона осуществляется проверка корректности данных, в том числе на наличие значений в ячейках, обязательных для заполнения • Если какая-то ячейка не удовлетворяет условию проверки, на лист «Проверка» добавляется гиперссылка на данную ячейку и указывается причина ошибки • В колонке «Статус» для каждого сообщения возможны 2 значения: ошибка и предупреждение • При наличии сообщений со статусом «Ошибка» шаблон будет отклонён системой и не будет загружен в хранилище данных, сообщения со статусом «Предупреждение» носят информационный характер, и такой шаблон будет принят системой
E59: Обратиться в службу поддержки
E70: Понятия, используемые в Типовом экспертном заключении: "Факт, принятый органом регулирования" - экономически обоснованные фактические значения расходов на основании данных бухгалтерской и статистической отчетности регулируемой организации за соответствующий период, с учетом данных, полученных по результатам проведенных органом регулирования тарифов мероприятий по контролю, предусмотренных Постановлением Правительства РФ от 27.06.2013 N 543; "Факт по данным организации" - экономически обоснованные фактические значения расходов в соответствии с данными раздельного учета затрат по видам деятельности организаций, осуществляющих горячее водоснабжение, холодное водоснабжение и (или) водоотведение.
E93: При наличии подключения к Интернет, можно автоматически проверять наличие доступных обновлений. Выберите способ оповещения о наличии обновлений для отчёта:
F95: проверять доступные обновления (рекомендуется) | AA95: y
F97: никогда не проверять наличие обновлений (не рекомендуется)

Sheet Лог обновления (hidden)
A1: Дата/Время | B1: Сообщение | C1: Статус
A3: 2023-11-03T11:01:50 | B3: Проверка доступных обновлений... | C3: Информация
A4: 2023-11-03T11:01:52 | B4: Нет доступных обновлений для отчёта с кодом EXPERT.VSVO.INDEX! | C4: Информация
A5: 2024-01-12T18:25:46 | B5: Проверка доступных обновлений... | C5: Информация
A6: 2024-01-12T18:25:47 | B6: Нет доступных обновлений для отчёта с кодом EXPERT.VSVO.INDEX! | C6: Информация
A7: 2024-01-19T09:47:49 | B7: Проверка доступных обновлений... | C7: Информация
A8: 2024-01-19T09:47:50 | B8: Нет доступных обновлений для отчёта с кодом EXPERT.VSVO.INDEX! | C8: Информация
A9: 2024-01-19T09:49:29 | B9: Проверка доступных обновлений... | C9: Информация
A10: 2024-01-19T09:49:30 | B10: Нет доступных обновлений для отчёта с кодом EXPERT.VSVO.INDEX! | C10: Информация
A11: 2024-01-19T16:20:34 | B11: Проверка доступных обновлений... | C11: Информация
A12: 2024-01-19T16:20:41 | B12: Нет доступных обновлений для отчёта с кодом EXPERT.VSVO.INDEX! | C12: Информация
A13: 2024-01-21T16:18:11 | B13: Проверка доступных обновлений... | C13: Информация
A14: 2024-01-21T16:18:12 | B14: Нет доступных обновлений для отчёта с кодом EXPERT.VSVO.INDEX! | C14: Информация
A15: 2024-01-22T11:27:11 | B15: Проверка доступных обновлений... | C15: Информация
A16: 2024-01-22T11:27:13 | B16: Нет доступных обновлений для отчёта с кодом EXPERT.VSVO.INDEX! | C16: Информация
A17: 2024-01-22T15:07:31 | B17: Проверка доступных обновлений... | C17: Информация
A18: 2024-01-22T15:07:33 | B18: Нет доступных обновлений для отчёта с кодом EXPERT.VSVO.INDEX! | C18: Информация
A19: 2024-01-23T09:31:57 | B19: Проверка доступных обновлений... | C19: Информация
A20: 2024-01-23T09:32:09 | B20: Нет доступных обновлений для отчёта с кодом EXPERT.VSVO.INDEX! | C20: Информация
A21: 2024-01-23T13:44:05 | B21: Проверка доступных обновлений... | C21: Информация
A22: 2024-01-23T13:44:06 | B22: Нет доступных обновлений для отчёта с кодом EXPERT.VSVO.INDEX! | C22: Информация
A23: 2024-01-23T14:58:09 | B23: Проверка доступных обновлений... | C23: Информация
A24: 2024-01-23T14:58:11 | B24: Доступно обновление до версии 4.3 | C24: Информация
A25: 2024-01-23T14:58:11 | B25: Описание изменений: Версия 4.3 1. Корректировка проверки перед сохранением 2. Исправление формул на листе "Корректировка НВВ" 3. Исправление работы фильтров в форме выбора объектов 4. Оптимизация работы шаблона Версия 4.2 1. Корректировка проверки перед сохранением 2. Исправление формул на листе "ДПР" в колонке "Базовый уровень операционных расходов" 3. Исправление формул на листе "Корректировка НВВ" в п.2 и 7 4. Исправление выбора объектов на листе "Список объектов" Версия 4.1 1. Исправление проверки перед сохранением 2. Исправление формул на листе "ДПР" 3. Исправление формул на листе "Калькуляция" в п.9 и 10 4. Исправление расчёт ПО для транспортировщиков ВС | C25: Информация
A26: 2024-01-23T14:58:11 | B26: Размер файла обновления: 239647 байт | C26: Информация
A27: 2024-01-23T15:13:36 | B27: Обновление отменено пользователем | C27: Предупреждение

Sheet Пояснения (hidden)
L12: Понятия, используемые в Типовом экспертном заключении
L14: № п/п | M14: Используемое понятие | N14: Расшифровка (пояснения)
L15: 1 | M15: факт по данным организации | N15: фактические значения расходов в соответствии с данными раздельного учета затрат по видам деятельности организаций, осуществляющих горячее водоснабжение, холодное водоснабжение и (или) водоотведение
L16: 2 | M16: факт, принятый органом регулирования | N16: фактические значения расходов в соответствии с данными бухгалтерской и статистической отчетности регулируемой организации за соответствующий период, с учетом данных, полученных по результатам проведенных органом регулирования тарифов мероприятий по контролю, предусмотренных Постановление Правительства РФ от 27.06.2013 N 543 (ред. от 17.08.2020) "О государственном контроле (надзоре) в области регулируемых государством цен (тарифов).

Sheet Список листов
L12: Список листов
L13: * для перехода на лист дважды кликните по названию
L14: скрыть | M14: Общие сведения | N14: 1. Сведения о регулируемой организации 2. Информация о рассмотрении дела об установлении тарифов
L15: скрыть | M15: Список территорий | N15: 3. Перечень муниципальных образований, на территории которых организация оказывает услуги холодного водоснабжения / водоотведения
L16: скрыть | M16: Список объектов | N16: 4. Перечень объектов организации, с помощью которых организация оказывает услуги холодного водоснабжения/ водоотведения 5. Правоустанавливающие и подтверждающие документы на объекты коммунальной инфраструктуры
L17: скрыть | M17: Сценарии | N17: 6. Ключевые сценарные показатели
L18: скрыть | M18: Баланс | N18: 7. Баланс водоснабжения / водоотведения
L19: скрыть | M19: Реагенты | N19: 8. Расходы на реагенты
L20: скрыть | M20: ЭЭ | N20: 9. Расходы на электрическую энергию
L21: скрыть | M21: Амортизация | N21: 10. Амортизация основных средств и нематериальных активов, относимых к объектам централизованной системы водоснабжения/водоотведения
L22: скрыть | M22: Аренда | N22: 11. Аренда
L23: скрыть | M23: Покупка | N23: 12. Расходы на оплату товаров (услуг, работ), приобретаемых у других организаций
L24: скрыть | M24: ФОТ | N24: 13. Расходы на оплату труда и страховые взносы на обязательное социальное страхование основного производственного персонала, в том числе налоги и сборы с фонда оплаты труда
L25: скрыть | M25: Административные | N25: 14. Административные расходы
L26: скрыть | M26: Сбытовые расходы ГО | N26: 15. Сбытовые расходы гарантирующей организации
L27: скрыть | M27: Налоги | N27: 16. Расшифровка по налогам и платежам
L28: скрыть | M28: ИП + источники | N28: 17. План и факт по источникам финансирования инвестиционной программы
L29: скрыть | M29: Экономия_корр | N29: 18. Расчет экономии средств, достигнутой в результате снижения расходов предыдущего долгосрочного периода регулирования
L30: скрыть | M30: Плата за негативное возд | N30: 19. Плата за негативное воздействие на работу централизованных систем водоотведения
L31: скрыть | M31: Корректировка НВВ | N31: 20. Расчет показателей корректировки необходимой валовой выручки
L32: скрыть | M32: Калькуляция | N32: 21. Расчет тарифа методом индексации
L33: скрыть | M33: ТМ | N33: 22. Тарифное меню
L34: скрыть | M34: ДПР | N34: 23. Долгосрочные параметры регулирования тарифов
L35: скрыть | M35: ДПР (концессии) | N35: 24. Долгосрочные параметры регулирования тарифов (концессии)

Sheet Общие сведения
E7: Субъект РФ | H7: Кемеровская область | I7: =INDEX(TEHSHEET!B1:B86,MATCH(region_name,REGION,0)) -> RU42
E8: Период регулирования | H8: 2024
E9: Первый год долгосрочного периода регулирования | H9: =god -> 2024 | I9: =first_year+PERIOD_LENGTH-1 -> 2028 | J9: =last_year -> 2028
E10: Период долгосрочной индексации (количество лет) | H10: 5
E11: Количество лет корректировки | H11: =IF(OR(PERIOD_LENGTH-god+first_year<=0,PERIOD_LENGTH-god+first_year>10),"",PERIOD_LENGTH-god+first_year) -> 5
E14: Экспертное заключение
E15: =IF(LEN(region_name)=0,"<наименование регионального органа регулирования>",VLOOKUP(region_name,OIV_LIST,2,FALSE)) -> Региональная энергетическая комиссия Кузбасса
E16: по результатам экспертизы предложения
D17: 26356891 | E17: ООО "ТВК" | O17: =IFERROR(region_name & " / " & god & " / " & org& " (ИНН:" &inn& ", КПП:" &kpp&") / ДПР: " & first_year & "-" & last_year,"") -> Кемеровская область / 2024 / ООО "ТВК" (ИНН:4202026697, КПП:420201001) / ДПР: 2024-2028
E18: ="об установлении тарифов в сфере "&IF(AND(OR(hasVS,hasTranspVS),OR(hasVO,hasTranspVO)),"холодного водоснабжения / водоотведения",IF(OR(hasVS,hasTranspVS),"холодного водоснабжения",IF(OR(hasVO,hasTranspVO),"водоотведения","<не указано>")))&" методом индексации" -> об установлении тарифов в сфере холодного водоснабжения / водоотведения методом индексации
E19: =IF(god="","", "долгосрочного периода регулирования тарифов " & first_year & "-"&last_year & " гг.") -> долгосрочного периода регулирования тарифов 2024-2028 гг.
E21: 1. Сведения о регулируемой организации
E22: Полное наименование юридического лица (индивидуального предпринимателя) в соответствии с данными из ЕГРЮЛ/ЕГРИП | H22: ОБЩЕСТВО С ОГРАНИЧЕННОЙ ОТВЕТСТВЕННОСТЬЮ "ТВК"
E23: Сокращенное наименование юридического лица (индивидуального предпринимателя) в соответствии с данными из ЕГРЮЛ/ЕГРИП | H23: ООО "ТВК"
E24: Наименование (описание) обособленного подразделения
E25: ОГРН | H25: 1054202026317
E26: ИНН | H26: 4202026697
E27: КПП | H27: 420201001
E28: Код по ОКПО | J28: L2_7
E29: Организационно-правовая форма | H29: 1 23 00 | Общества с ограниченной ответственностью | J29: L2_8
E30: Юридический адрес | H30: 652614, г.Белово пгт.Грамотеино мкр.Листвяжный 53 | J30: L2_9
E31: Фактический адрес | H31: 652614, г.Белово пгт.Грамотеино мкр.Листвяжный 53 | J31: L2_10
E32: Телефон организации | H32: (384-52)2-87-45 | J32: L2_11
E33: e-mail | H33: Tatyana.Gintner@belovo.belon.ru | J33: L2_12
E34: ФИО руководителя | H34: Баранов Александр Александрович | J34: L2_13
E35: Должность руководителя | H35: Директор | J35: L2_14
E36: Официальный сайт регулируемой организации в сети "Интернет" | J36: L2_15
E37: Государственное и (или) муниципальное участие в юридическом лице | G37: Наличие | H37: нет | J37: L3_1
G38: Сведения о доле, % | H38: 0 % | J38: L3_2
G39: Преобладающий тип собственности в юридическом лице | H39: частная | J39: L3_3
E40: Наличие раздельного учёта затрат по регулируемым видам деятельности в сфере холодного водоснабжения / водоотведения | H40: да | J40: L4_1
E41: Плательщик НДС | H41: да | J41: L4_2
E42: Является ли деятельность в сфере холодного водоснабжения / водоотведения профильным видом деятельности | H42: да | J42: L4_3
A43: STATUS_GO | E43: Наличие статуса гарантирующей организации (ГО) | H43: нет | J43: L4_4
E44: URL-ссылка на документ, подтверждающий статус ГО
A45: go | H45: Добавить
E46: Наличие программы в области энергосбережения и повышения энергетической эффективности | H46: да | J46: L4_6
A47: HAS_DOC2 | E47: Наличие программы комплексного развития | H47: да | J47: L4_7
E48: Реквизиты решения | F48: Наименование | H48: Об утверждении Программы комплексного развития систем коммунальной инфраструктуры Беловского городского округа Кемеровской области – Кузбасса до 2036 года. Актуализированная редакция на 2023 год
F49: Вид | H49: решение
F50: Номер | H50: 53/294-н
F51: Дата принятия | H51: 2022-07-19
F52: URL-ссылка на решение
A53: HAS_DOC2 | H53: Добавить
A54: HAS_DOC3 | E54: Наличие схемы холодного водоснабжения / водоотведения | H54: да | J54: L4_8
E55: Реквизиты решения | F55: Наименование | H55: Об утверждении Схемы водоснабжения и водоотведения Беловского городского округа Кемеровской области - Кузбасса до 2030 года. Актуализированная редакция на 2023 год.
F56: Вид | H56: постановление
F57: Номер | H57: 2162-п
F58: Дата принятия | H58: 2022-07-29
F59: URL-ссылка на решение
A60: HAS_DOC3 | H60: Добавить
A61: HAS_DOC4 | E61: Наличие закона субъекта по льготным тарифам | H61: да | J61: L4_9
E62: Реквизиты решения | F62: Наименование | H62: О льготных ценах (тарифах) на тепловую энергию (мощность), теплоноситель, горячее, холодное водоснабжение, водоотведение, твердое топливо на территории Кемеровской области – Кузбасса
F63: Вид | H63: закон
F64: Номер | H64: № 69-ОЗ
F65: Дата принятия | H65: 2020-07-03
F66: URL-ссылка на решение
A67: HAS_DOC4 | H67: Добавить
A68: HAS_DOC5 | E68: ="Наличие утверждённых ОИВ инвестиционных программ, действующих в течение "&god-2&" года, для организации, оказывающей услуги холодного водоснабжения/водоотведения" -> Наличие утверждённых ОИВ инвестиционных программ, действующих в течение 2022 года, для организации, оказывающей услуги холодного водоснабжения/водоотведения | H68: нет | J68: L4_10
E69: Реквизиты решения | F69: Наименование
F70: Вид
F71: Номер
F72: Дата принятия
F73: Дата начала реализации / действия инвестиционной программы
F74: Дата окончания реализации / действия инвестиционной программы
A75: HAS_DOC5 | H75: Добавить
A76: HAS_DOC6 | E76: ="Наличие утверждённых ОИВ инвестиционных программ, действующих в течение "&god&" года, для организации, оказывающей услуги холодного водоснабжения/водоотведения" -> Наличие утверждённых ОИВ инвестиционных программ, действующих в течение 2024 года, для организации, оказывающей услуги холодного водоснабжения/водоотведения | H76: нет | J76: L4_11
E77: Реквизиты решения | F77: Наименование
F78: Вид
F79: Номер
F80: Дата принятия
F81: Дата начала реализации / действия инвестиционной программы
F82: Дата окончания реализации / действия инвестиционной программы
A83: HAS_DOC6 | H83: Добавить
A84: HAS_DOC7 | E84: ="Наличие утверждённых ОИВ концессионных соглашений, действующих в течение "&god&" года, для организации, оказывающей услуги холодного водоснабжения/водоотведения" -> Наличие утверждённых ОИВ концессионных соглашений, действующих в течение 2024 года, для организации, оказывающей услуги холодного водоснабжения/водоотведения | H84: нет | J84: L4_12
E85: Реквизиты решения | F85: Наименование
F86: Вид
F87: Номер
F88: Дата принятия
F89: Дата начала реализации / действия концессионного соглашения
F90: Дата окончания реализации / действия концессионного соглашения
A91: HAS_DOC7 | H91: Добавить
E92: Иные сведения | J92: L4_13
A93: STATUS_GO | E93: Полезный отпуск рассчитывается с учётом собственных нужд предприятия (п.10.1 баланса ВС и п.6 баланса ВО) | H93: да | J93: L4_14
E95: Данные об ответственном исполнителе от организации | G95: ФИО исполнителя | H95: Дюпина Елена Владимировна | J95: L5_1
G96: Должность исполнителя | H96: гл.экономист | J96: L5_2
G97: Контактный телефон исполнителя | H97: 8(38452)96103 | J97: L5_3
G98: e-mail исполнителя | H98: e.dyupina@tvk.hcsds.ru | J98: L5_4
E100: Перечень нормативных правовых актов, использованных в процессе проведения экспертизы предложения об установлении тарифов:
E101: 1. Гражданский кодекс Российской Федерации;
E102: 2. Налоговый кодекс Российской Федерации;
E103: 3. Федеральный закон от 17.08.1995 № 147-ФЗ "О естественных монополиях";
E104: 4. Федеральный закон от 26.07.2006 № 135-ФЗ "О защите конкуренции";
E105: 5. Федеральный закон от 07.12.2011 № 416-ФЗ "О водоснабжении и водоотведении";
E106: 6. Федеральный закон от 23.11.2009 № 261-ФЗ "Об энергосбережении и о повышении энергетической эффективности, и о внесении изменений в отдельные законодательные акты Российской Федерации";
E107: 7. Постановление Правительства Российской Федерации от 13.05.2013 № 406 "О государственном регулировании тарифов в сфере водоснабжения и водоотведения";
E108: 8. Постановление Правительства Российской Федерации от 29.07.2013 № 641 "Об инвестиционных и производственных программах организаций, осуществляющих деятельность в сфере водоснабжения и водоотведения";
E109: 9. Методические указания по расчету регулируемых тарифов в сфере водоснабжения и водоотведения, утвержденные приказом ФСТ России от 27.12.2013 № 1746-э;
E110: 10. Регламент установления регулируемых тарифов в сфере водоснабжения и водоотведения, утвержденный приказом ФСТ России от 16.07.2014 № 1154-э;
E111: 11. Приказ Минстроя России от 25.12.2014 № 22/пр "Об утверждении Порядка ведения раздельного учета затрат по видам деятельности организаций, осуществляющих горячее водоснабжение, холодное водоснабжение и (или) водоотведение, и единой системы классификации таких затрат";
E112: 12. Приказ Минстроя России от 04.04.2014 № 162/пр "Об утверждении перечня показателей надежности, качества, энергетической эффективности объектов централизованных систем горячего водоснабжения, холодного водоснабжения и (или) водоотведения, порядка и правил определения плановых значений и фактических значений таких показателей";
E113: 13. Приказ Минстроя России от 23.03.2020 №154/пр "Об утверждении типовых отраслевых норм численности работников водопроводно-канализационного хозяйства";
E114: 14. Иные нормативные правовые акты Российской Федерации.
G115: =COUNTIF(H121:H148,"Водоснабжение")-COUNTIF(H121:H148,"Транспортировка воды")>0 -> TRUE | H115: =COUNTIF(H121:H148,"Водоотведение")-COUNTIF(H121:H148,"Транспортировка сточных вод")>0 -> TRUE | I115: =COUNTIF(H121:H148,"Транспортировка воды")>0 -> FALSE | J115: =COUNTIF(H121:H148,"Транспортировка сточных вод")>0 -> FALSE
E116: 2. Информация о рассмотрении дела об установлении тарифов
E117: Реквизиты решения, которым установлены действующие тарифы | G117: Организация регулируется впервые | H117: нет | J117: L6_1
G118: Вид | H118: постановление | J118: L6_2
G119: Номер | H119: 626 | J119: L6_3
G120: Дата принятия | H120: 2022-11-25 | J120: L6_4
D121: 0 | E121: ="Заявление организации" -> Заявление организации
D122: 1 | G122: ="Тариф " & D122 -> Тариф 1 | H122: Водоснабжение | I122: О | J122: =G122 & " (" &H122& ") - " &H124 & IF(H128="",""," (" & H128 & ")") -> Тариф 1 (Водоснабжение) - тариф на питьевую воду | K122: =H127 -> питьевая вода | L122: =H124 -> тариф на питьевую воду | M122: =H128 -> 0 | N122: =H125 -> одноставочный
G123: Номер тарифа (идентификатор) | H123: ХВС.42.26356891.0002
G124: Вид тарифа | H124: тариф на питьевую воду
G125: Тип тарифа | H125: одноставочный
G126: Вид(-ы) деятельности | H126: Производство (подъём / добыча) воды :: Очистка воды :: Транспортировка воды :: Сбыт (распределение) воды
G127: =IF(H122="Водоотведение","Вид сточных вод","Вид воды") -> Вид воды | H127: питьевая вода
G128: Дополнительный признак дифференциации тарифа
B129: =org_declaration="Заявление организации" -> TRUE | G129: Номер входящий | H129: 2577
B130: TRUE | G130: Дата регистрации | H130: 2023-04-28
B131: TRUE | G131: Дополнительные сведения
B132: TRUE | G132: Метод регулирования, предложенный организацией | H132: индексации
B133: TRUE | G133: =IF(OR(H132="экономически обоснованных расходов (затрат)",H132="сравнения аналогов"),"Период регулирования","Первый год долгосрочного периода регулирования, предложенный организацией") -> Первый год долгосрочного периода регулирования, предложенный организацией | H133: 2024
B134: TRUE | G134: Период долгосрочной индексации (количество лет) | H134: 5
D135: 2 | G135: ="Тариф " & D135 -> Тариф 2 | H135: Водоотведение | I135: О | J135: =G135 & " (" &H135& ") - " &H137 & IF(H141="",""," (" & H141 & ")") -> Тариф 2 (Водоотведение) - тариф на водоотведение | K135: =H140 -> без дифференциации | L135: =H137 -> тариф на водоотведение | M135: =H141 -> 0 | N135: =H138 -> одноставочный
G136: Номер тарифа (идентификатор) | H136: ВО.42.26356891.0002
G137: Вид тарифа | H137: тариф на водоотведение
G138: Тип тарифа | H138: одноставочный
G139: Вид(-ы) деятельности | H139: Приём сточных вод :: Очистка сточных вод :: Транспортировка сточных вод
G140: =IF(H135="Водоотведение","Вид сточных вод","Вид воды") -> Вид сточных вод | H140: без дифференциации
G141: Дополнительный признак дифференциации тарифа
B142: =org_declaration="Заявление организации" -> TRUE | G142: Номер входящий | H142: =IFERROR(IF(H129="","",H129),"") -> 2577
B143: TRUE | G143: Дата регистрации | H143: =IFERROR(IF(H130="","",H130),"") -> 2023-04-28
B144: TRUE | G144: Дополнительные сведения | H144: =IFERROR(IF(H131="","",H131),"") -> 
B145: TRUE | G145: Метод регулирования, предложенный организацией | H145: индексации
B146: TRUE | G146: =IF(OR(H145="экономически обоснованных расходов (затрат)",H145="сравнения аналогов"),"Период регулирования","Первый год долгосрочного периода регулирования, предложенный организацией") -> Первый год долгосрочного периода регулирования, предложенный организацией | H146: 2024
B147: TRUE | G147: Период долгосрочной индексации (количество лет) | H147: 5
G148: Добавить тариф
E149: Решение об открытии дела об установлении тарифов | G149: Номер дела об установлении тарифа | H149: 39-ВСиВО | J149: L7_2
G150: ФИО уполномоченного по делу | H150: Белоусова Ирина Анатольевна | J150: L7_3
G151: Должность уполномоченного по делу | H151: Главный консультант | J151: L7_4
G152: Контактный телефон уполномоченного по делу | H152: 8 (384-2) 34-94-52 | J152: L7_5
G153: e-mail уполномоченного по делу | H153: belousova_ia.71@mail.ru | J153: L7_6
G154: Добавить строку
G155: Выбранный метод регулирования | H155: ="индексации" & IF(god=first_year,""," (корректировка)") -> индексации
G156: Период регулирования | H156: =""&god -> 2024
G157: Первый год долгосрочного периода регулирования | H157: =first_year -> 2024
G158: Период долгосрочной индексации (количество лет) | H158: =""&PERIOD_LENGTH -> 5
E159: Представленные документы и материалы достаточны и предложение регулируемой организации об установлении тарифов соответствует законодательству Российской Федерации | H159: да

Sheet Список территорий
M1: MR_NAME | N1: MO_NAME | O1: OKTMO
M11: =tpl_title -> Кемеровская область / 2024 / ООО "ТВК" (ИНН:4202026697, КПП:420201001) / ДПР: 2024-2028
L12: 3. Перечень муниципальных образований, на территории которых организация оказывает услуги холодного водоснабжения / водоотведения
L14: № п/п | M14: Муниципальный район | N14: Муниципальное образование | O14: ОКТМО | P14: Тип муниципального образования | Q14: Дополнительные сведения
A15: ='Общие сведения'!$D$122 -> 1 | L15: =INDEX('Общие сведения'!$J$121:$J$148,MATCH($A15,'Общие сведения'!$D$121:$D$148,0)) -> Тариф 1 (Водоснабжение) - тариф на питьевую воду
A16: =A15 -> 1 | L16: 1 | M16: город Белово | N16: город Белово | O16: 32707000
A17: =A15 -> 1 | M17: Добавить территорию
A18: ='Общие сведения'!$D$135 -> 2 | L18: =INDEX('Общие сведения'!$J$121:$J$148,MATCH($A18,'Общие сведения'!$D$121:$D$148,0)) -> Тариф 2 (Водоотведение) - тариф на водоотведение
A19: =A18 -> 2 | L19: 1 | M19: город Белово | N19: город Белово | O19: 32707000
A20: =A18 -> 2 | M20: Добавить территорию

Sheet Список объектов
O1: =god-2 -> 2022 | P1: =god-1 -> 2023 | Q1: =god -> 2024 | R1: =god -> 2024 | S1: =god -> 2024
O2: Не определено | P2: Принято органом регулирования | Q2: Предложение организации | R2: Принято органом регулирования | S2: Не определено
M11: =tpl_title -> Кемеровская область / 2024 / ООО "ТВК" (ИНН:4202026697, КПП:420201001) / ДПР: 2024-2028
L12: 4. Перечень объектов организации, с помощью которых организация оказывает услуги холодного водоснабжения/ водоотведения
L14: № п/п | M14: Наименование показателя | N14: Единица измерения | O14: =god-2 & " год" -> 2022 год | P14: =god-1 & " год" -> 2023 год | Q14: =god & " год" -> 2024 год | R14: =god & " год" -> 2024 год | S14: Комментарии
A15: t | O15: Принято органом регулирования | P15: Принято органом регулирования | Q15: Предложение организации | R15: Принято органом регулирования
A16: ='Общие сведения'!$D$122 -> 1 | L16: =INDEX('Общие сведения'!$J$121:$J$148,MATCH($A16,'Общие сведения'!$D$121:$D$148,0)) -> Тариф 1 (Водоснабжение) - тариф на питьевую воду
A17: =A16 -> 1 | B17: L1 | C17: L3 | D17: =M17&"::"&N17 -> Водонасосные станции (водозаборные узлы)::ед. | L17: 1 | M17: Водонасосные станции (водозаборные узлы) | N17: ед.
A18: 1 | B18: L1 | C18: L3 | D18: =M18&"::"&N18 -> Скважины::ед. | L18: 2 | M18: Скважины | N18: ед. | O18: 2 | P18: 2 | Q18: 2 | R18: 2
A19: 1 | B19: L1 | C19: L3 | D19: =M19&"::"&N19 -> Подкачивающие насосные станции::ед. | L19: 3 | M19: Подкачивающие насосные станции | N19: ед. | O19: 1 | P19: 1 | Q19: 1 | R19: 1
A20: 1 | B20: L1 | C20: L3 | D20: =M20&"::"&N20 -> Водонапорные башни::ед. | L20: 4 | M20: Водонапорные башни | N20: ед.
A21: 1 | B21: L1 | C21: L3 | D21: =M21&"::"&N21 -> Водопроводные сети::км | L21: 5 | M21: Водопроводные сети | N21: км | O21: 5.485 | P21: 5.485 | Q21: 5.485 | R21: 5.485
A22: 1 | B22: =A22&"pIns" -> 1pIns | M22: Добавить
A23: 1 | B23: L2 | C23: L3 | D23: =M23 -> Краткое описание технологического процесса | M23: Краткое описание технологического процесса | O23: Для хозяйственно-питьевого и производственно-технического водоснабжения предприятий используется подземная вода, добываемая из 2-х артезианских скважин (№ 11 и № 12). Скважины оборудованы погружными центробежными насосами диаметром 8 дюймов, производительностью 40 м3/час. Учет объема добываемых подземных вод ведется по показаниям расходомеров-счетчиков «ВЗЛЕТ ТСРВ-023»). Из скважин вода подается на насосную станцию Водоема-2 в подземный резервуар-накопитель (объем – 120 м3), а затем насосами ЦНС 60-125 (ЦНС 105-196) – на гидроузел в 2 подземных резервуара объемом по 2000 м3 каждый, где обеззараживается и далее подается потребителям. Общая протяженность обслуживаемых сетей водоснабжения составляет 5485,0 м. Для обеззараживания воды используется антимикробный препарат «БИОПАГ». В настоящее время ООО «Шахта Листвяжная» является единственным потребителем услуг холодного водоснабжения. Питьевая вода из артезианских скважин поставляется также для собственных хозяйственно-бытовых и производственных нужд ООО "ТВК" (на очистные сооружения). Вода для нужд паросилового хозяйства ООО "ТВК", в связи с недостаточным дебитом скважин и неподходящими характеристиками артезианской воды, поставляется на котельную ООО «ТВК» по отдельному водоводу из г. Ленинск-Кузнецкий (инвентарные номера арендуемых объектов – № 16186, № 16191, № 18223). Трубопровод, присоединенный к сетям водоснабжения артезианской водой, предназначен для аварийных поставок воды на котельную и фактически не используется. Лицензия на пользование недрами (добычу воды из артезианских скважин) оформлена на организацию-арендодателя.
A24: ='Общие сведения'!$D$135 -> 2 | L24: =INDEX('Общие сведения'!$J$121:$J$148,MATCH($A24,'Общие сведения'!$D$121:$D$148,0)) -> Тариф 2 (Водоотведение) - тариф на водоотведение
A25: =A24 -> 2 | B25: L1 | C25: L3 | D25: =M25&"::"&N25 -> Биологические очистные сооружения::ед. | L25: 1 | M25: Биологические очистные сооружения | N25: ед. | O25: 1 | P25: 1 | Q25: 1 | R25: 1
A26: =A25 -> 2 | B26: L1 | C26: L3 | D26: =M26&"::"&N26 -> Канализационные насосные станции::ед. | L26: 2 | M26: Канализационные насосные станции | N26: ед. | O26: 1 | P26: 1 | Q26: 1 | R26: 1
A27: =A26 -> 2 | B27: L1 | C27: L3 | D27: =M27&"::"&N27 -> Канализационные сети::км | L27: 3 | M27: Канализационные сети | N27: км | O27: 3.431 | P27: 3.431 | Q27: 3.431 | R27: 3.431
A28: =A27 -> 2 | B28: =A28&"pIns" -> 2pIns | M28: Добавить
A29: =A28 -> 2 | B29: L2 | C29: L3 | D29: =M29 -> Краткое описание технологического процесса | M29: Краткое описание технологического процесса | O29: Бытовые сточные воды с промплощадок ООО «Шахта Листвяжная» и ООО «ТВК» (от котельной и гидроузла) самотеком отводятся, пройдя очистку от крупных загрязнений на решетках, в приемный резервуар канализационной насосной станции, откуда перекачиваются насосами КН по 2-м напорным трубопроводам на очистные сооружения в 2 резервуара-усреднителя объемом 85 м3; далее – насосами НПСП на тангенсальные песколовки Q=600 м3, где происходит отделение крупных частиц минерального происхождения. Затем стоки самотеком попадают в камеру хлопьеобразования (2 шт.). Раствор коагулянта вводится до песколовки, раствор флокулянта – после песколовки. Далее стоки поступают в отстойники (2 шт.), где происходит выпадение осадка, который эрлифтами подается на блок обезвоживания. После отстойника стоки подаются в камеру реакции (2 шт.), далее – в приемный резервуар, затем насосами НОВ перекачиваются на доочистку в скорые фильтры (3 шт.). После глубокой очистки на фильтрах сточные воды проходят через УФ-стерилизатор и затем попадают в контактный резервуар. Обеззараживание стоков производится раствором гипохлорита натрия, получение которого в существующей технологической схеме предусмотрено на электролизной установке. Поваренная соль подается через бункер в растворный бак объемом 4500 л, где смешивается с водопроводной водой; насосами НПСО раствор соли перекачивается в отстойник (V- 4500 л), далее химическими насосами НПСФ - в расходный бак V- 4500 л, дозировочными насосами НПСЭ подается на электролизер, откуда в расходный бак V – 2000 л поступает полученный раствор гипохлорита натрия, который дозировочными насосами НПГВ подается на первичное и вторичное хлорирование. (Следует отметить, что с 2019-2020 г. ООО «ТВК» использует готовый покупной гипохлорит натрия.) Для подачи коагулянта применяется насос НПКХ; для подачи флокулянта - насос НПФХ; для подачи едкого натрия – насос НПНХ. Общая протяженность канализационных сетей составляет 3431,0 м. Очищенная и обеззараженная вода береговым выпуском сбрасывается в лог и далее, совместно со стоками шахтных вод, отводится в р. Иня. Разрешение № 1/1вода/Бел на сброс загрязняющих веществ в окружающую среду (водные объекты)» выдано Управлением Росприроднадзора по Кемеровской области обществу с ограниченной ответственностью «Шахта «Листвяжная».
L31: 5. Правоустанавливающие и подтверждающие документы на объекты коммунальной инфраструктуры
M32: L1 | N32: L2 | O32: L3 | P32: L4_1 | Q32: L4_2 | R32: L5
A33: t | L33: № п/п | M33: Объект коммунальной инфраструктуры | N33: Основание эксплуатации | O33: Вид документа | P33: Номер документа | Q33: Дата документа | R33: Срок действия
D34: ВС | F34: НС с сетями | G34: ООО "ТВК" | H34: пгт Грамотеино / мкр Листвяжный / 5, стр 1 | K34: О | L34: 1 | M34: =F34&" :: " &G34&" :: " & H34 -> НС с сетями :: ООО "ТВК" :: пгт Грамотеино / мкр Листвяжный / 5, стр 1 | N34: аренда | O34: договор | P34: 35_22 | Q34: 01.07.2022 | R34: С 01.07.2022 по 31.05.2023; представлен также новый Договор аренды имущества (сооружения) от 01.06.2023 № А-63/23 со сроком действия по 30.06.2024. Договоры с арендодателем (ООО "Шахта "Листвяжная") перезаключаются ежегодно. https://portal.eias.ru/Portal/DownloadPage.aspx?type=12&guid=ef2d0be2-2b7b-4dbc-b792-1d4b3c030a6f
D35: ВО | F35: КНС с ОС и сетями | G35: ООО "ТВК" | H35: пгт Грамотеино / мкр.Листвяжный / 5, стр 1 | K35: О | L35: 2 | M35: =F35&" :: " &G35&" :: " & H35 -> КНС с ОС и сетями :: ООО "ТВК" :: пгт Грамотеино / мкр.Листвяжный / 5, стр 1 | N35: аренда | O35: договор | P35: 35-22 | Q35: 01.07.2022 | R35: С 01.07.2022 по 31.05.2023; представлен также новый Договор аренды имущества (сооружения) от 01.06.2023 № А-63/23 со сроком действия по 30.06.2024. Договоры с арендодателем (ООО "Шахта "Листвяжная") перезаключаются ежегодно. https://portal.eias.ru/Portal/DownloadPage.aspx?type=12&guid=ef2d0be2-2b7b-4dbc-b792-1d4b3c030a6f
A36: t | M36: Добавить объект

Sheet Сценарии
O1: =god-2 -> 2022 | P1: =god-2 -> 2022 | Q1: =god-2 -> 2022 | R1: =god-2 -> 2022 | S1: =god-1 -> 2023 | T1: =god -> 2024 | U1: =god -> 2024 | V1: =god -> 2024 | W1: =god -> 2024 | X1: =god -> 2024 | Y1: =god+1 -> 2025 | Z1: =god+1 -> 2025 | AA1: =god+2 -> 2026 | AB1: =god+2 -> 2026 | AC1: =god+3 -> 2027 | AD1: =god+3 -> 2027 | AE1: =god+4 -> 2028 | AF1: =god+4 -> 2028 | AG1: =god+5 -> 2029 | AH1: =god+5 -> 2029 | AI1: =god+6 -> 2030 | AJ1: =god+6 -> 2030 | AK1: =god+7 -> 2031 | AL1: =god+7 -> 2031 | AM1: =god+8 -> 2032 | AN1: =god+8 -> 2032 | AO1: =god+9 -> 2033 | AP1: =god+9 -> 2033
O2: =O15 -> Принято органом регулирования | P2: Факт по данным организации | Q2: Факт, принятый органом регулирования | R2: Комментарии | S2: Принято органом регулирования | T2: Предложение организации | U2: =U15 -> Принято органом регулирования | V2: % роста / снижения | W2: Отклонение (принято органом регулирования - заявлено организацией) | X2: Комментарии | Y2: Предложение организации | Z2: Принято органом регулирования | AA2: Предложение организации | AB2: Принято органом регулирования | AC2: Предложение организации | AD2: Принято органом регулирования | AE2: Предложение организации | AF2: Принято органом регулирования | AG2: Предложение организации | AH2: Принято органом регулирования | AI2: Предложение организации | AJ2: Принято органом регулирования | AK2: Предложение организации | AL2: Принято органом регулирования | AM2: Предложение организации | AN2: Принято органом регулирования | AO2: Предложение организации | AP2: Принято органом регулирования
O3: =O1&O2 -> 2022Принято органом регулирования | P3: 2022Факт по данным организации | Q3: 2022Факт, принятый органом регулирования | R3: 2022Комментарии | S3: 2023Принято органом регулирования | T3: 2024Предложение организации | U3: 2024Принято органом регулирования | V3: 2024% роста / снижения | W3: 2024Отклонение (принято органом регулирования - заявлено организацией) | X3: 2024Комментарии | Y3: 2025Предложение организации | Z3: 2025Принято органом регулирования | AA3: 2026Предложение организации | AB3: 2026Принято органом регулирования | AC3: 2027Предложение организации | AD3: 2027Принято органом регулирования | AE3: 2028Предложение организации | AF3: 2028Принято органом регулирования | AG3: 2029Предложение организации | AH3: 2029Принято органом регулирования | AI3: 2030Предложение организации | AJ3: 2030Принято органом регулирования | AK3: 2031Предложение организации | AL3: 2031Принято органом регулирования | AM3: 2032Предложение организации | AN3: 2032Принято органом регулирования | AO3: 2033Предложение организации | AP3: 2033Принято органом регулирования
Y7: =Y1<=last_year_vis -> TRUE | Z7: TRUE | AA7: TRUE | AB7: TRUE | AC7: TRUE | AD7: TRUE | AE7: TRUE | AF7: TRUE | AG7: FALSE | AH7: FALSE | AI7: FALSE | AJ7: FALSE | AK7: FALSE | AL7: FALSE | AM7: FALSE | AN7: FALSE | AO7: FALSE | AP7: FALSE
M11: =tpl_title -> Кемеровская область / 2024 / ООО "ТВК" (ИНН:4202026697, КПП:420201001) / ДПР: 2024-2028
L12: 6. Ключевые сценарные показатели
L14: № п/п | M14: Наименование параметра | N14: Единица измерения | O14: =god-2 & " год" -> 2022 год | P14: =god-2 & " год" -> 2022 год | Q14: =god-2 & " год" -> 2022 год | R14: =god-2 & " год" -> 2022 год | S14: =god-1 & " год" -> 2023 год | T14: =god & " год" -> 2024 год | U14: =god & " год" -> 2024 год | V14: =god & " год" -> 2024 год | W14: =god & " год" -> 2024 год | X14: =god & " год" -> 2024 год | Y14: =god+1 & " год" -> 2025 год | Z14: =god+1 & " год" -> 2025 год | AA14: =god+2 & " год" -> 2026 год | AB14: =god+2 & " год" -> 2026 год | AC14: =god+3 & " год" -> 2027 год | AD14: =god+3 & " год" -> 2027 год | AE14: =god+4 & " год" -> 2028 год | AF14: =god+4 & " год" -> 2028 год | AG14: =god+5 & " год" -> 2029 год | AH14: =god+5 & " год" -> 2029 год | AI14: =god+6 & " год" -> 2030 год | AJ14: =god+6 & " год" -> 2030 год | AK14: =god+7 & " год" -> 2031 год | AL14: =god+7 & " год" -> 2031 год | AM14: =god+8 & " год" -> 2032 год | AN14: =god+8 & " год" -> 2032 год | AO14: =god+9 & " год" -> 2033 год | AP14: =god+9 & " год" -> 2033 год
A15: t | O15: Принято органом регулирования | P15: Факт по данным организации | Q15: Факт, принятый органом регулирования | R15: Комментарии | S15: Принято органом регулирования | T15: Предложение организации | U15: Принято органом регулирования | V15: % роста / снижения | W15: Отклонение (принято органом регулирования - заявлено организацией) | X15: Комментарии | Y15: Предложение организации | Z15: Принято органом регулирования | AA15: Предложение организации | AB15: Принято органом регулирования | AC15: Предложение организации | AD15: Принято органом регулирования | AE15: Предложение организации | AF15: Принято органом регулирования | AG15: Предложение организации | AH15: Принято органом регулирования | AI15: Предложение организации | AJ15: Принято органом регулирования | AK15: Предложение организации | AL15: Принято органом регулирования | AM15: Предложение организации | AN15: Принято органом регулирования | AO15: Предложение организации | AP15: Принято органом регулирования
A16: ='Общие сведения'!$D$122 -> 1 | L16: =INDEX('Общие сведения'!$J$121:$J$148,MATCH($A16,'Общие сведения'!$D$121:$D$148,0)) -> Тариф 1 (Водоснабжение) - тариф на питьевую воду
A17: =A16 -> 1 | B17: ИОР | M17: Индексы | S17: =(1-S18/100)*(1+S19/100)*(1+S21/100) -> 1.04742 | T17: =(1-T18/100)*(1+T19/100)*(1+T21/100) -> 1 | U17: =(1-U18/100)*(1+U19/100)*(1+U21/100) -> 1.072 | Y17: =(1-Y18/100)*(1+Y19/100)*(1+Y21/100) -> 1.04 | Z17: =(1-Z18/100)*(1+Z19/100)*(1+Z21/100) -> 1.03158 | AA17: 1.04 | AB17: 1.0296 | AC17: 1.04 | AD17: 1.0296 | AE17: 1.04 | AF17: 1.0296 | AG17: 1 | AH17: 1 | AI17: 1 | AJ17: 1 | AK17: 1 | AL17: 1 | AM17: 1 | AN17: 1 | AO17: 1 | AP17: 1
A18: =A17 -> 1 | B18: ИЭР | C18: L1_1 | L18: 1 | M18: Индекс эффективности операционных расходов | N18: % | O18: 1 | P18: 1 | Q18: 1 | R18: Постановление РЭК Кемеровской области от 11.10.2018 N 254 (ред. от 14.12.2021) "Об установлении долгосрочных параметров регулирования тарифов в сфере холодного водоснабжения, водоотведения ООО "ТВК" (Беловский городской округ)". | S18: 1 | V18: =IF(S18<>0,U18/S18,0) -> 0 | W18: =U18-T18 -> 0 | Y18: 0 | Z18: 1 | AA18: 0 | AB18: 1 | AC18: 0 | AD18: 1 | AE18: 0 | AF18: 1
A19: 1 | B19: ИПЦ | C19: L1_2 | L19: 2 | M19: Индекс потребительских цен | N19: % | O19: 4.3 | P19: 13.9 | Q19: 13.8 | R19: Согласно базовому варианту "Прогноза соц.-экономического развития Российской Федерации на 2024 год и на плановый период 2025 и 2026 годов", опубликованному на официальном сайте Минэкономразвития России 22.09.2023. | S19: 5.8 | U19: 7.2 | V19: =IF(S19<>0,U19/S19,0) -> 1.24137931 | W19: =U19-T19 -> 7.2 | X19: Согласно базовому варианту "Прогноза соц.-экономического развития Российской Федерации на 2024 год и на плановый период 2025 и 2026 годов", опубликованному на официальном сайте Минэкономразвития России 22.09.2023. | Y19: 4 | Z19: 4.2 | AA19: 4 | AB19: 4 | AC19: 4 | AD19: 4 | AE19: 4 | AF19: 4
A20: 1 | C20: L1_3 | L20: 3 | M20: Индекс роста цен на электроэнергию | N20: % | O20: 3.5 | P20: 4.5 | R20: Согласно базовому варианту "Прогноза соц.-экономического развития Российской Федерации на 2024 год и на плановый период 2025 и 2026 годов", опубликованному на официальном сайте Минэкономразвития России 22.09.2023. | S20: 12 | U20: 5.6 | V20: =IF(S20<>0,U20/S20,0) -> 0.4666666667 | W20: =U20-T20 -> 5.6 | X20: Согласно базовому варианту "Прогноза соц.-экономического развития Российской Федерации на 2024 год и на плановый период 2025 и 2026 годов", опубликованному на официальном сайте Минэкономразвития России 22.09.2023. | Z20: 4.9 | AB20: 3 | AD20: 3 | AF20: 3
A21: 1 | B21: ИКА | C21: L1_4 | L21: 4 | M21: Индекс количества активов | N21: % | O21: 0 | P21: 0 | Q21: 0 | S21: 0 | V21: =IF(S21<>0,U21/S21,0) -> 0 | W21: =U21-T21 -> 0 | Z21: 0 | AB21: 0 | AD21: 0 | AF21: 0
A22: 1 | M22: Налоговые ставки
A23: 1 | B23: СВФОТ | C23: L2_1 | L23: 1 | M23: Ставка страховых взносов с ФОТ | N23: % | O23: 30.2 | P23: 30.2 | Q23: 30.2 | R23: 1) Глава 34 "Налогового кодекса РФ" (ред. от 10.07.2023 № 318-ФЗ); 2) Федеральные законы от 22.12.2005 № 179-ФЗ, от 31.12.2017 № 484-ФЗ); от 24.07.1998 № 125-ФЗ; 3) Форма налоговой отчетности "4-ФСС" за 2022 год . | S23: 30.2 | T23: 30.2 | U23: 30.2 | V23: =IF(S23<>0,U23/S23,0) -> 1 | W23: =U23-T23 -> 0 | X23: 1) Глава 34 "Налогового кодекса РФ" (ред. от 10.07.2023 № 318-ФЗ); 2) Федеральные законы от 22.12.2005 № 179-ФЗ, от 31.12.2017 № 484-ФЗ); от 24.07.1998 № 125-ФЗ; 3) Форма налоговой отчетности "4-ФСС" за 2022 год . | Z23: 30.2 | AB23: 30.2 | AD23: 30.2 | AF23: 30.2
A24: 1 | C24: L2_2 | L24: 2 | M24: Ставка НДС | N24: % | O24: 20 | P24: 20 | Q24: 20 | R24: Пункт 3 Статьи 164 Главы 21 "НАЛОГ НА ДОБАВЛЕННУЮ СТОИМОСТЬ" "Налогового кодекса Российской Федерации (часть вторая)" от 05.08.2000 N 117-ФЗ (в редакции от 10.07.2023 № 318-ФЗ). | S24: 20 | T24: 20 | U24: 20 | V24: =IF(S24<>0,U24/S24,0) -> 1 | W24: =U24-T24 -> 0 | X24: Пункт 3 Статьи 164 Главы 21 "НАЛОГ НА ДОБАВЛЕННУЮ СТОИМОСТЬ" "Налогового кодекса Российской Федерации (часть вторая)" от 05.08.2000 N 117-ФЗ (в редакции от 10.07.2023 № 318-ФЗ). | Z24: 20 | AB24: 20 | AD24: 20 | AF24: 20
A25: 1 | L25: 3 | M25: Ставка водного налога
A26: 1 | C26: L3_1_1 | L26: 3.1.1 | M26: Ставка водного налога из поверхностных источников для населения | N26: руб./тыс.куб.м. | R26: Плательщиком водного налога является организация-арендодатель | V26: 0 | W26: 0 | X26: Плательщиком водного налога является организация-арендодатель
A27: 1 | C27: L3_1_2 | L27: 3.1.2 | M27: Ставка водного налога из поверхностных источников для прочих потребителей | N27: руб./тыс.куб.м. | V27: 0 | W27: 0
A28: 1 | C28: L3_2_1 | L28: 3.2.1 | M28: Ставка водного налога из подземных источников для населения | N28: руб./тыс.куб.м. | V28: 0 | W28: 0
A29: 1 | C29: L3_2_2 | L29: 3.2.2 | M29: Ставка водного налога из подземных источников для прочих потребителей | N29: руб./тыс.куб.м. | V29: 0 | W29: 0
A30: 1 | C30: L4 | L30: 4 | M30: Ставки налога на имущество | N30: % | V30: 0 | W30: 0
A31: 1 | C31: L5 | L31: 5 | M31: Ставка налога при УСН | N31: % | V31: 0 | W31: 0
A32: 1 | C32: L6 | L32: 6 | M32: Доля общехозяйственных расходов | V32: 0 | W32: 0
A33: 1 | C33: L7 | L33: 7 | M33: Доля общепроизводственных расходов | V33: 0 | W33: 0
A34: ='Общие сведения'!$D$135 -> 2 | L34: =INDEX('Общие сведения'!$J$121:$J$148,MATCH($A34,'Общие сведения'!$D$121:$D$148,0)) -> Тариф 2 (Водоотведение) - тариф на водоотведение
A35: =A34 -> 2 | B35: ИОР | M35: Индексы | S35: =(1-S36/100)*(1+S37/100)*(1+S39/100) -> 1.04742 | T35: =(1-T36/100)*(1+T37/100)*(1+T39/100) -> 1 | U35: =(1-U36/100)*(1+U37/100)*(1+U39/100) -> 1.072 | Y35: =(1-Y36/100)*(1+Y37/100)*(1+Y39/100) -> 1.0296 | Z35: =(1-Z36/100)*(1+Z37/100)*(1+Z39/100) -> 1.03158 | AA35: 1.0296 | AB35: 1.0296 | AC35: 1.0296 | AD35: 1.0296 | AE35: 1.0296 | AF35: 1.0296 | AG35: 1 | AH35: 1 | AI35: 1 | AJ35: 1 | AK35: 1 | AL35: 1 | AM35: 1 | AN35: 1 | AO35: 1 | AP35: 1
A36: =A35 -> 2 | B36: ИЭР | C36: L1_1 | L36: 1 | M36: Индекс эффективности операционных расходов | N36: % | O36: 1 | P36: 1 | Q36: 1 | R36: Постановление РЭК Кемеровской области от 11.10.2018 N 254 (ред. от 14.12.2021) "Об установлении долгосрочных параметров регулирования тарифов в сфере холодного водоснабжения, водоотведения ООО "ТВК" (Беловский городской округ)". | S36: 1 | V36: =IF(S36<>0,U36/S36,0) -> 0 | W36: =U36-T36 -> 0 | Y36: 1 | Z36: 1 | AA36: 1 | AB36: 1 | AC36: 1 | AD36: 1 | AE36: 1 | AF36: 1
A37: 2 | B37: ИПЦ | C37: L1_2 | L37: 2 | M37: Индекс потребительских цен | N37: % | O37: 4.3 | P37: 13.9 | Q37: 13.8 | R37: Согласно базовому варианту "Прогноза соц.-экономического развития Российской Федерации на 2024 год и на плановый период 2025 и 2026 годов", опубликованному на официальном сайте Минэкономразвития России 22.09.2023. | S37: 5.8 | U37: 7.2 | V37: =IF(S37<>0,U37/S37,0) -> 1.24137931 | W37: =U37-T37 -> 7.2 | X37: Согласно базовому варианту "Прогноза соц.-экономического развития Российской Федерации на 2024 год и на плановый период 2025 и 2026 годов", опубликованному на официальном сайте Минэкономразвития России 22.09.2023. | Y37: 4 | Z37: 4.2 | AA37: 4 | AB37: 4 | AC37: 4 | AD37: 4 | AE37: 4 | AF37: 4
A38: 2 | C38: L1_3 | L38: 3 | M38: Индекс роста цен на электроэнергию | N38: % | O38: 3.5 | P38: 4.5 | R38: Согласно базовому варианту "Прогноза соц.-экономического развития Российской Федерации на 2024 год и на плановый период 2025 и 2026 годов", опубликованному на официальном сайте Минэкономразвития России 22.09.2023. | S38: 12 | U38: 5.6 | V38: =IF(S38<>0,U38/S38,0) -> 0.4666666667 | W38: =U38-T38 -> 5.6 | X38: Согласно базовому варианту "Прогноза соц.-экономического развития Российской Федерации на 2024 год и на плановый период 2025 и 2026 годов", опубликованному на официальном сайте Минэкономразвития России 22.09.2023. | Z38: 4.9 | AB38: 3 | AD38: 3 | AF38: 3
A39: 2 | B39: ИКА | C39: L1_4 | L39: 4 | M39: Индекс количества активов | N39: % | O39: 0 | P39: 0 | Q39: 0 | S39: 0 | V39: =IF(S39<>0,U39/S39,0) -> 0 | W39: =U39-T39 -> 0 | Z39: 0 | AB39: 0 | AD39: 0 | AF39: 0
A40: 2 | M40: Налоговые ставки
A41: 2 | B41: СВФОТ | C41: L2_1 | L41: 1 | M41: Ставка страховых взносов с ФОТ | N41: % | O41: 30.2 | P41: 30.2 | Q41: 30.2 | R41: 1) Глава 34 "Налогового кодекса РФ" (ред. от 10.07.2023 № 318-ФЗ); 2) Федеральные законы от 22.12.2005 № 179-ФЗ, от 31.12.2017 № 484-ФЗ); от 24.07.1998 № 125-ФЗ; 3) Форма налоговой отчетности "4-ФСС" за 2022 год . | S41: 30.2 | T41: 30.2 | U41: 30.2 | V41: =IF(S41<>0,U41/S41,0) -> 1 | W41: =U41-T41 -> 0 | X41: 1) Глава 34 "Налогового кодекса РФ" (ред. от 10.07.2023 № 318-ФЗ); 2) Федеральные законы от 22.12.2005 № 179-ФЗ, от 31.12.2017 № 484-ФЗ); от 24.07.1998 № 125-ФЗ; 3) Форма налоговой отчетности "4-ФСС" за 2022 год . | Z41: 30.2 | AB41: 30.2 | AD41: 30.2 | AF41: 30.2
A42: 2 | C42: L2_2 | L42: 2 | M42: Ставка НДС | N42: % | O42: 20 | P42: 20 | Q42: 20 | R42: Пункт 3 Статьи 164 Главы 21 "НАЛОГ НА ДОБАВЛЕННУЮ СТОИМОСТЬ" "Налогового кодекса Российской Федерации (часть вторая)" от 05.08.2000 N 117-ФЗ (в редакции от 10.07.2023 № 318-ФЗ). | S42: 20 | T42: 20 | U42: 20 | V42: =IF(S42<>0,U42/S42,0) -> 1 | W42: =U42-T42 -> 0 | X42: Пункт 3 Статьи 164 Главы 21 "НАЛОГ НА ДОБАВЛЕННУЮ СТОИМОСТЬ" "Налогового кодекса Российской Федерации (часть вторая)" от 05.08.2000 N 117-ФЗ (в редакции от 10.07.2023 № 318-ФЗ). | Z42: 20 | AB42: 20 | AD42: 20 | AF42: 20
A43: 2 | L43: 3 | M43: Ставка водного налога
A44: 2 | C44: L3_1_1 | L44: 3.1.1 | M44: Ставка водного налога из поверхностных источников для населения | N44: руб./тыс.куб.м. | V44: 0 | W44: 0
A45: 2 | C45: L3_1_2 | L45: 3.1.2 | M45: Ставка водного налога из поверхностных источников для прочих потребителей | N45: руб./тыс.куб.м. | V45: 0 | W45: 0
A46: 2 | C46: L3_2_1 | L46: 3.2.1 | M46: Ставка водного налога из подземных источников для населения | N46: руб./тыс.куб.м. | V46: 0 | W46: 0
A47: 2 | C47: L3_2_2 | L47: 3.2.2 | M47: Ставка водного налога из подземных источников для прочих потребителей | N47: руб./тыс.куб.м. | V47: 0 | W47: 0
A48: 2 | C48: L4 | L48: 4 | M48: Ставки налога на имущество | N48: % | V48: 0 | W48: 0
A49: 2 | C49: L5 | L49: 5 | M49: Ставка налога при УСН | N49: % | V49: 0 | W49: 0
A50: 2 | C50: L6 | L50: 6 | M50: Доля общехозяйственных расходов | V50: 0 | W50: 0
A51: 2 | C51: L7 | L51: 7 | M51: Доля общепроизводственных расходов | V51: 0 | W51: 0
A52: t

Sheet Баланс
O1: =god-2 -> 2022 | P1: =god-2 -> 2022 | Q1: =god-2 -> 2022 | R1: =god-1 -> 2023 | S1: =god -> 2024 | T1: =god+1 -> 2025 | U1: =god+2 -> 2026 | V1: =god+3 -> 2027 | W1: =god+4 -> 2028 | X1: =god+5 -> 2029 | Y1: =god+6 -> 2030 | Z1: =god+7 -> 2031 | AA1: =god+8 -> 2032 | AB1: =god+9 -> 2033 | AC1: =god -> 2024 | AD1: =god+1 -> 2025 | AE1: =god+2 -> 2026 | AF1: =god+3 -> 2027 | AG1: =god+4 -> 2028 | AH1: =god+5 -> 2029 | AI1: =god+6 -> 2030 | AJ1: =god+7 -> 2031 | AK1: =god+8 -> 2032 | AL1: =god+9 -> 2033
O2: =O16 -> Принято органом регулирования | P2: =P16 -> Факт по данным организации | Q2: =Q16 -> Факт, принятый органом регулирования | R2: =R16 -> Принято органом регулирования | S2: =S16 -> Предложение организации | T2: =T16 -> Предложение организации | U2: Предложение организации | V2: Предложение организации | W2: Предложение организации | X2: Предложение организации | Y2: Предложение организации | Z2: Предложение организации | AA2: Предложение организации | AB2: Предложение организации | AC2: Принято органом регулирования | AD2: Принято органом регулирования | AE2: Принято органом регулирования | AF2: Принято органом регулирования | AG2: Принято органом регулирования | AH2: Принято органом регулирования | AI2: Принято органом регулирования | AJ2: Принято органом регулирования | AK2: Принято органом регулирования | AL2: Принято органом регулирования
O3: =O1&O2 -> 2022Принято органом регулирования | P3: =P1&P2 -> 2022Факт по данным организации | Q3: =Q1&Q2 -> 2022Факт, принятый органом регулирования | R3: =R1&R2 -> 2023Принято органом регулирования | S3: =S1&S2 -> 2024Предложение организации | T3: =T1&T2 -> 2025Предложение организации | U3: 2026Предложение организации | V3: 2027Предложение организации | W3: 2028Предложение организации | X3: 2029Предложение организации | Y3: 2030Предложение организации | Z3: 2031Предложение организации | AA3: 2032Предложение организации | AB3: 2033Предложение организации | AC3: 2024Принято органом регулирования | AD3: 2025Принято органом регулирования | AE3: 2026Принято органом регулирования | AF3: 2027Принято органом регулирования | AG3: 2028Принято органом регулирования | AH3: 2029Принято органом регулирования | AI3: 2030Принято органом регулирования | AJ3: 2031Принято органом регулирования | AK3: 2032Принято органом регулирования | AL3: 2033Принято органом регулирования
S7: =S1<=last_year_vis -> TRUE | T7: TRUE | U7: TRUE | V7: TRUE | W7: TRUE | X7: FALSE | Y7: FALSE | Z7: FALSE | AA7: FALSE | AB7: FALSE | AC7: TRUE | AD7: TRUE | AE7: TRUE | AF7: TRUE | AG7: TRUE | AH7: FALSE | AI7: FALSE | AJ7: FALSE | AK7: FALSE | AL7: FALSE
M11: =tpl_title -> Кемеровская область / 2024 / ООО "ТВК" (ИНН:4202026697, КПП:420201001) / ДПР: 2024-2028
L12: 7. Баланс водоснабжения / водоотведения
G14: =hasVS -> TRUE | L14: 7.1. Баланс водоснабжения
G15: =hasVS -> TRUE | L15: № п/п | M15: Наименование показателя | N15: Единица измерения | O15: =god-2 & " год" -> 2022 год | P15: =god-2 & " год" -> 2022 год | Q15: =god-2 & " год" -> 2022 год | R15: =god-1 & " год" -> 2023 год | S15: =god & " год" -> 2024 год | T15: =god+1 & " год" -> 2025 год | U15: =god+2 & " год" -> 2026 год | V15: =god+3 & " год" -> 2027 год | W15: =god+4 & " год" -> 2028 год | X15: =god+5 & " год" -> 2029 год | Y15: =god+6 & " год" -> 2030 год | Z15: =god+7 & " год" -> 2031 год | AA15: =god+8 & " год" -> 2032 год | AB15: =god+9 & " год" -> 2033 год | AC15: =god & " год" -> 2024 год | AD15: =god+1 & " год" -> 2025 год | AE15: =god+2 & " год" -> 2026 год | AF15: =god+3 & " год" -> 2027 год | AG15: =god+4 & " год" -> 2028 год | AH15: =god+5 & " год" -> 2029 год | AI15: =god+6 & " год" -> 2030 год | AJ15: =god+7 & " год" -> 2031 год | AK15: =god+8 & " год" -> 2032 год | AL15: =god+9 & " год" -> 2033 год | AM15: Ссылка на правовую норму (основание для принятия показателя в расчет тарифа)
G16: =hasVS -> TRUE | O16: Принято органом регулирования | P16: Факт по данным организации | Q16: Факт, принятый органом регулирования | R16: Принято органом регулирования | S16: Предложение организации | T16: Предложение организации | U16: Предложение организации | V16: Предложение организации | W16: Предложение организации | X16: Предложение организации | Y16: Предложение организации | Z16: Предложение организации | AA16: Предложение организации | AB16: Предложение организации | AC16: Принято органом регулирования | AD16: Принято органом регулирования | AE16: Принято органом регулирования | AF16: Принято органом регулирования | AG16: Принято органом регулирования | AH16: Принято органом регулирования | AI16: Принято органом регулирования | AJ16: Принято органом регулирования | AK16: Принято органом регулирования | AL16: Принято органом регулирования
A17: ='Общие сведения'!$D$122 -> 1 | L17: =INDEX('Общие сведения'!$J$121:$J$148,MATCH($A17,'Общие сведения'!$D$121:$D$148,0)) -> Тариф 1 (Водоснабжение) - тариф на питьевую воду
A18: =A17 -> 1 | L18: 1 | M18: Вид воды | O18: =INDEX('Общие сведения'!$K$121:$K$148,MATCH($A18,'Общие сведения'!$D$121:$D$148,0)) -> питьевая вода
A19: 1 | C19: L2 | L19: 2 | M19: Установленная мощность | N19: куб.м/час | O19: 90 | P19: 90 | Q19: 90 | R19: 90 | S19: 90 | T19: 90 | U19: 90 | V19: 90 | W19: 90 | AC19: 90 | AD19: 90 | AE19: 90 | AF19: 90 | AG19: 90
A20: 1 | C20: L3 | L20: 3 | M20: Подключённая (фактическая) нагрузка | N20: куб.м/час | O20: =O21/365/24*1000 -> 84.59946824 | P20: =P21/365/24*1000 -> 63.95262557 | Q20: =Q21/365/24*1000 -> 63.95262557 | R20: 84.43652461 | S20: 68.02865297 | T20: 68.02865297 | U20: 68.02865297 | V20: 68.02865297 | W20: 68.02865297 | AC20: =AC21/365/24*1000 -> 63.33099057 | AD20: =AD21/365/24*1000 -> 63.33099057 | AE20: =AE21/365/24*1000 -> 63.33099057 | AF20: =AF21/365/24*1000 -> 63.33099057 | AG20: =AG21/365/24*1000 -> 63.33099057
A21: 1 | C21: L4 | L21: 4 | M21: Объём воды из источников водоснабжения, всего | N21: тыс.куб.м | O21: =O30+O25-O28 -> 741.0913418 | P21: 560.225 | Q21: =Q30+Q25-Q28 -> 560.225 | R21: 739.6639555 | S21: 595.931 | T21: 595.931 | U21: 595.931 | V21: 595.931 | W21: 595.931 | X21: 0 | Y21: 0 | Z21: 0 | AA21: 0 | AB21: 0 | AC21: =AC30+AC25-AC28 -> 554.7794774 | AD21: 554.7794774 | AE21: 554.7794774 | AF21: 554.7794774 | AG21: 554.7794774 | AH21: 0 | AI21: 0 | AJ21: 0 | AK21: 0 | AL21: 0
A22: 1 | C22: L4_1 | L22: 4.1 | M22: Поднято воды из поверхностных источников | N22: тыс.куб.м
A23: 1 | C23: L4_2 | L23: 4.2 | M23: Поднято воды из подземных источников | N23: тыс.куб.м | O23: =O21 -> 741.0913418 | P23: =P21 -> 560.225 | Q23: 560.225 | R23: 739.6639555 | S23: 595.931 | T23: 595.931 | U23: 595.931 | V23: 595.931 | W23: 595.931 | AC23: =AC21 -> 554.7794774 | AD23: =AD21 -> 554.7794774 | AE23: =AE21 -> 554.7794774 | AF23: =AF21 -> 554.7794774 | AG23: =AG21 -> 554.7794774 | AM23: Фактические данные за 2022 г. подтверждены данными представленных "Журналов учета водопотребления средствами измерений".
A24: 1 | C24: L4_3 | L24: 4.3 | M24: Доочищенная сточная вода для нужд технического водоснабжения | N24: тыс.куб.м
A25: 1 | C25: L5 | L25: 5 | M25: Расход воды на технологические нужды всего | N25: тыс.куб.м | O25: =SUM(O26:O27) -> 0.934 | P25: 0 | Q25: 0 | R25: 0.934 | S25: 0 | T25: 0 | U25: 0 | V25: 0 | W25: 0 | X25: 0 | Y25: 0 | Z25: 0 | AA25: 0 | AB25: 0 | AC25: 0 | AD25: 0 | AE25: 0 | AF25: 0 | AG25: 0 | AH25: 0 | AI25: 0 | AJ25: 0 | AK25: 0 | AL25: 0
A26: 1 | C26: L5_1 | L26: 5.1 | M26: Расход воды на собственные нужды водоподготовки | N26: тыс.куб.м
A27: 1 | C27: L5_2 | L27: 5.2 | M27: Расход воды на промывку сетей | N27: тыс.куб.м | O27: 0.934 | P27: 0 | R27: 0.934 | S27: 0 | T27: 0 | U27: 0 | V27: 0 | W27: 0 | AC27: 0 | AD27: 0 | AE27: 0 | AF27: 0 | AG27: 0
A28: 1 | C28: L6 | L28: 6 | M28: Получено воды со стороны | N28: тыс.куб.м
A29: 1 | C29: L7 | L29: 7 | M29: Объём воды, прошедшей водоподготовку (справочно) | N29: тыс.куб.м | O29: =O30 -> 740.1573418 | Q29: =Q30 -> 560.225 | R29: =R30 -> 738.7299555 | AC29: =AC30 -> 554.7794774 | AD29: =AD30 -> 554.7794774 | AE29: =AE30 -> 554.7794774 | AF29: =AF30 -> 554.7794774 | AG29: =AG30 -> 554.7794774
A30: 1 | C30: L8 | L30: 8 | M30: Объём воды, поданной в сеть всего | N30: тыс.куб.м | O30: =O36+O34 -> 740.1573418 | P30: 560.225 | Q30: 560.225 | R30: 738.7299555 | S30: 595.931 | T30: 595.931 | U30: 595.931 | V30: 595.931 | W30: 595.931 | X30: 0 | Y30: 0 | Z30: 0 | AA30: 0 | AB30: 0 | AC30: 554.7794774 | AD30: 554.7794774 | AE30: 554.7794774 | AF30: 554.7794774 | AG30: 554.7794774 | AH30: 0 | AI30: 0 | AJ30: 0 | AK30: 0 | AL30: 0
A31: 1 | C31: L8_1 | L31: 8.1 | M31: Объём воды, поданной в сеть из собственных источников | N31: тыс.куб.м | O31: =O30 -> 740.1573418 | P31: =P30 -> 560.225 | Q31: 560.225 | R31: 738.7299555 | S31: 595.931 | T31: 595.931 | U31: 595.931 | V31: 595.931 | W31: 595.931 | AC31: =AC30 -> 554.7794774 | AD31: =AD30 -> 554.7794774 | AE31: =AE30 -> 554.7794774 | AF31: =AF30 -> 554.7794774 | AG31: =AG30 -> 554.7794774
A32: 1 | C32: L8_2 | L32: 8.2 | M32: Объём воды, поданной в сеть от других операторов | N32: тыс.куб.м
A33: 1 | C33: L8_3 | L33: 8.3 | M33: Получено от других территорий, дифференцированных по тарифу | N33: тыс.куб.м
A34: 1 | C34: L9 | L34: 9 | M34: Потери воды | N34: тыс.куб.м
A35: 1 | C35: L9_1 | L35: 9.1 | M35: Уровень потерь воды | N35: % | O35: =IF(O30=0,0,O34/O30*100) -> 0 | P35: 0 | Q35: 0 | R35: 0 | S35: 0 | T35: 0 | U35: 0 | V35: 0 | W35: 0 | X35: 0 | Y35: 0 | Z35: 0 | AA35: 0 | AB35: 0 | AC35: 0 | AD35: 0 | AE35: 0 | AF35: 0 | AG35: 0 | AH35: 0 | AI35: 0 | AJ35: 0 | AK35: 0 | AL35: 0 | AM35: Согласно постановлению РЭК Кузбасса от 12.10.2023 № 168 "Об установлении нормативов потерь питьевой, технической воды в централизованных системах водоснабжения при ее производстве и транспортировке на 2024 - 2028 годы".
A36: 1 | C36: L10 | L36: 10 | M36: Отпущено воды, всего | N36: тыс.куб.м | O36: =O37+O41+O44+O54 -> 740.1573418 | P36: 560.225 | Q36: 560.225 | R36: 738.7299555 | S36: 595.931 | T36: 595.931 | U36: 595.931 | V36: 595.931 | W36: 595.931 | X36: 0 | Y36: 0 | Z36: 0 | AA36: 0 | AB36: 0 | AC36: 554.7794774 | AD36: 554.7794774 | AE36: 554.7794774 | AF36: 554.7794774 | AG36: 554.7794774 | AH36: 0 | AI36: 0 | AJ36: 0 | AK36: 0 | AL36: 0 | AM36: Пункт 5 "Методических указаний…" ФСТ России от 27.12.2013 № 1746-э.
A37: 1 | B37: =IF(OwnNeedsInPO="да","ПО","") -> ПО | C37: L10_1 | L37: 10.1 | M37: Расход воды на нужды предприятия | N37: тыс.куб.м | O37: =SUM(O38:O40) -> 3.5486698 | P37: 3.849 | Q37: 3.849 | R37: 2.82733256 | S37: 4.771 | T37: 4.771 | U37: 4.771 | V37: 4.771 | W37: 4.771 | X37: 0 | Y37: 0 | Z37: 0 | AA37: 0 | AB37: 0 | AC37: 3.97836489 | AD37: 3.97836489 | AE37: 3.97836489 | AF37: 3.97836489 | AG37: 3.97836489 | AH37: 0 | AI37: 0 | AJ37: 0 | AK37: 0 | AL37: 0
A38: 1 | C38: L10_1_1 | L38: 10.1.1 | M38: хозяйственные нужды | N38: тыс.куб.м
A39: 1 | C39: L10_1_2 | L39: 10.1.2 | M39: на основное производство | N39: тыс.куб.м | O39: 3.5486698 | P39: 3.849 | Q39: 3.849 | R39: 2.82733256 | S39: 4.771 | T39: 4.771 | U39: 4.771 | V39: 4.771 | W39: 4.771 | AC39: 3.97836489 | AD39: 3.97836489 | AE39: 3.97836489 | AF39: 3.97836489 | AG39: 3.97836489 | AM39: Рассчитано в соответствии с Формулами (1) и (1.1), на основании фактических данных о динамике объемов реализации для собственных производственных участков ООО "ТВК" за 2019 - 2022 гг. При этом объемы потребления воды собственными производственными участками определяются как разница между общими объемами воды, поднятой из артезианских скважин, и объемами реализации услуги на потребительском рынке.
A40: 1 | C40: L10_1_3 | L40: 10.1.3 | M40: прочие | N40: тыс.куб.м
A41: 1 | B41: ПО | C41: L10_2 | L41: 10.2 | M41: Отпущено воды другим водопроводам | N41: тыс.куб.м | O41: =SUM(O42:O43) -> 0 | P41: 0 | Q41: 0 | R41: 0 | S41: 0 | T41: 0 | U41: 0 | V41: 0 | W41: 0 | X41: 0 | Y41: 0 | Z41: 0 | AA41: 0 | AB41: 0 | AC41: 0 | AD41: 0 | AE41: 0 | AF41: 0 | AG41: 0 | AH41: 0 | AI41: 0 | AJ41: 0 | AK41: 0 | AL41: 0
A42: 1 | C42: L10_2_1 | L42: 10.2.1 | M42: по приборам учёта | N42: тыс.куб.м
A43: 1 | C43: L10_2_2 | L43: 10.2.2 | M43: по нормативам | N43: тыс.куб.м
A44: 1 | B44: ПО | C44: L10_3 | L44: 10.3 | M44: Отпущено воды по категориям потребителей | N44: тыс.куб.м | O44: =O45+O48+O51 -> 736.608672 | P44: 556.376 | Q44: 556.376 | R44: 735.902623 | S44: 591.16 | T44: 591.16 | U44: 591.16 | V44: 591.16 | W44: 591.16 | X44: 0 | Y44: 0 | Z44: 0 | AA44: 0 | AB44: 0 | AC44: 550.8011125 | AD44: 550.8011125 | AE44: 550.8011125 | AF44: 550.8011125 | AG44: 550.8011125 | AH44: 0 | AI44: 0 | AJ44: 0 | AK44: 0 | AL44: 0
A45: 1 | C45: L10_3_1 | L45: 10.3.1 | M45: Финансируемые из бюджетов всех уровней | N45: тыс.куб.м | O45: =SUM(O46:O47) -> 0 | P45: 0 | Q45: 0 | R45: 0 | S45: 0 | T45: 0 | U45: 0 | V45: 0 | W45: 0 | X45: 0 | Y45: 0 | Z45: 0 | AA45: 0 | AB45: 0 | AC45: 0 | AD45: 0 | AE45: 0 | AF45: 0 | AG45: 0 | AH45: 0 | AI45: 0 | AJ45: 0 | AK45: 0 | AL45: 0
A46: 1 | C46: L10_3_1_1 | L46: 10.3.1.1 | M46: по приборам учёта | N46: тыс.куб.м
A47: 1 | C47: L10_3_1_2 | L47: 10.3.1.2 | M47: по нормативам | N47: тыс.куб.м
A48: 1 | B48: население | C48: L10_3_2 | L48: 10.3.2 | M48: Население | N48: тыс.куб.м | O48: =SUM(O49:O50) -> 0 | P48: 0 | Q48: 0 | R48: 0 | S48: 0 | T48: 0 | U48: 0 | V48: 0 | W48: 0 | X48: 0 | Y48: 0 | Z48: 0 | AA48: 0 | AB48: 0 | AC48: 0 | AD48: 0 | AE48: 0 | AF48: 0 | AG48: 0 | AH48: 0 | AI48: 0 | AJ48: 0 | AK48: 0 | AL48: 0
A49: 1 | C49: L10_3_2_1 | L49: 10.3.2.1 | M49: по приборам учёта | N49: тыс.куб.м
A50: 1 | C50: L10_3_2_2 | L50: 10.3.2.2 | M50: по нормативам | N50: тыс.куб.м
A51: 1 | C51: L10_3_3 | L51: 10.3.3 | M51: Прочие потребители | N51: тыс.куб.м | O51: =SUM(O52:O53) -> 736.608672 | P51: 556.376 | Q51: 556.376 | R51: 735.902623 | S51: 591.16 | T51: 591.16 | U51: 591.16 | V51: 591.16 | W51: 591.16 | X51: 0 | Y51: 0 | Z51: 0 | AA51: 0 | AB51: 0 | AC51: 550.8011125 | AD51: 550.8011125 | AE51: 550.8011125 | AF51: 550.8011125 | AG51: 550.8011125 | AH51: 0 | AI51: 0 | AJ51: 0 | AK51: 0 | AL51: 0
A52: 1 | C52: L10_3_3_1 | L52: 10.3.3.1 | M52: по приборам учёта | N52: тыс.куб.м | O52: 736.608672 | P52: 556.376 | Q52: 556.376 | R52: 735.902623 | S52: 591.16 | T52: 591.16 | U52: 591.16 | V52: 591.16 | W52: 591.16 | AC52: 550.8011125 | AD52: 550.8011125 | AE52: 550.8011125 | AF52: 550.8011125 | AG52: 550.8011125 | AM52: Рассчитано в соответствии с Формулами (1) и (1.1), на основании фактических данных о динамике объемов реализации для нужд ООО "Шахта "Листвяжная", представленных в счетах-фактурах на поставку воды за 2019 - 2022 гг.
A53: 1 | C53: L10_3_3_2 | L53: 10.3.3.2 | M53: по нормативам | N53: тыс.куб.м
A54: 1 | C54: L10_4 | L54: 10.4 | M54: Передано на другие территории, дифференцированные по тарифу | N54: тыс.куб.м
G55: =hasVS -> TRUE
G56: =hasTranspVS -> FALSE | L56: 7.2. Баланс водоснабжения (транспортировка воды)
G57: =hasTranspVS -> FALSE | L57: № п/п | M57: Наименование показателя | N57: Единица измерения | O57: =god-2 & " год" -> 2022 год | P57: =god-2 & " год" -> 2022 год | Q57: =god-2 & " год" -> 2022 год | R57: =god-1 & " год" -> 2023 год | S57: =god & " год" -> 2024 год | T57: =god+1 & " год" -> 2025 год | U57: =god+2 & " год" -> 2026 год | V57: =god+3 & " год" -> 2027 год | W57: =god+4 & " год" -> 2028 год | X57: =god+5 & " год" -> 2029 год | Y57: =god+6 & " год" -> 2030 год | Z57: =god+7 & " год" -> 2031 год | AA57: =god+8 & " год" -> 2032 год | AB57: =god+9 & " год" -> 2033 год | AC57: =god & " год" -> 2024 год | AD57: =god+1 & " год" -> 2025 год | AE57: =god+2 & " год" -> 2026 год | AF57: =god+3 & " год" -> 2027 год | AG57: =god+4 & " год" -> 2028 год | AH57: =god+5 & " год" -> 2029 год | AI57: =god+6 & " год" -> 2030 год | AJ57: =god+7 & " год" -> 2031 год | AK57: =god+8 & " год" -> 2032 год | AL57: =god+9 & " год" -> 2033 год | AM57: Ссылка на правовую норму (основание для принятия показателя в расчет тарифа)
G58: =hasTranspVS -> FALSE | O58: Принято органом регулирования | P58: Факт по данным организации | Q58: Факт, принятый органом регулирования | R58: Принято органом регулирования | S58: Предложение организации | T58: Предложение организации | U58: Предложение организации | V58: Предложение организации | W58: Предложение организации | X58: Предложение организации | Y58: Предложение организации | Z58: Предложение организации | AA58: Предложение организации | AB58: Предложение организации | AC58: Принято органом регулирования | AD58: Принято органом регулирования | AE58: Принято органом регулирования | AF58: Принято органом регулирования | AG58: Принято органом регулирования | AH58: Принято органом регулирования | AI58: Принято органом регулирования | AJ58: Принято органом регулирования | AK58: Принято органом регулирования | AL58: Принято органом регулирования
G59: =hasTranspVS -> FALSE
G60: =hasVO -> TRUE | L60: 7.3. Баланс водоотведения
G61: =hasVO -> TRUE | L61: № п/п | M61: Наименование показателя | N61: Единица измерения | O61: =god-2 & " год" -> 2022 год | P61: =god-2 & " год" -> 2022 год | Q61: =god-2 & " год" -> 2022 год | R61: =god-1 & " год" -> 2023 год | S61: =god & " год" -> 2024 год | T61: =god+1 & " год" -> 2025 год | U61: =god+2 & " год" -> 2026 год | V61: =god+3 & " год" -> 2027 год | W61: =god+4 & " год" -> 2028 год | X61: =god+5 & " год" -> 2029 год | Y61: =god+6 & " год" -> 2030 год | Z61: =god+7 & " год" -> 2031 год | AA61: =god+8 & " год" -> 2032 год | AB61: =god+9 & " год" -> 2033 год | AC61: =god & " год" -> 2024 год | AD61: =god+1 & " год" -> 2025 год | AE61: =god+2 & " год" -> 2026 год | AF61: =god+3 & " год" -> 2027 год | AG61: =god+4 & " год" -> 2028 год | AH61: =god+5 & " год" -> 2029 год | AI61: =god+6 & " год" -> 2030 год | AJ61: =god+7 & " год" -> 2031 год | AK61: =god+8 & " год" -> 2032 год | AL61: =god+9 & " год" -> 2033 год | AM61: Ссылка на правовую норму (основание для принятия показателя в расчет тарифа)
G62: =hasVO -> TRUE | O62: Принято органом регулирования | P62: Факт по данным организации | Q62: Факт, принятый органом регулирования | R62: Принято органом регулирования | S62: Предложение организации | T62: Предложение организации | U62: Предложение организации | V62: Предложение организации | W62: Предложение организации | X62: Предложение организации | Y62: Предложение организации | Z62: Предложение организации | AA62: Предложение организации | AB62: Предложение организации | AC62: Принято органом регулирования | AD62: Принято органом регулирования | AE62: Принято органом регулирования | AF62: Принято органом регулирования | AG62: Принято органом регулирования | AH62: Принято органом регулирования | AI62: Принято органом регулирования | AJ62: Принято органом регулирования | AK62: Принято органом регулирования | AL62: Принято органом регулирования
A63: ='Общие сведения'!$D$135 -> 2 | L63: =INDEX('Общие сведения'!$J$121:$J$148,MATCH($A63,'Общие сведения'!$D$121:$D$148,0)) -> Тариф 2 (Водоотведение) - тариф на водоотведение
A64: =A63 -> 2 | L64: 1 | M64: Вид стоков | O64: =INDEX('Общие сведения'!$K$121:$K$148,MATCH($A64,'Общие сведения'!$D$121:$D$148,0)) -> без дифференциации
A65: 2 | C65: L2 | L65: 2 | M65: Установленная мощность | N65: куб.м/час | O65: 25 | P65: 25 | Q65: 25 | R65: 25 | S65: 25 | T65: 25 | U65: 25 | V65: 25 | W65: 25 | AC65: 25 | AD65: 25 | AE65: 25 | AF65: 25 | AG65: 25
A66: 2 | C66: L3 | L66: 3 | M66: Подключённая (фактическая) нагрузка | N66: куб.м/час | O66: =O67/365/24*1000 -> 18.0798259 | P66: =P67/365/24*1000 -> 19.33105023 | Q66: =Q67/365/24*1000 -> 19.33105023 | R66: =R67/365/24*1000 -> 18.89575246 | S66: 18.83881279 | T66: 18.83881279 | U66: 18.83881279 | V66: 18.83881279 | W66: 18.83881279 | AC66: =AC67/365/24*1000 -> 19.25256849 | AD66: =AD67/365/24*1000 -> 19.25256849 | AE66: =AE67/365/24*1000 -> 19.25256849 | AF66: =AF67/365/24*1000 -> 19.25256849 | AG66: =AG67/365/24*1000 -> 19.25256849
A67: 2 | C67: L4 | L67: 4 | M67: Принято сточных вод, всего | N67: тыс.куб.м | O67: =O68+O69+O82 -> 158.3792749 | P67: =P68+P69+P82 -> 169.34 | Q67: 169.34 | R67: 165.5267916 | S67: 165.028 | T67: 165.028 | U67: 165.028 | V67: 165.028 | W67: 165.028 | X67: 0 | Y67: 0 | Z67: 0 | AA67: 0 | AB67: 0 | AC67: 168.6525 | AD67: 168.6525 | AE67: 168.6525 | AF67: 168.6525 | AG67: 168.6525 | AH67: 0 | AI67: 0 | AJ67: 0 | AK67: 0 | AL67: 0 | AM67: Пункт 8 "Методических указаний…" ФСТ России от 27.12.2013 № 1746-э.
A68: 2 | B68: =IF(OwnNeedsInPO="да","ПО","") -> ПО | C68: L5 | L68: 5 | M68: Хозяйственные нужды предприятия | N68: тыс.куб.м | O68: 8.65701382 | P68: 9.22 | Q68: 9.22 | R68: 12.14285028 | S68: 6.978 | T68: 6.978 | U68: 6.978 | V68: 6.978 | W68: 6.978 | AC68: 8.9151868 | AD68: 8.9151868 | AE68: 8.9151868 | AF68: 8.9151868 | AG68: 8.9151868 | AM68: Рассчитано в соответствии с Формулами (1) и (1.1), на основании фактических данных о динамике объемов реализации для собственных производственных участков ООО "ТВК" за 2019 - 2022 гг. При этом объемы отведения сточных вод от собственных производственных участков определяются как разница между общими объемами сточных вод, пропущенных через очистные сооружения, и объемами реализации услуги на потребительском рынке.
A69: 2 | B69: ПО | C69: L6 | L69: 6 | M69: Принято по категориям потребителей | N69: тыс.куб.м | O69: =O70+O73+O76+O79 -> 149.7222611 | P69: =P70+P73+P76+P79 -> 160.12 | Q69: 160.12 | R69: 153.3839413 | S69: 158.05 | T69: 158.05 | U69: 158.05 | V69: 158.05 | W69: 158.05 | X69: 0 | Y69: 0 | Z69: 0 | AA69: 0 | AB69: 0 | AC69: 159.7373132 | AD69: 159.7373132 | AE69: 159.7373132 | AF69: 159.7373132 | AG69: 159.7373132 | AH69: 0 | AI69: 0 | AJ69: 0 | AK69: 0 | AL69: 0
A70: 2 | C70: L6_1 | L70: 6.1 | M70: Финансируемые из бюджетов всех уровней | N70: тыс.куб.м | O70: =O71+O72 -> 0 | P70: 0 | Q70: 0 | R70: 0 | S70: 0 | T70: 0 | U70: 0 | V70: 0 | W70: 0 | X70: 0 | Y70: 0 | Z70: 0 | AA70: 0 | AB70: 0 | AC70: 0 | AD70: 0 | AE70: 0 | AF70: 0 | AG70: 0 | AH70: 0 | AI70: 0 | AJ70: 0 | AK70: 0 | AL70: 0
A71: 2 | C71: L6_1_1 | L71: 6.1.1 | M71: по приборам учёта | N71: тыс.куб.м
A72: 2 | C72: L6_1_2 | L72: 6.1.2 | M72: по нормативам | N72: тыс.куб.м
A73: 2 | B73: население | C73: L6_2 | L73: 6.2 | M73: Население | N73: тыс.куб.м | O73: =O74+O75 -> 0 | P73: 0 | Q73: 0 | R73: 0 | S73: 0 | T73: 0 | U73: 0 | V73: 0 | W73: 0 | X73: 0 | Y73: 0 | Z73: 0 | AA73: 0 | AB73: 0 | AC73: 0 | AD73: 0 | AE73: 0 | AF73: 0 | AG73: 0 | AH73: 0 | AI73: 0 | AJ73: 0 | AK73: 0 | AL73: 0
A74: 2 | C74: L6_2_1 | L74: 6.2.1 | M74: по приборам учёта | N74: тыс.куб.м
A75: 2 | C75: L6_2_2 | L75: 6.2.2 | M75: по нормативам | N75: тыс.куб.м
A76: 2 | C76: L6_3 | L76: 6.3 | M76: Прочие потребители | N76: тыс.куб.м | O76: =O77+O78 -> 0 | P76: 0 | Q76: 0 | R76: 0 | S76: 0 | T76: 0 | U76: 0 | V76: 0 | W76: 0 | X76: 0 | Y76: 0 | Z76: 0 | AA76: 0 | AB76: 0 | AC76: 0 | AD76: 0 | AE76: 0 | AF76: 0 | AG76: 0 | AH76: 0 | AI76: 0 | AJ76: 0 | AK76: 0 | AL76: 0
A77: 2 | C77: L6_3_1 | L77: 6.3.1 | M77: по приборам учёта | N77: тыс.куб.м
A78: 2 | C78: L6_3_2 | L78: 6.3.2 | M78: по нормативам | N78: тыс.куб.м
A79: 2 | C79: L6_4 | L79: 6.4 | M79: Принято сточных вод от других канализационных сетей | N79: тыс.куб.м | O79: =O80+O81 -> 149.7222611 | P79: 160.12 | Q79: 160.12 | R79: 153.3839413 | S79: 158.05 | T79: 158.05 | U79: 158.05 | V79: 158.05 | W79: 158.05 | X79: 0 | Y79: 0 | Z79: 0 | AA79: 0 | AB79: 0 | AC79: 159.7373132 | AD79: 159.7373132 | AE79: 159.7373132 | AF79: 159.7373132 | AG79: 159.7373132 | AH79: 0 | AI79: 0 | AJ79: 0 | AK79: 0 | AL79: 0
A80: 2 | C80: L6_4_1 | L80: 6.4.1 | M80: по приборам учёта | N80: тыс.куб.м | O80: 149.7222611 | P80: 160.12 | Q80: 160.12 | R80: 153.3839413 | S80: 158.05 | T80: 158.05 | U80: 158.05 | V80: 158.05 | W80: 158.05 | AC80: 159.7373132 | AD80: 159.7373132 | AE80: 159.7373132 | AF80: 159.7373132 | AG80: 159.7373132 | AM80: Рассчитано в соответствии с Формулами (1) и (1.1), на основании фактических данных о динамике объемов реализации для нужд ООО "Шахта "Листвяжная", представленных в счетах-фактурах на оказание услуги водоотведения за 2019 - 2022 гг.
A81: 2 | C81: L6_4_2 | L81: 6.4.2 | M81: по нормативам | N81: тыс.куб.м
A82: =A80 -> 2 | C82: L6_5 | L82: 6.5 | M82: Получено от других территорий, дифференцированных по тарифу | N82: тыс.куб.м
A83: =A81 -> 2 | C83: L7 | L83: 7 | M83: Неучтённый приток сточных вод | N83: тыс.куб.м
A84: 2 | C84: L8 | L84: 8 | M84: Объём сточных вод, прошедших очистку (справочно) | N84: тыс.куб.м | O84: =O85 -> 158.3792749 | P84: =P85 -> 169.34 | Q84: =Q85 -> 169.34 | R84: =R85 -> 165.5267916 | S84: 165.028 | T84: 165.028 | U84: 165.028 | V84: 165.028 | W84: 165.028 | AC84: =AC85 -> 168.6525 | AD84: =AD85 -> 168.6525 | AE84: =AE85 -> 168.6525 | AF84: =AF85 -> 168.6525 | AG84: =AG85 -> 168.6525
A85: 2 | C85: L9 | L85: 9 | M85: Пропущено через собственные очистные сооружения | N85: тыс.куб.м | O85: =O67 -> 158.3792749 | P85: =P67 -> 169.34 | Q85: =Q67 -> 169.34 | R85: =R67 -> 165.5267916 | S85: 165.028 | T85: 165.028 | U85: 165.028 | V85: 165.028 | W85: 165.028 | AC85: =AC67 -> 168.6525 | AD85: =AD67 -> 168.6525 | AE85: =AE67 -> 168.6525 | AF85: =AF67 -> 168.6525 | AG85: =AG67 -> 168.6525 | AM85: Фактические данные за 2022 г. подтверждены данными представленных "Журналов учета водоотведения средствами измерений".
A86: 2 | C86: L10 | L86: 10 | M86: Передано сточных вод другим канализациям | N86: тыс.куб.м | O86: =O87+O88 -> 0 | P86: 0 | Q86: 0 | R86: 0 | S86: 0 | T86: 0 | U86: 0 | V86: 0 | W86: 0 | X86: 0 | Y86: 0 | Z86: 0 | AA86: 0 | AB86: 0 | AC86: 0 | AD86: 0 | AE86: 0 | AF86: 0 | AG86: 0 | AH86: 0 | AI86: 0 | AJ86: 0 | AK86: 0 | AL86: 0
A87: 2 | C87: L10_1 | L87: 10.1 | M87: На очистные сооружения | N87: тыс.куб.м
A88: 2 | C88: L10_2 | L88: 10.2 | M88: В канализационную сеть | N88: тыс.куб.м
A89: =A87 -> 2 | C89: L11 | L89: 11 | M89: Передано на другие территории, дифференцированные по тарифу | N89: тыс.куб.м
A90: =A88 -> 2 | C90: L12 | L90: 12 | M90: Сброшенные воды без очистки | N90: тыс.куб.м
G91: =hasVO -> TRUE
G92: =hasTranspVO -> FALSE | L92: 7.4. Баланс водоотведения (транспортировка сточных вод)
G93: =hasTranspVO -> FALSE | L93: № п/п | M93: Наименование показателя | N93: Единица измерения | O93: =god-2 & " год" -> 2022 год | P93: =god-2 & " год" -> 2022 год | Q93: =god-2 & " год" -> 2022 год | R93: =god-1 & " год" -> 2023 год | S93: =god & " год" -> 2024 год | T93: =god+1 & " год" -> 2025 год | U93: =god+2 & " год" -> 2026 год | V93: =god+3 & " год" -> 2027 год | W93: =god+4 & " год" -> 2028 год | X93: =god+5 & " год" -> 2029 год | Y93: =god+6 & " год" -> 2030 год | Z93: =god+7 & " год" -> 2031 год | AA93: =god+8 & " год" -> 2032 год | AB93: =god+9 & " год" -> 2033 год | AC93: =god & " год" -> 2024 год | AD93: =god+1 & " год" -> 2025 год | AE93: =god+2 & " год" -> 2026 год | AF93: =god+3 & " год" -> 2027 год | AG93: =god+4 & " год" -> 2028 год | AH93: =god+5 & " год" -> 2029 год | AI93: =god+6 & " год" -> 2030 год | AJ93: =god+7 & " год" -> 2031 год | AK93: =god+8 & " год" -> 2032 год | AL93: =god+9 & " год" -> 2033 год | AM93: Ссылка на правовую норму (основание для принятия показателя в расчет тарифа)
G94: =hasTranspVO -> FALSE | O94: Принято органом регулирования | P94: Факт по данным организации | Q94: Факт, принятый органом регулирования | R94: Принято органом регулирования | S94: Предложение организации | T94: Предложение организации | U94: Предложение организации | V94: Предложение организации | W94: Предложение организации | X94: Предложение организации | Y94: Предложение организации | Z94: Предложение организации | AA94: Предложение организации | AB94: Предложение организации | AC94: Принято органом регулирования | AD94: Принято органом регулирования | AE94: Принято органом регулирования | AF94: Принято органом регулирования | AG94: Принято органом регулирования | AH94: Принято органом регулирования | AI94: Принято органом регулирования | AJ94: Принято органом регулирования | AK94: Принято органом регулирования | AL94: Принято органом регулирования
G95: =hasTranspVO -> FALSE
L96: Комментарии и обоснования к разделу
L98: Добавить комментарий

Sheet Реагенты
O1: =god-2 -> 2022 | P1: =god-2 -> 2022 | Q1: =god-2 -> 2022 | R1: =god-1 -> 2023 | S1: =god -> 2024 | T1: =god+1 -> 2025 | U1: =god+2 -> 2026 | V1: =god+3 -> 2027 | W1: =god+4 -> 2028 | X1: =god+5 -> 2029 | Y1: =god+6 -> 2030 | Z1: =god+7 -> 2031 | AA1: =god+8 -> 2032 | AB1: =god+9 -> 2033 | AC1: =god -> 2024 | AD1: =god+1 -> 2025 | AE1: =god+2 -> 2026 | AF1: =god+3 -> 2027 | AG1: =god+4 -> 2028 | AH1: =god+5 -> 2029 | AI1: =god+6 -> 2030 | AJ1: =god+7 -> 2031 | AK1: =god+8 -> 2032 | AL1: =god+9 -> 2033
O2: =O15 -> Принято органом регулирования | P2: =P15 -> Факт по данным организации | Q2: Факт, принятый органом регулирования | R2: Принято органом регулирования | S2: Предложение организации | T2: Предложение организации | U2: Предложение организации | V2: Предложение организации | W2: Предложение организации | X2: Предложение организации | Y2: Предложение организации | Z2: Предложение организации | AA2: Предложение организации | AB2: Предложение организации | AC2: Принято органом регулирования | AD2: Принято органом регулирования | AE2: Принято органом регулирования | AF2: Принято органом регулирования | AG2: Принято органом регулирования | AH2: Принято органом регулирования | AI2: Принято органом регулирования | AJ2: Принято органом регулирования | AK2: Принято органом регулирования | AL2: Принято органом регулирования
S7: =S1<=last_year_vis -> TRUE | T7: TRUE | U7: TRUE | V7: TRUE | W7: TRUE | X7: FALSE | Y7: FALSE | Z7: FALSE | AA7: FALSE | AB7: FALSE | AC7: TRUE | AD7: TRUE | AE7: TRUE | AF7: TRUE | AG7: TRUE | AH7: FALSE | AI7: FALSE | AJ7: FALSE | AK7: FALSE | AL7: FALSE
M11: =tpl_title -> Кемеровская область / 2024 / ООО "ТВК" (ИНН:4202026697, КПП:420201001) / ДПР: 2024-2028
L12: 8. Расходы на реагенты
L14: № п/п | M14: Наименование показателя | N14: Единица измерения | O14: =god-2 & " год" -> 2022 год | P14: =god-2 & " год" -> 2022 год | Q14: =god-2 & " год" -> 2022 год | R14: =god-1 & " год" -> 2023 год | S14: =god & " год" -> 2024 год | T14: =god+1 & " год" -> 2025 год | U14: =god+2 & " год" -> 2026 год | V14: =god+3 & " год" -> 2027 год | W14: =god+4 & " год" -> 2028 год | X14: =god+5 & " год" -> 2029 год | Y14: =god+6 & " год" -> 2030 год | Z14: =god+7 & " год" -> 2031 год | AA14: =god+8 & " год" -> 2032 год | AB14: =god+9 & " год" -> 2033 год | AC14: =god & " год" -> 2024 год | AD14: =god+1 & " год" -> 2025 год | AE14: =god+2 & " год" -> 2026 год | AF14: =god+3 & " год" -> 2027 год | AG14: =god+4 & " год" -> 2028 год | AH14: =god+5 & " год" -> 2029 год | AI14: =god+6 & " год" -> 2030 год | AJ14: =god+7 & " год" -> 2031 год | AK14: =god+8 & " год" -> 2032 год | AL14: =god+9 & " год" -> 2033 год | AM14: Ссылка на правовую норму (основание для принятия показателя в расчет тарифа)
A15: t | O15: Принято органом регулирования | P15: Факт по данным организации | Q15: Факт, принятый органом регулирования | R15: Принято органом регулирования | S15: Предложение организации | T15: Предложение организации | U15: Предложение организации | V15: Предложение организации | W15: Предложение организации | X15: Предложение организации | Y15: Предложение организации | Z15: Предложение организации | AA15: Предложение организации | AB15: Предложение организации | AC15: Принято органом регулирования | AD15: Принято органом регулирования | AE15: Принято органом регулирования | AF15: Принято органом регулирования | AG15: Принято органом регулирования | AH15: Принято органом регулирования | AI15: Принято органом регулирования | AJ15: Принято органом регулирования | AK15: Принято органом регулирования | AL15: Принято органом регулирования
A16: ='Общие сведения'!$D$122 -> 1 | L16: =INDEX('Общие сведения'!$J$121:$J$148,MATCH($A16,'Общие сведения'!$D$121:$D$148,0)) -> Тариф 1 (Водоснабжение) - тариф на питьевую воду
A17: =A16 -> 1 | B17: L1 | C17: L2 | M17: Всего по тарифу | N17: тыс.руб. | O17: =SUM(O18:O20) -> 0 | P17: 0 | Q17: 0 | R17: 0 | S17: 171.16 | T17: 178 | U17: 185.12 | V17: 192.53 | W17: 200.23 | X17: 0 | Y17: 0 | Z17: 0 | AA17: 0 | AB17: 0 | AC17: 103.8880035 | AD17: 108.2512997 | AE17: 112.5813517 | AF17: 117.0846057 | AG17: 121.76799 | AH17: 0 | AI17: 0 | AJ17: 0 | AK17: 0 | AL17: 0 | AM17: П. 49 (10); В. 16, п. 19 Методических указаний ФСТ № 1746-э (пп. 10 введен Приказом ФАС России от 08.10.2020 N 976/20).
A18: =A17 -> 1 | L18: 0
A19: =OFFSET(A19,-1,0) -> 1 | B19: L1 | C19: L2 | K19: О | L19: 1 | M19: Препарат антимикробный "БИОПАГ" (твердая форма) | N19: тыс.руб. | S19: 171.16 | T19: 178 | U19: 185.12 | V19: 192.53 | W19: 200.23 | AC19: 103.8880035 | AD19: 108.2512997 | AE19: 112.5813517 | AF19: 117.0846057 | AG19: 121.76799
A20: =A18 -> 1 | B20: =A20&"pIns" -> 1pIns | M20: Добавить
A21: ='Общие сведения'!$D$135 -> 2 | L21: =INDEX('Общие сведения'!$J$121:$J$148,MATCH($A21,'Общие сведения'!$D$121:$D$148,0)) -> Тариф 2 (Водоотведение) - тариф на водоотведение
A22: =A21 -> 2 | B22: L1 | C22: L2 | M22: Всего по тарифу | N22: тыс.руб. | O22: =SUM(O23:O28) -> 0 | P22: 0 | Q22: 0 | R22: 0 | S22: 717.8502 | T22: 799.7561414 | U22: 887.0696808 | V22: 980.1053791 | W22: 1079.152711 | X22: 0 | Y22: 0 | Z22: 0 | AA22: 0 | AB22: 0 | AC22: 599.460023 | AD22: 624.637344 | AE22: 649.6228377 | AF22: 675.6077513 | AG22: 702.6320613 | AH22: 0 | AI22: 0 | AJ22: 0 | AK22: 0 | AL22: 0 | AM22: П. 49 (10); В. 16, п. 19 Методических указаний ФСТ № 1746-э (пп. 10 введен Приказом ФАС России от 08.10.2020 N 976/20).
A23: =A22 -> 2 | L23: 0
A24: =OFFSET(A24,-1,0) -> 2 | B24: L1 | C24: L2 | K24: О | L24: 1 | M24: Коагулянт (оксихлорид алюминия) | N24: тыс.руб. | S24: 347.64 | T24: 361.54 | U24: 376 | V24: 391.04 | W24: 406.68 | AC24: 326.3686949 | AD24: 340.0761801 | AE24: 353.6792273 | AF24: 367.8263964 | AG24: 382.5394522
A25: =OFFSET(A25,-1,0) -> 2 | B25: L1 | C25: L2 | K25: О | L25: 2 | M25: Флокулянт ("TECHNOFLOC TN-611") | N25: тыс.руб. | S25: 41.8314 | T25: 96.7073283 | U25: 155.9018472 | V25: 219.687974 | W25: 288.316932 | AC25: 44.9627565 | AD25: 46.85119227 | AE25: 48.72523996 | AF25: 50.67424956 | AG25: 52.70121954
A26: =OFFSET(A26,-1,0) -> 2 | B26: L1 | C26: L2 | K26: О | L26: 3 | M26: Гипохлорит натрия | N26: тыс.руб. | S26: 160.37 | T26: 166.78 | U26: 173.45 | V26: 180.39 | W26: 187.61 | AC26: 166.2864741 | AD26: 173.270506 | AE26: 180.2013262 | AF26: 187.4093793 | AG26: 194.9057544
A27: =OFFSET(A27,-1,0) -> 2 | B27: L1 | C27: L2 | K27: О | L27: 4 | M27: Химические реактивы, химическая посуда | N27: тыс.руб. | S27: 168.0088 | T27: 174.7288131 | U27: 181.7178336 | V27: 188.9874051 | W27: 196.5457791 | AC27: 61.84209754 | AD27: 64.43946563 | AE27: 67.01704426 | AF27: 69.69772603 | AG27: 72.48563507
A28: =A23 -> 2 | B28: =A28&"pIns" -> 2pIns | M28: Добавить
L30: Комментарии и обоснования к разделу
L31: ПРЕПАРАТ АНТИМИКРОБНЫЙ "БИОПАГ" (твердая форма). Организацией плановый объем реагента на 2024 г. (32,58 кг) определен, исходя из фактического удельного расхода за 2022 г. (0,052 мкг/м3). Фактические затраты 2022 г. (отражаются в составе Операционных расходов) составили 120,01 тыс. руб. (29,20 т по 4109,35 руб./т, согласно представленным документам). Специалистом РЭК объем реагента на 2024 г. (24,97 кг) рассчитан на основании принятого планового объема добычи воды из скважин (554,779 тыс. м3) и имеющихся среднегодовых данных о фактическом удельном расходе за 3 года (2020 -2022 ): (0,048 г/м3 + 0,033 г/м3 + 0,052 г/м3 ) /3 = 0,045 г/м3.
K32: О | L32: Организацией заявлена цена на БИОПАГ на 2024 год (5253,52 руб./кг) согласно счету-фактуре № 003136 от 28.07.2022 (ООО "Шахтоуправление Майское"). Регулятором плановая цена на 2024 год (4161,33 руб./кг) учтена на уровне средневзвешенной цены 2022 г. (4109,35 руб./кг), с учетом индексов цен производителей (ИЦП) химических веществ и химических продуктов 94,2% на 2023 год и 107,5% на 2024 год, предусмотренного базовым вариантом "Прогноза социально-экономического развития Российской Федерации на 2024 год и на плановый период 2025 и 2026 годов", опубликованного на официальном сайте Минэкономразвития России 22.09.2023.
K33: О | L33: КОАГУЛЯНТ (ОКСИХЛОРИД АЛЮМИНИЯ). Нормативный расчет потребности в реагенте организацией не представлен. Фактические затраты 2022 г. (отражаются в составе Операционных расходов) составили 381,04 тыс. руб. (12,18 т по 31281,10 руб./т., согласно представленным документам). Регулятором плановая потребность на 2024 г. (11,71 т) определена, исходя из принятого планового объема пропуска сточных вод (168,6525 тыс. м3) и фактического среднегодового расхода реагента за 3 года (2020 - 2022 гг.): (0,0732 т/м3 + 0,0632 т/м3 + 0,0719 т/м3 ) / 3 = 0,06945 (т / м3).
K34: О | L34: Плановая цена на 2024 г. на данный реагент (27864,00 руб./т) принята, исходя из фактической цены 2023 г. (25920,00 руб./т согласно договора поставки от 06.03.2023 № 03/03-Р2023, заключенного с ООО "РОСПРОМ", и счету-фактуре от 06.03.2023 № 14, НДС не облагается), с учетом индекса цен производителей (ИЦП) химических веществ и химических продуктов 107,5% на 2024 год, предусмотренного базовым вариантом "Прогноза социально-экономического развития Российской Федерации на 2024 год и на плановый период 2025 и 2026 годов", опубликованного на официальном сайте Минэкономразвития России 22.09.2023.
K35: О | L35: ФЛОКУЛЯНТ . Нормативный расчет потребности в реагенте организацией не приводится. Фактические затраты 2022 г. составили 48,97 тыс. руб. (0,135 т по 353544,46 руб./т, согласно представленным документам). (До 2023 г. использовался "TECHNOFLOC TN-611") . Регулятором плановая потребность на 2024 г. (0,15 т) определена, исходя из принятого планового объема пропуска сточных вод и фактического среднегодового удельного расхода реагента за 3 года (2020 - 2022 гг.): (0,00094 кг/м3 + 0,00082кг/м3 + 0,00082 кг/м3 ) / 3 = 0,00086 (кг / м3).
K36: О | L36: Плановая цена на 2024 год на данный реагент принята на уровне величины, предложенной организацией, - 310 000,00 руб./т., что соответствует цене на флокулянт "WELLFLOC 5665", без учета НДС, согласно Спецификации № 1 к договору поставки № 3960/2023-ТВК от 09.03.2023 между ООО "Эко-системы" и ООО "ТВК" (на условиях самовывоза со склада поставщика в г. Кемерово).
K37: О | L37: ГИПОХЛОРИТ НАТРИЯ. Нормативный расчет потребности в реагенте организацией не приводится. Фактические затраты 2022 г. составили 147,62 тыс. руб. (8,09 т по 18256,25 руб./т согласно представленным документам).Регулятором плановая потребность в данном реагенте на 2024 г. (8,19 т) определена, исходя из принятого планового объема пропуска сточных вод и фактического среднегодового удельного расхода реагента за 3 года (2020 - 2022 гг.): (0,0576 кг/м3 + 0,0404 кг/м3+ 0,0478 кг/м3) / 3 = 0,04857 (кг / м3).
K38: О | L38: Плановая цена на 2024 год на данный реагент принята в размере 20300,00 руб./т, согласно Спецификации № 27 от 10.01.2023 к Договору поставки № ТД-2-62/18 от 23.01.2018 между ООО "ТД "Химпром" и ООО "ТВК".
K39: О | L39: ХИМИЧЕСКИЕ РЕАКТИВЫ, ХИМИЧЕСКАЯ ПОСУДА. Фактические затраты 2022 г. составили 49,347 тыс. руб. Плановые затраты на 2024 год приняты на уровне среднегодовых затрат за 2020-2022 г. (приведенных к ценам 2022 г. с применением ИЦП химической продукции 127,6% на 2021 г. и 118,3% на 2022 г.) - (39,69 тыс. руб. *1,276*1,183 + 62,51 тыс. руб. *1,183 + 49,347 тыс. руб. ) / 3 = 61, 07 тыс. руб., с учетом ИПЦ 94,2% на 2023 г. и 107,5% на 2024 г. согласно Прогноза Минэкономразвития России от 22.09.2023.
K40: О | L40: Плановые годовые показатели расхода реагентов в натуральном выражении на 2025-2028 годы приняты на уровне соответствующих плановых величин 2024 года. Плановые цены на реагенты определены, исходя из принятых плановых цен 2024 г. с учетом ИЦП химической продукции согласно базовому варианту "Прогноза социально-экономического развития Российской Федерации на 2024 год и на плановый период 2025 и 2026 годов." от 22.09.2023 104,2 % : на 2025 г. - 104,2%, на 2026 - 2028 гг. - 104,0%.
K41: О | L41: До 2024 г. затраты на реагенты учитывались в составе Операционных расходов, так как были учтены при расчете базового уровня Операционных расходов на 2019 год, в соответствии с действовавшей на указанный момент редакцией "Методических указаний по расчету регулируемых тарифов в сфере водоснабжения и водоотведения" (приказ ФСТ России от 27.12.2013 № 1746-э).
L42: Добавить комментарий

Sheet ЭЭ
O1: =god-2 -> 2022 | P1: =god-2 -> 2022 | Q1: =god-2 -> 2022 | R1: =god-1 -> 2023 | S1: =god -> 2024 | T1: =god+1 -> 2025 | U1: =god+2 -> 2026 | V1: =god+3 -> 2027 | W1: =god+4 -> 2028 | X1: =god+5 -> 2029 | Y1: =god+6 -> 2030 | Z1: =god+7 -> 2031 | AA1: =god+8 -> 2032 | AB1: =god+9 -> 2033 | AC1: =god -> 2024 | AD1: =god+1 -> 2025 | AE1: =god+2 -> 2026 | AF1: =god+3 -> 2027 | AG1: =god+4 -> 2028 | AH1: =god+5 -> 2029 | AI1: =god+6 -> 2030 | AJ1: =god+7 -> 2031 | AK1: =god+8 -> 2032 | AL1: =god+9 -> 2033
O2: =O15 -> Принято органом регулирования | P2: =P15 -> Факт по данным организации | Q2: =Q15 -> Факт, принятый органом регулирования | R2: =R15 -> Принято органом регулирования | S2: =$S$15 -> Предложение организации | T2: =$S$15 -> Предложение организации | U2: Предложение организации | V2: Предложение организации | W2: Предложение организации | X2: Предложение организации | Y2: Предложение организации | Z2: Предложение организации | AA2: Предложение организации | AB2: Предложение организации | AC2: =$AC$15 -> Принято органом регулирования | AD2: =$AC$15 -> Принято органом регулирования | AE2: Принято органом регулирования | AF2: Принято органом регулирования | AG2: Принято органом регулирования | AH2: Принято органом регулирования | AI2: Принято органом регулирования | AJ2: Принято органом регулирования | AK2: Принято органом регулирования | AL2: Принято органом регулирования
O3: =O1&O2 -> 2022Принято органом регулирования | P3: =P1&P2 -> 2022Факт по данным организации | Q3: =Q1&Q2 -> 2022Факт, принятый органом регулирования | R3: =R1&R2 -> 2023Принято органом регулирования | S3: =S1&S2 -> 2024Предложение организации | T3: =T1&T2 -> 2025Предложение организации | U3: 2026Предложение организации | V3: 2027Предложение организации | W3: 2028Предложение организации | X3: 2029Предложение организации | Y3: 2030Предложение организации | Z3: 2031Предложение организации | AA3: 2032Предложение организации | AB3: 2033Предложение организации | AC3: 2024Принято органом регулирования | AD3: =AD1&AD2 -> 2025Принято органом регулирования | AE3: 2026Принято органом регулирования | AF3: 2027Принято органом регулирования | AG3: 2028Принято органом регулирования | AH3: 2029Принято органом регулирования | AI3: 2030Принято органом регулирования | AJ3: 2031Принято органом регулирования | AK3: 2032Принято органом регулирования | AL3: 2033Принято органом регулирования
S7: =S1<=last_year_vis -> TRUE | T7: TRUE | U7: TRUE | V7: TRUE | W7: TRUE | X7: FALSE | Y7: FALSE | Z7: FALSE | AA7: FALSE | AB7: FALSE | AC7: TRUE | AD7: TRUE | AE7: TRUE | AF7: TRUE | AG7: TRUE | AH7: FALSE | AI7: FALSE | AJ7: FALSE | AK7: FALSE | AL7: FALSE
M11: =tpl_title -> Кемеровская область / 2024 / ООО "ТВК" (ИНН:4202026697, КПП:420201001) / ДПР: 2024-2028
L12: 9. Расходы на электрическую энергию
L14: № п/п | M14: Наименование показателя | N14: Единица измерения | O14: =god-2 & " год" -> 2022 год | P14: =god-2 & " год" -> 2022 год | Q14: =god-2 & " год" -> 2022 год | R14: =god-1 & " год" -> 2023 год | S14: =god & " год" -> 2024 год | T14: =god+1 & " год" -> 2025 год | U14: =god+2 & " год" -> 2026 год | V14: =god+3 & " год" -> 2027 год | W14: =god+4 & " год" -> 2028 год | X14: =god+5 & " год" -> 2029 год | Y14: =god+6 & " год" -> 2030 год | Z14: =god+7 & " год" -> 2031 год | AA14: =god+8 & " год" -> 2032 год | AB14: =god+9 & " год" -> 2033 год | AC14: =god & " год" -> 2024 год | AD14: =god+1 & " год" -> 2025 год | AE14: =god+2 & " год" -> 2026 год | AF14: =god+3 & " год" -> 2027 год | AG14: =god+4 & " год" -> 2028 год | AH14: =god+5 & " год" -> 2029 год | AI14: =god+6 & " год" -> 2030 год | AJ14: =god+7 & " год" -> 2031 год | AK14: =god+8 & " год" -> 2032 год | AL14: =god+9 & " год" -> 2033 год | AM14: Ссылка на правовую норму (основание для принятия показателя в расчет тарифа)
O15: Принято органом регулирования | P15: Факт по данным организации | Q15: Факт, принятый органом регулирования | R15: Принято органом регулирования | S15: Предложение организации | T15: Предложение организации | U15: Предложение организации | V15: Предложение организации | W15: Предложение организации | X15: Предложение организации | Y15: Предложение организации | Z15: Предложение организации | AA15: Предложение организации | AB15: Предложение организации | AC15: Принято органом регулирования | AD15: Принято органом регулирования | AE15: Принято органом регулирования | AF15: Принято органом регулирования | AG15: Принято органом регулирования | AH15: Принято органом регулирования | AI15: Принято органом регулирования | AJ15: Принято органом регулирования | AK15: Принято органом регулирования | AL15: Принято органом регулирования
A16: ='Общие сведения'!$D$122 -> 1 | L16: =INDEX('Общие сведения'!$J$121:$J$148,MATCH($A16,'Общие сведения'!$D$121:$D$148,0)) -> Тариф 1 (Водоснабжение) - тариф на питьевую воду
A17: =A16 -> 1 | B17: L1 | L17: 1 | M17: Всего по тарифу | N17: тыс.руб. | O17: =SUMIF(N22:N28,N17,O22:O28) -> 3397.438536 | P17: =SUMIF(N22:N28,N17,P22:P28) -> 2122.24 | Q17: =SUMIF(N22:N28,N17,Q22:Q28) -> 2119.276 | R17: =SUMIF(N22:N28,N17,R22:R28) -> 3785.051837 | S17: =SUMIF(N22:N28,N17,S22:S28) -> 4287.98 | T17: =SUMIF(N22:N28,N17,T22:T28) -> 4545.26 | U17: =SUMIF(N22:N28,N17,U22:U28) -> 4772.52 | V17: =SUMIF(N22:N28,N17,V22:V28) -> 5011.15 | W17: =SUMIF(N22:N28,N17,W22:W28) -> 5261.71 | X17: =SUMIF(N22:N28,N17,X22:X28) -> 0 | Y17: =SUMIF(N22:N28,N17,Y22:Y28) -> 0 | Z17: =SUMIF(N22:N28,N17,Z22:Z28) -> 0 | AA17: =SUMIF(N22:N28,N17,AA22:AA28) -> 0 | AB17: =SUMIF(N22:N28,N17,AB22:AB28) -> 0 | AC17: =SUMIF(N22:N28,N17,AC22:AC28) -> 2495.620296 | AD17: =SUMIF(N22:N28,N17,AD22:AD28) -> 2617.905691 | AE17: =SUMIF(N22:N28,N17,AE22:AE28) -> 2696.442861 | AF17: =SUMIF(N22:N28,N17,AF22:AF28) -> 2777.336147 | AG17: =SUMIF(N22:N28,N17,AG22:AG28) -> 2860.656232 | AH17: =SUMIF(N22:N28,N17,AH22:AH28) -> 0 | AI17: =SUMIF(N22:N28,N17,AI22:AI28) -> 0 | AJ17: =SUMIF(N22:N28,N17,AJ22:AJ28) -> 0 | AK17: =SUMIF(N22:N28,N17,AK22:AK28) -> 0 | AL17: =SUMIF(N22:N28,N17,AL22:AL28) -> 0 | AM17: П. 20, 84, 88, 43 Методических указаний ФСТ № 1746-э.
A18: 1 | B18: L2 | L18: 2 | M18: Объём покупаемой электроэнергии всего | N18: тыс.кВтч | O18: =SUMIF(N22:N28,N18,O22:O28) -> 918.9532638 | P18: =SUMIF(N22:N28,N18,P22:P28) -> 546.82 | Q18: =SUMIF(N22:N28,N18,Q22:Q28) -> 546.88 | R18: =SUMIF(N22:N28,N18,R22:R28) -> 916.0251449 | S18: =SUMIF(N22:N28,N18,S22:S28) -> 834.4 | T18: =SUMIF(N22:N28,N18,T22:T28) -> 834.4 | U18: =SUMIF(N22:N28,N18,U22:U28) -> 834.4 | V18: =SUMIF(N22:N28,N18,V22:V28) -> 834.4 | W18: =SUMIF(N22:N28,N18,W22:W28) -> 834.4 | X18: =SUMIF(N22:N28,N18,X22:X28) -> 0 | Y18: =SUMIF(N22:N28,N18,Y22:Y28) -> 0 | Z18: =SUMIF(N22:N28,N18,Z22:Z28) -> 0 | AA18: =SUMIF(N22:N28,N18,AA22:AA28) -> 0 | AB18: =SUMIF(N22:N28,N18,AB22:AB28) -> 0 | AC18: =SUMIF(N22:N28,N18,AC22:AC28) -> 543.6838878 | AD18: =SUMIF(N22:N28,N18,AD22:AD28) -> 543.6838878 | AE18: =SUMIF(N22:N28,N18,AE22:AE28) -> 543.6838878 | AF18: =SUMIF(N22:N28,N18,AF22:AF28) -> 543.6838878 | AG18: =SUMIF(N22:N28,N18,AG22:AG28) -> 543.6838878 | AH18: =SUMIF(N22:N28,N18,AH22:AH28) -> 0 | AI18: =SUMIF(N22:N28,N18,AI22:AI28) -> 0 | AJ18: =SUMIF(N22:N28,N18,AJ22:AJ28) -> 0 | AK18: =SUMIF(N22:N28,N18,AK22:AK28) -> 0 | AL18: =SUMIF(N22:N28,N18,AL22:AL28) -> 0
A19: 1 | B19: L3 | L19: 3 | M19: Объём воды/сточных вод | N19: тыс.куб.м. | O19: =Баланс!O21 -> 741.0913418 | P19: =Баланс!P21 -> 560.225 | Q19: =Баланс!Q21 -> 560.225 | R19: =Баланс!R21 -> 739.6639555 | S19: =Баланс!S21 -> 595.931 | T19: =Баланс!T21 -> 595.931 | U19: =Баланс!U21 -> 595.931 | V19: =Баланс!V21 -> 595.931 | W19: =Баланс!W21 -> 595.931 | X19: =Баланс!X21 -> 0 | Y19: =Баланс!Y21 -> 0 | Z19: =Баланс!Z21 -> 0 | AA19: =Баланс!AA21 -> 0 | AB19: =Баланс!AB21 -> 0 | AC19: =Баланс!AC21 -> 554.7794774 | AD19: =Баланс!AD21 -> 554.7794774 | AE19: =Баланс!AE21 -> 554.7794774 | AF19: =Баланс!AF21 -> 554.7794774 | AG19: =Баланс!AG21 -> 554.7794774 | AH19: =Баланс!AH21 -> 0 | AI19: =Баланс!AI21 -> 0 | AJ19: =Баланс!AJ21 -> 0 | AK19: =Баланс!AK21 -> 0 | AL19: =Баланс!AL21 -> 0
A20: 1 | B20: L4 | L20: 4 | M20: Средний (расчетный) тариф | N20: руб./кВтч | O20: =IF(O18=0,0,O17/O18) -> 3.697074345 | P20: =IF(P18=0,0,P17/P18) -> 3.881057752 | Q20: 3.875212112 | R20: 4.132039233 | S20: 5.138998082 | T20: 5.447339406 | U20: 5.71970278 | V20: 6.005692713 | W20: 6.305980345 | X20: 0 | Y20: 0 | Z20: 0 | AA20: 0 | AB20: 0 | AC20: 4.590204625 | AD20: 4.815124651 | AE20: 4.959578391 | AF20: 5.108365742 | AG20: 5.261616715 | AH20: 0 | AI20: 0 | AJ20: 0 | AK20: 0 | AL20: 0
A21: 1 | B21: L5 | L21: 5 | M21: Удельный расход электроэнергии | N21: кВтч/куб.м. | O21: =IF(O19=0,0,O18/O19) -> 1.24 | P21: =IF(P19=0,0,P18/P19) -> 0.9760721139 | Q21: =IF(Q19=0,0,Q18/Q19) -> 0.9761792137 | R21: 1.238434208 | S21: 1.400162099 | T21: 1.400162099 | U21: 1.400162099 | V21: 1.400162099 | W21: 1.400162099 | X21: 0 | Y21: 0 | Z21: 0 | AA21: 0 | AB21: 0 | AC21: 0.98 | AD21: 0.98 | AE21: 0.98 | AF21: 0.98 | AG21: 0.98 | AH21: 0 | AI21: 0 | AJ21: 0 | AK21: 0 | AL21: 0 | AM21: В соответствии с долгосрочным параметром регулирования тарифов на 2024-2028 гг., определенным на уровне фактического показателя удельного расхода электроэнергии за 2022 г.
A22: 1 | J22: 6.0 | M22: Одноставочный тариф
A23: =OFFSET(A23,-1,0) -> 1 | B23: L6 | C23: =M23 -> НН | J23: 6.1 | K23: О | L23: =J23 -> 6.1 | M23: НН | N23: тыс.руб. | O23: 3397.438536 | P23: 2122.24 | Q23: 2119.276 | R23: 3785.051837 | S23: 4287.98 | T23: 4545.26 | U23: 4772.52 | V23: 5011.15 | W23: 5261.71 | AC23: 2495.620296 | AD23: 2617.905691 | AE23: 2696.442861 | AF23: 2777.336147 | AG23: 2860.656232
A24: =A23 -> 1 | B24: L6_1 | C24: =C23 -> НН | L24: =L23&".1" -> 6.1.1 | M24: Тариф на электроэнергию | N24: руб./кВтч | O24: =IF(OR(AND(O23<>0,O25=0),AND(O23=0,O25<>0)),"Ошибка",IF(O25=0,0,O23/O25)) -> 3.697074345 | P24: 3.881057752 | Q24: 3.875212112 | R24: 4.132039233 | S24: 5.138998082 | T24: 5.447339406 | U24: 5.71970278 | V24: 6.005692713 | W24: 6.305980345 | X24: 0 | Y24: 0 | Z24: 0 | AA24: 0 | AB24: 0 | AC24: 4.590204625 | AD24: 4.815124651 | AE24: 4.959578391 | AF24: 5.108365742 | AG24: 5.261616715 | AH24: 0 | AI24: 0 | AJ24: 0 | AK24: 0 | AL24: 0
A25: =A24 -> 1 | B25: L6_2 | C25: =C24 -> НН | L25: =L23&".2" -> 6.1.2 | M25: Объём покупной электроэнергии | N25: тыс.кВтч | O25: 918.9532638 | P25: 546.82 | Q25: 546.88 | R25: 916.0251449 | S25: 834.4 | T25: 834.4 | U25: 834.4 | V25: 834.4 | W25: 834.4 | AC25: 543.6838878 | AD25: 543.6838878 | AE25: 543.6838878 | AF25: 543.6838878 | AG25: 543.6838878 | AM25: Рассчитано как произведение утвержденного удельного расхода электроэнергии и планового годового объема забора воды из скважин
A26: =A22 -> 1 | B26: =A26&"pIns1" -> 1pIns1 | M26: Добавить
A27: 1 | J27: 7.0 | M27: Двухставочный тариф
A28: 1 | B28: =A28&"pIns2" -> 1pIns2 | M28: Добавить
A29: ='Общие сведения'!$D$135 -> 2 | L29: =INDEX('Общие сведения'!$J$121:$J$148,MATCH($A29,'Общие сведения'!$D$121:$D$148,0)) -> Тариф 2 (Водоотведение) - тариф на водоотведение
A30: =A29 -> 2 | B30: L1 | L30: 1 | M30: Всего по тарифу | N30: тыс.руб. | O30: =SUMIF(N35:N41,N30,O35:O41) -> 785.1055074 | P30: =SUMIF(N35:N41,N30,P35:P41) -> 721.08 | Q30: =SUMIF(N35:N41,N30,Q35:Q41) -> 710.38 | R30: =SUMIF(N35:N41,N30,R35:R41) -> 903.1593851 | S30: =SUMIF(N35:N41,N30,S35:S41) -> 1565.61 | T30: =SUMIF(N35:N41,N30,T35:T41) -> 1639.19 | U30: =SUMIF(N35:N41,N30,U35:U41) -> 1704.76 | V30: =SUMIF(N35:N41,N30,V35:V41) -> 1772.95 | W30: =SUMIF(N35:N41,N30,W35:W41) -> 1843.87 | X30: =SUMIF(N35:N41,N30,X35:X41) -> 0 | Y30: =SUMIF(N35:N41,N30,Y35:Y41) -> 0 | Z30: =SUMIF(N35:N41,N30,Z35:Z41) -> 0 | AA30: =SUMIF(N35:N41,N30,AA35:AA41) -> 0 | AB30: =SUMIF(N35:N41,N30,AB35:AB41) -> 0 | AC30: =SUMIF(N35:N41,N30,AC35:AC41) -> 835.674055 | AD30: =SUMIF(N35:N41,N30,AD35:AD41) -> 876.6220837 | AE30: =SUMIF(N35:N41,N30,AE35:AE41) -> 902.9207462 | AF30: =SUMIF(N35:N41,N30,AF35:AF41) -> 930.0083686 | AG30: =SUMIF(N35:N41,N30,AG35:AG41) -> 957.9086196 | AH30: =SUMIF(N35:N41,N30,AH35:AH41) -> 0 | AI30: =SUMIF(N35:N41,N30,AI35:AI41) -> 0 | AJ30: =SUMIF(N35:N41,N30,AJ35:AJ41) -> 0 | AK30: =SUMIF(N35:N41,N30,AK35:AK41) -> 0 | AL30: =SUMIF(N35:N41,N30,AL35:AL41) -> 0 | AM30: П. 20, 84, 88, 43 Методических указаний ФСТ № 1746-э.
A31: 2 | B31: L2 | L31: 2 | M31: Объём покупаемой электроэнергии всего | N31: тыс.кВтч | O31: =SUMIF(N35:N41,N31,O35:O41) -> 210.6444356 | P31: =SUMIF(N35:N41,N31,P35:P41) -> 178 | Q31: =SUMIF(N35:N41,N31,Q35:Q41) -> 177.82 | R31: =SUMIF(N35:N41,N31,R35:R41) -> 220.1506328 | S31: =SUMIF(N35:N41,N31,S35:S41) -> 278.33 | T31: =SUMIF(N35:N41,N31,T35:T41) -> 278.33 | U31: =SUMIF(N35:N41,N31,U35:U41) -> 278.33 | V31: =SUMIF(N35:N41,N31,V35:V41) -> 278.33 | W31: =SUMIF(N35:N41,N31,W35:W41) -> 278.33 | X31: =SUMIF(N35:N41,N31,X35:X41) -> 0 | Y31: =SUMIF(N35:N41,N31,Y35:Y41) -> 0 | Z31: =SUMIF(N35:N41,N31,Z35:Z41) -> 0 | AA31: =SUMIF(N35:N41,N31,AA35:AA41) -> 0 | AB31: =SUMIF(N35:N41,N31,AB35:AB41) -> 0 | AC31: =SUMIF(N35:N41,N31,AC35:AC41) -> 177.085125 | AD31: =SUMIF(N35:N41,N31,AD35:AD41) -> 177.085125 | AE31: =SUMIF(N35:N41,N31,AE35:AE41) -> 177.085125 | AF31: =SUMIF(N35:N41,N31,AF35:AF41) -> 177.085125 | AG31: =SUMIF(N35:N41,N31,AG35:AG41) -> 177.085125 | AH31: =SUMIF(N35:N41,N31,AH35:AH41) -> 0 | AI31: =SUMIF(N35:N41,N31,AI35:AI41) -> 0 | AJ31: =SUMIF(N35:N41,N31,AJ35:AJ41) -> 0 | AK31: =SUMIF(N35:N41,N31,AK35:AK41) -> 0 | AL31: =SUMIF(N35:N41,N31,AL35:AL41) -> 0
A32: 2 | B32: L3 | L32: 3 | M32: Объём воды/сточных вод | N32: тыс.куб.м. | O32: =Баланс!O67 -> 158.3792749 | P32: =Баланс!P67 -> 169.34 | Q32: =Баланс!Q67 -> 169.34 | R32: =Баланс!R67 -> 165.5267916 | S32: =Баланс!S67 -> 165.028 | T32: =Баланс!T67 -> 165.028 | U32: =Баланс!U67 -> 165.028 | V32: =Баланс!V67 -> 165.028 | W32: =Баланс!W67 -> 165.028 | AC32: =Баланс!AC67 -> 168.6525 | AD32: =Баланс!AD67 -> 168.6525 | AE32: =Баланс!AE67 -> 168.6525 | AF32: =Баланс!AF67 -> 168.6525 | AG32: =Баланс!AG67 -> 168.6525
A33: 2 | B33: L4 | L33: 4 | M33: Средний (расчетный) тариф | N33: руб./кВтч | O33: =IF(O31=0,0,O30/O31) -> 3.727159966 | P33: =IF(P31=0,0,P30/P31) -> 4.051011236 | Q33: 3.994938702 | R33: 4.102461 | S33: 5.625013473 | T33: 5.889375921 | U33: 6.12495958 | V33: 6.369956526 | W33: 6.624761973 | X33: 0 | Y33: 0 | Z33: 0 | AA33: 0 | AB33: 0 | AC33: 4.7190528 | AD33: 4.950286387 | AE33: 5.098794979 | AF33: 5.251758828 | AG33: 5.409311593 | AH33: 0 | AI33: 0 | AJ33: 0 | AK33: 0 | AL33: 0
A34: 2 | B34: L5 | L34: 5 | M34: Удельный расход электроэнергии | N34: кВтч/куб.м. | O34: =IF(O32=0,0,O31/O32) -> 1.33 | P34: 1.051139719 | Q34: 1.050076769 | R34: 1.33 | S34: 1.68656228 | T34: 1.68656228 | U34: 1.68656228 | V34: 1.68656228 | W34: 1.68656228 | X34: 0 | Y34: 0 | Z34: 0 | AA34: 0 | AB34: 0 | AC34: 1.05 | AD34: 1.05 | AE34: 1.05 | AF34: 1.05 | AG34: 1.05 | AH34: 0 | AI34: 0 | AJ34: 0 | AK34: 0 | AL34: 0 | AM34: В соответствии с долгосрочным параметром регулирования тарифов на 2024-2028 гг., определенным на уровне фактического показателя удельного расхода электроэнергии за 2022 г.
A35: 2 | J35: 6.0 | M35: Одноставочный тариф
A36: =OFFSET(A36,-1,0) -> 2 | B36: L6 | C36: =M36 -> НН | J36: 6.1 | K36: О | L36: =J36 -> 6.1 | M36: НН | N36: тыс.руб. | O36: 785.1055074 | P36: 721.08 | Q36: 710.38 | R36: 903.1593851 | S36: 1565.61 | T36: 1639.19 | U36: 1704.76 | V36: 1772.95 | W36: 1843.87 | AC36: 835.674055 | AD36: 876.6220837 | AE36: 902.9207462 | AF36: 930.0083686 | AG36: 957.9086196
A37: =A36 -> 2 | B37: L6_1 | C37: =C36 -> НН | L37: =L36&".1" -> 6.1.1 | M37: Тариф на электроэнергию | N37: руб./кВтч | O37: =IF(OR(AND(O36<>0,O38=0),AND(O36=0,O38<>0)),"Ошибка",IF(O38=0,0,O36/O38)) -> 3.727159966 | P37: 4.051011236 | Q37: 3.994938702 | R37: 4.102461 | S37: 5.625013473 | T37: 5.889375921 | U37: 6.12495958 | V37: 6.369956526 | W37: 6.624761973 | X37: 0 | Y37: 0 | Z37: 0 | AA37: 0 | AB37: 0 | AC37: 4.7190528 | AD37: 4.950286387 | AE37: 5.098794979 | AF37: 5.251758828 | AG37: 5.409311593 | AH37: 0 | AI37: 0 | AJ37: 0 | AK37: 0 | AL37: 0
A38: =A37 -> 2 | B38: L6_2 | C38: =C37 -> НН | L38: =L36&".2" -> 6.1.2 | M38: Объём покупной электроэнергии | N38: тыс.кВтч | O38: 210.6444356 | P38: 178 | Q38: 177.82 | R38: 220.1506328 | S38: 278.33 | T38: 278.33 | U38: 278.33 | V38: 278.33 | W38: 278.33 | AC38: 177.085125 | AD38: 177.085125 | AE38: 177.085125 | AF38: 177.085125 | AG38: 177.085125 | AM38: Рассчитано как произведение утвержденного удельного расхода электроэнергии и планового годового объема пропуска сточных вод через очистные сооружения.
A39: =A35 -> 2 | B39: =A39&"pIns1" -> 2pIns1 | M39: Добавить
A40: 2 | J40: 7.0 | M40: Двухставочный тариф
A41: 2 | B41: =A41&"pIns2" -> 2pIns2 | M41: Добавить
L44: Комментарии и обоснования к разделу
L45: Поставку электрической энергии для нужд холодного водоснабжения и водоотведения ООО "ТВК" обеспечивает ПАО "Кузбассэнергосбыт", по Договору энергоснабжения от 01.07.2022 № 601181. Поставка осуществляется через посредничество ООО "Шахта "Листвяжная" (Агентский договор № АГ-01/2022 от 01.08.2022), при этом цены поставки при расчетах между ООО "ТВК" и агентом остаются идентичными ценам, указанным в счетах-фактурах энергоснабжающей организации.
K46: О | L46: Плановые цены на электроэнергию на 2024 год по обеим регулируемым услугам приняты специалистом РЭК, исходя из фактических средневзвешенных цен 2022 года (цена по ВОДООТВЕДЕНИЮ уточнена согласно представленным документам: 710,38 тыс. руб. / 177,82 кВт*ч = 3,99 руб./кВт*ч), с учетом ИЦП (индекса цен производителей) электроэнергии 112,0% на 2023 г. и 105,6% на 2024 г., согласно базовому варианту "Прогноза соц.-экономического развития Российской Федерации на 2024 год и на плановый период 2025 и 2026 годов." от 22.09.2023.
K47: О | L47: При установлении плановых цен на 2025-2028 гг. к плановым ценам каждого предыдущего года применены ИЦП электроэнергии Минэкономразвития России: на 2025 г. - 104,9%, на 2026 - 2028 гг. - 103,0%.
L48: Добавить комментарий

Sheet Амортизация
O1: =god-2 -> 2022 | P1: =god-2 -> 2022 | Q1: =god-2 -> 2022 | R1: =god-1 -> 2023 | S1: =god -> 2024 | T1: =god+1 -> 2025 | U1: =god+2 -> 2026 | V1: =god+3 -> 2027 | W1: =god+4 -> 2028 | X1: =god+5 -> 2029 | Y1: =god+6 -> 2030 | Z1: =god+7 -> 2031 | AA1: =god+8 -> 2032 | AB1: =god+9 -> 2033 | AC1: =god -> 2024 | AD1: =god+1 -> 2025 | AE1: =god+2 -> 2026 | AF1: =god+3 -> 2027 | AG1: =god+4 -> 2028 | AH1: =god+5 -> 2029 | AI1: =god+6 -> 2030 | AJ1: =god+7 -> 2031 | AK1: =god+8 -> 2032 | AL1: =god+9 -> 2033
O2: =O15 -> Принято органом регулирования | P2: =P15 -> Факт по данным организации | Q2: Факт, принятый органом регулирования | R2: Принято органом регулирования | S2: Предложение организации | T2: Предложение организации | U2: Предложение организации | V2: Предложение организации | W2: Предложение организации | X2: Предложение организации | Y2: Предложение организации | Z2: Предложение организации | AA2: Предложение организации | AB2: Предложение организации | AC2: Принято органом регулирования | AD2: Принято органом регулирования | AE2: Принято органом регулирования | AF2: Принято органом регулирования | AG2: Принято органом регулирования | AH2: Принято органом регулирования | AI2: Принято органом регулирования | AJ2: Принято органом регулирования | AK2: Принято органом регулирования | AL2: Принято органом регулирования
S7: =S1<=last_year_vis -> TRUE | T7: TRUE | U7: TRUE | V7: TRUE | W7: TRUE | X7: FALSE | Y7: FALSE | Z7: FALSE | AA7: FALSE | AB7: FALSE | AC7: TRUE | AD7: TRUE | AE7: TRUE | AF7: TRUE | AG7: TRUE | AH7: FALSE | AI7: FALSE | AJ7: FALSE | AK7: FALSE | AL7: FALSE
M11: =tpl_title -> Кемеровская область / 2024 / ООО "ТВК" (ИНН:4202026697, КПП:420201001) / ДПР: 2024-2028
L12: 10. Амортизация основных средств и нематериальных активов, относимых к объектам централизованной системы водоснабжения/водоотведения
L14: № п/п | M14: Наименование | N14: Единица измерения | O14: =god-2 & " год" -> 2022 год | P14: =god-2 & " год" -> 2022 год | Q14: =god-2 & " год" -> 2022 год | R14: =god-1 & " год" -> 2023 год | S14: =god & " год" -> 2024 год | T14: =god+1 & " год" -> 2025 год | U14: =god+2 & " год" -> 2026 год | V14: =god+3 & " год" -> 2027 год | W14: =god+4 & " год" -> 2028 год | X14: =god+5 & " год" -> 2029 год | Y14: =god+6 & " год" -> 2030 год | Z14: =god+7 & " год" -> 2031 год | AA14: =god+8 & " год" -> 2032 год | AB14: =god+9 & " год" -> 2033 год | AC14: =god & " год" -> 2024 год | AD14: =god+1 & " год" -> 2025 год | AE14: =god+2 & " год" -> 2026 год | AF14: =god+3 & " год" -> 2027 год | AG14: =god+4 & " год" -> 2028 год | AH14: =god+5 & " год" -> 2029 год | AI14: =god+6 & " год" -> 2030 год | AJ14: =god+7 & " год" -> 2031 год | AK14: =god+8 & " год" -> 2032 год | AL14: =god+9 & " год" -> 2033 год | AM14: Ссылка на правовую норму (основание для принятия показателя в расчет тарифа)
O15: Принято органом регулирования | P15: Факт по данным организации | Q15: Факт, принятый органом регулирования | R15: Принято органом регулирования | S15: Предложение организации | T15: Предложение организации | U15: Предложение организации | V15: Предложение организации | W15: Предложение организации | X15: Предложение организации | Y15: Предложение организации | Z15: Предложение организации | AA15: Предложение организации | AB15: Предложение организации | AC15: Принято органом регулирования | AD15: Принято органом регулирования | AE15: Принято органом регулирования | AF15: Принято органом регулирования | AG15: Принято органом регулирования | AH15: Принято органом регулирования | AI15: Принято органом регулирования | AJ15: Принято органом регулирования | AK15: Принято органом регулирования | AL15: Принято органом регулирования
A16: ='Общие сведения'!$D$122 -> 1 | L16: =INDEX('Общие сведения'!$J$121:$J$148,MATCH($A16,'Общие сведения'!$D$121:$D$148,0)) -> Тариф 1 (Водоснабжение) - тариф на питьевую воду
A17: =A16 -> 1 | B17: L1 | L17: 1 | M17: Первоначальная (восстановительная) стоимость на начало периода | N17: тыс.руб. | O17: =SUM(O18:O22) -> 1400.67883 | P17: =SUM(P18:P22) -> 1400.67883 | Q17: =SUM(Q18:Q22) -> 1400.67883 | R17: =SUM(R18:R22) -> 1400.67883 | S17: =SUM(S18:S22) -> 573.03 | T17: 0 | U17: 0 | V17: 0 | W17: 0 | X17: 0 | Y17: 0 | Z17: 0 | AA17: =SUM(AA18:AA22) -> 0 | AB17: =SUM(AB18:AB22) -> 0 | AC17: 414.965 | AD17: 414.965 | AE17: 0 | AF17: 0 | AG17: 0 | AH17: 0 | AI17: 0 | AJ17: 0 | AK17: 0 | AL17: 0 | AM17: 1) П. 89, п. 28, п 18(7) Методических указаний ФСТ № 1746-э. 2) Постановление Правительства РФ от 01.01.2002 N 1 (ред. от 18.11.2022) "О Классификации основных средств, включаемых в амортизационные группы". 3) Приказ Минфина России от 17.09.2020 N 204н (ред. от 30.05.2022) "Об утверждении Федеральных стандартов бухгалтерского учета ФСБУ 6/2020 "Основные средства" и ФСБУ 26/2020 "Капитальные вложения" (Зарегистрировано в Минюсте России 15.10.2020 N 60399). 4) Письмо> ФАС России от 05.08.2022 N МШ/74227/22 "О новых стандартах бухгалтерского учета, подлежащих применению начиная с бухгалтерской (финансовой) отчетности за 2022 год". 5) "Положение об Учетной политике для целей бухгалтерского учета ООО "ТВК" на 2022 год" (Приказ от 10.01.2022 № 57).
A18: =A17 -> 1 | B18: L1_1 | L18: 1.1 | M18: Здания | N18: тыс.руб.
A19: 1 | B19: L1_2 | L19: 1.2 | M19: Сооружения и передаточные устройства | N19: тыс.руб.
A20: 1 | B20: L1_3 | L20: 1.3 | M20: Машины и оборудование | N20: тыс.руб. | O20: =1196.631+204.04783 -> 1400.67883 | P20: =1196.631+204.04783 -> 1400.67883 | Q20: =1196.631+204.04783 -> 1400.67883 | R20: =1196.631+204.04783 -> 1400.67883 | S20: =414.965+158.065 -> 573.03 | T20: 0 | U20: 0 | V20: 0 | W20: 0 | AC20: 414.965 | AD20: =AC35 -> 414.965 | AE20: 0 | AF20: 0 | AG20: 0 | AM20: Стоимость электронасоса скважинного JETEX C6 SS3, приобретенного в 2022 г., к учету по данной статье не принята, так как расходы на его приобретение учтены в составе фактических затрат на КАПИТАЛЬНЫЙ РЕМОНТ 2022 г.
A21: 1 | B21: L1_4 | L21: 1.4 | M21: Транспорт | N21: тыс.руб.
A22: 1 | B22: L1_5 | L22: 1.5 | M22: Прочее | N22: тыс.руб.
A23: 1 | B23: L2 | L23: 2 | M23: Ввод основных фондов | N23: тыс.руб. | O23: =SUM(O24:O28) -> 0 | P23: 158.065 | Q23: 0 | R23: 0 | S23: 0 | T23: 0 | U23: 0 | V23: 0 | W23: 0 | X23: 0 | Y23: 0 | Z23: 0 | AA23: =SUM(AA24:AA28) -> 0 | AB23: =SUM(AB24:AB28) -> 0 | AC23: 0 | AD23: 0 | AE23: 0 | AF23: 0 | AG23: 0 | AH23: 0 | AI23: 0 | AJ23: 0 | AK23: 0 | AL23: 0
A24: 1 | B24: L2_1 | L24: 2.1 | M24: Здания | N24: тыс.руб.
A25: 1 | B25: L2_2 | L25: 2.2 | M25: Сооружения и передаточные устройства | N25: тыс.руб.
A26: 1 | B26: L2_3 | L26: 2.3 | M26: Машины и оборудование | N26: тыс.руб. | P26: 158.065 | Q26: 0 | R26: 0 | S26: 0 | T26: 0 | U26: 0 | V26: 0 | W26: 0 | X26: 0 | Y26: 0 | Z26: 0 | AA26: 0 | AB26: 0 | AC26: 0 | AD26: 0 | AE26: 0 | AF26: 0 | AG26: 0 | AM26: Стоимость электронасоса скважинного JETEX C6 SS3, приобретенного в 2022 г., к учету по данной статье не принята, так как расходы на его приобретение учтены в составе фактических затрат на КАПИТАЛЬНЫЙ РЕМОНТ 2022 г.
A27: 1 | B27: L2_4 | L27: 2.4 | M27: Транспорт | N27: тыс.руб.
A28: 1 | B28: L2_5 | L28: 2.5 | M28: Прочее | N28: тыс.руб.
A29: 1 | B29: L3 | L29: 3 | M29: Выбытие основных фондов | N29: тыс.руб. | O29: =SUM(O30:O34) -> 0 | P29: 0 | Q29: 0 | R29: 0 | S29: 0 | T29: 573.03 | U29: 0 | V29: 0 | W29: 0 | X29: 0 | Y29: 0 | Z29: 0 | AA29: =SUM(AA30:AA34) -> 0 | AB29: =SUM(AB30:AB34) -> 0 | AC29: 0 | AD29: 414.965 | AE29: 0 | AF29: 0 | AG29: 0 | AH29: 0 | AI29: 0 | AJ29: 0 | AK29: 0 | AL29: =SUM(AL30:AL34) -> 0
A30: 1 | B30: L3_1 | L30: 3.1 | M30: Здания | N30: тыс.руб.
A31: 1 | B31: L3_2 | L31: 3.2 | M31: Сооружения и передаточные устройства | N31: тыс.руб.
A32: 1 | B32: L3_3 | L32: 3.3 | M32: Машины и оборудование | N32: тыс.руб. | T32: =S20 -> 573.03 | U32: 0 | V32: 0 | W32: 0 | AC32: 0 | AD32: =AC20 -> 414.965 | AE32: 0 | AF32: 0 | AG32: 0 | AM32: В соответствии с нормативными сроками полезного использования.
A33: 1 | B33: L3_4 | L33: 3.4 | M33: Транспорт | N33: тыс.руб.
A34: 1 | B34: L3_5 | L34: 3.5 | M34: Прочее | N34: тыс.руб.
A35: 1 | B35: L4 | L35: 4 | M35: Первоначальная (восстановительная) стоимость на конец периода | N35: тыс.руб. | O35: =SUM(O36:O40) -> 1400.67883 | P35: 1558.74383 | Q35: =SUM(Q36:Q40) -> 1400.67883 | R35: 1400.67883 | S35: 573.03 | T35: -573.03 | U35: 0 | V35: 0 | W35: 0 | X35: 0 | Y35: 0 | Z35: 0 | AA35: =SUM(AA36:AA40) -> 0 | AB35: =SUM(AB36:AB40) -> 0 | AC35: 414.965 | AD35: 0 | AE35: 0 | AF35: 0 | AG35: 0 | AH35: 0 | AI35: 0 | AJ35: 0 | AK35: 0 | AL35: 0
A36: 1 | B36: L4_1 | L36: 4.1 | M36: Здания | N36: тыс.руб. | O36: =O18+O24-O30 -> 0 | P36: =P18+P24-P30 -> 0 | Q36: =Q18+Q24-Q30 -> 0 | R36: 0 | S36: 0 | T36: 0 | U36: 0 | V36: 0 | W36: 0 | X36: 0 | Y36: 0 | Z36: 0 | AA36: 0 | AB36: 0 | AC36: 0 | AD36: 0 | AE36: 0 | AF36: 0 | AG36: 0 | AH36: 0 | AI36: 0 | AJ36: 0 | AK36: 0 | AL36: 0
A37: 1 | B37: L4_2 | L37: 4.2 | M37: Сооружения и передаточные устройства | N37: тыс.руб. | O37: =O19+O25-O31 -> 0 | P37: =P19+P25-P31 -> 0 | Q37: =Q19+Q25-Q31 -> 0 | R37: =R19+R25-R31 -> 0 | S37: 0 | T37: 0 | U37: 0 | V37: 0 | W37: 0 | X37: 0 | Y37: 0 | Z37: 0 | AA37: 0 | AB37: 0 | AC37: 0 | AD37: 0 | AE37: 0 | AF37: 0 | AG37: 0 | AH37: 0 | AI37: 0 | AJ37: 0 | AK37: 0 | AL37: 0
A38: 1 | B38: L4_3 | L38: 4.3 | M38: Машины и оборудование | N38: тыс.руб. | O38: =O20+O26-O32 -> 1400.67883 | P38: =P20+P26-P32 -> 1558.74383 | Q38: =Q20+Q26-Q32 -> 1400.67883 | R38: =R20+R26-R32 -> 1400.67883 | S38: =S20+S26-S32 -> 573.03 | T38: -573.03 | U38: 0 | V38: 0 | W38: 0 | X38: 0 | Y38: 0 | Z38: 0 | AA38: 0 | AB38: 0 | AC38: 414.965 | AD38: 0 | AE38: 0 | AF38: 0 | AG38: 0 | AH38: 0 | AI38: 0 | AJ38: 0 | AK38: 0 | AL38: =AL20+AL26-AL32 -> 0
A39: 1 | B39: L4_4 | L39: 4.4 | M39: Транспорт | N39: тыс.руб. | O39: =O21+O27-O33 -> 0 | P39: =P21+P27-P33 -> 0 | Q39: =Q21+Q27-Q33 -> 0 | R39: =R21+R27-R33 -> 0 | S39: =S21+S27-S33 -> 0 | T39: 0 | U39: 0 | V39: 0 | W39: 0 | X39: 0 | Y39: 0 | Z39: 0 | AA39: 0 | AB39: 0 | AC39: 0 | AD39: 0 | AE39: 0 | AF39: 0 | AG39: 0 | AH39: 0 | AI39: 0 | AJ39: 0 | AK39: 0 | AL39: =AL21+AL27-AL33 -> 0
A40: 1 | B40: L4_5 | L40: 4.5 | M40: Прочее | N40: тыс.руб. | O40: =O22+O28-O34 -> 0 | P40: =P22+P28-P34 -> 0 | Q40: =Q22+Q28-Q34 -> 0 | R40: =R22+R28-R34 -> 0 | S40: =S22+S28-S34 -> 0 | T40: 0 | U40: 0 | V40: 0 | W40: 0 | X40: 0 | Y40: 0 | Z40: 0 | AA40: 0 | AB40: 0 | AC40: 0 | AD40: 0 | AE40: 0 | AF40: 0 | AG40: 0 | AH40: 0 | AI40: 0 | AJ40: 0 | AK40: 0 | AL40: =AL22+AL28-AL34 -> 0
A41: 1 | B41: L5 | L41: 5 | M41: Среднегодовая стоимость | N41: тыс.руб. | O41: =SUM(O42:O46) -> 1400.67883 | P41: =SUM(P42:P46) -> 1479.71133 | Q41: =SUM(Q42:Q46) -> 1400.67883 | R41: 1400.67883 | S41: 573.03 | T41: -286.515 | U41: 0 | V41: 0 | W41: 0 | X41: 0 | Y41: 0 | Z41: 0 | AA41: =SUM(AA42:AA46) -> 0 | AB41: =SUM(AB42:AB46) -> 0 | AC41: 414.965 | AD41: 207.4825 | AE41: 0 | AF41: 0 | AG41: 0 | AH41: 0 | AI41: 0 | AJ41: 0 | AK41: 0 | AL41: 0
A42: 1 | B42: L5_1 | L42: 5.1 | M42: Здания | N42: тыс.руб. | O42: =(O36+O18)/2 -> 0 | P42: =(P36+P18)/2 -> 0 | Q42: =(Q36+Q18)/2 -> 0 | R42: 0 | S42: 0 | T42: 0 | U42: 0 | V42: 0 | W42: 0 | X42: 0 | Y42: 0 | Z42: 0 | AA42: 0 | AB42: 0 | AC42: 0 | AD42: 0 | AE42: 0 | AF42: 0 | AG42: 0 | AH42: 0 | AI42: 0 | AJ42: 0 | AK42: 0 | AL42: 0
A43: 1 | B43: L5_2 | L43: 5.2 | M43: Сооружения и передаточные устройства | N43: тыс.руб. | O43: =(O37+O19)/2 -> 0 | P43: 0 | Q43: =(Q37+Q19)/2 -> 0 | R43: 0 | S43: 0 | T43: 0 | U43: 0 | V43: 0 | W43: 0 | X43: 0 | Y43: 0 | Z43: 0 | AA43: 0 | AB43: 0 | AC43: 0 | AD43: 0 | AE43: 0 | AF43: 0 | AG43: 0 | AH43: 0 | AI43: 0 | AJ43: 0 | AK43: 0 | AL43: 0
A44: 1 | B44: L5_3 | L44: 5.3 | M44: Машины и оборудование | N44: тыс.руб. | O44: =(O38+O20)/2 -> 1400.67883 | P44: 1479.71133 | Q44: =(Q38+Q20)/2 -> 1400.67883 | R44: 1400.67883 | S44: 573.03 | T44: -286.515 | U44: 0 | V44: 0 | W44: 0 | X44: 0 | Y44: 0 | Z44: 0 | AA44: 0 | AB44: 0 | AC44: 414.965 | AD44: 207.4825 | AE44: 0 | AF44: 0 | AG44: 0 | AH44: 0 | AI44: 0 | AJ44: 0 | AK44: 0 | AL44: 0
A45: 1 | B45: L5_4 | L45: 5.4 | M45: Транспорт | N45: тыс.руб. | O45: =(O39+O21)/2 -> 0 | P45: 0 | Q45: =(Q39+Q21)/2 -> 0 | R45: 0 | S45: 0 | T45: 0 | U45: 0 | V45: 0 | W45: 0 | X45: 0 | Y45: 0 | Z45: 0 | AA45: 0 | AB45: 0 | AC45: 0 | AD45: 0 | AE45: 0 | AF45: 0 | AG45: 0 | AH45: 0 | AI45: 0 | AJ45: 0 | AK45: 0 | AL45: 0
A46: 1 | B46: L5_5 | L46: 5.5 | M46: Прочее | N46: тыс.руб. | O46: =(O40+O22)/2 -> 0 | P46: 0 | Q46: =(Q40+Q22)/2 -> 0 | R46: 0 | S46: 0 | T46: 0 | U46: 0 | V46: 0 | W46: 0 | X46: 0 | Y46: 0 | Z46: 0 | AA46: 0 | AB46: 0 | AC46: 0 | AD46: 0 | AE46: 0 | AF46: 0 | AG46: 0 | AH46: 0 | AI46: 0 | AJ46: 0 | AK46: 0 | AL46: 0
A47: 1 | B47: L6 | L47: 6 | M47: Средняя норма амортизационных отчислений
A48: 1 | B48: L6_1 | L48: 6.1 | M48: Здания | N48: % | O48: =IF(O42=0,0,O54/O42*100) -> 0 | P48: 0 | Q48: 0 | R48: 0 | S48: 0 | T48: 0 | U48: 0 | V48: 0 | W48: 0 | X48: 0 | Y48: 0 | Z48: 0 | AA48: 0 | AB48: 0 | AC48: 0 | AD48: 0 | AE48: 0 | AF48: 0 | AG48: 0 | AH48: 0 | AI48: 0 | AJ48: 0 | AK48: 0 | AL48: 0
A49: 1 | B49: L6_2 | L49: 6.2 | M49: Сооружения и передаточные устройства | N49: % | O49: =IF(O43=0,0,O55/O43*100) -> 0 | P49: 0 | Q49: 0 | R49: 0 | S49: 0 | T49: 0 | U49: 0 | V49: 0 | W49: 0 | X49: 0 | Y49: 0 | Z49: 0 | AA49: 0 | AB49: 0 | AC49: 0 | AD49: 0 | AE49: 0 | AF49: 0 | AG49: 0 | AH49: 0 | AI49: 0 | AJ49: 0 | AK49: 0 | AL49: 0
A50: 1 | B50: L6_3 | L50: 6.3 | M50: Машины и оборудование | N50: % | O50: =IF(O44=0,0,O56/O44*100) -> 24.70159415 | P50: 0.02257197017 | Q50: 16.79046295 | R50: 5.982813348 | S50: 0.02471249324 | T50: 0 | U50: 0 | V50: 0 | W50: 0 | X50: 0 | Y50: 0 | Z50: 0 | AA50: 0 | AB50: 0 | AC50: 16.66731411 | AD50: 0 | AE50: 0 | AF50: 0 | AG50: 0 | AH50: 0 | AI50: 0 | AJ50: 0 | AK50: 0 | AL50: 0
A51: 1 | B51: L6_4 | L51: 6.4 | M51: Транспорт | N51: % | O51: =IF(O45=0,0,O57/O45*100) -> 0 | P51: 0 | Q51: 0 | R51: 0 | S51: 0 | T51: 0 | U51: 0 | V51: 0 | W51: 0 | X51: 0 | Y51: 0 | Z51: 0 | AA51: 0 | AB51: 0 | AC51: 0 | AD51: 0 | AE51: 0 | AF51: 0 | AG51: 0 | AH51: 0 | AI51: 0 | AJ51: 0 | AK51: 0 | AL51: 0
A52: 1 | B52: L6_5 | L52: 6.5 | M52: Прочее | N52: % | O52: =IF(O46=0,0,O58/O46*100) -> 0 | P52: 0 | Q52: 0 | R52: 0 | S52: 0 | T52: 0 | U52: 0 | V52: 0 | W52: 0 | X52: 0 | Y52: 0 | Z52: 0 | AA52: 0 | AB52: 0 | AC52: 0 | AD52: 0 | AE52: 0 | AF52: 0 | AG52: 0 | AH52: 0 | AI52: 0 | AJ52: 0 | AK52: 0 | AL52: 0
A53: 1 | B53: L7 | L53: 7 | M53: Сумма амортизационных отчислений | N53: тыс.руб. | O53: =SUM(O54:O58) -> 345.99 | P53: 0.334 | Q53: =SUM(Q54:Q58) -> 235.18046 | R53: 83.8 | S53: 0.14161 | T53: 0 | U53: 0 | V53: 0 | W53: 0 | X53: 0 | Y53: 0 | Z53: 0 | AA53: =SUM(AA54:AA58) -> 0 | AB53: =SUM(AB54:AB58) -> 0 | AC53: 69.16352 | AD53: 0 | AE53: 0 | AF53: 0 | AG53: 0 | AH53: 0 | AI53: 0 | AJ53: 0 | AK53: 0 | AL53: 0
A54: 1 | B54: L7_1 | L54: 7.1 | M54: Здания | N54: тыс.руб.
A55: 1 | B55: L7_2 | L55: 7.2 | M55: Сооружения и передаточные устройства | N55: тыс.руб. | AM55: В цифрах, отражающих Факт 2022 г. и Предложение на 2024 г., допущен а ошибка в разрядности (значения показателей некорректно разделены на 1000).
A56: 1 | B56: L7_3 | L56: 7.3 | M56: Машины и оборудование | N56: тыс.руб. | O56: 345.99 | P56: =334/1000 -> 0.334 | Q56: =241.7665-6.58604 -> 235.18046 | R56: 83.8 | S56: =141.61/1000 -> 0.14161 | T56: 0 | U56: 0 | V56: 0 | W56: 0 | AC56: =141.61-72.44648 -> 69.16352 | AD56: 0 | AE56: 0 | AF56: 0 | AG56: 0 | AM56: Не принята к учету амортизация электронасоса скважинного JETEX C6 SS3, так как расходы на его приобретение учтены в составе фактических затрат на КАПИТАЛЬНЫЙ РЕМОНТ 2022 г.
A57: 1 | B57: L7_4 | L57: 7.4 | M57: Транспорт | N57: тыс.руб.
A58: 1 | B58: L7_5 | L58: 7.5 | M58: Прочее | N58: тыс.руб.
A59: 1 | B59: L8 | L59: 8 | M59: Переоценка на 31.12.XX | N59: тыс.руб. | O59: =SUM(O60:O64) -> 0 | P59: 0 | Q59: =SUM(Q60:Q64) -> 0 | R59: 0 | S59: 0 | T59: 0 | U59: 0 | V59: 0 | W59: 0 | X59: 0 | Y59: 0 | Z59: 0 | AA59: =SUM(AA60:AA64) -> 0 | AB59: =SUM(AB60:AB64) -> 0 | AC59: 0 | AD59: 0 | AE59: 0 | AF59: 0 | AG59: 0 | AH59: 0 | AI59: 0 | AJ59: 0 | AK59: 0 | AL59: 0
A60: 1 | B60: L8_1 | L60: 8.1 | M60: Здания | N60: тыс.руб.
A61: 1 | B61: L8_2 | L61: 8.2 | M61: Сооружения и передаточные устройства | N61: тыс.руб.
A62: 1 | B62: L8_3 | L62: 8.3 | M62: Машины и оборудование | N62: тыс.руб.
A63: 1 | B63: L8_4 | L63: 8.4 | M63: Транспорт | N63: тыс.руб.
A64: 1 | B64: L8_5 | L64: 8.5 | M64: Прочее | N64: тыс.руб.
A65: ='Общие сведения'!$D$135 -> 2 | L65: =INDEX('Общие сведения'!$J$121:$J$148,MATCH($A65,'Общие сведения'!$D$121:$D$148,0)) -> Тариф 2 (Водоотведение) - тариф на водоотведение
A66: =A65 -> 2 | B66: L1 | L66: 1 | M66: Первоначальная (восстановительная) стоимость на начало периода | N66: тыс.руб. | O66: =SUM(O67:O71) -> 454.562 | P66: =SUM(P67:P71) -> 454.562 | Q66: =SUM(Q67:Q71) -> 454.562 | R66: =SUM(R67:R71) -> 1113.20486 | S66: =SUM(S67:S71) -> 658.64286 | T66: 658.64286 | U66: 165.2562 | V66: 0 | W66: 0 | X66: 0 | Y66: 0 | Z66: 0 | AA66: =SUM(AA67:AA71) -> 0 | AB66: =SUM(AB67:AB71) -> 0 | AC66: 658.64286 | AD66: 658.64286 | AE66: 165.2562 | AF66: 0 | AG66: 0 | AH66: 0 | AI66: 0 | AJ66: 0 | AK66: 0 | AL66: 0 | AM66: 1) П. 89, п. 28, п 18(7) Методических указаний ФСТ № 1746-э. 2) Постановление Правительства РФ от 01.01.2002 N 1 (ред. от 18.11.2022) "О Классификации основных средств, включаемых в амортизационные группы". 3) Приказ Минфина России от 17.09.2020 N 204н (ред. от 30.05.2022) "Об утверждении Федеральных стандартов бухгалтерского учета ФСБУ 6/2020 "Основные средства" и ФСБУ 26/2020 "Капитальные вложения" (Зарегистрировано в Минюсте России 15.10.2020 N 60399). 4) Письмо> ФАС России от 05.08.2022 N МШ/74227/22 "О новых стандартах бухгалтерского учета, подлежащих применению начиная с бухгалтерской (финансовой) отчетности за 2022 год". 5) "Положение об Учетной политике для целей бухгалтерского учета ООО "ТВК" на 2022 год" (Приказ от 10.01.2022 № 57).
A67: =A66 -> 2 | B67: L1_1 | L67: 1.1 | M67: Здания | N67: тыс.руб.
A68: 2 | B68: L1_2 | L68: 1.2 | M68: Сооружения и передаточные устройства | N68: тыс.руб.
A69: 2 | B69: L1_3 | L69: 1.3 | M69: Машины и оборудование | N69: тыс.руб. | O69: 454.562 | P69: 454.562 | Q69: 454.562 | R69: =Q87 -> 1113.20486 | S69: 658.64286 | T69: =S84 -> 658.64286 | U69: 165.2562 | V69: 0 | W69: 0 | AC69: 658.64286 | AD69: 658.64286 | AE69: 165.2562 | AF69: 0 | AG69: 0
A70: 2 | B70: L1_4 | L70: 1.4 | M70: Транспорт | N70: тыс.руб.
A71: 2 | B71: L1_5 | L71: 1.5 | M71: Прочее | N71: тыс.руб.
A72: 2 | B72: L2 | L72: 2 | M72: Ввод основных фондов | N72: тыс.руб. | O72: =SUM(O73:O77) -> 0 | P72: 658.64286 | Q72: 658.64286 | R72: 0 | S72: 0 | T72: 493.38666 | U72: 165.2562 | V72: 0 | W72: 0 | X72: 0 | Y72: 0 | Z72: 0 | AA72: =SUM(AA73:AA77) -> 0 | AB72: =SUM(AB73:AB77) -> 0 | AC72: 0 | AD72: 493.38666 | AE72: 165.2562 | AF72: 0 | AG72: 0 | AH72: 0 | AI72: 0 | AJ72: 0 | AK72: 0 | AL72: 0
A73: 2 | B73: L2_1 | L73: 2.1 | M73: Здания | N73: тыс.руб.
A74: 2 | B74: L2_2 | L74: 2.2 | M74: Сооружения и передаточные устройства | N74: тыс.руб.
A75: 2 | B75: L2_3 | L75: 2.3 | M75: Машины и оборудование | N75: тыс.руб. | P75: 658.64286 | Q75: 658.64286 | S75: 0 | T75: 493.38666 | U75: =U69 -> 165.2562 | V75: 0 | W75: 0 | AC75: 0 | AD75: 493.38666 | AE75: 165.2562 | AF75: 0 | AG75: 0
A76: 2 | B76: L2_4 | L76: 2.4 | M76: Транспорт | N76: тыс.руб.
A77: 2 | B77: L2_5 | L77: 2.5 | M77: Прочее | N77: тыс.руб.
A78: 2 | B78: L3 | L78: 3 | M78: Выбытие основных фондов | N78: тыс.руб. | O78: =SUM(O79:O83) -> 0 | P78: 0 | Q78: 0 | R78: 0 | S78: 0 | T78: 0 | U78: 0 | V78: 0 | W78: 0 | X78: 0 | Y78: 0 | Z78: 0 | AA78: =SUM(AA79:AA83) -> 0 | AB78: =SUM(AB79:AB83) -> 0 | AC78: 0 | AD78: 0 | AE78: 0 | AF78: 0 | AG78: 0 | AH78: 0 | AI78: 0 | AJ78: 0 | AK78: 0 | AL78: =SUM(AL79:AL83) -> 0
A79: 2 | B79: L3_1 | L79: 3.1 | M79: Здания | N79: тыс.руб.
A80: 2 | B80: L3_2 | L80: 3.2 | M80: Сооружения и передаточные устройства | N80: тыс.руб.
A81: 2 | B81: L3_3 | L81: 3.3 | M81: Машины и оборудование | N81: тыс.руб.
A82: 2 | B82: L3_4 | L82: 3.4 | M82: Транспорт | N82: тыс.руб.
A83: 2 | B83: L3_5 | L83: 3.5 | M83: Прочее | N83: тыс.руб.
A84: 2 | B84: L4 | L84: 4 | M84: Первоначальная (восстановительная) стоимость на конец периода | N84: тыс.руб. | O84: =SUM(O85:O89) -> 454.562 | P84: 1113.20486 | Q84: =SUM(Q85:Q89) -> 1113.20486 | R84: 1113.20486 | S84: 658.64286 | T84: 1152.02952 | U84: 330.5124 | V84: 0 | W84: 0 | X84: 0 | Y84: 0 | Z84: 0 | AA84: =SUM(AA85:AA89) -> 0 | AB84: =SUM(AB85:AB89) -> 0 | AC84: 658.64286 | AD84: 1152.02952 | AE84: 330.5124 | AF84: 0 | AG84: 0 | AH84: 0 | AI84: 0 | AJ84: 0 | AK84: 0 | AL84: 0
A85: 2 | B85: L4_1 | L85: 4.1 | M85: Здания | N85: тыс.руб. | O85: =O67+O73-O79 -> 0 | P85: =P67+P73-P79 -> 0 | Q85: =Q67+Q73-Q79 -> 0 | R85: 0 | S85: 0 | T85: 0 | U85: 0 | V85: 0 | W85: 0 | X85: 0 | Y85: 0 | Z85: 0 | AA85: 0 | AB85: 0 | AC85: 0 | AD85: 0 | AE85: 0 | AF85: 0 | AG85: 0 | AH85: 0 | AI85: 0 | AJ85: 0 | AK85: 0 | AL85: 0
A86: 2 | B86: L4_2 | L86: 4.2 | M86: Сооружения и передаточные устройства | N86: тыс.руб. | O86: =O68+O74-O80 -> 0 | P86: =P68+P74-P80 -> 0 | Q86: =Q68+Q74-Q80 -> 0 | R86: =R68+R74-R80 -> 0 | S86: 0 | T86: 0 | U86: 0 | V86: 0 | W86: 0 | X86: 0 | Y86: 0 | Z86: 0 | AA86: 0 | AB86: 0 | AC86: 0 | AD86: 0 | AE86: 0 | AF86: 0 | AG86: 0 | AH86: 0 | AI86: 0 | AJ86: 0 | AK86: 0 | AL86: 0
A87: 2 | B87: L4_3 | L87: 4.3 | M87: Машины и оборудование | N87: тыс.руб. | O87: =O69+O75-O81 -> 454.562 | P87: =P69+P75-P81 -> 1113.20486 | Q87: =Q69+Q75-Q81 -> 1113.20486 | R87: =R69+R75-R81 -> 1113.20486 | S87: =S69+S75-S81 -> 658.64286 | T87: 1152.02952 | U87: 330.5124 | V87: 0 | W87: 0 | X87: 0 | Y87: 0 | Z87: 0 | AA87: 0 | AB87: 0 | AC87: 658.64286 | AD87: 1152.02952 | AE87: 330.5124 | AF87: 0 | AG87: 0 | AH87: 0 | AI87: 0 | AJ87: 0 | AK87: 0 | AL87: =AL69+AL75-AL81 -> 0
A88: 2 | B88: L4_4 | L88: 4.4 | M88: Транспорт | N88: тыс.руб. | O88: =O70+O76-O82 -> 0 | P88: =P70+P76-P82 -> 0 | Q88: =Q70+Q76-Q82 -> 0 | R88: =R70+R76-R82 -> 0 | S88: =S70+S76-S82 -> 0 | T88: 0 | U88: 0 | V88: 0 | W88: 0 | X88: 0 | Y88: 0 | Z88: 0 | AA88: 0 | AB88: 0 | AC88: 0 | AD88: 0 | AE88: 0 | AF88: 0 | AG88: 0 | AH88: 0 | AI88: 0 | AJ88: 0 | AK88: 0 | AL88: =AL70+AL76-AL82 -> 0
A89: 2 | B89: L4_5 | L89: 4.5 | M89: Прочее | N89: тыс.руб. | O89: =O71+O77-O83 -> 0 | P89: =P71+P77-P83 -> 0 | Q89: =Q71+Q77-Q83 -> 0 | R89: =R71+R77-R83 -> 0 | S89: =S71+S77-S83 -> 0 | T89: 0 | U89: 0 | V89: 0 | W89: 0 | X89: 0 | Y89: 0 | Z89: 0 | AA89: 0 | AB89: 0 | AC89: 0 | AD89: 0 | AE89: 0 | AF89: 0 | AG89: 0 | AH89: 0 | AI89: 0 | AJ89: 0 | AK89: 0 | AL89: =AL71+AL77-AL83 -> 0
A90: 2 | B90: L5 | L90: 5 | M90: Среднегодовая стоимость | N90: тыс.руб. | O90: =SUM(O91:O95) -> 454.562 | P90: =SUM(P91:P95) -> 783.88343 | Q90: =SUM(Q91:Q95) -> 783.88343 | R90: 1113.20486 | S90: 658.64286 | T90: 905.33619 | U90: 247.8843 | V90: 0 | W90: 0 | X90: 0 | Y90: 0 | Z90: 0 | AA90: =SUM(AA91:AA95) -> 0 | AB90: =SUM(AB91:AB95) -> 0 | AC90: 658.64286 | AD90: 905.33619 | AE90: 247.8843 | AF90: 0 | AG90: 0 | AH90: 0 | AI90: 0 | AJ90: 0 | AK90: 0 | AL90: 0
A91: 2 | B91: L5_1 | L91: 5.1 | M91: Здания | N91: тыс.руб. | O91: =(O85+O67)/2 -> 0 | P91: =(P85+P67)/2 -> 0 | Q91: =(Q85+Q67)/2 -> 0 | R91: 0 | S91: 0 | T91: 0 | U91: 0 | V91: 0 | W91: 0 | X91: 0 | Y91: 0 | Z91: 0 | AA91: 0 | AB91: 0 | AC91: 0 | AD91: 0 | AE91: 0 | AF91: 0 | AG91: 0 | AH91: 0 | AI91: 0 | AJ91: 0 | AK91: 0 | AL91: 0
A92: 2 | B92: L5_2 | L92: 5.2 | M92: Сооружения и передаточные устройства | N92: тыс.руб. | O92: =(O86+O68)/2 -> 0 | P92: 0 | Q92: =(Q86+Q68)/2 -> 0 | R92: 0 | S92: 0 | T92: 0 | U92: 0 | V92: 0 | W92: 0 | X92: 0 | Y92: 0 | Z92: 0 | AA92: 0 | AB92: 0 | AC92: 0 | AD92: 0 | AE92: 0 | AF92: 0 | AG92: 0 | AH92: 0 | AI92: 0 | AJ92: 0 | AK92: 0 | AL92: 0
A93: 2 | B93: L5_3 | L93: 5.3 | M93: Машины и оборудование | N93: тыс.руб. | O93: =(O87+O69)/2 -> 454.562 | P93: 783.88343 | Q93: =(Q87+Q69)/2 -> 783.88343 | R93: 1113.20486 | S93: 658.64286 | T93: 905.33619 | U93: 247.8843 | V93: 0 | W93: 0 | X93: 0 | Y93: 0 | Z93: 0 | AA93: 0 | AB93: 0 | AC93: 658.64286 | AD93: 905.33619 | AE93: 247.8843 | AF93: 0 | AG93: 0 | AH93: 0 | AI93: 0 | AJ93: 0 | AK93: 0 | AL93: 0
A94: 2 | B94: L5_4 | L94: 5.4 | M94: Транспорт | N94: тыс.руб. | O94: =(O88+O70)/2 -> 0 | P94: 0 | Q94: =(Q88+Q70)/2 -> 0 | R94: 0 | S94: 0 | T94: 0 | U94: 0 | V94: 0 | W94: 0 | X94: 0 | Y94: 0 | Z94: 0 | AA94: 0 | AB94: 0 | AC94: 0 | AD94: 0 | AE94: 0 | AF94: 0 | AG94: 0 | AH94: 0 | AI94: 0 | AJ94: 0 | AK94: 0 | AL94: 0
A95: 2 | B95: L5_5 | L95: 5.5 | M95: Прочее | N95: тыс.руб. | O95: =(O89+O71)/2 -> 0 | P95: 0 | Q95: =(Q89+Q71)/2 -> 0 | R95: 0 | S95: 0 | T95: 0 | U95: 0 | V95: 0 | W95: 0 | X95: 0 | Y95: 0 | Z95: 0 | AA95: 0 | AB95: 0 | AC95: 0 | AD95: 0 | AE95: 0 | AF95: 0 | AG95: 0 | AH95: 0 | AI95: 0 | AJ95: 0 | AK95: 0 | AL95: 0
A96: 2 | B96: L6 | L96: 6 | M96: Средняя норма амортизационных отчислений
A97: 2 | B97: L6_1 | L97: 6.1 | M97: Здания | N97: % | O97: =IF(O91=0,0,O103/O91*100) -> 0 | P97: 0 | Q97: 0 | R97: 0 | S97: 0 | T97: 0 | U97: 0 | V97: 0 | W97: 0 | X97: 0 | Y97: 0 | Z97: 0 | AA97: 0 | AB97: 0 | AC97: 0 | AD97: 0 | AE97: 0 | AF97: 0 | AG97: 0 | AH97: 0 | AI97: 0 | AJ97: 0 | AK97: 0 | AL97: 0
A98: 2 | B98: L6_2 | L98: 6.2 | M98: Сооружения и передаточные устройства | N98: % | O98: =IF(O92=0,0,O104/O92*100) -> 0 | P98: 0 | Q98: 0 | R98: 0 | S98: 0 | T98: 0 | U98: 0 | V98: 0 | W98: 0 | X98: 0 | Y98: 0 | Z98: 0 | AA98: 0 | AB98: 0 | AC98: 0 | AD98: 0 | AE98: 0 | AF98: 0 | AG98: 0 | AH98: 0 | AI98: 0 | AJ98: 0 | AK98: 0 | AL98: 0
A99: 2 | B99: L6_3 | L99: 6.3 | M99: Машины и оборудование | N99: % | O99: =IF(O93=0,0,O105/O93*100) -> 32.80300597 | P99: 0 | Q99: 14.02421914 | R99: 4.284925598 | S99: 31.24303207 | T99: 21.21532334 | U99: 8.33453349 | V99: 0 | W99: 0 | X99: 0 | Y99: 0 | Z99: 0 | AA99: 0 | AB99: 0 | AC99: 31.2424612 | AD99: 21.2154603 | AE99: 8.339039625 | AF99: 0 | AG99: 0 | AH99: 0 | AI99: 0 | AJ99: 0 | AK99: 0 | AL99: 0
A100: 2 | B100: L6_4 | L100: 6.4 | M100: Транспорт | N100: % | O100: =IF(O94=0,0,O106/O94*100) -> 0 | P100: 0 | Q100: 0 | R100: 0 | S100: 0 | T100: 0 | U100: 0 | V100: 0 | W100: 0 | X100: 0 | Y100: 0 | Z100: 0 | AA100: 0 | AB100: 0 | AC100: 0 | AD100: 0 | AE100: 0 | AF100: 0 | AG100: 0 | AH100: 0 | AI100: 0 | AJ100: 0 | AK100: 0 | AL100: 0
A101: 2 | B101: L6_5 | L101: 6.5 | M101: Прочее | N101: % | O101: =IF(O95=0,0,O107/O95*100) -> 0 | P101: 0 | Q101: 0 | R101: 0 | S101: 0 | T101: 0 | U101: 0 | V101: 0 | W101: 0 | X101: 0 | Y101: 0 | Z101: 0 | AA101: 0 | AB101: 0 | AC101: 0 | AD101: 0 | AE101: 0 | AF101: 0 | AG101: 0 | AH101: 0 | AI101: 0 | AJ101: 0 | AK101: 0 | AL101: 0
A102: 2 | B102: L7 | L102: 7 | M102: Сумма амортизационных отчислений | N102: тыс.руб. | O102: =SUM(O103:O107) -> 149.11 | P102: 0 | Q102: =SUM(Q103:Q107) -> 109.93353 | R102: 47.7 | S102: 205.78 | T102: 192.07 | U102: 20.66 | V102: 0 | W102: 0 | X102: 0 | Y102: 0 | Z102: 0 | AA102: =SUM(AA103:AA107) -> 0 | AB102: =SUM(AB103:AB107) -> 0 | AC102: 205.77624 | AD102: 192.07124 | AE102: 20.67117 | AF102: 0 | AG102: 0 | AH102: 0 | AI102: 0 | AJ102: 0 | AK102: 0 | AL102: 0
A103: 2 | B103: L7_1 | L103: 7.1 | M103: Здания | N103: тыс.руб.
A104: 2 | B104: L7_2 | L104: 7.2 | M104: Сооружения и передаточные устройства | N104: тыс.руб.
A105: 2 | B105: L7_3 | L105: 7.3 | M105: Машины и оборудование | N105: тыс.руб. | O105: 149.11 | Q105: 109.93353 | R105: 47.7 | S105: 205.78 | T105: 192.07 | U105: 20.66 | V105: 0 | W105: 0 | AC105: 205.77624 | AD105: 192.07124 | AE105: 20.67117 | AF105: 0 | AG105: 0 | AM105: Фактические затраты 2022 года составили 109,93 тыс. руб. (не отражены организацией ошибочно).
A106: 2 | B106: L7_4 | L106: 7.4 | M106: Транспорт | N106: тыс.руб.
A107: 2 | B107: L7_5 | L107: 7.5 | M107: Прочее | N107: тыс.руб.
A108: 2 | B108: L8 | L108: 8 | M108: Переоценка на 31.12.XX | N108: тыс.руб. | O108: =SUM(O109:O113) -> 0 | P108: 0 | Q108: =SUM(Q109:Q113) -> 0 | R108: 0 | S108: 0 | T108: 0 | U108: 0 | V108: 0 | W108: 0 | X108: 0 | Y108: 0 | Z108: 0 | AA108: =SUM(AA109:AA113) -> 0 | AB108: =SUM(AB109:AB113) -> 0 | AC108: 0 | AD108: 0 | AE108: 0 | AF108: 0 | AG108: 0 | AH108: 0 | AI108: 0 | AJ108: 0 | AK108: 0 | AL108: 0
A109: 2 | B109: L8_1 | L109: 8.1 | M109: Здания | N109: тыс.руб.
A110: 2 | B110: L8_2 | L110: 8.2 | M110: Сооружения и передаточные устройства | N110: тыс.руб.
A111: 2 | B111: L8_3 | L111: 8.3 | M111: Машины и оборудование | N111: тыс.руб.
A112: 2 | B112: L8_4 | L112: 8.4 | M112: Транспорт | N112: тыс.руб.
A113: 2 | B113: L8_5 | L113: 8.5 | M113: Прочее | N113: тыс.руб.
L115: Комментарии и обоснования к разделу
L116: ПИТЬЕВАЯ ВОДА. Плановая величина амортизационных отчислений на 2024 год (69,16 тыс. руб.) в части основных средств (насосное оборудование), закрепленных за участком "ВОДОЕМ-2", определена на основании: 1) "Аналитического отчета с 01.01.2022 по 31.12.2022" сч. 20-19 "Водоснабжение питьевой водой"; 2) "Ведомости износа основных средств по состоянию на 31.12.2022" (по участку "Водоем-2"); 3) инвентарных карт. При этом ИСКЛЮЧЕНА амортизация электронасоса скважинного JETEX C6 SS3, приобретенного в 2022 г., так как расходы на его приобретение учтены специалистом РЭК в составе фактических затрат на КАПИТАЛЬНЫЙ РЕМОНТ 2022 г.
K117: О | L117: Плановые затраты на 2024-2028 годы определены в размере 0,00 тыс. руб., так как, по расчету регулятора, остаточная стоимость осноных средств на участке Водоем-2 по состоянию на 31.12.2024 составит 0,00 тыс. руб.
K118: О | L118: ВОДООТВЕДЕНИЕ. Плановые амортизационные отчисления на 2024-2028 гг. в части основных средств, числящихся на участке "ОСВ" (насосное оборудование, лабораторные весы), приняты в размерах, предлагаемых организацией. Расчеты соотвествуют данным представленных инвентарных карт, "Аналитического отчета с 01.01.2022 по 31.12.2022" по сч. 20-21 "Водоотведение", а также данным "Ведомости износа основных средств по состоянию на 31.12.2022" (по участку "Участок очистки сточных вод"). Используемые организацией сроки полезного использования соответствуют нормативным срокам, указанным в "Классификации основных средств, включаемых в амортизационные группы" (Постановление Правительства РФ от 01.01.2002 N 1, ред. от 18.11.2022)).
L119: Добавить комментарий

Sheet Аренда
O1: =god-2 -> 2022 | P1: =god-2 -> 2022 | Q1: =god-2 -> 2022 | R1: =god-1 -> 2023 | S1: =god -> 2024 | T1: =god+1 -> 2025 | U1: =god+2 -> 2026 | V1: =god+3 -> 2027 | W1: =god+4 -> 2028 | X1: =god+5 -> 2029 | Y1: =god+6 -> 2030 | Z1: =god+7 -> 2031 | AA1: =god+8 -> 2032 | AB1: =god+9 -> 2033 | AC1: =god -> 2024 | AD1: =god+1 -> 2025 | AE1: =god+2 -> 2026 | AF1: =god+3 -> 2027 | AG1: =god+4 -> 2028 | AH1: =god+5 -> 2029 | AI1: =god+6 -> 2030 | AJ1: =god+7 -> 2031 | AK1: =god+8 -> 2032 | AL1: =god+9 -> 2033
O2: =O15 -> Принято органом регулирования | P2: =P15 -> Факт по данным организации | Q2: Факт, принятый органом регулирования | R2: Принято органом регулирования | S2: Предложение организации | T2: Предложение организации | U2: Предложение организации | V2: Предложение организации | W2: Предложение организации | X2: Предложение организации | Y2: Предложение организации | Z2: Предложение организации | AA2: Предложение организации | AB2: Предложение организации | AC2: Принято органом регулирования | AD2: Принято органом регулирования | AE2: Принято органом регулирования | AF2: Принято органом регулирования | AG2: Принято органом регулирования | AH2: Принято органом регулирования | AI2: Принято органом регулирования | AJ2: Принято органом регулирования | AK2: Принято органом регулирования | AL2: Принято органом регулирования
S7: =S1<=last_year_vis -> TRUE | T7: TRUE | U7: TRUE | V7: TRUE | W7: TRUE | X7: FALSE | Y7: FALSE | Z7: FALSE | AA7: FALSE | AB7: FALSE | AC7: TRUE | AD7: TRUE | AE7: TRUE | AF7: TRUE | AG7: TRUE | AH7: FALSE | AI7: FALSE | AJ7: FALSE | AK7: FALSE | AL7: FALSE
M11: =tpl_title -> Кемеровская область / 2024 / ООО "ТВК" (ИНН:4202026697, КПП:420201001) / ДПР: 2024-2028
L12: 11. Аренда
L14: № п/п | M14: Наименование показателя | N14: Единица измерений | O14: =god-2 & " год" -> 2022 год | P14: =god-2 & " год" -> 2022 год | Q14: =god-2 & " год" -> 2022 год | R14: =god-1 & " год" -> 2023 год | S14: =god & " год" -> 2024 год | T14: =god+1 & " год" -> 2025 год | U14: =god+2 & " год" -> 2026 год | V14: =god+3 & " год" -> 2027 год | W14: =god+4 & " год" -> 2028 год | X14: =god+5 & " год" -> 2029 год | Y14: =god+6 & " год" -> 2030 год | Z14: =god+7 & " год" -> 2031 год | AA14: =god+8 & " год" -> 2032 год | AB14: =god+9 & " год" -> 2033 год | AC14: =god & " год" -> 2024 год | AD14: =god+1 & " год" -> 2025 год | AE14: =god+2 & " год" -> 2026 год | AF14: =god+3 & " год" -> 2027 год | AG14: =god+4 & " год" -> 2028 год | AH14: =god+5 & " год" -> 2029 год | AI14: =god+6 & " год" -> 2030 год | AJ14: =god+7 & " год" -> 2031 год | AK14: =god+8 & " год" -> 2032 год | AL14: =god+9 & " год" -> 2033 год | AM14: Ссылка на правовую норму (основание для принятия показателя в расчет тарифа)
O15: Принято органом регулирования | P15: Факт по данным организации | Q15: Факт, принятый органом регулирования | R15: Принято органом регулирования | S15: Предложение организации | T15: Предложение организации | U15: Предложение организации | V15: Предложение организации | W15: Предложение организации | X15: Предложение организации | Y15: Предложение организации | Z15: Предложение организации | AA15: Предложение организации | AB15: Предложение организации | AC15: Принято органом регулирования | AD15: Принято органом регулирования | AE15: Принято органом регулирования | AF15: Принято органом регулирования | AG15: Принято органом регулирования | AH15: Принято органом регулирования | AI15: Принято органом регулирования | AJ15: Принято органом регулирования | AK15: Принято органом регулирования | AL15: Принято органом регулирования
A16: ='Общие сведения'!$D$122 -> 1 | L16: =INDEX('Общие сведения'!$J$121:$J$148,MATCH($A16,'Общие сведения'!$D$121:$D$148,0)) -> Тариф 1 (Водоснабжение) - тариф на питьевую воду
A17: =A16 -> 1 | B17: L1 | L17: 1 | M17: Арендная и концессионная плата. Лизинговые платежи | N17: тыс.руб. | O17: =O18+O21+O22+O23 -> 4.37532 | P17: =P18+P21+P22+P23 -> 0 | Q17: 6.8 | R17: 0 | S17: 0 | T17: 0 | U17: 0 | V17: 0 | W17: 0 | X17: 0 | Y17: 0 | Z17: 0 | AA17: 0 | AB17: 0 | AC17: 0 | AD17: 0 | AE17: 0 | AF17: 0 | AG17: 0 | AH17: 0 | AI17: 0 | AJ17: 0 | AK17: 0 | AL17: 0 | AM17: 1) Пункты 49 (3), 51, 29 Методических указаний ФСТ № 1746-э. 2) Пункт 28 абз. 4 Методических указаний ФСТ № 1746-э. 3) Постановление Правительства РФ от 01.01.2002 N 1 (ред. от 18.11.2022) "О Классификации основных средств, включаемых в амортизационные группы". Постановлением Правительства РФ от 01.01.2002 N 1.
A18: 1 | B18: L1_1 | L18: 1.1 | M18: Аренда имущества | N18: тыс.руб. | O18: =SUM(O19:O20) -> 4.37532 | P18: 0 | Q18: 6.8 | R18: 0 | S18: 0 | T18: 0 | U18: 0 | V18: 0 | W18: 0 | X18: 0 | Y18: 0 | Z18: 0 | AA18: 0 | AB18: 0 | AC18: 0 | AD18: 0 | AE18: 0 | AF18: 0 | AG18: 0 | AH18: 0 | AI18: 0 | AJ18: 0 | AK18: 0 | AL18: 0
A19: 1 | B19: L1_1_1 | L19: 1.1.1 | M19: Аренда муниципальной или государственной собственности | N19: тыс.руб.
A20: 1 | B20: L1_1_2 | L20: 1.1.2 | M20: Аренда частной собственности | N20: тыс.руб. | O20: 4.37532 | P20: 0 | Q20: 6.8 | R20: 0 | S20: 0 | T20: 0 | U20: 0 | V20: 0 | W20: 0 | AC20: 0 | AD20: 0 | AE20: 0 | AF20: 0 | AG20: 0 | AM20: Остаточная стоимость имущества (объекты системы холодного водоснабжения), арендуемого по Договору № А-63/23 от 01.06.2023, по состоянию на 01.12.2023 - 0,00 тыс. руб.
A21: 1 | B21: L1_2 | L21: 1.2 | M21: Концессионная плата | N21: тыс.руб.
A22: 1 | B22: L1_3 | L22: 1.3 | M22: Лизинговые платежи | N22: тыс.руб.
A23: 1 | B23: L1_4 | L23: 1.4 | M23: Аренда земельных участков | N23: тыс.руб.
A24: ='Общие сведения'!$D$135 -> 2 | L24: =INDEX('Общие сведения'!$J$121:$J$148,MATCH($A24,'Общие сведения'!$D$121:$D$148,0)) -> Тариф 2 (Водоотведение) - тариф на водоотведение
A25: =A24 -> 2 | B25: L1 | L25: 1 | M25: Арендная и концессионная плата. Лизинговые платежи | N25: тыс.руб. | O25: =O26+O29+O30+O31 -> 2942.90441 | P25: =P26+P29+P30+P31 -> 3358 | Q25: 2953.23741 | R25: 2908.48 | S25: 3698.76 | T25: 3698.76 | U25: 3698.76 | V25: 3698.75 | W25: 3698.76 | X25: 0 | Y25: 0 | Z25: 0 | AA25: 0 | AB25: 0 | AC25: 2848.062 | AD25: 2796.6937 | AE25: 2745.31 | AF25: 2693.9437 | AG25: 2642.56 | AH25: 0 | AI25: 0 | AJ25: 0 | AK25: 0 | AL25: 0 | AM25: 1) Пункты 49 (3), 51, 29 Методических указаний ФСТ № 1746-э. 2) Пункт 28 абз. 4 Методических указаний ФСТ № 1746-э. 3) Постановление Правительства РФ от 01.01.2002 N 1 (ред. от 18.11.2022) "О Классификации основных средств, включаемых в амортизационные группы". Постановлением Правительства РФ от 01.01.2002 N 1.
A26: 2 | B26: L1_1 | L26: 1.1 | M26: Аренда имущества | N26: тыс.руб. | O26: =SUM(O27:O28) -> 2886.65441 | P26: 3358 | Q26: 2886.65441 | R26: 2852.23 | S26: 3565.6 | T26: 3565.6 | U26: 3565.6 | V26: 3565.6 | W26: 3565.6 | X26: 0 | Y26: 0 | Z26: 0 | AA26: 0 | AB26: 0 | AC26: 2791.812 | AD26: 2740.4437 | AE26: 2689.06 | AF26: 2637.6937 | AG26: 2586.31 | AH26: 0 | AI26: 0 | AJ26: 0 | AK26: 0 | AL26: 0
A27: 2 | B27: L1_1_1 | L27: 1.1.1 | M27: Аренда муниципальной или государственной собственности | N27: тыс.руб.
A28: 2 | B28: L1_1_2 | L28: 1.1.2 | M28: Аренда частной собственности | N28: тыс.руб. | O28: 2886.65441 | P28: 3358 | Q28: 2886.65441 | R28: 2852.23 | S28: 3565.6 | T28: 3565.6 | U28: 3565.6 | V28: 3565.6 | W28: 3565.6 | AC28: 2791.812 | AD28: 2740.4437 | AE28: 2689.06 | AF28: 2637.6937 | AG28: 2586.31 | AM28: Расходы по Договору аренды имущества (сооружения) № А-63/23 от 01.06.2023
A29: 2 | B29: L1_2 | L29: 1.2 | M29: Концессионная плата | N29: тыс.руб.
A30: 2 | B30: L1_3 | L30: 1.3 | M30: Лизинговые платежи | N30: тыс.руб. | AM30: Заявлены расходы по договору субаренды от 01.12.2022 № 38/2022. Фактические затраты 2022 г. (66,58 тыс. руб.) не отражены организацией ошибочно.
A31: 2 | B31: L1_4 | L31: 1.4 | M31: Аренда земельных участков | N31: тыс.руб. | O31: 56.25 | Q31: 66.583 | R31: 56.25 | S31: 133.16 | T31: 133.16 | U31: 133.16 | V31: 133.15 | W31: 133.16 | AC31: 56.25 | AD31: 56.25 | AE31: 56.25 | AF31: 56.25 | AG31: 56.25 | AM31: 1) Пункт 4 статьи 39.7, подпункт 2 статьи 49 "Земельного кодекса Российской Федерации" от 25.10.2001 N 136-ФЗ (ред. от 04.08.2023). 2) Пункт 5 «Правил определения размера арендной платы, а также порядка, условий и сроков внесения арендной платы за земли, находящиеся в собственности Российской Федерации» (утверждены Постановлением Правительства РФ от 16.07.2009 N 582 (ред. от 10.02.2023). 3) Приказ Минэкономразвития России от 23.04.2013 N 217 . 4) Приказ Минфина России от 16.10.2018 N 208н (ред. от 29.06.2022). 5) Письмо ФАС России от 05.08.2022 N МШ/74227/22.
L33: Комментарии и обоснования к разделу
L34: ВОДОСНАБЖЕНИЕ. Плановые расходы на 2024-2028 гг. приняты в размере 0,00 тыс. руб, так как остаточная стоимость арендуемого имущества (в части объектов системы холодного водоснабжения), арендуемого по Договору № А-63/23 от 01.06.2023, по состоянию на 01.12.2023 составляет 0,00 тыс. руб.
K35: О | L35: ВОДООТВЕДЕНИЕ. Расходы на АРЕНДУ ЗДАНИЙ и СООРУЖЕНИЙ определены в соответствии с абз. 1-2 пункта 29 Методических указаний ФСТ № 1746-э - в размере расчетной суммы амортизационных отчислений по объектам участка "ОСВ" (194,603 тыс. руб./мес.* 12мес. = 2335,23 тыс. руб. в год) и налога на имущество ( 2024 год - 456,58 тыс. руб.; 2025 год - 405,21 тыс. руб.; 2026 год - 353,83 тыс. руб., 2027 год - 302,46 тыс. руб., 2028 год - 251,08 тыс. руб.). РЕНТАБЕЛЬНОСТЬ и НАКЛАДНЫЕ РАСХОДЫ исключены . Данные рассчитаны на основании "Ведомости наличия объектов по месту нахождения, эксплуатации (непром. группа)" , в том числе: остаточная стоимость имущества на 01.01.2024 - 21 921,344 тыс. руб.; остаточная стоимость на 01.01.2025 - 19 586,113 тыс. руб.; среднегодовая стоимость за 2024 год - 20 753,728 тыс. руб.
K36: О | L36: АРЕНДА ЗЕМЛИ (Расходы по договору субаренды от 01.12.2022 № 38/2022). Согласно имеющимся у регулятора материалам тарифных дел прошлых периодов, земельный участок с кадастровым номером 42:21:0702027:58 площадью 4845,0 м2 предоставлен под очистные сооружения, кадастровая стоимость по состоянию на 21.11.2022 составляла 8035,09 тыс. руб. Экономически обоснованный размер арендной платы на 2024 - 2028 гг. принят в размере 56,25 тыс. руб./год, что составляет 0,7% от кадастровой стоимости земельного участка (см. "Обзор судебной практики Верховного суда РФ № 1 (2018)" (вопрос № 18).
L37: Добавить комментарий

Sheet Покупка
O1: =god-2 -> 2022 | P1: =god-2 -> 2022 | Q1: =god-2 -> 2022 | R1: =god-1 -> 2023 | S1: =god -> 2024 | T1: =god+1 -> 2025 | U1: =god+2 -> 2026 | V1: =god+3 -> 2027 | W1: =god+4 -> 2028 | X1: =god+5 -> 2029 | Y1: =god+6 -> 2030 | Z1: =god+7 -> 2031 | AA1: =god+8 -> 2032 | AB1: =god+9 -> 2033 | AC1: =god -> 2024 | AD1: =god+1 -> 2025 | AE1: =god+2 -> 2026 | AF1: =god+3 -> 2027 | AG1: =god+4 -> 2028 | AH1: =god+5 -> 2029 | AI1: =god+6 -> 2030 | AJ1: =god+7 -> 2031 | AK1: =god+8 -> 2032 | AL1: =god+9 -> 2033
O2: =O15 -> Принято органом регулирования | P2: =P15 -> Факт по данным организации | Q2: Факт, принятый органом регулирования | R2: Принято органом регулирования | S2: Предложение организации | T2: Предложение организации | U2: Предложение организации | V2: Предложение организации | W2: Предложение организации | X2: Предложение организации | Y2: Предложение организации | Z2: Предложение организации | AA2: Предложение организации | AB2: Предложение организации | AC2: Принято органом регулирования | AD2: Принято органом регулирования | AE2: Принято органом регулирования | AF2: Принято органом регулирования | AG2: Принято органом регулирования | AH2: Принято органом регулирования | AI2: Принято органом регулирования | AJ2: Принято органом регулирования | AK2: Принято органом регулирования | AL2: Принято органом регулирования
S7: =S1<=last_year_vis -> TRUE | T7: TRUE | U7: TRUE | V7: TRUE | W7: TRUE | X7: FALSE | Y7: FALSE | Z7: FALSE | AA7: FALSE | AB7: FALSE | AC7: TRUE | AD7: TRUE | AE7: TRUE | AF7: TRUE | AG7: TRUE | AH7: FALSE | AI7: FALSE | AJ7: FALSE | AK7: FALSE | AL7: FALSE
M11: =tpl_title -> Кемеровская область / 2024 / ООО "ТВК" (ИНН:4202026697, КПП:420201001) / ДПР: 2024-2028
L12: 12. Расходы на оплату товаров (услуг, работ), приобретаемых у других организаций
L14: № п/п | M14: Наименование | N14: Единица измерения | O14: =god-2 & " год" -> 2022 год | P14: =god-2 & " год" -> 2022 год | Q14: =god-2 & " год" -> 2022 год | R14: =god-1 & " год" -> 2023 год | S14: =god & " год" -> 2024 год | T14: =god+1 & " год" -> 2025 год | U14: =god+2 & " год" -> 2026 год | V14: =god+3 & " год" -> 2027 год | W14: =god+4 & " год" -> 2028 год | X14: =god+5 & " год" -> 2029 год | Y14: =god+6 & " год" -> 2030 год | Z14: =god+7 & " год" -> 2031 год | AA14: =god+8 & " год" -> 2032 год | AB14: =god+9 & " год" -> 2033 год | AC14: =god & " год" -> 2024 год | AD14: =god+1 & " год" -> 2025 год | AE14: =god+2 & " год" -> 2026 год | AF14: =god+3 & " год" -> 2027 год | AG14: =god+4 & " год" -> 2028 год | AH14: =god+5 & " год" -> 2029 год | AI14: =god+6 & " год" -> 2030 год | AJ14: =god+7 & " год" -> 2031 год | AK14: =god+8 & " год" -> 2032 год | AL14: =god+9 & " год" -> 2033 год | AM14: Ссылка на правовую норму (основание для принятия показателя в расчет тарифа)
O15: Принято органом регулирования | P15: Факт по данным организации | Q15: Факт, принятый органом регулирования | R15: Принято органом регулирования | S15: Предложение организации | T15: Предложение организации | U15: Предложение организации | V15: Предложение организации | W15: Предложение организации | X15: Предложение организации | Y15: Предложение организации | Z15: Предложение организации | AA15: Предложение организации | AB15: Предложение организации | AC15: Принято органом регулирования | AD15: Принято органом регулирования | AE15: Принято органом регулирования | AF15: Принято органом регулирования | AG15: Принято органом регулирования | AH15: Принято органом регулирования | AI15: Принято органом регулирования | AJ15: Принято органом регулирования | AK15: Принято органом регулирования | AL15: Принято органом регулирования
A16: ='Общие сведения'!$D$122 -> 1 | B16: Итого | L16: =INDEX('Общие сведения'!$J$121:$J$148,MATCH($A16,'Общие сведения'!$D$121:$D$148,0)) -> Тариф 1 (Водоснабжение) - тариф на питьевую воду | O16: =O17+O20+O23+O26+O29+O32+O33+O34 -> 0 | P16: =P17+P20+P23+P26+P29+P32+P33+P34 -> 0 | Q16: 0 | R16: 0 | S16: 0 | T16: 0 | U16: 0 | V16: 0 | W16: 0 | X16: 0 | Y16: 0 | Z16: 0 | AA16: 0 | AB16: 0 | AC16: 0 | AD16: 0 | AE16: 0 | AF16: 0 | AG16: 0 | AH16: 0 | AI16: 0 | AJ16: 0 | AK16: 0 | AL16: 0
A17: =A16 -> 1 | B17: L1 | L17: 1 | M17: Затраты на холодную воду | N17: тыс.руб. | O17: =SUMIF(N18:N19,N17,O18:O19) -> 0 | P17: =SUMIF(N18:N19,N17,P18:P19) -> 0 | Q17: =SUMIF(N18:N19,N17,Q18:Q19) -> 0 | R17: =SUMIF(N18:N19,N17,R18:R19) -> 0 | S17: =SUMIF(N18:N19,N17,S18:S19) -> 0 | T17: =SUMIF(N18:N19,N17,T18:T19) -> 0 | U17: =SUMIF(N18:N19,N17,U18:U19) -> 0 | V17: =SUMIF(N18:N19,N17,V18:V19) -> 0 | W17: =SUMIF(N18:N19,N17,W18:W19) -> 0 | X17: =SUMIF(N18:N19,N17,X18:X19) -> 0 | Y17: =SUMIF(N18:N19,N17,Y18:Y19) -> 0 | Z17: =SUMIF(N18:N19,N17,Z18:Z19) -> 0 | AA17: =SUMIF(N18:N19,N17,AA18:AA19) -> 0 | AB17: =SUMIF(N18:N19,N17,AB18:AB19) -> 0 | AC17: =SUMIF(N18:N19,N17,AC18:AC19) -> 0 | AD17: =SUMIF(N18:N19,N17,AD18:AD19) -> 0 | AE17: =SUMIF(N18:N19,N17,AE18:AE19) -> 0 | AF17: =SUMIF(N18:N19,N17,AF18:AF19) -> 0 | AG17: =SUMIF(N18:N19,N17,AG18:AG19) -> 0 | AH17: =SUMIF(N18:N19,N17,AH18:AH19) -> 0 | AI17: =SUMIF(N18:N19,N17,AI18:AI19) -> 0 | AJ17: =SUMIF(N18:N19,N17,AJ18:AJ19) -> 0 | AK17: =SUMIF(N18:N19,N17,AK18:AK19) -> 0 | AL17: =SUMIF(N18:N19,N17,AL18:AL19) -> 0
A18: 1 | J18: 1.0
A19: 1 | B19: =A19&"pIns1" -> 1pIns1 | M19: Добавить поставщика
A20: 1 | B20: L2 | L20: 2 | M20: Затраты на транспортировку холодной воды | N20: тыс.руб. | O20: =SUMIF(N21:N22,N20,O21:O22) -> 0 | P20: =SUMIF(N21:N22,N20,P21:P22) -> 0 | Q20: =SUMIF(N21:N22,N20,Q21:Q22) -> 0 | R20: =SUMIF(N21:N22,N20,R21:R22) -> 0 | S20: =SUMIF(N21:N22,N20,S21:S22) -> 0 | T20: =SUMIF(N21:N22,N20,T21:T22) -> 0 | U20: =SUMIF(N21:N22,N20,U21:U22) -> 0 | V20: =SUMIF(N21:N22,N20,V21:V22) -> 0 | W20: =SUMIF(N21:N22,N20,W21:W22) -> 0 | X20: =SUMIF(N21:N22,N20,X21:X22) -> 0 | Y20: =SUMIF(N21:N22,N20,Y21:Y22) -> 0 | Z20: =SUMIF(N21:N22,N20,Z21:Z22) -> 0 | AA20: =SUMIF(N21:N22,N20,AA21:AA22) -> 0 | AB20: =SUMIF(N21:N22,N20,AB21:AB22) -> 0 | AC20: =SUMIF(N21:N22,N20,AC21:AC22) -> 0 | AD20: =SUMIF(N21:N22,N20,AD21:AD22) -> 0 | AE20: =SUMIF(N21:N22,N20,AE21:AE22) -> 0 | AF20: =SUMIF(N21:N22,N20,AF21:AF22) -> 0 | AG20: =SUMIF(N21:N22,N20,AG21:AG22) -> 0 | AH20: =SUMIF(N21:N22,N20,AH21:AH22) -> 0 | AI20: =SUMIF(N21:N22,N20,AI21:AI22) -> 0 | AJ20: =SUMIF(N21:N22,N20,AJ21:AJ22) -> 0 | AK20: =SUMIF(N21:N22,N20,AK21:AK22) -> 0 | AL20: =SUMIF(N21:N22,N20,AL21:AL22) -> 0
A21: 1 | J21: 2.0
A22: 1 | B22: =A22&"pIns2" -> 1pIns2 | M22: Добавить поставщика
A23: 1 | B23: L3 | L23: 3 | M23: Затраты на водоотведение | N23: тыс.руб. | O23: =SUMIF(N24:N25,N23,O24:O25) -> 0 | P23: =SUMIF(N24:N25,N23,P24:P25) -> 0 | Q23: =SUMIF(N24:N25,N23,Q24:Q25) -> 0 | R23: =SUMIF(N24:N25,N23,R24:R25) -> 0 | S23: =SUMIF(N24:N25,N23,S24:S25) -> 0 | T23: =SUMIF(N24:N25,N23,T24:T25) -> 0 | U23: =SUMIF(N24:N25,N23,U24:U25) -> 0 | V23: =SUMIF(N24:N25,N23,V24:V25) -> 0 | W23: =SUMIF(N24:N25,N23,W24:W25) -> 0 | X23: =SUMIF(N24:N25,N23,X24:X25) -> 0 | Y23: =SUMIF(N24:N25,N23,Y24:Y25) -> 0 | Z23: =SUMIF(N24:N25,N23,Z24:Z25) -> 0 | AA23: =SUMIF(N24:N25,N23,AA24:AA25) -> 0 | AB23: =SUMIF(N24:N25,N23,AB24:AB25) -> 0 | AC23: =SUMIF(N24:N25,N23,AC24:AC25) -> 0 | AD23: =SUMIF(N24:N25,N23,AD24:AD25) -> 0 | AE23: =SUMIF(N24:N25,N23,AE24:AE25) -> 0 | AF23: =SUMIF(N24:N25,N23,AF24:AF25) -> 0 | AG23: =SUMIF(N24:N25,N23,AG24:AG25) -> 0 | AH23: =SUMIF(N24:N25,N23,AH24:AH25) -> 0 | AI23: =SUMIF(N24:N25,N23,AI24:AI25) -> 0 | AJ23: =SUMIF(N24:N25,N23,AJ24:AJ25) -> 0 | AK23: =SUMIF(N24:N25,N23,AK24:AK25) -> 0 | AL23: =SUMIF(N24:N25,N23,AL24:AL25) -> 0
A24: 1 | J24: 3.0
A25: 1 | B25: =A25&"pIns3" -> 1pIns3 | M25: Добавить поставщика
A26: 1 | B26: L4 | L26: 4 | M26: Затраты на транспортировку сточных вод | N26: тыс.руб. | O26: =SUMIF(N27:N28,N26,O27:O28) -> 0 | P26: =SUMIF(N27:N28,N26,P27:P28) -> 0 | Q26: =SUMIF(N27:N28,N26,Q27:Q28) -> 0 | R26: =SUMIF(N27:N28,N26,R27:R28) -> 0 | S26: =SUMIF(N27:N28,N26,S27:S28) -> 0 | T26: =SUMIF(N27:N28,N26,T27:T28) -> 0 | U26: =SUMIF(N27:N28,N26,U27:U28) -> 0 | V26: =SUMIF(N27:N28,N26,V27:V28) -> 0 | W26: =SUMIF(N27:N28,N26,W27:W28) -> 0 | X26: =SUMIF(N27:N28,N26,X27:X28) -> 0 | Y26: =SUMIF(N27:N28,N26,Y27:Y28) -> 0 | Z26: =SUMIF(N27:N28,N26,Z27:Z28) -> 0 | AA26: =SUMIF(N27:N28,N26,AA27:AA28) -> 0 | AB26: =SUMIF(N27:N28,N26,AB27:AB28) -> 0 | AC26: =SUMIF(N27:N28,N26,AC27:AC28) -> 0 | AD26: =SUMIF(N27:N28,N26,AD27:AD28) -> 0 | AE26: =SUMIF(N27:N28,N26,AE27:AE28) -> 0 | AF26: =SUMIF(N27:N28,N26,AF27:AF28) -> 0 | AG26: =SUMIF(N27:N28,N26,AG27:AG28) -> 0 | AH26: =SUMIF(N27:N28,N26,AH27:AH28) -> 0 | AI26: =SUMIF(N27:N28,N26,AI27:AI28) -> 0 | AJ26: =SUMIF(N27:N28,N26,AJ27:AJ28) -> 0 | AK26: =SUMIF(N27:N28,N26,AK27:AK28) -> 0 | AL26: =SUMIF(N27:N28,N26,AL27:AL28) -> 0
A27: 1 | J27: 4.0
A28: 1 | B28: =A28&"pIns5" -> 1pIns5 | M28: Добавить поставщика
A29: 1 | B29: L5 | L29: 5 | M29: Затраты на очистку сточных вод | N29: тыс.руб. | O29: =SUMIF(N30:N31,N29,O30:O31) -> 0 | P29: =SUMIF(N30:N31,N29,P30:P31) -> 0 | Q29: =SUMIF(N30:N31,N29,Q30:Q31) -> 0 | R29: =SUMIF(N30:N31,N29,R30:R31) -> 0 | S29: =SUMIF(N30:N31,N29,S30:S31) -> 0 | T29: =SUMIF(N30:N31,N29,T30:T31) -> 0 | U29: =SUMIF(N30:N31,N29,U30:U31) -> 0 | V29: =SUMIF(N30:N31,N29,V30:V31) -> 0 | W29: =SUMIF(N30:N31,N29,W30:W31) -> 0 | X29: =SUMIF(N30:N31,N29,X30:X31) -> 0 | Y29: =SUMIF(N30:N31,N29,Y30:Y31) -> 0 | Z29: =SUMIF(N30:N31,N29,Z30:Z31) -> 0 | AA29: =SUMIF(N30:N31,N29,AA30:AA31) -> 0 | AB29: =SUMIF(N30:N31,N29,AB30:AB31) -> 0 | AC29: =SUMIF(N30:N31,N29,AC30:AC31) -> 0 | AD29: =SUMIF(N30:N31,N29,AD30:AD31) -> 0 | AE29: =SUMIF(N30:N31,N29,AE30:AE31) -> 0 | AF29: =SUMIF(N30:N31,N29,AF30:AF31) -> 0 | AG29: =SUMIF(N30:N31,N29,AG30:AG31) -> 0 | AH29: =SUMIF(N30:N31,N29,AH30:AH31) -> 0 | AI29: =SUMIF(N30:N31,N29,AI30:AI31) -> 0 | AJ29: =SUMIF(N30:N31,N29,AJ30:AJ31) -> 0 | AK29: =SUMIF(N30:N31,N29,AK30:AK31) -> 0 | AL29: =SUMIF(N30:N31,N29,AL30:AL31) -> 0
A30: 1 | J30: 5.0
A31: 1 | B31: =A31&"pIns5" -> 1pIns5 | M31: Добавить поставщика
A32: =A28 -> 1 | B32: L6 | L32: 6 | M32: Затраты на тепловую энергию | N32: тыс.руб.
A33: 1 | B33: L7 | L33: 7 | M33: Затраты на теплоноситель | N33: тыс.руб.
A34: 1 | B34: L8 | L34: 8 | M34: Затраты на горячую воду | N34: тыс.руб.
A35: ='Общие сведения'!$D$135 -> 2 | B35: Итого | L35: =INDEX('Общие сведения'!$J$121:$J$148,MATCH($A35,'Общие сведения'!$D$121:$D$148,0)) -> Тариф 2 (Водоотведение) - тариф на водоотведение | O35: =O36+O39+O42+O45+O48+O51+O52+O53 -> 0 | P35: =P36+P39+P42+P45+P48+P51+P52+P53 -> 0 | Q35: 0 | R35: 0 | S35: 0 | T35: 0 | U35: 0 | V35: 0 | W35: 0 | X35: 0 | Y35: 0 | Z35: 0 | AA35: 0 | AB35: 0 | AC35: 0 | AD35: 0 | AE35: 0 | AF35: 0 | AG35: 0 | AH35: 0 | AI35: 0 | AJ35: 0 | AK35: 0 | AL35: 0
A36: =A35 -> 2 | B36: L1 | L36: 1 | M36: Затраты на холодную воду | N36: тыс.руб. | O36: =SUMIF(N37:N38,N36,O37:O38) -> 0 | P36: =SUMIF(N37:N38,N36,P37:P38) -> 0 | Q36: =SUMIF(N37:N38,N36,Q37:Q38) -> 0 | R36: =SUMIF(N37:N38,N36,R37:R38) -> 0 | S36: =SUMIF(N37:N38,N36,S37:S38) -> 0 | T36: =SUMIF(N37:N38,N36,T37:T38) -> 0 | U36: =SUMIF(N37:N38,N36,U37:U38) -> 0 | V36: =SUMIF(N37:N38,N36,V37:V38) -> 0 | W36: =SUMIF(N37:N38,N36,W37:W38) -> 0 | X36: =SUMIF(N37:N38,N36,X37:X38) -> 0 | Y36: =SUMIF(N37:N38,N36,Y37:Y38) -> 0 | Z36: =SUMIF(N37:N38,N36,Z37:Z38) -> 0 | AA36: =SUMIF(N37:N38,N36,AA37:AA38) -> 0 | AB36: =SUMIF(N37:N38,N36,AB37:AB38) -> 0 | AC36: =SUMIF(N37:N38,N36,AC37:AC38) -> 0 | AD36: =SUMIF(N37:N38,N36,AD37:AD38) -> 0 | AE36: =SUMIF(N37:N38,N36,AE37:AE38) -> 0 | AF36: =SUMIF(N37:N38,N36,AF37:AF38) -> 0 | AG36: =SUMIF(N37:N38,N36,AG37:AG38) -> 0 | AH36: =SUMIF(N37:N38,N36,AH37:AH38) -> 0 | AI36: =SUMIF(N37:N38,N36,AI37:AI38) -> 0 | AJ36: =SUMIF(N37:N38,N36,AJ37:AJ38) -> 0 | AK36: =SUMIF(N37:N38,N36,AK37:AK38) -> 0 | AL36: =SUMIF(N37:N38,N36,AL37:AL38) -> 0
A37: 2 | J37: 1.0
A38: 2 | B38: =A38&"pIns1" -> 2pIns1 | M38: Добавить поставщика
A39: 2 | B39: L2 | L39: 2 | M39: Затраты на транспортировку холодной воды | N39: тыс.руб. | O39: =SUMIF(N40:N41,N39,O40:O41) -> 0 | P39: =SUMIF(N40:N41,N39,P40:P41) -> 0 | Q39: =SUMIF(N40:N41,N39,Q40:Q41) -> 0 | R39: =SUMIF(N40:N41,N39,R40:R41) -> 0 | S39: =SUMIF(N40:N41,N39,S40:S41) -> 0 | T39: =SUMIF(N40:N41,N39,T40:T41) -> 0 | U39: =SUMIF(N40:N41,N39,U40:U41) -> 0 | V39: =SUMIF(N40:N41,N39,V40:V41) -> 0 | W39: =SUMIF(N40:N41,N39,W40:W41) -> 0 | X39: =SUMIF(N40:N41,N39,X40:X41) -> 0 | Y39: =SUMIF(N40:N41,N39,Y40:Y41) -> 0 | Z39: =SUMIF(N40:N41,N39,Z40:Z41) -> 0 | AA39: =SUMIF(N40:N41,N39,AA40:AA41) -> 0 | AB39: =SUMIF(N40:N41,N39,AB40:AB41) -> 0 | AC39: =SUMIF(N40:N41,N39,AC40:AC41) -> 0 | AD39: =SUMIF(N40:N41,N39,AD40:AD41) -> 0 | AE39: =SUMIF(N40:N41,N39,AE40:AE41) -> 0 | AF39: =SUMIF(N40:N41,N39,AF40:AF41) -> 0 | AG39: =SUMIF(N40:N41,N39,AG40:AG41) -> 0 | AH39: =SUMIF(N40:N41,N39,AH40:AH41) -> 0 | AI39: =SUMIF(N40:N41,N39,AI40:AI41) -> 0 | AJ39: =SUMIF(N40:N41,N39,AJ40:AJ41) -> 0 | AK39: =SUMIF(N40:N41,N39,AK40:AK41) -> 0 | AL39: =SUMIF(N40:N41,N39,AL40:AL41) -> 0
A40: 2 | J40: 2.0
A41: 2 | B41: =A41&"pIns2" -> 2pIns2 | M41: Добавить поставщика
A42: 2 | B42: L3 | L42: 3 | M42: Затраты на водоотведение | N42: тыс.руб. | O42: =SUMIF(N43:N44,N42,O43:O44) -> 0 | P42: =SUMIF(N43:N44,N42,P43:P44) -> 0 | Q42: =SUMIF(N43:N44,N42,Q43:Q44) -> 0 | R42: =SUMIF(N43:N44,N42,R43:R44) -> 0 | S42: =SUMIF(N43:N44,N42,S43:S44) -> 0 | T42: =SUMIF(N43:N44,N42,T43:T44) -> 0 | U42: =SUMIF(N43:N44,N42,U43:U44) -> 0 | V42: =SUMIF(N43:N44,N42,V43:V44) -> 0 | W42: =SUMIF(N43:N44,N42,W43:W44) -> 0 | X42: =SUMIF(N43:N44,N42,X43:X44) -> 0 | Y42: =SUMIF(N43:N44,N42,Y43:Y44) -> 0 | Z42: =SUMIF(N43:N44,N42,Z43:Z44) -> 0 | AA42: =SUMIF(N43:N44,N42,AA43:AA44) -> 0 | AB42: =SUMIF(N43:N44,N42,AB43:AB44) -> 0 | AC42: =SUMIF(N43:N44,N42,AC43:AC44) -> 0 | AD42: =SUMIF(N43:N44,N42,AD43:AD44) -> 0 | AE42: =SUMIF(N43:N44,N42,AE43:AE44) -> 0 | AF42: =SUMIF(N43:N44,N42,AF43:AF44) -> 0 | AG42: =SUMIF(N43:N44,N42,AG43:AG44) -> 0 | AH42: =SUMIF(N43:N44,N42,AH43:AH44) -> 0 | AI42: =SUMIF(N43:N44,N42,AI43:AI44) -> 0 | AJ42: =SUMIF(N43:N44,N42,AJ43:AJ44) -> 0 | AK42: =SUMIF(N43:N44,N42,AK43:AK44) -> 0 | AL42: =SUMIF(N43:N44,N42,AL43:AL44) -> 0
A43: 2 | J43: 3.0
A44: 2 | B44: =A44&"pIns3" -> 2pIns3 | M44: Добавить поставщика
A45: 2 | B45: L4 | L45: 4 | M45: Затраты на транспортировку сточных вод | N45: тыс.руб. | O45: =SUMIF(N46:N47,N45,O46:O47) -> 0 | P45: =SUMIF(N46:N47,N45,P46:P47) -> 0 | Q45: =SUMIF(N46:N47,N45,Q46:Q47) -> 0 | R45: =SUMIF(N46:N47,N45,R46:R47) -> 0 | S45: =SUMIF(N46:N47,N45,S46:S47) -> 0 | T45: =SUMIF(N46:N47,N45,T46:T47) -> 0 | U45: =SUMIF(N46:N47,N45,U46:U47) -> 0 | V45: =SUMIF(N46:N47,N45,V46:V47) -> 0 | W45: =SUMIF(N46:N47,N45,W46:W47) -> 0 | X45: =SUMIF(N46:N47,N45,X46:X47) -> 0 | Y45: =SUMIF(N46:N47,N45,Y46:Y47) -> 0 | Z45: =SUMIF(N46:N47,N45,Z46:Z47) -> 0 | AA45: =SUMIF(N46:N47,N45,AA46:AA47) -> 0 | AB45: =SUMIF(N46:N47,N45,AB46:AB47) -> 0 | AC45: =SUMIF(N46:N47,N45,AC46:AC47) -> 0 | AD45: =SUMIF(N46:N47,N45,AD46:AD47) -> 0 | AE45: =SUMIF(N46:N47,N45,AE46:AE47) -> 0 | AF45: =SUMIF(N46:N47,N45,AF46:AF47) -> 0 | AG45: =SUMIF(N46:N47,N45,AG46:AG47) -> 0 | AH45: =SUMIF(N46:N47,N45,AH46:AH47) -> 0 | AI45: =SUMIF(N46:N47,N45,AI46:AI47) -> 0 | AJ45: =SUMIF(N46:N47,N45,AJ46:AJ47) -> 0 | AK45: =SUMIF(N46:N47,N45,AK46:AK47) -> 0 | AL45: =SUMIF(N46:N47,N45,AL46:AL47) -> 0
A46: 2 | J46: 4.0
A47: 2 | B47: =A47&"pIns5" -> 2pIns5 | M47: Добавить поставщика
A48: 2 | B48: L5 | L48: 5 | M48: Затраты на очистку сточных вод | N48: тыс.руб. | O48: =SUMIF(N49:N50,N48,O49:O50) -> 0 | P48: =SUMIF(N49:N50,N48,P49:P50) -> 0 | Q48: =SUMIF(N49:N50,N48,Q49:Q50) -> 0 | R48: =SUMIF(N49:N50,N48,R49:R50) -> 0 | S48: =SUMIF(N49:N50,N48,S49:S50) -> 0 | T48: =SUMIF(N49:N50,N48,T49:T50) -> 0 | U48: =SUMIF(N49:N50,N48,U49:U50) -> 0 | V48: =SUMIF(N49:N50,N48,V49:V50) -> 0 | W48: =SUMIF(N49:N50,N48,W49:W50) -> 0 | X48: =SUMIF(N49:N50,N48,X49:X50) -> 0 | Y48: =SUMIF(N49:N50,N48,Y49:Y50) -> 0 | Z48: =SUMIF(N49:N50,N48,Z49:Z50) -> 0 | AA48: =SUMIF(N49:N50,N48,AA49:AA50) -> 0 | AB48: =SUMIF(N49:N50,N48,AB49:AB50) -> 0 | AC48: =SUMIF(N49:N50,N48,AC49:AC50) -> 0 | AD48: =SUMIF(N49:N50,N48,AD49:AD50) -> 0 | AE48: =SUMIF(N49:N50,N48,AE49:AE50) -> 0 | AF48: =SUMIF(N49:N50,N48,AF49:AF50) -> 0 | AG48: =SUMIF(N49:N50,N48,AG49:AG50) -> 0 | AH48: =SUMIF(N49:N50,N48,AH49:AH50) -> 0 | AI48: =SUMIF(N49:N50,N48,AI49:AI50) -> 0 | AJ48: =SUMIF(N49:N50,N48,AJ49:AJ50) -> 0 | AK48: =SUMIF(N49:N50,N48,AK49:AK50) -> 0 | AL48: =SUMIF(N49:N50,N48,AL49:AL50) -> 0
A49: 2 | J49: 5.0
A50: 2 | B50: =A50&"pIns5" -> 2pIns5 | M50: Добавить поставщика
A51: =A47 -> 2 | B51: L6 | L51: 6 | M51: Затраты на тепловую энергию | N51: тыс.руб.
A52: 2 | B52: L7 | L52: 7 | M52: Затраты на теплоноситель | N52: тыс.руб.
A53: 2 | B53: L8 | L53: 8 | M53: Затраты на горячую воду | N53: тыс.руб.
L55: Комментарии и обоснования к разделу
L57: Добавить комментарий

Sheet ФОТ
O1: =god-2 -> 2022 | P1: =god-2 -> 2022 | Q1: =god-2 -> 2022 | R1: =god-1 -> 2023 | S1: =god -> 2024 | T1: =god -> 2024
O2: =O15 -> Принято органом регулирования | P2: Факт по данным организации | Q2: Факт, принятый органом регулирования | R2: Принято органом регулирования | S2: Предложение организации | T2: Принято органом регулирования
O3: =O1&O2 -> 2022Принято органом регулирования | P3: 2022Факт по данным организации | Q3: 2022Факт, принятый органом регулирования | R3: 2023Принято органом регулирования | S3: 2024Предложение организации | T3: 2024Принято органом регулирования
S7: =S1<=last_year_vis -> TRUE | T7: =T1<=last_year_vis -> TRUE
M11: =tpl_title -> Кемеровская область / 2024 / ООО "ТВК" (ИНН:4202026697, КПП:420201001) / ДПР: 2024-2028
L12: 13. Расходы на оплату труда и страховые взносы на обязательное социальное страхование основного производственного персонала, в том числе налоги и сборы с фонда оплаты труда
L14: № п/п | M14: Наименование | N14: Единица измерения | O14: =god-2 & " год" -> 2022 год | P14: =god-2 & " год" -> 2022 год | Q14: =god-2 & " год" -> 2022 год | R14: =god-1 & " год" -> 2023 год | S14: =god & " год" -> 2024 год | T14: =god & " год" -> 2024 год | U14: Ссылка на правовую норму (основание для принятия показателя в расчет тарифа)
O15: Принято органом регулирования | P15: Факт по данным организации | Q15: Факт, принятый органом регулирования | R15: Принято органом регулирования | S15: Предложение организации | T15: Принято органом регулирования
A16: ='Общие сведения'!$D$122 -> 1 | L16: =INDEX('Общие сведения'!$J$121:$J$148,MATCH($A16,'Общие сведения'!$D$121:$D$148,0)) -> Тариф 1 (Водоснабжение) - тариф на питьевую воду | O16: =O17+O26+O27+O30+O31+O37+O38+O41 -> 3137.152584 | P16: 4923.22656 | Q16: 5426.55372 | R16: 3618.884079 | S16: 5866.169574 | T16: 5244.437209
A17: =A16 -> 1 | B17: ПП | C17: L1 | L17: 1 | M17: Расходы на оплату труда основного производственного персонала | N17: тыс.руб. | O17: 1833.234663 | P17: =2643.98+675.64 -> 3319.62 | Q17: =1900.37+675.64 -> 2576.01 | R17: 2114.740536 | S17: =SUMIFS(S18:S25,$N18:$N25,$N17) -> 3916.6456 | T17: =SUMIFS(T18:T25,$N18:$N25,$N17) -> 3439.124582 | U17: СПРАВОЧНО: Плановые расходы на 2024 год по данной статье, принятые регулирующим органом, НЕ ПРЕВЫШАЮТ фактическую величину ФОТ 2022 года (3319,62 тыс. руб.), увеличенную на ИПЦ Минэкономразвития России 105,8% на 2023 г. и 107,2% на 2024 г. (3765,03 тыс. руб.).
A18: =A17 -> 1 | J18: 1.0
A19: =OFFSET(A19,-1,0) -> 1 | C19: L1 | D19: =M19 -> Основной производственный персонал | J19: 1.1 | K19: О | L19: =J19 -> 1.1 | M19: Основной производственный персонал | N19: тыс.руб. | S19: =S20*S21*12/1000 -> 3063.9456 | T19: =T20*T21*12/1000 -> 2586.424582 | U19: 1) П. 17 "Методических указаний" (приказ ФСТ от 27.12.2013 № 1746-э). 2) Приказ Министерства строительства и ЖКХ Российской Федерации от 23.03.2020 № 154/пр "Об утверждении Типовых отраслевых норм численности работников водопроводно-канализационного хозяйства".
A20: =A19 -> 1 | C20: =C19&"_1" -> L1_1 | D20: =D19 -> Основной производственный персонал | L20: =L19&".1" -> 1.1.1 | M20: численность | N20: чел. | S20: =3063.9456/12/S21*1000 -> 6 | T20: =2586.42458194176/12/T21*1000 -> 6 | U20: Принято согласно "Штатного расписания рабочих", утвержденного на 2022 и на 2023 гг., по участку "Внешние инженерные сети" ("ВИС") - "ВОДОЕМ-2": машинисты насосных установок - 4,0 чел., слесарь АВР - 1 чел., машинист экскаватора - 1,0 чел.
A21: =A20 -> 1 | C21: =C19&"_2" -> L1_2 | D21: =D20 -> Основной производственный персонал | L21: =L19&".2" -> 1.1.2 | M21: среднемесячная заработная плата | N21: руб./чел. | S21: 42554.8 | T21: 35922.56364 | U21: Фактический ФОТ участка "ВОДОЕМ-2" за 2022 год согласно Аналитического отчета по сч. 20.19 составил: 1629,46+152,01+118,9 = 1900,37 (тыс. руб.). Средняя заработная плата: 1900,37 тыс. руб. / 12 мес. / 5 чел. *1000 = 31 672,83 руб./чел./мес. Принято с учетом ИПЦ 105,8% на 2023 г. и 107,2% на 2024 г. (согласно Прогноза Минэкономразвития России от 22.09.2023).
A22: =OFFSET(A22,-1,0) -> 1 | C22: L1 | D22: =M22 -> Цеховый песонал | J22: 1.2 | K22: О | L22: =J22 -> 1.2 | M22: Цеховый песонал | N22: тыс.руб. | S22: =S23*S24*12/1000 -> 852.7 | T22: =T23*T24*12/1000 -> 852.7
A23: =A22 -> 1 | C23: =C22&"_1" -> L1_1 | D23: =D22 -> Цеховый песонал | L23: =L22&".1" -> 1.2.1 | M23: численность | N23: чел. | S23: 1 | T23: 1 | U23: Начальник участка ВИС ("Внешние инженерные сети"). Принято на основании "Штатного расписания руководителей, специалистов и служащих", утвержденного на 2022 и на 2023 гг.
A24: =A23 -> 1 | C24: =C22&"_2" -> L1_2 | D24: =D23 -> Цеховый песонал | L24: =L22&".2" -> 1.2.2 | M24: среднемесячная заработная плата | N24: руб./чел. | S24: 71058.33333 | T24: 71058.33333 | U24: (Принято на уровне, предложенном организацией. СПРАВОЧНО: Фактический ФОТ АУП за 2022 г. (согласно данным Аналитического отчета по сч. 26) - 26145,26 тыс. руб.; штатная численность - 28 человек. Фактический уровень средней заработной платы в отчетном периоде: 26145,26 тыс. руб. / 12 мес. / 28 чел. *1000 = 77813,27 руб./чел./мес.).
A25: =A18 -> 1 | C25: =A25&"pIns1" -> 1pIns1 | M25: Добавить
A26: 1 | B26: СОЦ_ПП | C26: L2 | L26: 2 | M26: Страховые взносы на обязательное социальное страхование основного производственного персонала | N26: тыс.руб. | O26: =O17*SUMIFS(INDEX(Сценарии!$O$15:$AP$53,,MATCH(O$3,Сценарии!$O$3:$AP$3,0)),Сценарии!$A$15:$A$53,$A26,Сценарии!$B$15:$B$53,"СВФОТ")/100 -> 553.6368683 | P26: =P17*SUMIFS(INDEX(Сценарии!$O$15:$AP$53,,MATCH(P$3,Сценарии!$O$3:$AP$3,0)),Сценарии!$A$15:$A$53,$A26,Сценарии!$B$15:$B$53,"СВФОТ")/100 -> 1002.52524 | Q26: =Q17*SUMIFS(INDEX(Сценарии!$O$15:$AP$53,,MATCH(Q$3,Сценарии!$O$3:$AP$3,0)),Сценарии!$A$15:$A$53,$A26,Сценарии!$B$15:$B$53,"СВФОТ")/100 -> 777.95502 | R26: =R17*SUMIFS(INDEX(Сценарии!$O$15:$AP$53,,MATCH(R$3,Сценарии!$O$3:$AP$3,0)),Сценарии!$A$15:$A$53,$A26,Сценарии!$B$15:$B$53,"СВФОТ")/100 -> 638.6516419 | S26: =S17*SUMIFS(INDEX(Сценарии!$O$15:$AP$53,,MATCH(S$3,Сценарии!$O$3:$AP$3,0)),Сценарии!$A$15:$A$53,$A26,Сценарии!$B$15:$B$53,"СВФОТ")/100 -> 1182.826971 | T26: =T17*SUMIFS(INDEX(Сценарии!$O$15:$AP$53,,MATCH(T$3,Сценарии!$O$3:$AP$3,0)),Сценарии!$A$15:$A$53,$A26,Сценарии!$B$15:$B$53,"СВФОТ")/100 -> 1038.615624 | U26: 1) Глава 34 "СТРАХОВЫЕ ВЗНОСЫ" "Налогового кодекса Российской Федерации (Часть вторая)" (в ред. от 10.07.2023 № 318-ФЗ); 2) Федеральные законы от 22.12.2005 № 179-ФЗ, от 31.12.2017 № 484-ФЗ; от 24.07.1998 № 125-ФЗ); 3) "Уведомление о страховом тарифе на обязательное социальное страхование от несчастных случаев на производстве и профессиональных заболеваний" от 22.03.2022.
A27: 1 | B27: РП | C27: L3 | L27: 3 | M27: Расходы на оплату труда ремонтного персонала | N27: тыс.руб. | S27: =SUMIFS(S28:S29,$N28:$N29,$N27) -> 0 | T27: =SUMIFS(T28:T29,$N28:$N29,$N27) -> 0
A28: 1 | J28: 3.0
A29: 1 | C29: =A29&"pIns2" -> 1pIns2 | M29: Добавить
A30: 1 | B30: СОЦ_РП | C30: L4 | L30: 4 | M30: Страховые взносы на обязательное социальное страхование ремонтного персонала | N30: тыс.руб. | O30: =O27*SUMIFS(INDEX(Сценарии!$O$15:$AP$53,,MATCH(O$3,Сценарии!$O$3:$AP$3,0)),Сценарии!$A$15:$A$53,$A30,Сценарии!$B$15:$B$53,"СВФОТ")/100 -> 0 | P30: =P27*SUMIFS(INDEX(Сценарии!$O$15:$AP$53,,MATCH(P$3,Сценарии!$O$3:$AP$3,0)),Сценарии!$A$15:$A$53,$A30,Сценарии!$B$15:$B$53,"СВФОТ")/100 -> 0 | Q30: =Q27*SUMIFS(INDEX(Сценарии!$O$15:$AP$53,,MATCH(Q$3,Сценарии!$O$3:$AP$3,0)),Сценарии!$A$15:$A$53,$A30,Сценарии!$B$15:$B$53,"СВФОТ")/100 -> 0 | R30: =R27*SUMIFS(INDEX(Сценарии!$O$15:$AP$53,,MATCH(R$3,Сценарии!$O$3:$AP$3,0)),Сценарии!$A$15:$A$53,$A30,Сценарии!$B$15:$B$53,"СВФОТ")/100 -> 0 | S30: =S27*SUMIFS(INDEX(Сценарии!$O$15:$AP$53,,MATCH(S$3,Сценарии!$O$3:$AP$3,0)),Сценарии!$A$15:$A$53,$A30,Сценарии!$B$15:$B$53,"СВФОТ")/100 -> 0 | T30: =T27*SUMIFS(INDEX(Сценарии!$O$15:$AP$53,,MATCH(T$3,Сценарии!$O$3:$AP$3,0)),Сценарии!$A$15:$A$53,$A30,Сценарии!$B$15:$B$53,"СВФОТ")/100 -> 0
A31: 1 | B31: АУП | C31: L5 | L31: 5 | M31: Расходы на оплату труда административно-управленческого персонала | N31: тыс.руб. | O31: 576.2527281 | P31: 461.66 | Q31: 1591.85 | R31: 664.7403236 | S31: =SUMIFS(S32:S36,$N32:$N36,$N31) -> 588.8609856 | T31: =SUMIFS(T32:T36,$N32:$N36,$N31) -> 588.8609856
A32: 1 | J32: 5.0
A33: =OFFSET(A33,-1,0) -> 1 | C33: L5 | D33: =M33 -> Административно-управленческий персонал | J33: 5.1 | K33: О | L33: =J33 -> 5.1 | M33: Административно-управленческий персонал | N33: тыс.руб. | S33: =S34*S35*12/1000 -> 588.8609856 | T33: =T34*T35*12/1000 -> 588.8609856 | U33: Принято на уровне, предложенном организацией. СПРАВОЧНО: Фактический ФОТ АУП за 2022 г. (согласно данным Аналитического отчета по сч. 26) - 26145,26 тыс. руб., за вычетом фактического ФОТ начальника ВИС (675,64 тыс. руб.) - 25469,62 тыс. руб. Распределение ФОТ АУП пропорционально численности основного производственного персонала: 25469,62 тыс. руб. / 96 чел. (штатная численность рабочих ВСЕГО) * 6 чел. (штатная численность участка ВИС) = 1591,85 тыс. руб.
A34: =A33 -> 1 | C34: =C33&"_1" -> L5_1 | D34: =D33 -> Административно-управленческий персонал | L34: =L33&".1" -> 5.1.1 | M34: численность | N34: чел. | S34: 0.48 | T34: 0.48 | U34: Принято на уровне, предложенном организацией. СПРАВОЧНО: Распределение штатной численности АУП (исключая начальника участка ВИС) пропорционально численности основного производственного персонала: (28 чел. - 1 чел.) / 96 чел. (штатная численность рабочих ВСЕГО) * 6 чел. (штатнаячисленность участка ВИС) = 1,69 чел.
A35: =A34 -> 1 | C35: =C33&"_2" -> L5_2 | D35: =D34 -> Административно-управленческий персонал | L35: =L33&".2" -> 5.1.2 | M35: среднемесячная заработная плата | N35: руб./чел. | S35: 102232.81 | T35: 102232.81
A36: =A32 -> 1 | C36: =A36&"pIns3" -> 1pIns3 | M36: Добавить
A37: 1 | B37: СОЦ_АУП | C37: L6 | L37: 6 | M37: Страховые взносы на обязательное социальное страхование административно-управленческого персонала | N37: тыс.руб. | O37: =O31*SUMIFS(INDEX(Сценарии!$O$15:$AP$53,,MATCH(O$3,Сценарии!$O$3:$AP$3,0)),Сценарии!$A$15:$A$53,$A37,Сценарии!$B$15:$B$53,"СВФОТ")/100 -> 174.0283239 | P37: =P31*SUMIFS(INDEX(Сценарии!$O$15:$AP$53,,MATCH(P$3,Сценарии!$O$3:$AP$3,0)),Сценарии!$A$15:$A$53,$A37,Сценарии!$B$15:$B$53,"СВФОТ")/100 -> 139.42132 | Q37: =Q31*SUMIFS(INDEX(Сценарии!$O$15:$AP$53,,MATCH(Q$3,Сценарии!$O$3:$AP$3,0)),Сценарии!$A$15:$A$53,$A37,Сценарии!$B$15:$B$53,"СВФОТ")/100 -> 480.7387 | R37: =R31*SUMIFS(INDEX(Сценарии!$O$15:$AP$53,,MATCH(R$3,Сценарии!$O$3:$AP$3,0)),Сценарии!$A$15:$A$53,$A37,Сценарии!$B$15:$B$53,"СВФОТ")/100 -> 200.7515777 | S37: =S31*SUMIFS(INDEX(Сценарии!$O$15:$AP$53,,MATCH(S$3,Сценарии!$O$3:$AP$3,0)),Сценарии!$A$15:$A$53,$A37,Сценарии!$B$15:$B$53,"СВФОТ")/100 -> 177.8360177 | T37: =T31*SUMIFS(INDEX(Сценарии!$O$15:$AP$53,,MATCH(T$3,Сценарии!$O$3:$AP$3,0)),Сценарии!$A$15:$A$53,$A37,Сценарии!$B$15:$B$53,"СВФОТ")/100 -> 177.8360177 | U37: 1) Глава 34 "СТРАХОВЫЕ ВЗНОСЫ" "Налогового кодекса Российской Федерации (Часть вторая)" (в ред. от 10.07.2023 № 318-ФЗ); 2) Федеральные законы от 22.12.2005 № 179-ФЗ, от 31.12.2017 № 484-ФЗ; от 24.07.1998 № 125-ФЗ); 3) "Уведомление о страховом тарифе на обязательное социальное страхование от несчастных случаев на производстве и профессиональных заболеваний" от 22.03.2022.
A38: 1 | B38: СП | C38: L7 | L38: 7 | M38: Расходы на оплату труда сбытового персонала | N38: тыс.руб. | S38: =SUMIFS(S39:S40,$N39:$N40,$N38) -> 0 | T38: =SUMIFS(T39:T40,$N39:$N40,$N38) -> 0
A39: 1 | J39: 7.0
A40: 1 | C40: =A40&"pIns4" -> 1pIns4 | M40: Добавить
A41: 1 | B41: СОЦ_СП | C41: L8 | L41: 8 | M41: Страховые взносы на обязательное социальное страхование сбытового персонала | N41: тыс.руб. | O41: =O38*SUMIFS(INDEX(Сценарии!$O$15:$AP$53,,MATCH(O$3,Сценарии!$O$3:$AP$3,0)),Сценарии!$A$15:$A$53,$A41,Сценарии!$B$15:$B$53,"СВФОТ")/100 -> 0 | P41: =P38*SUMIFS(INDEX(Сценарии!$O$15:$AP$53,,MATCH(P$3,Сценарии!$O$3:$AP$3,0)),Сценарии!$A$15:$A$53,$A41,Сценарии!$B$15:$B$53,"СВФОТ")/100 -> 0 | Q41: =Q38*SUMIFS(INDEX(Сценарии!$O$15:$AP$53,,MATCH(Q$3,Сценарии!$O$3:$AP$3,0)),Сценарии!$A$15:$A$53,$A41,Сценарии!$B$15:$B$53,"СВФОТ")/100 -> 0 | R41: =R38*SUMIFS(INDEX(Сценарии!$O$15:$AP$53,,MATCH(R$3,Сценарии!$O$3:$AP$3,0)),Сценарии!$A$15:$A$53,$A41,Сценарии!$B$15:$B$53,"СВФОТ")/100 -> 0 | S41: =S38*SUMIFS(INDEX(Сценарии!$O$15:$AP$53,,MATCH(S$3,Сценарии!$O$3:$AP$3,0)),Сценарии!$A$15:$A$53,$A41,Сценарии!$B$15:$B$53,"СВФОТ")/100 -> 0 | T41: =T38*SUMIFS(INDEX(Сценарии!$O$15:$AP$53,,MATCH(T$3,Сценарии!$O$3:$AP$3,0)),Сценарии!$A$15:$A$53,$A41,Сценарии!$B$15:$B$53,"СВФОТ")/100 -> 0
A42: ='Общие сведения'!$D$135 -> 2 | L42: =INDEX('Общие сведения'!$J$121:$J$148,MATCH($A42,'Общие сведения'!$D$121:$D$148,0)) -> Тариф 2 (Водоотведение) - тариф на водоотведение | O42: =O43+O49+O50+O53+O54+O60+O61+O64 -> 6431.422578 | P42: 10200.33196 | Q42: 14750.65746 | R42: 7419.012035 | S42: 12979.3125 | T42: 10955.64849
A43: =A42 -> 2 | B43: ПП | C43: L1 | L43: 1 | M43: Расходы на оплату труда основного производственного персонала | N43: тыс.руб. | O43: 4623.835883 | P43: 7274.84 | Q43: =641.04+462.29+5450.35 -> 6553.68 | R43: 5333.857891 | S43: =SUMIFS(S44:S48,$N44:$N48,$N43) -> 8987.3 | T43: =SUMIFS(T44:T48,$N44:$N48,$N43) -> 7433.026568 | U43: 1) П. 17 "Методических указаний" (приказ ФСТ от 27.12.2013 № 1746-э). 2) Приказ Министерства строительства и ЖКХ Российской Федерации от 23.03.2020 № 154/пр "Об утверждении Типовых отраслевых норм численности работников водопроводно-канализационного хозяйства".
A44: =A43 -> 2 | J44: 1.0
A45: =OFFSET(A45,-1,0) -> 2 | C45: L1 | D45: =M45 -> Основной производственный персонал | J45: 1.1 | K45: О | L45: =J45 -> 1.1 | M45: Основной производственный персонал | N45: тыс.руб. | S45: =S46*S47*12/1000 -> 8987.3 | T45: =T46*T47*12/1000 -> 7433.026568 | U45: Фактический ФОТ участка "ОСВ" за 2022 год согласно Аналитического отчета по сч. 20.21 (641,04 + 462,29 + + 5450,35 = 6553,68 тыс. руб.), с учетом ИПЦ 105,8% на 2023 г. и 107,2% на 2024 г. согласно Прогноза Минэкономразвития России от 22.09.2023.
A46: =A45 -> 2 | C46: =C45&"_1" -> L1_1 | D46: =D45 -> Основной производственный персонал | L46: =L45&".1" -> 1.1.1 | M46: численность | N46: чел. | S46: 18.00000016 | T46: 18.00000016 | U46: Принято на уровне штатной численности Участка ОЧИСТКИ СТОЧНЫХ ВОД ("ОСВ") согласно "Штатного расписания рабочих", утвержденного на 2022 и на 2023 годы (операторы очистных сооружений - 9 чел., слесари АВР - 2 чел., электрослесарь -1 чел., электрогазосварщик - 1 чел., лаборанты химического анализа - 5 чел.)
A47: =A46 -> 2 | C47: =C45&"_2" -> L1_2 | D47: =D46 -> Основной производственный персонал | L47: =L45&".2" -> 1.1.2 | M47: среднемесячная заработная плата | N47: руб./чел. | S47: 41607.87 | T47: 34412.15973
A48: =A44 -> 2 | C48: =A48&"pIns1" -> 2pIns1 | M48: Добавить
A49: 2 | B49: СОЦ_ПП | C49: L2 | L49: 2 | M49: Страховые взносы на обязательное социальное страхование основного производственного персонала | N49: тыс.руб. | O49: =O43*SUMIFS(INDEX(Сценарии!$O$15:$AP$53,,MATCH(O$3,Сценарии!$O$3:$AP$3,0)),Сценарии!$A$15:$A$53,$A49,Сценарии!$B$15:$B$53,"СВФОТ")/100 -> 1396.398437 | P49: 2184.68 | Q49: =Q43*SUMIFS(INDEX(Сценарии!$O$15:$AP$53,,MATCH(Q$3,Сценарии!$O$3:$AP$3,0)),Сценарии!$A$15:$A$53,$A49,Сценарии!$B$15:$B$53,"СВФОТ")/100 -> 1979.21136 | R49: =R43*SUMIFS(INDEX(Сценарии!$O$15:$AP$53,,MATCH(R$3,Сценарии!$O$3:$AP$3,0)),Сценарии!$A$15:$A$53,$A49,Сценарии!$B$15:$B$53,"СВФОТ")/100 -> 1610.825083 | S49: =S43*SUMIFS(INDEX(Сценарии!$O$15:$AP$53,,MATCH(S$3,Сценарии!$O$3:$AP$3,0)),Сценарии!$A$15:$A$53,$A49,Сценарии!$B$15:$B$53,"СВФОТ")/100 -> 2714.1646 | T49: =T43*SUMIFS(INDEX(Сценарии!$O$15:$AP$53,,MATCH(T$3,Сценарии!$O$3:$AP$3,0)),Сценарии!$A$15:$A$53,$A49,Сценарии!$B$15:$B$53,"СВФОТ")/100 -> 2244.774023 | U49: 1) Глава 34 "СТРАХОВЫЕ ВЗНОСЫ" "Налогового кодекса Российской Федерации (Часть вторая)" (в ред. от 10.07.2023 № 318-ФЗ); 2) Федеральные законы от 22.12.2005 № 179-ФЗ, от 31.12.2017 № 484-ФЗ; от 24.07.1998 № 125-ФЗ); 3) "Уведомление о страховом тарифе на обязательное социальное страхование от несчастных случаев на производстве и профессиональных заболеваний" от 22.03.2022.
A50: 2 | B50: РП | C50: L3 | L50: 3 | M50: Расходы на оплату труда ремонтного персонала | N50: тыс.руб. | S50: =SUMIFS(S51:S52,$N51:$N52,$N50) -> 0 | T50: =SUMIFS(T51:T52,$N51:$N52,$N50) -> 0
A51: 2 | J51: 3.0
A52: 2 | C52: =A52&"pIns2" -> 2pIns2 | M52: Добавить
A53: 2 | B53: СОЦ_РП | C53: L4 | L53: 4 | M53: Страховые взносы на обязательное социальное страхование ремонтного персонала | N53: тыс.руб. | O53: =O50*SUMIFS(INDEX(Сценарии!$O$15:$AP$53,,MATCH(O$3,Сценарии!$O$3:$AP$3,0)),Сценарии!$A$15:$A$53,$A53,Сценарии!$B$15:$B$53,"СВФОТ")/100 -> 0 | P53: =P50*SUMIFS(INDEX(Сценарии!$O$15:$AP$53,,MATCH(P$3,Сценарии!$O$3:$AP$3,0)),Сценарии!$A$15:$A$53,$A53,Сценарии!$B$15:$B$53,"СВФОТ")/100 -> 0 | Q53: =Q50*SUMIFS(INDEX(Сценарии!$O$15:$AP$53,,MATCH(Q$3,Сценарии!$O$3:$AP$3,0)),Сценарии!$A$15:$A$53,$A53,Сценарии!$B$15:$B$53,"СВФОТ")/100 -> 0 | R53: =R50*SUMIFS(INDEX(Сценарии!$O$15:$AP$53,,MATCH(R$3,Сценарии!$O$3:$AP$3,0)),Сценарии!$A$15:$A$53,$A53,Сценарии!$B$15:$B$53,"СВФОТ")/100 -> 0 | S53: =S50*SUMIFS(INDEX(Сценарии!$O$15:$AP$53,,MATCH(S$3,Сценарии!$O$3:$AP$3,0)),Сценарии!$A$15:$A$53,$A53,Сценарии!$B$15:$B$53,"СВФОТ")/100 -> 0 | T53: =T50*SUMIFS(INDEX(Сценарии!$O$15:$AP$53,,MATCH(T$3,Сценарии!$O$3:$AP$3,0)),Сценарии!$A$15:$A$53,$A53,Сценарии!$B$15:$B$53,"СВФОТ")/100 -> 0
A54: 2 | B54: АУП | C54: L5 | L54: 5 | M54: Расходы на оплату труда административно-управленческого персонала | N54: тыс.руб. | O54: 315.8127938 | P54: 568.98 | Q54: 4775.55 | R54: 364.3080344 | S54: =SUMIFS(S55:S59,$N55:$N59,$N54) -> 981.45 | T54: =SUMIFS(T55:T59,$N55:$N59,$N54) -> 981.45
A55: 2 | J55: 5.0
A56: =OFFSET(A56,-1,0) -> 2 | C56: L5 | D56: =M56 -> Административно-управленческий персонал | J56: 5.1 | K56: О | L56: =J56 -> 5.1 | M56: Административно-управленческий персонал | N56: тыс.руб. | S56: =S57*S58*12/1000 -> 981.45 | T56: =T57*T58*12/1000 -> 981.45 | U56: Принято на уровне, предложенном организацией. СПРАВОЧНО: Фактический ФОТ АУП за 2022 г. (согласно данным Аналитического отчета по сч. 26) - 26145,26 тыс. руб., за вычетом фактического ФОТ начальника ВИС (675,64 тыс. руб.) - 25469,62 тыс. руб. Распределение ФОТ АУП пропорционально численности основного производственного персонала: 25469,62 тыс. руб. / 96 чел. (штатная численность рабочих ВСЕГО) * 18 чел. (штатнаячисленность участка ОСВ) = 4775,55 тыс. руб.
A57: =A56 -> 2 | C57: =C56&"_1" -> L5_1 | D57: =D56 -> Административно-управленческий персонал | L57: =L56&".1" -> 5.1.1 | M57: численность | N57: чел. | S57: 0.7999999609 | T57: 0.7999999609 | U57: Принято на уровне, предложенном организацией. СПРАВОЧНО: Распределение штатной численности АУП (исключая начальника участка ВИС) пропорционально численности основного производственного персонала: (28 чел. - 1 чел.) / 96 чел. (штатная численность рабочих ВСЕГО) * 18 чел. (штатная численность участка ВИС) = 5,06 чел.
A58: =A57 -> 2 | C58: =C56&"_2" -> L5_2 | D58: =D57 -> Административно-управленческий персонал | L58: =L56&".2" -> 5.1.2 | M58: среднемесячная заработная плата | N58: руб./чел. | S58: 102234.38 | T58: 102234.38
A59: =A55 -> 2 | C59: =A59&"pIns3" -> 2pIns3 | M59: Добавить
A60: 2 | B60: СОЦ_АУП | C60: L6 | L60: 6 | M60: Страховые взносы на обязательное социальное страхование административно-управленческого персонала | N60: тыс.руб. | O60: =O54*SUMIFS(INDEX(Сценарии!$O$15:$AP$53,,MATCH(O$3,Сценарии!$O$3:$AP$3,0)),Сценарии!$A$15:$A$53,$A60,Сценарии!$B$15:$B$53,"СВФОТ")/100 -> 95.37546373 | P60: =P54*SUMIFS(INDEX(Сценарии!$O$15:$AP$53,,MATCH(P$3,Сценарии!$O$3:$AP$3,0)),Сценарии!$A$15:$A$53,$A60,Сценарии!$B$15:$B$53,"СВФОТ")/100 -> 171.83196 | Q60: =Q54*SUMIFS(INDEX(Сценарии!$O$15:$AP$53,,MATCH(Q$3,Сценарии!$O$3:$AP$3,0)),Сценарии!$A$15:$A$53,$A60,Сценарии!$B$15:$B$53,"СВФОТ")/100 -> 1442.2161 | R60: =R54*SUMIFS(INDEX(Сценарии!$O$15:$AP$53,,MATCH(R$3,Сценарии!$O$3:$AP$3,0)),Сценарии!$A$15:$A$53,$A60,Сценарии!$B$15:$B$53,"СВФОТ")/100 -> 110.0210264 | S60: =S54*SUMIFS(INDEX(Сценарии!$O$15:$AP$53,,MATCH(S$3,Сценарии!$O$3:$AP$3,0)),Сценарии!$A$15:$A$53,$A60,Сценарии!$B$15:$B$53,"СВФОТ")/100 -> 296.3979 | T60: =T54*SUMIFS(INDEX(Сценарии!$O$15:$AP$53,,MATCH(T$3,Сценарии!$O$3:$AP$3,0)),Сценарии!$A$15:$A$53,$A60,Сценарии!$B$15:$B$53,"СВФОТ")/100 -> 296.3979 | U60: 1) Глава 34 "СТРАХОВЫЕ ВЗНОСЫ" "Налогового кодекса Российской Федерации (Часть вторая)" (в ред. от 10.07.2023 № 318-ФЗ); 2) Федеральные законы от 22.12.2005 № 179-ФЗ, от 31.12.2017 № 484-ФЗ; от 24.07.1998 № 125-ФЗ); 3) "Уведомление о страховом тарифе на обязательное социальное страхование от несчастных случаев на производстве и профессиональных заболеваний" от 22.03.2022.
A61: 2 | B61: СП | C61: L7 | L61: 7 | M61: Расходы на оплату труда сбытового персонала | N61: тыс.руб. | S61: =SUMIFS(S62:S63,$N62:$N63,$N61) -> 0 | T61: =SUMIFS(T62:T63,$N62:$N63,$N61) -> 0
A62: 2 | J62: 7.0
A63: 2 | C63: =A63&"pIns4" -> 2pIns4 | M63: Добавить
A64: 2 | B64: СОЦ_СП | C64: L8 | L64: 8 | M64: Страховые взносы на обязательное социальное страхование сбытового персонала | N64: тыс.руб. | O64: =O61*SUMIFS(INDEX(Сценарии!$O$15:$AP$53,,MATCH(O$3,Сценарии!$O$3:$AP$3,0)),Сценарии!$A$15:$A$53,$A64,Сценарии!$B$15:$B$53,"СВФОТ")/100 -> 0 | P64: =P61*SUMIFS(INDEX(Сценарии!$O$15:$AP$53,,MATCH(P$3,Сценарии!$O$3:$AP$3,0)),Сценарии!$A$15:$A$53,$A64,Сценарии!$B$15:$B$53,"СВФОТ")/100 -> 0 | Q64: =Q61*SUMIFS(INDEX(Сценарии!$O$15:$AP$53,,MATCH(Q$3,Сценарии!$O$3:$AP$3,0)),Сценарии!$A$15:$A$53,$A64,Сценарии!$B$15:$B$53,"СВФОТ")/100 -> 0 | R64: =R61*SUMIFS(INDEX(Сценарии!$O$15:$AP$53,,MATCH(R$3,Сценарии!$O$3:$AP$3,0)),Сценарии!$A$15:$A$53,$A64,Сценарии!$B$15:$B$53,"СВФОТ")/100 -> 0 | S64: =S61*SUMIFS(INDEX(Сценарии!$O$15:$AP$53,,MATCH(S$3,Сценарии!$O$3:$AP$3,0)),Сценарии!$A$15:$A$53,$A64,Сценарии!$B$15:$B$53,"СВФОТ")/100 -> 0 | T64: =T61*SUMIFS(INDEX(Сценарии!$O$15:$AP$53,,MATCH(T$3,Сценарии!$O$3:$AP$3,0)),Сценарии!$A$15:$A$53,$A64,Сценарии!$B$15:$B$53,"СВФОТ")/100 -> 0
L66: Комментарии и обоснования к разделу
L68: Добавить комментарий

Sheet Административные
O1: =god-2 -> 2022 | P1: =god-2 -> 2022 | Q1: =god-2 -> 2022 | R1: =god-1 -> 2023 | S1: =god -> 2024 | T1: =god -> 2024
O2: =O15 -> Принято органом регулирования | P2: Факт по данным организации | Q2: Факт, принятый органом регулирования | R2: Принято органом регулирования | S2: Предложение организации | T2: Принято органом регулирования
S7: =S1<=last_year_vis -> TRUE | T7: =T1<=last_year_vis -> TRUE
M11: =tpl_title -> Кемеровская область / 2024 / ООО "ТВК" (ИНН:4202026697, КПП:420201001) / ДПР: 2024-2028
L12: 14. Административные расходы
L14: № п/п | M14: Наименование | N14: Единица измерения | O14: =god-2 & " год" -> 2022 год | P14: =god-2 & " год" -> 2022 год | Q14: =god-2 & " год" -> 2022 год | R14: =god-1 & " год" -> 2023 год | S14: =god & " год" -> 2024 год | T14: =god & " год" -> 2024 год | U14: Ссылка на правовую норму (основание для принятия показателя в расчет тарифа)
O15: Принято органом регулирования | P15: Факт по данным организации | Q15: Факт, принятый органом регулирования | R15: Принято органом регулирования | S15: Предложение организации | T15: Принято органом регулирования
A16: ='Общие сведения'!$D$122 -> 1 | L16: =INDEX('Общие сведения'!$J$121:$J$148,MATCH($A16,'Общие сведения'!$D$121:$D$148,0)) -> Тариф 1 (Водоснабжение) - тариф на питьевую воду | O16: =O17+O18+O19+O27+O28+O29+O30+O31 -> 981.2782079 | P16: 937.81132 | Q16: 2249.554242 | R16: 1131.960269 | S16: 1125.337003 | T16: 1014.697231
A17: =A16 -> 1 | C17: L1 | L17: 1 | M17: Расходы на оплату труда административно-управленческого персонала | N17: тыс.руб. | O17: =SUMIFS(ФОТ!O$15:O$65,ФОТ!$A$15:$A$65,$A17,ФОТ!$M$15:$M$65,$M17) -> 576.2527281 | P17: =SUMIFS(ФОТ!P$15:P$65,ФОТ!$A$15:$A$65,$A17,ФОТ!$M$15:$M$65,$M17) -> 461.66 | Q17: =SUMIFS(ФОТ!Q$15:Q$65,ФОТ!$A$15:$A$65,$A17,ФОТ!$M$15:$M$65,$M17) -> 1591.85 | R17: =SUMIFS(ФОТ!R$15:R$65,ФОТ!$A$15:$A$65,$A17,ФОТ!$M$15:$M$65,$M17) -> 664.7403236 | S17: =SUMIFS(ФОТ!S$15:S$65,ФОТ!$A$15:$A$65,$A17,ФОТ!$M$15:$M$65,$M17) -> 588.8609856 | T17: =SUMIFS(ФОТ!T$15:T$65,ФОТ!$A$15:$A$65,$A17,ФОТ!$M$15:$M$65,$M17) -> 588.8609856 | U17: Приказ Министерства строительства и ЖКХ Российской Федерации от 23.03.2020 № 154/пр "Об утверждении Типовых отраслевых норм численности работников водопроводно-канализационного хозяйства".
A18: =A17 -> 1 | C18: L2 | L18: 2 | M18: Страховые взносы на обязательное социальное страхование административно-управленческого персонала | N18: тыс.руб. | O18: =SUMIFS(ФОТ!O$15:O$65,ФОТ!$A$15:$A$65,$A18,ФОТ!$M$15:$M$65,$M18) -> 174.0283239 | P18: =SUMIFS(ФОТ!P$15:P$65,ФОТ!$A$15:$A$65,$A18,ФОТ!$M$15:$M$65,$M18) -> 139.42132 | Q18: =SUMIFS(ФОТ!Q$15:Q$65,ФОТ!$A$15:$A$65,$A18,ФОТ!$M$15:$M$65,$M18) -> 480.7387 | R18: =SUMIFS(ФОТ!R$15:R$65,ФОТ!$A$15:$A$65,$A18,ФОТ!$M$15:$M$65,$M18) -> 200.7515777 | S18: =SUMIFS(ФОТ!S$15:S$65,ФОТ!$A$15:$A$65,$A18,ФОТ!$M$15:$M$65,$M18) -> 177.8360177 | T18: =SUMIFS(ФОТ!T$15:T$65,ФОТ!$A$15:$A$65,$A18,ФОТ!$M$15:$M$65,$M18) -> 177.8360177
A19: 1 | B19: p3 | C19: L3 | L19: 3 | M19: Оплата работ и (или) услуг, выполняемых по договорам сторонними организациями или индивидуальными предпринимателями: | N19: тыс.руб. | O19: =SUM(O20:O26) -> 0 | P19: 293.38 | Q19: 0 | R19: 0 | S19: 264.35 | T19: 47.11991999
A20: 1 | B20: p3_1 | C20: L3_1 | L20: 3.1 | M20: услуги связи и интернет | N20: тыс.руб. | P20: 1.59 | S20: 1.95 | U20: Учтено в составе прочих затрат (пункт 8).
A21: 1 | B21: p3_2 | C21: L3_2 | L21: 3.2 | M21: юридические услуги | N21: тыс.руб. | P21: 105.54 | S21: 115.11 | T21: 47.11991999 | U21: Согласно Приказа Минстроя России от 23.03.2020 N 154/пр, нормативная численность специалистов по правовому обслуживанию при численности основного персонала до 100 чел. (Таблица 1) составляет 1 чел. Затраты приняты, исходя из численности 1 чел., плановой средней заработной платы АУП 102 232,81 руб./чел./мес., отчислений на социальные нужды в размере 30,2% от ФОТ, итого - 1 597,29 тыс. руб./год. На ВС распределено пропорционально фактической доле регулируемого вида деятельности в общем объеме выручки за 2022 г. (2,95%).
A22: 1 | B22: p3_3 | C22: L3_3 | L22: 3.3 | M22: аудиторские услуги | N22: тыс.руб. | P22: 5.22
A23: 1 | B23: p3_4 | C23: L3_4 | L23: 3.4 | M23: консультационные услуги | N23: тыс.руб.
A24: 1 | B24: p3_5 | C24: L3_5 | L24: 3.5 | M24: услуги по вневедомственной охране объектов и территорий | N24: тыс.руб. | P24: 118.62 | S24: 5.63 | U24: Учтено в составе прочих затрат (пункт 8).
A25: 1 | B25: p3_6 | C25: L3_6 | L25: 3.6 | M25: информационные услуги | N25: тыс.руб. | P25: 62.41 | S25: 126.96 | U25: Учтено в составе прочих затрат (пункт 8).
A26: 1 | B26: p3_7 | C26: L3_7 | L26: 3.7 | M26: иные работы и (или) услуги | N26: тыс.руб. | S26: 14.7 | U26: Учтено в составе прочих затрат (пункт 8).
A27: 1 | B27: p4 | C27: L4 | L27: 4 | M27: Арендная плата, лизинговые платежи, не связанные с арендой (лизингом) централизованных систем водоснабжения (водоотведения) либо объектов, входящих в состав таких систем | N27: тыс.руб.
A28: 1 | B28: p5 | C28: L5 | L28: 5 | M28: Служебные командировки | N28: тыс.руб.
A29: 1 | B29: p6 | C29: L6 | L29: 6 | M29: Обучение персонала | N29: тыс.руб. | P29: 8.31
A30: 1 | B30: p7 | C30: L7 | L30: 7 | M30: Страхование производственных объектов | N30: тыс.руб. | P30: 4.99
A31: 1 | B31: p8 | C31: L8 | L31: 8 | M31: Прочие расходы, всего: | N31: тыс.руб. | O31: =SUM(O32:O34) -> 230.9971559 | P31: 30.05 | Q31: 176.965542 | R31: 266.4683682 | S31: 94.29 | T31: 200.8803081
A32: 1 | B32: p8_1 | C32: L8_1 | L32: 8.1 | M32: амортизация непроизводственных активов | N32: тыс.руб.
A33: 1 | B33: p8_2 | C33: L8_2 | L33: 8.2 | M33: оплата услуг сторонних организаций по обеспечению безопасности функционирования объектов централизованных систем водоснабжения (водоотведения), в том числе расходы на защиту от террористических угроз | N33: тыс.руб.
A34: 1 | B34: p8_3 | C34: L8_3 | L34: 8.3 | M34: иные расходы | N34: тыс.руб. | O34: 230.9971559 | P34: 30.05 | Q34: =6003.92*0.029475 -> 176.965542 | R34: 266.4683682 | S34: =26.28+68.01 -> 94.29 | T34: =6003.92*1.058*1.072*0.0295 -> 200.8803081 | U34: Общая величина прочих административных расходов К РАСПРЕДЕЛЕНИЮ по видам услуг определена в размере фактических затрат 2022 г. - 6003,92 тыс. руб.: 43456,82 тыс. руб. (всего по сч. 26 согласно Аналитического отчета по сч. 26) - 6 127,37 (сч. 69) - - 21 877,97 (сч. 70) - 5 391,38 (сч. 96) - 3 877,39 (услуги ООО "ЛЕКС-СЕРВИС") - 178,80 (ДМС); что с учетом ИПЦ Минэкономразвития России 105,8% на 2023 г. и 107,2% на 2024 г. составит 6809,50 тыс. руб. На ВОДОСНАБЖЕНИЕ распределено пропорционально фактической доле регулируемого вида деятельности в общем объеме выручки за 2022 г. (2,95%).
A35: ='Общие сведения'!$D$135 -> 2 | L35: =INDEX('Общие сведения'!$J$121:$J$148,MATCH($A35,'Общие сведения'!$D$121:$D$148,0)) -> Тариф 2 (Водоотведение) - тариф на водоотведение | O35: =O36+O37+O38+O46+O47+O48+O49+O50 -> 726.250457 | P35: 828.06196 | Q35: 6217.7661 | R35: 837.771242 | S35: 1875.5979 | T35: 1741.063237
A36: =A35 -> 2 | C36: L1 | L36: 1 | M36: Расходы на оплату труда административно-управленческого персонала | N36: тыс.руб. | O36: =SUMIFS(ФОТ!O$15:O$65,ФОТ!$A$15:$A$65,$A36,ФОТ!$M$15:$M$65,$M36) -> 315.8127938 | P36: =SUMIFS(ФОТ!P$15:P$65,ФОТ!$A$15:$A$65,$A36,ФОТ!$M$15:$M$65,$M36) -> 568.98 | Q36: =SUMIFS(ФОТ!Q$15:Q$65,ФОТ!$A$15:$A$65,$A36,ФОТ!$M$15:$M$65,$M36) -> 4775.55 | R36: =SUMIFS(ФОТ!R$15:R$65,ФОТ!$A$15:$A$65,$A36,ФОТ!$M$15:$M$65,$M36) -> 364.3080344 | S36: =SUMIFS(ФОТ!S$15:S$65,ФОТ!$A$15:$A$65,$A36,ФОТ!$M$15:$M$65,$M36) -> 981.45 | T36: =SUMIFS(ФОТ!T$15:T$65,ФОТ!$A$15:$A$65,$A36,ФОТ!$M$15:$M$65,$M36) -> 981.45
A37: =A36 -> 2 | C37: L2 | L37: 2 | M37: Страховые взносы на обязательное социальное страхование административно-управленческого персонала | N37: тыс.руб. | O37: =SUMIFS(ФОТ!O$15:O$65,ФОТ!$A$15:$A$65,$A37,ФОТ!$M$15:$M$65,$M37) -> 95.37546373 | P37: =SUMIFS(ФОТ!P$15:P$65,ФОТ!$A$15:$A$65,$A37,ФОТ!$M$15:$M$65,$M37) -> 171.83196 | Q37: =SUMIFS(ФОТ!Q$15:Q$65,ФОТ!$A$15:$A$65,$A37,ФОТ!$M$15:$M$65,$M37) -> 1442.2161 | R37: =SUMIFS(ФОТ!R$15:R$65,ФОТ!$A$15:$A$65,$A37,ФОТ!$M$15:$M$65,$M37) -> 110.0210264 | S37: =SUMIFS(ФОТ!S$15:S$65,ФОТ!$A$15:$A$65,$A37,ФОТ!$M$15:$M$65,$M37) -> 296.3979 | T37: =SUMIFS(ФОТ!T$15:T$65,ФОТ!$A$15:$A$65,$A37,ФОТ!$M$15:$M$65,$M37) -> 296.3979
A38: 2 | B38: p3 | C38: L3 | L38: 3 | M38: Оплата работ и (или) услуг, выполняемых по договорам сторонними организациями или индивидуальными предпринимателями: | N38: тыс.руб. | O38: =SUM(O39:O45) -> 0 | P38: 0 | Q38: 0 | R38: 0 | S38: 406.69 | T38: 88.01177842
A39: 2 | B39: p3_1 | C39: L3_1 | L39: 3.1 | M39: услуги связи и интернет | N39: тыс.руб. | S39: 3.24 | U39: Учтено в составе прочих затрат (пункт 8).
A40: 2 | B40: p3_2 | C40: L3_2 | L40: 3.2 | M40: юридические услуги | N40: тыс.руб. | S40: 191.85 | T40: 88.01177842 | U40: Согласно Приказа Минстроя России от 23.03.2020 N 154/пр, нормативная численность специалистов по правовому обслуживанию при численности основного персонала до 100 чел. (Таблица 1) составляет 1 чел. Затраты приняты, исходя из численности 1 чел., плановой средней заработной платы АУП 102 232,81 руб./чел./мес., отчислений на социальные нужды в размере 30,2% от ФОТ, итого - 1 597,29 тыс. руб./год. На ВОДООТВЕДЕНИЕ распределено пропорционально фактической доле регулируемого вида деятельности в общем объеме выручки за 2022 г. (5,51%).
A41: 2 | B41: p3_3 | C41: L3_3 | L41: 3.3 | M41: аудиторские услуги | N41: тыс.руб.
A42: 2 | B42: p3_4 | C42: L3_4 | L42: 3.4 | M42: консультационные услуги | N42: тыс.руб.
A43: 2 | B43: p3_5 | C43: L3_5 | L43: 3.5 | M43: услуги по вневедомственной охране объектов и территорий | N43: тыс.руб.
A44: 2 | B44: p3_6 | C44: L3_6 | L44: 3.6 | M44: информационные услуги | N44: тыс.руб. | S44: 211.6 | U44: Учтено в составе прочих затрат (пункт 8).
A45: 2 | B45: p3_7 | C45: L3_7 | L45: 3.7 | M45: иные работы и (или) услуги | N45: тыс.руб.
A46: 2 | B46: p4 | C46: L4 | L46: 4 | M46: Арендная плата, лизинговые платежи, не связанные с арендой (лизингом) централизованных систем водоснабжения (водоотведения) либо объектов, входящих в состав таких систем | N46: тыс.руб.
A47: 2 | B47: p5 | C47: L5 | L47: 5 | M47: Служебные командировки | N47: тыс.руб. | S47: 4.65 | U47: Учтено в составе прочих затрат (пункт 8).
A48: 2 | B48: p6 | C48: L6 | L48: 6 | M48: Обучение персонала | N48: тыс.руб. | P48: 9.16 | S48: 18.45 | U48: Учтено в составе прочих затрат (пункт 8).
A49: 2 | B49: p7 | C49: L7 | L49: 7 | M49: Страхование производственных объектов | N49: тыс.руб. | P49: 5.5 | S49: 9.6 | U49: Учтено в составе прочих затрат (пункт 8).
A50: 2 | B50: p8 | C50: L8 | L50: 8 | M50: Прочие расходы, всего: | N50: тыс.руб. | O50: =SUM(O51:O53) -> 315.0621995 | P50: 72.59 | Q50: 0 | R50: 363.4421812 | S50: 158.36 | T50: 375.2035585
A51: 2 | B51: p8_1 | C51: L8_1 | L51: 8.1 | M51: амортизация непроизводственных активов | N51: тыс.руб. | S51: 9.46 | U51: Учтено в составе прочих затрат (пункт 8.3).
A52: 2 | B52: p8_2 | C52: L8_2 | L52: 8.2 | M52: оплата услуг сторонних организаций по обеспечению безопасности функционирования объектов централизованных систем водоснабжения (водоотведения), в том числе расходы на защиту от террористических угроз | N52: тыс.руб.
A53: 2 | B53: p8_3 | C53: L8_3 | L53: 8.3 | M53: иные расходы | N53: тыс.руб. | O53: 315.0621995 | P53: =33.12+39.47 -> 72.59 | R53: 363.4421812 | S53: =80.62+68.28 -> 148.9 | T53: =6003.92*1.058*1.072*0.0551 -> 375.2035585 | U53: Общая величина прочих административных расходов К РАСПРЕДЕЛЕНИЮ по видам услуг определена в размере СКОРРЕКТИРОВАННЫХ фактических затрат 2022 г. - 6003,92 тыс. руб.: 43456,82 тыс. руб. (всего по сч. 26 согласно Аналитического отчета по сч. 26) - 6 127,37 (сч. 69) - 21 877,97 (сч. 70) - 5 391,38 (сч. 96) - 3 877,39 (услуги ООО "ЛЕКС-СЕРВИС") - 178,80 (ДМС); что с учетом ИПЦ Минэкономразвития России 105,8% на 2023 г. и 107,2% на 2024 г. составит 6809,50 тыс. руб. На ВОДООТВЕДЕНИЕ распределено пропорционально фактической доле регулируемого вида деятельности в общем объеме выручки за 2022 г. (5,51%).
L55: Комментарии и обоснования к разделу
L57: Добавить комментарий

Sheet Сбытовые расходы ГО
O1: =god-2 -> 2022 | P1: =god-2 -> 2022 | Q1: =god-2 -> 2022 | R1: =god-1 -> 2023 | S1: =god -> 2024 | T1: =god -> 2024
O2: =O15 -> Принято органом регулирования | P2: Факт по данным организации | Q2: Факт, принятый органом регулирования | R2: Принято органом регулирования | S2: Предложение организации | T2: Принято органом регулирования
S7: =S1<=last_year_vis -> TRUE | T7: =T1<=last_year_vis -> TRUE
M11: =tpl_title -> Кемеровская область / 2024 / ООО "ТВК" (ИНН:4202026697, КПП:420201001) / ДПР: 2024-2028
L12: 15. Сбытовые расходы гарантирующей организации
L14: № п/п | M14: Наименование показателя | N14: Единица измерений | O14: =god-2 & " год" -> 2022 год | P14: =god-2 & " год" -> 2022 год | Q14: =god-2 & " год" -> 2022 год | R14: =god-1 & " год" -> 2023 год | S14: =god & " год" -> 2024 год | T14: =god & " год" -> 2024 год | U14: Ссылка на правовую норму (основание для принятия показателя в расчет тарифа)
O15: Принято органом регулирования | P15: Факт по данным организации | Q15: Факт, принятый органом регулирования | R15: Принято органом регулирования | S15: Предложение организации | T15: Принято органом регулирования
A16: ='Общие сведения'!$D$122 -> 1 | B16: L0 | L16: =INDEX('Общие сведения'!$J$121:$J$148,MATCH($A16,'Общие сведения'!$D$121:$D$148,0)) -> Тариф 1 (Водоснабжение) - тариф на питьевую воду | O16: =SUM(O17:O25) -> 0 | P16: 0 | Q16: 0 | R16: 0 | S16: 0 | T16: 0
A17: =A16 -> 1 | B17: L1 | L17: 1 | M17: Расходы на формирование резервов по сомнительным долгам (дебиторской задолженности) | N17: тыс.руб.
A18: =A17 -> 1 | B18: L2 | L18: 2 | M18: Расходы на приобретение материалов, связанные со сбытовой деятельностью | N18: тыс.руб.
A19: 1 | B19: L3 | L19: 3 | M19: Расходы на содержание помещений, используемых при осуществлении сбытовой деятельности | N19: тыс.руб.
A20: 1 | B20: L4 | L20: 4 | M20: Расходы на оплату труда, страховые взносы на обязательное социальное страхование, выплачиваемые из фонда оплаты труда сбытового персонала | N20: тыс.руб. | O20: =SUMIFS(ФОТ!O$15:O$65,ФОТ!$A$15:$A$65,$A20,ФОТ!$B$15:$B$65,"СП")+SUMIFS(ФОТ!O$15:O$65,ФОТ!$A$15:$A$65,$A20,ФОТ!$B$15:$B$65,"СОЦ_СП") -> 0 | P20: =SUMIFS(ФОТ!P$15:P$65,ФОТ!$A$15:$A$65,$A20,ФОТ!$B$15:$B$65,"СП")+SUMIFS(ФОТ!P$15:P$65,ФОТ!$A$15:$A$65,$A20,ФОТ!$B$15:$B$65,"СОЦ_СП") -> 0 | Q20: =SUMIFS(ФОТ!Q$15:Q$65,ФОТ!$A$15:$A$65,$A20,ФОТ!$B$15:$B$65,"СП")+SUMIFS(ФОТ!Q$15:Q$65,ФОТ!$A$15:$A$65,$A20,ФОТ!$B$15:$B$65,"СОЦ_СП") -> 0 | R20: =SUMIFS(ФОТ!R$15:R$65,ФОТ!$A$15:$A$65,$A20,ФОТ!$B$15:$B$65,"СП")+SUMIFS(ФОТ!R$15:R$65,ФОТ!$A$15:$A$65,$A20,ФОТ!$B$15:$B$65,"СОЦ_СП") -> 0 | S20: =SUMIFS(ФОТ!S$15:S$65,ФОТ!$A$15:$A$65,$A20,ФОТ!$B$15:$B$65,"СП")+SUMIFS(ФОТ!S$15:S$65,ФОТ!$A$15:$A$65,$A20,ФОТ!$B$15:$B$65,"СОЦ_СП") -> 0 | T20: =SUMIFS(ФОТ!T$15:T$65,ФОТ!$A$15:$A$65,$A20,ФОТ!$B$15:$B$65,"СП")+SUMIFS(ФОТ!T$15:T$65,ФОТ!$A$15:$A$65,$A20,ФОТ!$B$15:$B$65,"СОЦ_СП") -> 0
A21: 1 | B21: L5 | L21: 5 | M21: Расходы на амортизацию основных средств и нематериальных активов, используемых при осуществлении сбытовой деятельности | N21: тыс.руб.
A22: 1 | B22: L6 | L22: 6 | M22: Расходы на аренду, лизинг имущества, используемого при осуществлении сбытовой деятельности | N22: тыс.руб.
A23: 1 | B23: L7 | L23: 7 | M23: Расходы на уплату процентов по займам и кредитам, привлечение которых обосновано ростом дебиторской задолженности абонентов за регулируемые услуги водоснабжения (водоотведения) | N23: тыс.руб.
A24: 1 | B24: L8 | L24: 8 | M24: Расходы на оплату работ и (или) услуг, выполняемых сторонними организациями или индивидуальными предпринимателями, связанных со сбытовой деятельностью | N24: тыс.руб.
A25: 1 | B25: L9 | L25: 9 | M25: Прочие расходы, связанные со сбытовой деятельностью | N25: тыс.руб. | O25: =SUM(O26:O27) -> 0 | P25: 0 | Q25: 0 | R25: 0 | S25: 0 | T25: 0
A26: 1 | L26: 9.0
A27: 1 | B27: =A27&"pIns" -> 1pIns | M27: Добавить
A28: ='Общие сведения'!$D$135 -> 2 | B28: L0 | L28: =INDEX('Общие сведения'!$J$121:$J$148,MATCH($A28,'Общие сведения'!$D$121:$D$148,0)) -> Тариф 2 (Водоотведение) - тариф на водоотведение | O28: =SUM(O29:O37) -> 0 | P28: 0 | Q28: 0 | R28: 0 | S28: 0 | T28: 0
A29: =A28 -> 2 | B29: L1 | L29: 1 | M29: Расходы на формирование резервов по сомнительным долгам (дебиторской задолженности) | N29: тыс.руб.
A30: =A29 -> 2 | B30: L2 | L30: 2 | M30: Расходы на приобретение материалов, связанные со сбытовой деятельностью | N30: тыс.руб.
A31: 2 | B31: L3 | L31: 3 | M31: Расходы на содержание помещений, используемых при осуществлении сбытовой деятельности | N31: тыс.руб.
A32: 2 | B32: L4 | L32: 4 | M32: Расходы на оплату труда, страховые взносы на обязательное социальное страхование, выплачиваемые из фонда оплаты труда сбытового персонала | N32: тыс.руб. | O32: =SUMIFS(ФОТ!O$15:O$65,ФОТ!$A$15:$A$65,$A32,ФОТ!$B$15:$B$65,"СП")+SUMIFS(ФОТ!O$15:O$65,ФОТ!$A$15:$A$65,$A32,ФОТ!$B$15:$B$65,"СОЦ_СП") -> 0 | P32: =SUMIFS(ФОТ!P$15:P$65,ФОТ!$A$15:$A$65,$A32,ФОТ!$B$15:$B$65,"СП")+SUMIFS(ФОТ!P$15:P$65,ФОТ!$A$15:$A$65,$A32,ФОТ!$B$15:$B$65,"СОЦ_СП") -> 0 | Q32: =SUMIFS(ФОТ!Q$15:Q$65,ФОТ!$A$15:$A$65,$A32,ФОТ!$B$15:$B$65,"СП")+SUMIFS(ФОТ!Q$15:Q$65,ФОТ!$A$15:$A$65,$A32,ФОТ!$B$15:$B$65,"СОЦ_СП") -> 0 | R32: =SUMIFS(ФОТ!R$15:R$65,ФОТ!$A$15:$A$65,$A32,ФОТ!$B$15:$B$65,"СП")+SUMIFS(ФОТ!R$15:R$65,ФОТ!$A$15:$A$65,$A32,ФОТ!$B$15:$B$65,"СОЦ_СП") -> 0 | S32: =SUMIFS(ФОТ!S$15:S$65,ФОТ!$A$15:$A$65,$A32,ФОТ!$B$15:$B$65,"СП")+SUMIFS(ФОТ!S$15:S$65,ФОТ!$A$15:$A$65,$A32,ФОТ!$B$15:$B$65,"СОЦ_СП") -> 0 | T32: =SUMIFS(ФОТ!T$15:T$65,ФОТ!$A$15:$A$65,$A32,ФОТ!$B$15:$B$65,"СП")+SUMIFS(ФОТ!T$15:T$65,ФОТ!$A$15:$A$65,$A32,ФОТ!$B$15:$B$65,"СОЦ_СП") -> 0
A33: 2 | B33: L5 | L33: 5 | M33: Расходы на амортизацию основных средств и нематериальных активов, используемых при осуществлении сбытовой деятельности | N33: тыс.руб.
A34: 2 | B34: L6 | L34: 6 | M34: Расходы на аренду, лизинг имущества, используемого при осуществлении сбытовой деятельности | N34: тыс.руб.
A35: 2 | B35: L7 | L35: 7 | M35: Расходы на уплату процентов по займам и кредитам, привлечение которых обосновано ростом дебиторской задолженности абонентов за регулируемые услуги водоснабжения (водоотведения) | N35: тыс.руб.
A36: 2 | B36: L8 | L36: 8 | M36: Расходы на оплату работ и (или) услуг, выполняемых сторонними организациями или индивидуальными предпринимателями, связанных со сбытовой деятельностью | N36: тыс.руб.
A37: 2 | B37: L9 | L37: 9 | M37: Прочие расходы, связанные со сбытовой деятельностью | N37: тыс.руб. | O37: =SUM(O38:O39) -> 0 | P37: 0 | Q37: 0 | R37: 0 | S37: 0 | T37: 0
A38: 2 | L38: 9.0
A39: 2 | B39: =A39&"pIns" -> 2pIns | M39: Добавить
L41: Комментарии и обоснования к разделу
L43: Добавить комментарий

Sheet Налоги
O1: =god-2 -> 2022 | P1: =god-2 -> 2022 | Q1: =god-2 -> 2022 | R1: =god-1 -> 2023 | S1: =god -> 2024 | T1: =god+1 -> 2025 | U1: =god+2 -> 2026 | V1: =god+3 -> 2027 | W1: =god+4 -> 2028 | X1: =god+5 -> 2029 | Y1: =god+6 -> 2030 | Z1: =god+7 -> 2031 | AA1: =god+8 -> 2032 | AB1: =god+9 -> 2033 | AC1: =god -> 2024 | AD1: =god+1 -> 2025 | AE1: =god+2 -> 2026 | AF1: =god+3 -> 2027 | AG1: =god+4 -> 2028 | AH1: =god+5 -> 2029 | AI1: =god+6 -> 2030 | AJ1: =god+7 -> 2031 | AK1: =god+8 -> 2032 | AL1: =god+9 -> 2033
O2: =O15 -> Принято органом регулирования | P2: =P15 -> Факт по данным организации | Q2: Факт, принятый органом регулирования | R2: Принято органом регулирования | S2: Предложение организации | T2: Предложение организации | U2: Предложение организации | V2: Предложение организации | W2: Предложение организации | X2: Предложение организации | Y2: Предложение организации | Z2: Предложение организации | AA2: Предложение организации | AB2: Предложение организации | AC2: Принято органом регулирования | AD2: Принято органом регулирования | AE2: Принято органом регулирования | AF2: Принято органом регулирования | AG2: Принято органом регулирования | AH2: Принято органом регулирования | AI2: Принято органом регулирования | AJ2: Принято органом регулирования | AK2: Принято органом регулирования | AL2: Принято органом регулирования
S7: =S1<=last_year_vis -> TRUE | T7: TRUE | U7: TRUE | V7: TRUE | W7: TRUE | X7: FALSE | Y7: FALSE | Z7: FALSE | AA7: FALSE | AB7: FALSE | AC7: TRUE | AD7: TRUE | AE7: TRUE | AF7: TRUE | AG7: TRUE | AH7: FALSE | AI7: FALSE | AJ7: FALSE | AK7: FALSE | AL7: FALSE
M11: =tpl_title -> Кемеровская область / 2024 / ООО "ТВК" (ИНН:4202026697, КПП:420201001) / ДПР: 2024-2028
L12: 16. Расшифровка по налогам и платежам
L14: № п/п | M14: Наименование показателя | N14: Единица измерений | O14: =god-2 & " год" -> 2022 год | P14: =god-2 & " год" -> 2022 год | Q14: =god-2 & " год" -> 2022 год | R14: =god-1 & " год" -> 2023 год | S14: =god & " год" -> 2024 год | T14: =god+1 & " год" -> 2025 год | U14: =god+2 & " год" -> 2026 год | V14: =god+3 & " год" -> 2027 год | W14: =god+4 & " год" -> 2028 год | X14: =god+5 & " год" -> 2029 год | Y14: =god+6 & " год" -> 2030 год | Z14: =god+7 & " год" -> 2031 год | AA14: =god+8 & " год" -> 2032 год | AB14: =god+9 & " год" -> 2033 год | AC14: =god & " год" -> 2024 год | AD14: =god+1 & " год" -> 2025 год | AE14: =god+2 & " год" -> 2026 год | AF14: =god+3 & " год" -> 2027 год | AG14: =god+4 & " год" -> 2028 год | AH14: =god+5 & " год" -> 2029 год | AI14: =god+6 & " год" -> 2030 год | AJ14: =god+7 & " год" -> 2031 год | AK14: =god+8 & " год" -> 2032 год | AL14: =god+9 & " год" -> 2033 год | AM14: Ссылка на правовую норму (основание для принятия показателя в расчет тарифа)
O15: Принято органом регулирования | P15: Факт по данным организации | Q15: Факт, принятый органом регулирования | R15: Принято органом регулирования | S15: Предложение организации | T15: Предложение организации | U15: Предложение организации | V15: Предложение организации | W15: Предложение организации | X15: Предложение организации | Y15: Предложение организации | Z15: Предложение организации | AA15: Предложение организации | AB15: Предложение организации | AC15: Принято органом регулирования | AD15: Принято органом регулирования | AE15: Принято органом регулирования | AF15: Принято органом регулирования | AG15: Принято органом регулирования | AH15: Принято органом регулирования | AI15: Принято органом регулирования | AJ15: Принято органом регулирования | AK15: Принято органом регулирования | AL15: Принято органом регулирования
A16: ='Общие сведения'!$D$122 -> 1 | L16: =INDEX('Общие сведения'!$J$121:$J$148,MATCH($A16,'Общие сведения'!$D$121:$D$148,0)) -> Тариф 1 (Водоснабжение) - тариф на питьевую воду
A17: =A16 -> 1 | B17: L0 | L17: 0 | M17: Налоги и платежи, относимые на указанный вид деятельности | N17: тыс.руб. | O17: =SUM(O18:O26) -> 1.5 | P17: =SUM(P18:P26) -> 1.5 | Q17: 1.5 | R17: 1.496 | S17: 1.496 | T17: 0 | U17: 0 | V17: 0 | W17: 0 | X17: 0 | Y17: 0 | Z17: 0 | AA17: 0 | AB17: 0 | AC17: 1.496 | AD17: 1.496 | AE17: 1.496 | AF17: 1.496 | AG17: 1.496 | AH17: 0 | AI17: 0 | AJ17: 0 | AK17: 0 | AL17: 0
A18: 1 | B18: L1 | L18: 1 | M18: Транспортный налог | N18: тыс.руб. | O18: 1.5 | P18: 1.5 | Q18: 1.5 | R18: 1.496 | S18: 1.496 | AC18: 1.496 | AD18: 1.496 | AE18: 1.496 | AF18: 1.496 | AG18: 1.496 | AM18: 1) Глава 28 "ТРАНСПОРТНЫЙ НАЛОГ" "Налогового кодекса Российской Федерации (Часть вторая)" (ред. от 10.07.2023 № 318-ФЗ). 2) Закон Кемеровской области от 28.11.2002 N 95-ОЗ "О транспортном налоге".
A19: 1 | B19: L2 | L19: 2 | M19: Земельный налог | N19: тыс.руб.
A20: 1 | B20: L3 | L20: 3 | M20: Плата за негативное воздействие на окружающую среду | N20: тыс.руб.
A21: 1 | B21: L4 | L21: 4 | M21: Водный налог | N21: тыс.руб.
A22: 1 | B22: L5 | L22: 5 | M22: Плата за пользование водным объектом | N22: тыс.руб.
A23: 1 | B23: L6 | L23: 6 | M23: Налог на имущество | N23: тыс.руб.
A24: 1 | B24: L7 | L24: 7 | M24: Налог на прибыль | N24: тыс.руб.
A25: 1 | B25: L8 | L25: 8 | M25: Единый налог при упрощенной системе налогообложения | N25: тыс.руб.
A26: =A24 -> 1 | B26: L9 | L26: 9 | M26: Прочие налоги и сборы | N26: тыс.руб. | O26: =SUM(O27:O28) -> 0 | P26: =SUM(P27:P28) -> 0 | Q26: 0 | R26: 0 | S26: 0 | T26: 0 | U26: 0 | V26: 0 | W26: 0 | X26: 0 | Y26: 0 | Z26: 0 | AA26: 0 | AB26: 0 | AC26: 0 | AD26: 0 | AE26: 0 | AF26: 0 | AG26: 0 | AH26: 0 | AI26: 0 | AJ26: 0 | AK26: 0 | AL26: 0
A27: 1 | L27: 9.0
A28: 1 | B28: =A28&"pIns" -> 1pIns | M28: Добавить
A29: ='Общие сведения'!$D$135 -> 2 | L29: =INDEX('Общие сведения'!$J$121:$J$148,MATCH($A29,'Общие сведения'!$D$121:$D$148,0)) -> Тариф 2 (Водоотведение) - тариф на водоотведение
A30: =A29 -> 2 | B30: L0 | L30: 0 | M30: Налоги и платежи, относимые на указанный вид деятельности | N30: тыс.руб. | O30: =SUM(O31:O39) -> 1.25 | P30: =SUM(P31:P39) -> 0 | Q30: 0 | R30: 1.26 | S30: 7.11 | T30: 2.46 | U30: 0.12 | V30: 0 | W30: 0 | X30: 0 | Y30: 0 | Z30: 0 | AA30: 0 | AB30: 0 | AC30: 0 | AD30: 0 | AE30: 0 | AF30: 0 | AG30: 0 | AH30: 0 | AI30: 0 | AJ30: 0 | AK30: 0 | AL30: 0
A31: 2 | B31: L1 | L31: 1 | M31: Транспортный налог | N31: тыс.руб. | O31: 1.25 | R31: 1.26
A32: 2 | B32: L2 | L32: 2 | M32: Земельный налог | N32: тыс.руб.
A33: 2 | B33: L3 | L33: 3 | M33: Плата за негативное воздействие на окружающую среду | N33: тыс.руб.
A34: 2 | B34: L4 | L34: 4 | M34: Водный налог | N34: тыс.руб.
A35: 2 | B35: L5 | L35: 5 | M35: Плата за пользование водным объектом | N35: тыс.руб.
A36: 2 | B36: L6 | L36: 6 | M36: Налог на имущество | N36: тыс.руб. | S36: 7.11 | T36: 2.46 | U36: 0.12 | V36: 0 | W36: 0 | AC36: 0 | AD36: 0 | AE36: 0 | AF36: 0 | AG36: 0 | AM36: 1) Глава 30. "НАЛОГ НА ИМУЩЕСТВО ОРГАНИЗАЦИЙ" "Налогового кодекса Российской Федерации (Часть вторая)" (ред. от 10.07.2023 № 318-ФЗ). 2) Письмо ФНС России от 25.11.2021 N БС-4-21/16452@ "О критериях разграничения движимого и недвижимого имущества в целях применения главы 30 Налогового кодекса Российской Федерации" 3) "ОК 013-2014 (СНС 2008). Общероссийский классификатор основных фондов" (введен Приказом Росстандарта от 12.12.2014 N 2018-ст) (ред. от 19.09.2023).
A37: 2 | B37: L7 | L37: 7 | M37: Налог на прибыль | N37: тыс.руб.
A38: 2 | B38: L8 | L38: 8 | M38: Единый налог при упрощенной системе налогообложения | N38: тыс.руб.
A39: =A37 -> 2 | B39: L9 | L39: 9 | M39: Прочие налоги и сборы | N39: тыс.руб. | O39: =SUM(O40:O41) -> 0 | P39: =SUM(P40:P41) -> 0 | Q39: 0 | R39: 0 | S39: 0 | T39: 0 | U39: 0 | V39: 0 | W39: 0 | X39: 0 | Y39: 0 | Z39: 0 | AA39: 0 | AB39: 0 | AC39: 0 | AD39: 0 | AE39: 0 | AF39: 0 | AG39: 0 | AH39: 0 | AI39: 0 | AJ39: 0 | AK39: 0 | AL39: 0
A40: 2 | L40: 9.0
A41: 2 | B41: =A41&"pIns" -> 2pIns | M41: Добавить
L43: Комментарии и обоснования к разделу
L44: ТРАНСПОРТНЫЙ НАЛОГ ("ПИТЬЕВАЯ ВОДА"). СПециалистом РЭК учтены на 2024-2028 гг. суммы налога, исчисленные в отношении Экскаватора одноковшового ("ку 05-81") (закреплен за участком "ВОДОЕМ-2", см. "Ведомость амортизации" за 2022 год), согласно данным представленного "Сообщения об исчисленной налоговым органом сумме транспортного налога" № 3348851 от 20.04.2023.
K45: О | L45: НАЛОГ НА ИМУЩЕСТВО ("ВОДООТВЕДЕНИЕ"). Заявленные организацией суммы налога на имущество к учету не приняты, так как амортизируемые основные средства, закрепленные за участком "ВИС" ("ОСВ") - насосное оборудование и лабораторные весы - не являются недвижимым имуществом.
L46: Добавить комментарий

Sheet ИП + источники
O1: =god-2 -> 2022 | P1: =god-2 -> 2022 | Q1: =god-2 -> 2022 | R1: =god-2 -> 2022 | S1: =god-1 -> 2023 | T1: =god-1 -> 2023 | U1: =god -> 2024 | V1: =god+1 -> 2025 | W1: =god+2 -> 2026 | X1: =god+3 -> 2027 | Y1: =god+4 -> 2028 | Z1: =god+5 -> 2029 | AA1: =god+6 -> 2030 | AB1: =god+7 -> 2031 | AC1: =god+8 -> 2032 | AD1: =god+9 -> 2033 | AE1: =god -> 2024 | AF1: =god+1 -> 2025 | AG1: =god+2 -> 2026 | AH1: =god+3 -> 2027 | AI1: =god+4 -> 2028 | AJ1: =god+5 -> 2029 | AK1: =god+6 -> 2030 | AL1: =god+7 -> 2031 | AM1: =god+8 -> 2032 | AN1: =god+9 -> 2033
O2: =O17 -> Плановый размер финансирования ИП, установленной в установленном порядке | P2: =P17 -> Принято органом регулирования | Q2: Объем фактического ввода объектов системы водоснабжения и водоотведения в эксплуатацию по данным организации | R2: Объем фактического ввода объектов системы водоснабжения и водоотведения в эксплуатацию, принятый органом регулирования | S2: Плановый размер финансирования ИП, установленной в установленном порядке | T2: Принято органом регулирования | U2: Предложение организации | V2: Предложение организации | W2: Предложение организации | X2: Предложение организации | Y2: Предложение организации | Z2: Предложение организации | AA2: Предложение организации | AB2: Предложение организации | AC2: Предложение организации | AD2: Предложение организации | AE2: Принято органом регулирования | AF2: Принято органом регулирования | AG2: Принято органом регулирования | AH2: Принято органом регулирования | AI2: Принято органом регулирования | AJ2: Принято органом регулирования | AK2: Принято органом регулирования | AL2: Принято органом регулирования | AM2: Принято органом регулирования | AN2: Принято органом регулирования
U7: =U1<=last_year_vis -> TRUE | V7: TRUE | W7: TRUE | X7: TRUE | Y7: TRUE | Z7: FALSE | AA7: FALSE | AB7: FALSE | AC7: FALSE | AD7: FALSE | AE7: TRUE | AF7: TRUE | AG7: TRUE | AH7: TRUE | AI7: TRUE | AJ7: FALSE | AK7: FALSE | AL7: FALSE | AM7: FALSE | AN7: FALSE
M11: =tpl_title -> Кемеровская область / 2024 / ООО "ТВК" (ИНН:4202026697, КПП:420201001) / ДПР: 2024-2028
L12: 17. План и факт по источникам финансирования инвестиционной программы
L14: Заполняется в целом по организации в случае утверждения для такой организации единой инвестиционной программы по всем видам тарифов | N14: ="нет" -> нет
L16: № п/п | M16: Источник финансирования, без НДС | N16: Единица измерения | O16: =god-2 & " год" -> 2022 год | P16: =god-2 & " год" -> 2022 год | Q16: =god-2 & " год" -> 2022 год | R16: =god-2 & " год" -> 2022 год | S16: =god-1 & " год" -> 2023 год | T16: =god-1 & " год" -> 2023 год | U16: =god & " год" -> 2024 год | V16: =god+1 & " год" -> 2025 год | W16: =god+2 & " год" -> 2026 год | X16: =god+3 & " год" -> 2027 год | Y16: =god+4 & " год" -> 2028 год | Z16: =god+5 & " год" -> 2029 год | AA16: =god+6 & " год" -> 2030 год | AB16: =god+7 & " год" -> 2031 год | AC16: =god+8 & " год" -> 2032 год | AD16: =god+9 & " год" -> 2033 год | AE16: =god & " год" -> 2024 год | AF16: =god+1 & " год" -> 2025 год | AG16: =god+2 & " год" -> 2026 год | AH16: =god+3 & " год" -> 2027 год | AI16: =god+4 & " год" -> 2028 год | AJ16: =god+5 & " год" -> 2029 год | AK16: =god+6 & " год" -> 2030 год | AL16: =god+7 & " год" -> 2031 год | AM16: =god+8 & " год" -> 2032 год | AN16: =god+9 & " год" -> 2033 год | AO16: Ссылка на правовую норму (основание для принятия показателя в расчет тарифа)
O17: Плановый размер финансирования ИП, установленной в установленном порядке | P17: Принято органом регулирования | Q17: Объем фактического ввода объектов системы водоснабжения и водоотведения в эксплуатацию по данным организации | R17: Объем фактического ввода объектов системы водоснабжения и водоотведения в эксплуатацию, принятый органом регулирования | S17: Плановый размер финансирования ИП, установленной в установленном порядке | T17: Принято органом регулирования | U17: Предложение организации | V17: Предложение организации | W17: Предложение организации | X17: Предложение организации | Y17: Предложение организации | Z17: Предложение организации | AA17: Предложение организации | AB17: Предложение организации | AC17: Предложение организации | AD17: Предложение организации | AE17: Принято органом регулирования | AF17: Принято органом регулирования | AG17: Принято органом регулирования | AH17: Принято органом регулирования | AI17: Принято органом регулирования | AJ17: Принято органом регулирования | AK17: Принято органом регулирования | AL17: Принято органом регулирования | AM17: Принято органом регулирования | AN17: Принято органом регулирования
B18: =$N$14="да" -> FALSE | C18: L1 | L18: 1 | M18: Источники финансирования инвестиционной программы, всего | N18: тыс.руб. | O18: =O19+O24+O28+O32 -> 0 | P18: =P19+P24+P28+P32 -> 0 | Q18: 0 | R18: 0 | S18: 0 | T18: 0 | U18: 0 | V18: 0 | W18: 0 | X18: 0 | Y18: 0 | Z18: 0 | AA18: 0 | AB18: 0 | AC18: 0 | AD18: 0 | AE18: 0 | AF18: 0 | AG18: 0 | AH18: 0 | AI18: 0 | AJ18: 0 | AK18: 0 | AL18: 0 | AM18: 0 | AN18: 0
B19: =$N$14="да" -> FALSE | C19: L1_1 | L19: 1.1 | M19: Собственные средства | N19: тыс.руб. | O19: =O20+O21+O22+O23 -> 0 | P19: =P20+P21+P22+P23 -> 0 | Q19: 0 | R19: 0 | S19: 0 | T19: 0 | U19: 0 | V19: 0 | W19: 0 | X19: 0 | Y19: 0 | Z19: 0 | AA19: 0 | AB19: 0 | AC19: 0 | AD19: 0 | AE19: 0 | AF19: 0 | AG19: 0 | AH19: 0 | AI19: 0 | AJ19: 0 | AK19: 0 | AL19: 0 | AM19: 0 | AN19: 0
B20: FALSE | C20: L1_1_1 | L20: 1.1.1 | M20: Амортизационные отчисления | N20: тыс.руб.
B21: FALSE | C21: L1_1_2 | L21: 1.1.2 | M21: Прибыль на капвложения | N21: тыс.руб.
B22: FALSE | C22: L1_1_3 | L22: 1.1.3 | M22: Прочие собственные средства | N22: тыс.руб.
B23: FALSE | C23: L1_1_4 | L23: 1.1.4 | M23: За счет платы за технологическое присоединение | N23: тыс.руб.
B24: FALSE | C24: L1_2 | L24: 1.2 | M24: Привлеченные средства | N24: тыс.руб. | O24: =O25+O26+O27 -> 0 | P24: =P25+P26+P27 -> 0 | Q24: 0 | R24: 0 | S24: 0 | T24: 0 | U24: 0 | V24: 0 | W24: 0 | X24: 0 | Y24: 0 | Z24: 0 | AA24: 0 | AB24: 0 | AC24: 0 | AD24: 0 | AE24: 0 | AF24: 0 | AG24: 0 | AH24: 0 | AI24: 0 | AJ24: 0 | AK24: 0 | AL24: 0 | AM24: 0 | AN24: 0
B25: FALSE | C25: L1_2_1 | L25: 1.2.1 | M25: Кредиты | N25: тыс.руб.
B26: FALSE | C26: L1_2_2 | L26: 1.2.2 | M26: Займы | N26: тыс.руб.
B27: FALSE | C27: L1_2_3 | L27: 1.2.3 | M27: Прочие привлеченные средства | N27: тыс.руб.
B28: FALSE | C28: L1_3 | L28: 1.3 | M28: Бюджетное финансирование | N28: тыс.руб. | O28: =O29+O30+O31 -> 0 | P28: =P29+P30+P31 -> 0 | Q28: 0 | R28: 0 | S28: 0 | T28: 0 | U28: 0 | V28: 0 | W28: 0 | X28: 0 | Y28: 0 | Z28: 0 | AA28: 0 | AB28: 0 | AC28: 0 | AD28: 0 | AE28: 0 | AF28: 0 | AG28: 0 | AH28: 0 | AI28: 0 | AJ28: 0 | AK28: 0 | AL28: 0 | AM28: 0 | AN28: 0
B29: FALSE | C29: L1_3_1 | L29: 1.3.1 | M29: Федеральный бюджет | N29: тыс.руб.
B30: FALSE | C30: L1_3_2 | L30: 1.3.2 | M30: Бюджет субъекта РФ | N30: тыс.руб.
B31: FALSE | C31: L1_3_3 | L31: 1.3.3 | M31: Бюджет муниципального образования | N31: тыс.руб.
B32: FALSE | C32: L1_4 | L32: 1.4 | M32: Прочие источники финансирования | N32: тыс.руб. | O32: =O33+O34+O35+O36 -> 0 | P32: =P33+P34+P35+P36 -> 0 | Q32: 0 | R32: 0 | S32: 0 | T32: 0 | U32: 0 | V32: 0 | W32: 0 | X32: 0 | Y32: 0 | Z32: 0 | AA32: 0 | AB32: 0 | AC32: 0 | AD32: 0 | AE32: 0 | AF32: 0 | AG32: 0 | AH32: 0 | AI32: 0 | AJ32: 0 | AK32: 0 | AL32: 0 | AM32: 0 | AN32: 0
B33: FALSE | C33: L1_4_1 | L33: 1.4.1 | M33: Лизинг | N33: тыс.руб.
B34: FALSE | C34: L1_4_2 | L34: 1.4.2 | M34: Доход от взимания платы за нарушение нормативов по объёму и (или) составу сточных вод | N34: тыс.руб.
B35: FALSE | C35: L1_4_3 | L35: 1.4.3 | M35: Доход от взимания платы за негативное воздействие на работу централизованной системы водоотведения | N35: тыс.руб.
B36: FALSE | C36: L1_4_4 | L36: 1.4.4 | M36: Прочие | N36: тыс.руб.
B37: FALSE | C37: L2 | L37: 2 | M37: График возврата и обслуживания заемных средств из тарифной выручки | N37: тыс.руб. | O37: =O38+O39+O40 -> 0 | P37: =P38+P39+P40 -> 0 | Q37: 0 | R37: 0 | S37: 0 | T37: 0 | U37: 0 | V37: 0 | W37: 0 | X37: 0 | Y37: 0 | Z37: 0 | AA37: 0 | AB37: 0 | AC37: 0 | AD37: 0 | AE37: 0 | AF37: 0 | AG37: 0 | AH37: 0 | AI37: 0 | AJ37: 0 | AK37: 0 | AL37: 0 | AM37: 0 | AN37: 0
B38: FALSE | C38: L2_1 | L38: 2.1 | M38: погашение займов и кредитов из нормативной прибыли | N38: тыс.руб.
B39: FALSE | C39: L2_2 | L39: 2.2 | M39: уплата процентов по кредитам из нормативной прибыли | N39: тыс.руб.
B40: FALSE | C40: L2_3 | L40: 2.3 | M40: погашение займов и кредитов из амортизации | N40: тыс.руб.
A41: ='Общие сведения'!$D$122 -> 1 | B41: ='ИП + источники'!$N$14<>"да" -> TRUE | L41: =INDEX('Общие сведения'!$J$121:$J$148,MATCH($A41,'Общие сведения'!$D$121:$D$148,0)) -> Тариф 1 (Водоснабжение) - тариф на питьевую воду
A42: =A41 -> 1 | B42: ='ИП + источники'!$N$14<>"да" -> TRUE | C42: L1 | L42: 1 | M42: Источники финансирования инвестиционной программы, всего | N42: тыс.руб. | O42: =O43+O48+O52+O56 -> 0 | P42: =P43+P48+P52+P56 -> 0 | Q42: 0 | R42: 0 | S42: 0 | T42: 0 | U42: 0 | V42: 0 | W42: 0 | X42: 0 | Y42: 0 | Z42: 0 | AA42: 0 | AB42: 0 | AC42: 0 | AD42: 0 | AE42: 0 | AF42: 0 | AG42: 0 | AH42: 0 | AI42: 0 | AJ42: 0 | AK42: 0 | AL42: 0 | AM42: 0 | AN42: 0
A43: 1 | B43: ='ИП + источники'!$N$14<>"да" -> TRUE | C43: L1_1 | L43: 1.1 | M43: Собственные средства | N43: тыс.руб. | O43: =O44+O45+O46+O47 -> 0 | P43: =P44+P45+P46+P47 -> 0 | Q43: 0 | R43: 0 | S43: 0 | T43: 0 | U43: 0 | V43: 0 | W43: 0 | X43: 0 | Y43: 0 | Z43: 0 | AA43: 0 | AB43: 0 | AC43: 0 | AD43: 0 | AE43: 0 | AF43: 0 | AG43: 0 | AH43: 0 | AI43: 0 | AJ43: 0 | AK43: 0 | AL43: 0 | AM43: 0 | AN43: 0
A44: 1 | B44: ='ИП + источники'!$N$14<>"да" -> TRUE | C44: L1_1_1 | L44: 1.1.1 | M44: Амортизационные отчисления | N44: тыс.руб.
A45: 1 | B45: ='ИП + источники'!$N$14<>"да" -> TRUE | C45: L1_1_2 | L45: 1.1.2 | M45: Прибыль на капвложения | N45: тыс.руб.
A46: 1 | B46: ='ИП + источники'!$N$14<>"да" -> TRUE | C46: L1_1_3 | L46: 1.1.3 | M46: Прочие собственные средства | N46: тыс.руб.
A47: 1 | B47: ='ИП + источники'!$N$14<>"да" -> TRUE | C47: L1_1_4 | L47: 1.1.4 | M47: За счет платы за технологическое присоединение | N47: тыс.руб.
A48: 1 | B48: ='ИП + источники'!$N$14<>"да" -> TRUE | C48: L1_2 | L48: 1.2 | M48: Привлеченные средства | N48: тыс.руб. | O48: =O49+O50+O51 -> 0 | P48: =P49+P50+P51 -> 0 | Q48: 0 | R48: 0 | S48: 0 | T48: 0 | U48: 0 | V48: 0 | W48: 0 | X48: 0 | Y48: 0 | Z48: 0 | AA48: 0 | AB48: 0 | AC48: 0 | AD48: 0 | AE48: 0 | AF48: 0 | AG48: 0 | AH48: 0 | AI48: 0 | AJ48: 0 | AK48: 0 | AL48: 0 | AM48: 0 | AN48: 0
A49: 1 | B49: ='ИП + источники'!$N$14<>"да" -> TRUE | C49: L1_2_1 | L49: 1.2.1 | M49: Кредиты | N49: тыс.руб.
A50: 1 | B50: ='ИП + источники'!$N$14<>"да" -> TRUE | C50: L1_2_2 | L50: 1.2.2 | M50: Займы | N50: тыс.руб.
A51: 1 | B51: ='ИП + источники'!$N$14<>"да" -> TRUE | C51: L1_2_3 | L51: 1.2.3 | M51: Прочие привлеченные средства | N51: тыс.руб.
A52: 1 | B52: ='ИП + источники'!$N$14<>"да" -> TRUE | C52: L1_3 | L52: 1.3 | M52: Бюджетное финансирование | N52: тыс.руб. | O52: =O53+O54+O55 -> 0 | P52: =P53+P54+P55 -> 0 | Q52: 0 | R52: 0 | S52: 0 | T52: 0 | U52: 0 | V52: 0 | W52: 0 | X52: 0 | Y52: 0 | Z52: 0 | AA52: 0 | AB52: 0 | AC52: 0 | AD52: 0 | AE52: 0 | AF52: 0 | AG52: 0 | AH52: 0 | AI52: 0 | AJ52: 0 | AK52: 0 | AL52: 0 | AM52: 0 | AN52: 0
A53: 1 | B53: ='ИП + источники'!$N$14<>"да" -> TRUE | C53: L1_3_1 | L53: 1.3.1 | M53: Федеральный бюджет | N53: тыс.руб.
A54: 1 | B54: ='ИП + источники'!$N$14<>"да" -> TRUE | C54: L1_3_2 | L54: 1.3.2 | M54: Бюджет субъекта РФ | N54: тыс.руб.
A55: 1 | B55: ='ИП + источники'!$N$14<>"да" -> TRUE | C55: L1_3_3 | L55: 1.3.3 | M55: Бюджет муниципального образования | N55: тыс.руб.
A56: 1 | B56: ='ИП + источники'!$N$14<>"да" -> TRUE | C56: L1_4 | L56: 1.4 | M56: Прочие источники финансирования | N56: тыс.руб. | O56: =O57+O58+O59+O60 -> 0 | P56: =P57+P58+P59+P60 -> 0 | Q56: 0 | R56: 0 | S56: 0 | T56: 0 | U56: 0 | V56: 0 | W56: 0 | X56: 0 | Y56: 0 | Z56: 0 | AA56: 0 | AB56: 0 | AC56: 0 | AD56: 0 | AE56: 0 | AF56: 0 | AG56: 0 | AH56: 0 | AI56: 0 | AJ56: 0 | AK56: 0 | AL56: 0 | AM56: 0 | AN56: 0
A57: 1 | B57: ='ИП + источники'!$N$14<>"да" -> TRUE | C57: L1_4_1 | L57: 1.4.1 | M57: Лизинг | N57: тыс.руб.
A58: 1 | B58: ='ИП + источники'!$N$14<>"да" -> TRUE | C58: L1_4_2 | L58: 1.4.2 | M58: Доход от взимания платы за нарушение нормативов по объёму и (или) составу сточных вод | N58: тыс.руб.
A59: 1 | B59: ='ИП + источники'!$N$14<>"да" -> TRUE | C59: L1_4_3 | L59: 1.4.3 | M59: Доход от взимания платы за негативное воздействие на работу централизованной системы водоотведения | N59: тыс.руб.
A60: 1 | B60: ='ИП + источники'!$N$14<>"да" -> TRUE | C60: L1_4_4 | L60: 1.4.4 | M60: Прочие | N60: тыс.руб.
A61: 1 | B61: ='ИП + источники'!$N$14<>"да" -> TRUE | C61: L2 | L61: 2 | M61: График возврата и обслуживания заемных средств из тарифной выручки | N61: тыс.руб. | O61: =O62+O63+O64 -> 0 | P61: =P62+P63+P64 -> 0 | Q61: 0 | R61: 0 | S61: 0 | T61: 0 | U61: 0 | V61: 0 | W61: 0 | X61: 0 | Y61: 0 | Z61: 0 | AA61: 0 | AB61: 0 | AC61: 0 | AD61: 0 | AE61: 0 | AF61: 0 | AG61: 0 | AH61: 0 | AI61: 0 | AJ61: 0 | AK61: 0 | AL61: 0 | AM61: 0 | AN61: 0
A62: 1 | B62: ='ИП + источники'!$N$14<>"да" -> TRUE | C62: L2_1 | L62: 2.1 | M62: погашение займов и кредитов из нормативной прибыли | N62: тыс.руб.
A63: 1 | B63: ='ИП + источники'!$N$14<>"да" -> TRUE | C63: L2_2 | L63: 2.2 | M63: уплата процентов по кредитам из нормативной прибыли | N63: тыс.руб.
A64: 1 | B64: ='ИП + источники'!$N$14<>"да" -> TRUE | C64: L2_3 | L64: 2.3 | M64: погашение займов и кредитов из амортизации | N64: тыс.руб.
A65: ='Общие сведения'!$D$135 -> 2 | B65: ='ИП + источники'!$N$14<>"да" -> TRUE | L65: =INDEX('Общие сведения'!$J$121:$J$148,MATCH($A65,'Общие сведения'!$D$121:$D$148,0)) -> Тариф 2 (Водоотведение) - тариф на водоотведение
A66: =A65 -> 2 | B66: ='ИП + источники'!$N$14<>"да" -> TRUE | C66: L1 | L66: 1 | M66: Источники финансирования инвестиционной программы, всего | N66: тыс.руб. | O66: =O67+O72+O76+O80 -> 0 | P66: =P67+P72+P76+P80 -> 0 | Q66: 0 | R66: 0 | S66: 0 | T66: 0 | U66: 0 | V66: 0 | W66: 0 | X66: 0 | Y66: 0 | Z66: 0 | AA66: 0 | AB66: 0 | AC66: 0 | AD66: 0 | AE66: 0 | AF66: 0 | AG66: 0 | AH66: 0 | AI66: 0 | AJ66: 0 | AK66: 0 | AL66: 0 | AM66: 0 | AN66: 0
A67: 2 | B67: ='ИП + источники'!$N$14<>"да" -> TRUE | C67: L1_1 | L67: 1.1 | M67: Собственные средства | N67: тыс.руб. | O67: =O68+O69+O70+O71 -> 0 | P67: =P68+P69+P70+P71 -> 0 | Q67: 0 | R67: 0 | S67: 0 | T67: 0 | U67: 0 | V67: 0 | W67: 0 | X67: 0 | Y67: 0 | Z67: 0 | AA67: 0 | AB67: 0 | AC67: 0 | AD67: 0 | AE67: 0 | AF67: 0 | AG67: 0 | AH67: 0 | AI67: 0 | AJ67: 0 | AK67: 0 | AL67: 0 | AM67: 0 | AN67: 0
A68: 2 | B68: ='ИП + источники'!$N$14<>"да" -> TRUE | C68: L1_1_1 | L68: 1.1.1 | M68: Амортизационные отчисления | N68: тыс.руб.
A69: 2 | B69: ='ИП + источники'!$N$14<>"да" -> TRUE | C69: L1_1_2 | L69: 1.1.2 | M69: Прибыль на капвложения | N69: тыс.руб.
A70: 2 | B70: ='ИП + источники'!$N$14<>"да" -> TRUE | C70: L1_1_3 | L70: 1.1.3 | M70: Прочие собственные средства | N70: тыс.руб.
A71: 2 | B71: ='ИП + источники'!$N$14<>"да" -> TRUE | C71: L1_1_4 | L71: 1.1.4 | M71: За счет платы за технологическое присоединение | N71: тыс.руб.
A72: 2 | B72: ='ИП + источники'!$N$14<>"да" -> TRUE | C72: L1_2 | L72: 1.2 | M72: Привлеченные средства | N72: тыс.руб. | O72: =O73+O74+O75 -> 0 | P72: =P73+P74+P75 -> 0 | Q72: 0 | R72: 0 | S72: 0 | T72: 0 | U72: 0 | V72: 0 | W72: 0 | X72: 0 | Y72: 0 | Z72: 0 | AA72: 0 | AB72: 0 | AC72: 0 | AD72: 0 | AE72: 0 | AF72: 0 | AG72: 0 | AH72: 0 | AI72: 0 | AJ72: 0 | AK72: 0 | AL72: 0 | AM72: 0 | AN72: 0
A73: 2 | B73: ='ИП + источники'!$N$14<>"да" -> TRUE | C73: L1_2_1 | L73: 1.2.1 | M73: Кредиты | N73: тыс.руб.
A74: 2 | B74: ='ИП + источники'!$N$14<>"да" -> TRUE | C74: L1_2_2 | L74: 1.2.2 | M74: Займы | N74: тыс.руб.
A75: 2 | B75: ='ИП + источники'!$N$14<>"да" -> TRUE | C75: L1_2_3 | L75: 1.2.3 | M75: Прочие привлеченные средства | N75: тыс.руб.
A76: 2 | B76: ='ИП + источники'!$N$14<>"да" -> TRUE | C76: L1_3 | L76: 1.3 | M76: Бюджетное финансирование | N76: тыс.руб. | O76: =O77+O78+O79 -> 0 | P76: =P77+P78+P79 -> 0 | Q76: 0 | R76: 0 | S76: 0 | T76: 0 | U76: 0 | V76: 0 | W76: 0 | X76: 0 | Y76: 0 | Z76: 0 | AA76: 0 | AB76: 0 | AC76: 0 | AD76: 0 | AE76: 0 | AF76: 0 | AG76: 0 | AH76: 0 | AI76: 0 | AJ76: 0 | AK76: 0 | AL76: 0 | AM76: 0 | AN76: 0
A77: 2 | B77: ='ИП + источники'!$N$14<>"да" -> TRUE | C77: L1_3_1 | L77: 1.3.1 | M77: Федеральный бюджет | N77: тыс.руб.
A78: 2 | B78: ='ИП + источники'!$N$14<>"да" -> TRUE | C78: L1_3_2 | L78: 1.3.2 | M78: Бюджет субъекта РФ | N78: тыс.руб.
A79: 2 | B79: ='ИП + источники'!$N$14<>"да" -> TRUE | C79: L1_3_3 | L79: 1.3.3 | M79: Бюджет муниципального образования | N79: тыс.руб.
A80: 2 | B80: ='ИП + источники'!$N$14<>"да" -> TRUE | C80: L1_4 | L80: 1.4 | M80: Прочие источники финансирования | N80: тыс.руб. | O80: =O81+O82+O83+O84 -> 0 | P80: =P81+P82+P83+P84 -> 0 | Q80: 0 | R80: 0 | S80: 0 | T80: 0 | U80: 0 | V80: 0 | W80: 0 | X80: 0 | Y80: 0 | Z80: 0 | AA80: 0 | AB80: 0 | AC80: 0 | AD80: 0 | AE80: 0 | AF80: 0 | AG80: 0 | AH80: 0 | AI80: 0 | AJ80: 0 | AK80: 0 | AL80: 0 | AM80: 0 | AN80: 0
A81: 2 | B81: ='ИП + источники'!$N$14<>"да" -> TRUE | C81: L1_4_1 | L81: 1.4.1 | M81: Лизинг | N81: тыс.руб.
A82: 2 | B82: ='ИП + источники'!$N$14<>"да" -> TRUE | C82: L1_4_2 | L82: 1.4.2 | M82: Доход от взимания платы за нарушение нормативов по объёму и (или) составу сточных вод | N82: тыс.руб.
A83: 2 | B83: ='ИП + источники'!$N$14<>"да" -> TRUE | C83: L1_4_3 | L83: 1.4.3 | M83: Доход от взимания платы за негативное воздействие на работу централизованной системы водоотведения | N83: тыс.руб.
A84: 2 | B84: ='ИП + источники'!$N$14<>"да" -> TRUE | C84: L1_4_4 | L84: 1.4.4 | M84: Прочие | N84: тыс.руб.
A85: 2 | B85: ='ИП + источники'!$N$14<>"да" -> TRUE | C85: L2 | L85: 2 | M85: График возврата и обслуживания заемных средств из тарифной выручки | N85: тыс.руб. | O85: =O86+O87+O88 -> 0 | P85: =P86+P87+P88 -> 0 | Q85: 0 | R85: 0 | S85: 0 | T85: 0 | U85: 0 | V85: 0 | W85: 0 | X85: 0 | Y85: 0 | Z85: 0 | AA85: 0 | AB85: 0 | AC85: 0 | AD85: 0 | AE85: 0 | AF85: 0 | AG85: 0 | AH85: 0 | AI85: 0 | AJ85: 0 | AK85: 0 | AL85: 0 | AM85: 0 | AN85: 0
A86: 2 | B86: ='ИП + источники'!$N$14<>"да" -> TRUE | C86: L2_1 | L86: 2.1 | M86: погашение займов и кредитов из нормативной прибыли | N86: тыс.руб.
A87: 2 | B87: ='ИП + источники'!$N$14<>"да" -> TRUE | C87: L2_2 | L87: 2.2 | M87: уплата процентов по кредитам из нормативной прибыли | N87: тыс.руб.
A88: 2 | B88: ='ИП + источники'!$N$14<>"да" -> TRUE | C88: L2_3 | L88: 2.3 | M88: погашение займов и кредитов из амортизации | N88: тыс.руб.
M89: * данные без НДС
L90: Комментарии и обоснования к разделу
L92: Добавить комментарий

Sheet Экономия_корр
O1: =god -> 2024 | P1: =god+1 -> 2025 | Q1: =god+2 -> 2026 | R1: =god+3 -> 2027 | S1: =god+4 -> 2028 | T1: =god+5 -> 2029 | U1: =god+6 -> 2030 | V1: =god+7 -> 2031 | W1: =god+8 -> 2032 | X1: =god+9 -> 2033 | Y1: =god -> 2024 | Z1: =god+1 -> 2025 | AA1: =god+2 -> 2026 | AB1: =god+3 -> 2027 | AC1: =god+4 -> 2028 | AD1: =god+5 -> 2029 | AE1: =god+6 -> 2030 | AF1: =god+7 -> 2031 | AG1: =god+8 -> 2032 | AH1: =god+9 -> 2033
O2: =O15 -> Предложения организации | P2: =P15 -> Предложения организации | Q2: Предложения организации | R2: Предложения организации | S2: Предложения организации | T2: Предложения организации | U2: Предложения организации | V2: Предложения организации | W2: Предложения организации | X2: Предложения организации | Y2: Принято органом регулирования | Z2: Принято органом регулирования | AA2: Принято органом регулирования | AB2: Принято органом регулирования | AC2: Принято органом регулирования | AD2: Принято органом регулирования | AE2: Принято органом регулирования | AF2: Принято органом регулирования | AG2: Принято органом регулирования | AH2: Принято органом регулирования
O7: =O1<=last_year_vis -> TRUE | P7: TRUE | Q7: TRUE | R7: TRUE | S7: TRUE | T7: FALSE | U7: FALSE | V7: FALSE | W7: FALSE | X7: FALSE | Y7: TRUE | Z7: TRUE | AA7: TRUE | AB7: TRUE | AC7: TRUE | AD7: FALSE | AE7: FALSE | AF7: FALSE | AG7: FALSE | AH7: FALSE
M11: =tpl_title -> Кемеровская область / 2024 / ООО "ТВК" (ИНН:4202026697, КПП:420201001) / ДПР: 2024-2028
L12: 18. Расчет экономии средств, достигнутой в результате снижения расходов предыдущего долгосрочного периода регулирования
L14: № п/п | M14: Показатели | N14: Единица измерения | O14: =god & " год" -> 2024 год | P14: =god+1 & " год" -> 2025 год | Q14: =god+2 & " год" -> 2026 год | R14: =god+3 & " год" -> 2027 год | S14: =god+4 & " год" -> 2028 год | T14: =god+5 & " год" -> 2029 год | U14: =god+6 & " год" -> 2030 год | V14: =god+7 & " год" -> 2031 год | W14: =god+8 & " год" -> 2032 год | X14: =god+9 & " год" -> 2033 год | Y14: =god & " год" -> 2024 год | Z14: =god+1 & " год" -> 2025 год | AA14: =god+2 & " год" -> 2026 год | AB14: =god+3 & " год" -> 2027 год | AC14: =god+4 & " год" -> 2028 год | AD14: =god+5 & " год" -> 2029 год | AE14: =god+6 & " год" -> 2030 год | AF14: =god+7 & " год" -> 2031 год | AG14: =god+8 & " год" -> 2032 год | AH14: =god+9 & " год" -> 2033 год | AI14: Ссылка на правовую норму (основание для принятия показателя в расчет тарифа)
O15: Предложения организации | P15: Предложения организации | Q15: Предложения организации | R15: Предложения организации | S15: Предложения организации | T15: Предложения организации | U15: Предложения организации | V15: Предложения организации | W15: Предложения организации | X15: Предложения организации | Y15: Принято органом регулирования | Z15: Принято органом регулирования | AA15: Принято органом регулирования | AB15: Принято органом регулирования | AC15: Принято органом регулирования | AD15: Принято органом регулирования | AE15: Принято органом регулирования | AF15: Принято органом регулирования | AG15: Принято органом регулирования | AH15: Принято органом регулирования
A16: ='Общие сведения'!$D$122 -> 1 | L16: =INDEX('Общие сведения'!$J$121:$J$148,MATCH($A16,'Общие сведения'!$D$121:$D$148,0)) -> Тариф 1 (Водоснабжение) - тариф на питьевую воду
A17: =A16 -> 1 | B17: L1 | L17: 1 | M17: Экономия расходов всего | N17: тыс.руб. | O17: =O18+O19+O20 -> 0 | P17: 0 | Q17: 0 | R17: 0 | S17: 0 | T17: 0 | U17: 0 | V17: 0 | W17: 0 | X17: 0 | Y17: 0 | Z17: 0 | AA17: 0 | AB17: 0 | AC17: 0 | AD17: 0 | AE17: 0 | AF17: 0 | AG17: 0 | AH17: 0
A18: 1 | B18: L1_1 | L18: 1.1 | M18: Экономия операционных расходов | N18: тыс.руб.
A19: 1 | B19: L1_2 | L19: 1.2 | M19: Экономия от снижения потребления электрической энергии (мощности) | N19: тыс.руб.
A20: 1 | B20: L1_3 | L20: 1.3 | M20: Экономия от снижения потребления прочих энергетических ресурсов, холодной воды, теплоносителя | N20: тыс.руб.
A21: 1 | B21: L2 | L21: 2 | M21: Значение индекса потребительских цен | N21: % | O21: =SUMIFS(Сценарии!$T$15:$T$53,Сценарии!$A$15:$A$53,$A21,Сценарии!$M$15:$M$53,"Индекс потребительских цен") -> 0 | P21: =SUMIFS(Сценарии!$Y$15:$Y$53,Сценарии!$A$15:$A$53,$A21,Сценарии!$M$15:$M$53,"Индекс потребительских цен") -> 4 | Q21: =SUMIFS(Сценарии!$AA$15:$AA$53,Сценарии!$A$15:$A$53,$A21,Сценарии!$M$15:$M$53,"Индекс потребительских цен") -> 4 | R21: =SUMIFS(Сценарии!$AC$15:$AC$53,Сценарии!$A$15:$A$53,$A21,Сценарии!$M$15:$M$53,"Индекс потребительских цен") -> 4 | S21: =SUMIFS(Сценарии!$AE$15:$AE$53,Сценарии!$A$15:$A$53,$A21,Сценарии!$M$15:$M$53,"Индекс потребительских цен") -> 4 | T21: =SUMIFS(Сценарии!$AG$15:$AG$53,Сценарии!$A$15:$A$53,$A21,Сценарии!$M$15:$M$53,"Индекс потребительских цен") -> 0 | U21: =SUMIFS(Сценарии!$AI$15:$AI$53,Сценарии!$A$15:$A$53,$A21,Сценарии!$M$15:$M$53,"Индекс потребительских цен") -> 0 | V21: =SUMIFS(Сценарии!$AK$15:$AK$53,Сценарии!$A$15:$A$53,$A21,Сценарии!$M$15:$M$53,"Индекс потребительских цен") -> 0 | W21: =SUMIFS(Сценарии!$AM$15:$AM$53,Сценарии!$A$15:$A$53,$A21,Сценарии!$M$15:$M$53,"Индекс потребительских цен") -> 0 | X21: =SUMIFS(Сценарии!$AO$15:$AO$53,Сценарии!$A$15:$A$53,$A21,Сценарии!$M$15:$M$53,"Индекс потребительских цен") -> 0 | Y21: =SUMIFS(Сценарии!$U$15:$U$53,Сценарии!$A$15:$A$53,$A21,Сценарии!$M$15:$M$53,"Индекс потребительских цен") -> 7.2 | Z21: =SUMIFS(Сценарии!$Z$15:$Z$53,Сценарии!$A$15:$A$53,$A21,Сценарии!$M$15:$M$53,"Индекс потребительских цен") -> 4.2 | AA21: =SUMIFS(Сценарии!$AB$15:$AB$53,Сценарии!$A$15:$A$53,$A21,Сценарии!$M$15:$M$53,"Индекс потребительских цен") -> 4 | AB21: =SUMIFS(Сценарии!$AD$15:$AD$53,Сценарии!$A$15:$A$53,$A21,Сценарии!$M$15:$M$53,"Индекс потребительских цен") -> 4 | AC21: =SUMIFS(Сценарии!$AF$15:$AF$53,Сценарии!$A$15:$A$53,$A21,Сценарии!$M$15:$M$53,"Индекс потребительских цен") -> 4 | AD21: =SUMIFS(Сценарии!$AH$15:$AH$53,Сценарии!$A$15:$A$53,$A21,Сценарии!$M$15:$M$53,"Индекс потребительских цен") -> 0 | AE21: =SUMIFS(Сценарии!$AJ$15:$AJ$53,Сценарии!$A$15:$A$53,$A21,Сценарии!$M$15:$M$53,"Индекс потребительских цен") -> 0 | AF21: =SUMIFS(Сценарии!$AL$15:$AL$53,Сценарии!$A$15:$A$53,$A21,Сценарии!$M$15:$M$53,"Индекс потребительских цен") -> 0 | AG21: =SUMIFS(Сценарии!$AN$15:$AN$53,Сценарии!$A$15:$A$53,$A21,Сценарии!$M$15:$M$53,"Индекс потребительских цен") -> 0 | AH21: =SUMIFS(Сценарии!$AP$15:$AP$53,Сценарии!$A$15:$A$53,$A21,Сценарии!$M$15:$M$53,"Индекс потребительских цен") -> 0
A22: 1 | B22: L3 | L22: 3 | M22: Кумулятивное значение индекса потребительских цен | N22: % | O22: =O21 -> 0 | P22: =O22*P21/100 -> 0 | Q22: =P22*Q21/100 -> 0 | R22: 0 | S22: 0 | T22: 0 | U22: 0 | V22: 0 | W22: 0 | X22: 0 | Y22: 0 | Z22: 0 | AA22: 0 | AB22: 0 | AC22: 0 | AD22: 0 | AE22: 0 | AF22: 0 | AG22: 0 | AH22: 0
A23: 1 | B23: L4 | L23: 4 | M23: Экономия расходов с учетом ИПЦ | N23: тыс.руб. | O23: =O17*O22/100 -> 0 | P23: =P17*P22/100 -> 0 | Q23: 0 | R23: 0 | S23: 0 | T23: 0 | U23: 0 | V23: 0 | W23: 0 | X23: 0 | Y23: 0 | Z23: 0 | AA23: 0 | AB23: 0 | AC23: 0 | AD23: 0 | AE23: 0 | AF23: 0 | AG23: 0 | AH23: 0
A24: ='Общие сведения'!$D$135 -> 2 | L24: =INDEX('Общие сведения'!$J$121:$J$148,MATCH($A24,'Общие сведения'!$D$121:$D$148,0)) -> Тариф 2 (Водоотведение) - тариф на водоотведение
A25: =A24 -> 2 | B25: L1 | L25: 1 | M25: Экономия расходов всего | N25: тыс.руб. | O25: =O26+O27+O28 -> 0 | P25: 0 | Q25: 0 | R25: 0 | S25: 0 | T25: 0 | U25: 0 | V25: 0 | W25: 0 | X25: 0 | Y25: 0 | Z25: 0 | AA25: 0 | AB25: 0 | AC25: 0 | AD25: 0 | AE25: 0 | AF25: 0 | AG25: 0 | AH25: 0
A26: 2 | B26: L1_1 | L26: 1.1 | M26: Экономия операционных расходов | N26: тыс.руб.
A27: 2 | B27: L1_2 | L27: 1.2 | M27: Экономия от снижения потребления электрической энергии (мощности) | N27: тыс.руб.
A28: 2 | B28: L1_3 | L28: 1.3 | M28: Экономия от снижения потребления прочих энергетических ресурсов, холодной воды, теплоносителя | N28: тыс.руб.
A29: 2 | B29: L2 | L29: 2 | M29: Значение индекса потребительских цен | N29: % | O29: =SUMIFS(Сценарии!$T$15:$T$53,Сценарии!$A$15:$A$53,$A29,Сценарии!$M$15:$M$53,"Индекс потребительских цен") -> 0 | P29: =SUMIFS(Сценарии!$Y$15:$Y$53,Сценарии!$A$15:$A$53,$A29,Сценарии!$M$15:$M$53,"Индекс потребительских цен") -> 4 | Q29: =SUMIFS(Сценарии!$AA$15:$AA$53,Сценарии!$A$15:$A$53,$A29,Сценарии!$M$15:$M$53,"Индекс потребительских цен") -> 4 | R29: =SUMIFS(Сценарии!$AC$15:$AC$53,Сценарии!$A$15:$A$53,$A29,Сценарии!$M$15:$M$53,"Индекс потребительских цен") -> 4 | S29: =SUMIFS(Сценарии!$AE$15:$AE$53,Сценарии!$A$15:$A$53,$A29,Сценарии!$M$15:$M$53,"Индекс потребительских цен") -> 4 | T29: =SUMIFS(Сценарии!$AG$15:$AG$53,Сценарии!$A$15:$A$53,$A29,Сценарии!$M$15:$M$53,"Индекс потребительских цен") -> 0 | U29: =SUMIFS(Сценарии!$AI$15:$AI$53,Сценарии!$A$15:$A$53,$A29,Сценарии!$M$15:$M$53,"Индекс потребительских цен") -> 0 | V29: =SUMIFS(Сценарии!$AK$15:$AK$53,Сценарии!$A$15:$A$53,$A29,Сценарии!$M$15:$M$53,"Индекс потребительских цен") -> 0 | W29: =SUMIFS(Сценарии!$AM$15:$AM$53,Сценарии!$A$15:$A$53,$A29,Сценарии!$M$15:$M$53,"Индекс потребительских цен") -> 0 | X29: =SUMIFS(Сценарии!$AO$15:$AO$53,Сценарии!$A$15:$A$53,$A29,Сценарии!$M$15:$M$53,"Индекс потребительских цен") -> 0 | Y29: =SUMIFS(Сценарии!$U$15:$U$53,Сценарии!$A$15:$A$53,$A29,Сценарии!$M$15:$M$53,"Индекс потребительских цен") -> 7.2 | Z29: =SUMIFS(Сценарии!$Z$15:$Z$53,Сценарии!$A$15:$A$53,$A29,Сценарии!$M$15:$M$53,"Индекс потребительских цен") -> 4.2 | AA29: =SUMIFS(Сценарии!$AB$15:$AB$53,Сценарии!$A$15:$A$53,$A29,Сценарии!$M$15:$M$53,"Индекс потребительских цен") -> 4 | AB29: =SUMIFS(Сценарии!$AD$15:$AD$53,Сценарии!$A$15:$A$53,$A29,Сценарии!$M$15:$M$53,"Индекс потребительских цен") -> 4 | AC29: =SUMIFS(Сценарии!$AF$15:$AF$53,Сценарии!$A$15:$A$53,$A29,Сценарии!$M$15:$M$53,"Индекс потребительских цен") -> 4 | AD29: =SUMIFS(Сценарии!$AH$15:$AH$53,Сценарии!$A$15:$A$53,$A29,Сценарии!$M$15:$M$53,"Индекс потребительских цен") -> 0 | AE29: =SUMIFS(Сценарии!$AJ$15:$AJ$53,Сценарии!$A$15:$A$53,$A29,Сценарии!$M$15:$M$53,"Индекс потребительских цен") -> 0 | AF29: =SUMIFS(Сценарии!$AL$15:$AL$53,Сценарии!$A$15:$A$53,$A29,Сценарии!$M$15:$M$53,"Индекс потребительских цен") -> 0 | AG29: =SUMIFS(Сценарии!$AN$15:$AN$53,Сценарии!$A$15:$A$53,$A29,Сценарии!$M$15:$M$53,"Индекс потребительских цен") -> 0 | AH29: =SUMIFS(Сценарии!$AP$15:$AP$53,Сценарии!$A$15:$A$53,$A29,Сценарии!$M$15:$M$53,"Индекс потребительских цен") -> 0
A30: 2 | B30: L3 | L30: 3 | M30: Кумулятивное значение индекса потребительских цен | N30: % | O30: =O29 -> 0 | P30: =O30*P29/100 -> 0 | Q30: =P30*Q29/100 -> 0 | R30: 0 | S30: 0 | T30: 0 | U30: 0 | V30: 0 | W30: 0 | X30: 0 | Y30: 0 | Z30: 0 | AA30: 0 | AB30: 0 | AC30: 0 | AD30: 0 | AE30: 0 | AF30: 0 | AG30: 0 | AH30: 0
A31: 2 | B31: L4 | L31: 4 | M31: Экономия расходов с учетом ИПЦ | N31: тыс.руб. | O31: =O25*O30/100 -> 0 | P31: =P25*P30/100 -> 0 | Q31: 0 | R31: 0 | S31: 0 | T31: 0 | U31: 0 | V31: 0 | W31: 0 | X31: 0 | Y31: 0 | Z31: 0 | AA31: 0 | AB31: 0 | AC31: 0 | AD31: 0 | AE31: 0 | AF31: 0 | AG31: 0 | AH31: 0
L33: Комментарии и обоснования к разделу
L35: Добавить комментарий

Sheet Плата за негативное возд
L12: 19. Плата за негативное воздействие на работу централизованных систем водоотведения (принято органом регулирования)
L14: № | M14: Показатели | N14: Единица измерения | O14: Начислено в соответствии с пунктом 26(1) Основ ценообразования в сфере водоснабжения и водоотведения | P14: Направлено на внесение платы за негативное воздействие на окружающую среду | Q14: Направлено на компенсацию вреда, причиненного водному объекту | R14: Предусмотрено на финансирование мероприятий инвестиционной программы по строительству, реконструкции и модернизации объектов централизованной системы водоотведения | S14: Предусмотрено на финансирование мероприятий производственной программы регулируемой организации | T14: Направлено на возврат займов и кредитов, в том числе процентов по займам и кредитам, привлекаемым на реализацию производственной программы и (или) инвестиционной программы (не более 50% от начисленной платы за негативное воздействие на работу ЦСВ) | U14: Налог на прибыль | V14: Подлежит к исключению
A15: ='Общие сведения'!$D$135 -> 2 | L15: =INDEX('Общие сведения'!$J$121:$J$148,MATCH($A15,'Общие сведения'!$D$121:$D$148,0)) -> Тариф 2 (Водоотведение) - тариф на водоотведение | O15: =O16+O17 -> 0 | P15: 0 | Q15: 0 | R15: 0 | S15: 0 | T15: 0 | U15: 0 | V15: 0
A16: =A15 -> 2 | B16: L1 | L16: 1 | M16: Доходы регулируемой организации от взимания платы за нарушение нормативов по объёму и (или) составу сточных вод | N16: тыс.руб. | V16: =O16-P16-Q16-R16-S16-T16-U16 -> 0
A17: =A16 -> 2 | B17: L2 | L17: 2 | M17: Доходы от взимания платы за негативное воздействие на работу централизованной системы водоотведения | N17: тыс.руб. | V17: =O17-P17-Q17-R17-S17-T17-U17 -> 0
L20: Комментарии и обоснования к разделу
L22: Добавить комментарий

Sheet Корректировка НВВ
P1: =god-2 -> 2022 | Q1: =god-2 -> 2022
P2: =P15 -> Факт по данным организации | Q2: =Q15 -> Принято органом регулирования
M11: =tpl_title -> Кемеровская область / 2024 / ООО "ТВК" (ИНН:4202026697, КПП:420201001) / ДПР: 2024-2028
L12: 20. Расчет показателей корректировки необходимой валовой выручки
L14: № п/п | M14: Наименование показателя | N14: Условное обозначение | O14: Единица измерений | P14: =god-2 & " год" -> 2022 год | Q14: =god-2 & " год" -> 2022 год | R14: Комментарии
P15: Факт по данным организации | Q15: Принято органом регулирования
A16: ='Общие сведения'!$D$122 -> 1 | B16: =INDEX('Общие сведения'!$H$121:$H$148,MATCH($A16,'Общие сведения'!$D$121:$D$148,0)) -> Водоснабжение | L16: =INDEX('Общие сведения'!$J$121:$J$148,MATCH($A16,'Общие сведения'!$D$121:$D$148,0)) -> Тариф 1 (Водоснабжение) - тариф на питьевую воду
A17: =A16 -> 1 | D17: L1 | L17: I | M17: Расчет размера корректировки необходимой валовой выручки по результатам деятельности прошлых периодов регулирования, а также осуществляемой с целью учета отклонения фактических значений параметров расчета тарифов от значений, учтенных при установлении | N17: ΔHBBKi-2 | O17: тыс.руб. | P17: =P19-P18 -> 0 | Q17: =Q19-Q18 -> 0
A18: =A17 -> 1 | D18: L1_1 | L18: 1 | M18: Товарная выручка | N18: ТВФi-2 | O18: тыс.руб.
A19: 1 | D19: L1_2 | L19: 2 | M19: Скорректированная фактическая величина необходимой валовой выручки | N19: HBBФi-2 | O19: тыс.руб. | P19: =P20+P21+P33+P37+P38+P39+P40+P44 -> 0 | Q19: =Q20+Q21+Q33+Q37+Q38+Q39+Q40+Q44 -> 0
A20: 1 | D20: L1_2_1 | L20: 2.1 | M20: Операционные расходы, определенные на (i-2)-й год исходя из фактических значений параметров расчета тарифов | N20: ОРФi-2 | O20: тыс.руб.
A21: 1 | D21: L1_2_2 | L21: 2.2 | M21: фактические документально подтвержденные неподконтрольные расходы, в том числе: | N21: Н РФi-2 | O21: тыс.руб. | P21: =SUM(P22:P32) -> 0 | Q21: =SUM(Q22:Q32) -> 0
A22: 1 | D22: L1_2_2_1 | L22: 2.2.1 | M22: расходы на оплату товаров (услуг, работ), приобретаемых у других организаций, осуществляющих регулируемые виды деятельности; | O22: тыс.руб. | P22: =SUMIFS(Покупка!P$15:P$54,Покупка!$A$15:$A$54,$A22,Покупка!$B$15:$B$54,"Итого") -> 0 | Q22: =SUMIFS(Покупка!Q$15:Q$54,Покупка!$A$15:$A$54,$A22,Покупка!$B$15:$B$54,"Итого") -> 0
A23: 1 | D23: L1_2_2_2 | L23: 2.2.2 | M23: расходы на реагенты | O23: тыс.руб. | Q23: =SUMIFS(Реагенты!Q$15:Q$29,Реагенты!$A$15:$A$29,$A23,Реагенты!$M$15:$M$29,"Всего по тарифу") -> 0
A24: 1 | D24: L1_2_2_3 | L24: 2.2.3 | M24: расходы на уплату налогов, сборов и других обязательных платежей | O24: тыс.руб.
A25: 1 | B25: Расходы на мероприятия по защите централизованных систем водоснабжения | D25: L1_2_2_4 | L25: 2.2.4 | M25: Расходы на мероприятия по защите централизованных систем водоснабжения и (или) водоотведения и их отдельных объектов от угроз техногенного, природного характера и террористических актов, по предотвращению возникновения аварийных ситуаций, снижению риска и смягчению последствий чрезвычайных ситуаций (за исключением мероприятий, включенных в инвестиционную программу) | O25: тыс.руб.
A26: 1 | B26: Арендная и концессионная плата, лизинговые платежи | D26: L1_2_2_5 | L26: 2.2.5 | M26: расходы на арендную и концессионную плату, лизинговые платежи | O26: тыс.руб.
A27: 1 | B27: резерв по сомнительным долгам гарантирующей организации | D27: L1_2_2_6 | L27: 2.2.6 | M27: расходы по сомнительным долгам для гарантирующей организации | O27: тыс.руб.
A28: 1 | B28: Экономия расходов | D28: L1_2_2_7 | L28: 2.2.7 | M28: экономия средств, достигнутая в результате снижения расходов предыдущего долгосрочного периода регулирования | O28: тыс.руб.
A29: 1 | B29: Расходы на обслуживание бесхозяйных сетей | D29: L1_2_2_8 | L29: 2.2.8 | M29: расходы на обслуживание бесхозяйных сетей, эксплуатируемых регулируемой организацией | O29: тыс.руб.
A30: 1 | B30: Расходы на компенсацию экономически обоснованных расходов | D30: L1_2_2_9 | L30: 2.2.9 | M30: расходы на компенсацию экономически обоснованных расходов (выпадающих доходов прошлых периодов) | O30: тыс.руб.
A31: 1 | B31: Займы и кредиты (для метода индексации) | D31: L1_2_2_10 | L31: 2.2.10 | M31: расходы на займы и кредиты (для метода индексации) | O31: тыс.руб.
A32: 1 | B32: Расходы концессионера на осуществление государственного кадастрового учета | D32: L1_2_2_11 | L32: 2.2.11 | M32: расходы концессионера на осуществление государственного кадастрового учета и (или) государственной регистрации права собственности концедента | O32: тыс.руб.
A33: 1 | D33: L1_2_3 | L33: 2.3 | M33: расходы на электрическую энергию | N33: РТФi-2 | O33: тыс.руб.
A34: 1 | D34: L1_2_3_1 | L34: 2.3.1 | M34: удельное потребление электрической энергии, установленное на соответствующий год | N34: УПЭФi-2 | O34: кВтч/куб.м.
A35: 1 | D35: L1_2_3_2 | L35: 2.3.2 | M35: фактический объём поданной воды (принятых сточных вод) | N35: Q ф i-2 | O35: тыс.куб.м.
A36: 1 | D36: L1_2_3_3 | L36: 2.3.3 | M36: фактическая (расчетная) цена на электрическую энергию, определяемая в i-2 году | N36: ЦТ ф i-2 | O36: руб./кВтч
A37: 1 | B37: амортизация | D37: L1_2_4 | L37: 2.4 | M37: расходы на амортизацию в (i-2)-м году, определенные исходя из фактического состава имущества в (i-2)-м году | N37: АФi-2 | O37: тыс.руб.
A38: 1 | D38: L1_2_5 | L38: 2.5 | M38: величина нормативной прибыли | N38: ПРi-2 | O38: тыс.руб.
A39: 1 | B39: Расчетная предпринимательская прибыль гарантирующей организации | D39: L1_2_6 | L39: 2.6 | M39: расчетная предпринимательская прибыль гарантирующей организации | N39: ПРГО Фi-2 | O39: тыс.руб.
A40: 1 | D40: L1_2_7_0 | L40: 2.7 | M40: размер корректировки необходимой валовой выручки, учтенной при регулирования на год i-2 | O40: тыс.руб.
A41: 1 | D41: L1_2_7 | L41: 2.7.1 | M41: величина отклонения показателя ввода объектов системы водоснабжения и (или) водоотведения в эксплуатацию и изменения инвестиционной программы | N41: ΔИi-4 | O41: тыс.руб.
A42: 1 | D42: L1_2_8 | L42: 2.7.2 | M42: степень исполнения регулируемой организацией производственной программы | N42: ΔЦПi-4 | O42: тыс.руб.
A43: 1 | D43: L1_2_10 | L43: 2.7.3 | M43: размер корректировки необходимой валовой выручки по результатам деятельности прошлых периодов регулирования, а также осуществляемой с целью учета отклонения фактических значений параметров расчета тарифов от значений, учтенных при установлении | N43: ΔHBBKi-4 | O43: тыс.руб.
A44: 1 | D44: L1_2_9 | L44: 2.9 | M44: величина изменения необходимой валовой выручки в году i-2, проводимого в целях сглаживания | N44: ΔHBBСi-2 | O44: тыс.руб.
A45: 1 | D45: L2 | L45: II | M45: Расчет размера корректировки необходимой валовой выручки, в случае если на i-2 год применялся метод экономически обоснованных расходов | N45: ΔHBBKi-2 | O45: тыс.руб. | P45: =P46 -> 0 | Q45: =Q46 -> 0
A46: 1 | D46: L2_1 | L46: 1 | M46: Величина, определяющая результаты деятельности регулируемой организации до перехода к регулированию цен (тарифов) на основе долгосрочных параметров регулирования | N46: ΔРЕЗi-2 | O46: тыс.руб. | P46: =P47+P48 -> 0 | Q46: =Q47+Q48 -> 0
A47: 1 | D47: L2_1_1 | L47: 1.1 | M47: экономически обоснованные расходы регулируемой организации, понесенные в периоды регулирования, предшествовавшие переходу к регулированию цен (тарифов) на основе долгосрочных параметров регулирования и не возмещенные регулируемой организации (не учтенные в тарифах) | N47: ΔРЕЗ+i-2 | O47: тыс.руб.
A48: 1 | D48: L2_1_2 | L48: 1.2 | M48: доходы регулируемой организации, необоснованно полученные в периоды регулирования, предшествовавшие переходу к регулированию цен (тарифов) на основе долгосрочных параметров регулирования | N48: ΔРЕЗ-i-2 | O48: тыс.руб.
A49: 1 | D49: L3 | L49: III | M49: Величина отклонения показателя ввода объектов системы водоснабжения и (или) водоотведения в эксплуатацию и изменения инвестиционной программы | N49: ΔИi-2 | O49: тыс.руб.
A50: 1 | D50: L4 | L50: IV | M50: Степень исполнения регулируемой организацией обязательств по созданию и (или) реконструкции объектов концессионного соглашения, по эксплуатации объектов по договору аренды централизованных систем горячего водоснабжения, холодного водоснабжения и (или) водоотведения, отдельных объектов таких систем, находящихся в государственной или муниципальной собственности, по реализации инвестиционной программы, производственной программы при недостижении регулируемой организацией утверждённых плановых значений показателей надежности и качества объектов централизованных систем водоснабжения и (или) водоотведения (корректировка по показателям надежности и качества) | N50: ΔЦПi-2 | O50: тыс.руб.
A51: 1 | C51: =B16="Водоотведение" -> FALSE | D51: L5 | L51: V | M51: Доходы от взимания платы за нарушение нормативов по объёму и (или) составу сточных вод, за исключением направленных целевым образом на внесение платы за негативное воздействие на окружающую среду, компенсацию вреда, причиненного водному объекту, и финансирование мероприятий инвестиционной программы по строительству, реконструкции и модернизации объектов централизованной системы водоотведения (в соответствии с п.14 Методических указаний) | O51: тыс.руб. | Q51: =IFERROR(SUMIFS('Плата за негативное возд'!$V$14:$V$18,'Плата за негативное возд'!$A$14:$A$18,A51,'Плата за негативное возд'!$L$14:$L$18,"1"),0) -> 0
A52: 1 | C52: =B16="Водоотведение" -> FALSE | D52: L6 | L52: VI | M52: Доходы от взимания платы за негативное воздействие на централизованную систему водоотведения, за исключением направленных целевым образом на финансирование мероприятий инвестиционной и (или) производственной программы регулируемой организации (в соответствии с п.14 Методических указаний) | O52: тыс.руб. | Q52: =IFERROR(SUMIFS('Плата за негативное возд'!$V$14:$V$18,'Плата за негативное возд'!$A$14:$A$18,A52,'Плата за негативное возд'!$L$14:$L$18,"2"),0) -> 0
A53: 1 | D53: L7 | L53: VII | M53: Недополученные доходы / Выпадающие расходы | O53: тыс.руб.
A54: 1 | D54: L8 | L54: VIII | M54: Избыток средств, полученный за отчётные периоды регулирования | O54: тыс.руб. | P54: =P55+P56 -> 0 | Q54: =Q55+Q56 -> 0
A55: 1 | D55: L8_1 | L55: 1 | M55: Экономически не обоснованные доходы / расходы прошлых периодов регулирования | O55: тыс.руб.
A56: 1 | D56: L8_2 | L56: 2 | M56: Бюджетные субсидии, полученные на финансирование расходов, учтенных в тарифах | O56: тыс.руб.
A57: 1 | D57: L9 | L57: IX | M57: Величина отклонения по результатам досудебного рассмотрения споров | O57: тыс.руб.
A58: 1 | D58: L10 | L58: X | M58: Величина отклонения по результатам рассмотрения разногласий | O58: тыс.руб.
A59: 1 | D59: L11 | L59: XI | M59: Корректировка НВВ всего | O59: тыс.руб. | P59: =P17+P49+P50+P51+P52+P53+P54+P57+P58 -> 0 | Q59: =Q17+Q49+Q50+Q51+Q52+Q53+Q54+Q57+Q58 -> 0
A60: ='Общие сведения'!$D$135 -> 2 | B60: =INDEX('Общие сведения'!$H$121:$H$148,MATCH($A60,'Общие сведения'!$D$121:$D$148,0)) -> Водоотведение | L60: =INDEX('Общие сведения'!$J$121:$J$148,MATCH($A60,'Общие сведения'!$D$121:$D$148,0)) -> Тариф 2 (Водоотведение) - тариф на водоотведение
A61: =A60 -> 2 | D61: L1 | L61: I | M61: Расчет размера корректировки необходимой валовой выручки по результатам деятельности прошлых периодов регулирования, а также осуществляемой с целью учета отклонения фактических значений параметров расчета тарифов от значений, учтенных при установлении | N61: ΔHBBKi-2 | O61: тыс.руб. | P61: =P63-P62 -> 0 | Q61: =Q63-Q62 -> 0
A62: =A61 -> 2 | D62: L1_1 | L62: 1 | M62: Товарная выручка | N62: ТВФi-2 | O62: тыс.руб.
A63: 2 | D63: L1_2 | L63: 2 | M63: Скорректированная фактическая величина необходимой валовой выручки | N63: HBBФi-2 | O63: тыс.руб. | P63: =P64+P65+P77+P81+P82+P83+P84+P88 -> 0 | Q63: =Q64+Q65+Q77+Q81+Q82+Q83+Q84+Q88 -> 0
A64: 2 | D64: L1_2_1 | L64: 2.1 | M64: Операционные расходы, определенные на (i-2)-й год исходя из фактических значений параметров расчета тарифов | N64: ОРФi-2 | O64: тыс.руб.
A65: 2 | D65: L1_2_2 | L65: 2.2 | M65: фактические документально подтвержденные неподконтрольные расходы, в том числе: | N65: Н РФi-2 | O65: тыс.руб. | P65: =SUM(P66:P76) -> 0 | Q65: =SUM(Q66:Q76) -> 0
A66: 2 | D66: L1_2_2_1 | L66: 2.2.1 | M66: расходы на оплату товаров (услуг, работ), приобретаемых у других организаций, осуществляющих регулируемые виды деятельности; | O66: тыс.руб.
A67: 2 | D67: L1_2_2_2 | L67: 2.2.2 | M67: расходы на реагенты | O67: тыс.руб.
A68: 2 | D68: L1_2_2_3 | L68: 2.2.3 | M68: расходы на уплату налогов, сборов и других обязательных платежей | O68: тыс.руб.
A69: 2 | B69: Расходы на мероприятия по защите централизованных систем водоснабжения | D69: L1_2_2_4 | L69: 2.2.4 | M69: Расходы на мероприятия по защите централизованных систем водоснабжения и (или) водоотведения и их отдельных объектов от угроз техногенного, природного характера и террористических актов, по предотвращению возникновения аварийных ситуаций, снижению риска и смягчению последствий чрезвычайных ситуаций (за исключением мероприятий, включенных в инвестиционную программу) | O69: тыс.руб.
A70: 2 | B70: Арендная и концессионная плата, лизинговые платежи | D70: L1_2_2_5 | L70: 2.2.5 | M70: расходы на арендную и концессионную плату, лизинговые платежи | O70: тыс.руб.
A71: 2 | B71: резерв по сомнительным долгам гарантирующей организации | D71: L1_2_2_6 | L71: 2.2.6 | M71: расходы по сомнительным долгам для гарантирующей организации | O71: тыс.руб.
A72: 2 | B72: Экономия расходов | D72: L1_2_2_7 | L72: 2.2.7 | M72: экономия средств, достигнутая в результате снижения расходов предыдущего долгосрочного периода регулирования | O72: тыс.руб.
A73: 2 | B73: Расходы на обслуживание бесхозяйных сетей | D73: L1_2_2_8 | L73: 2.2.8 | M73: расходы на обслуживание бесхозяйных сетей, эксплуатируемых регулируемой организацией | O73: тыс.руб.
A74: 2 | B74: Расходы на компенсацию экономически обоснованных расходов | D74: L1_2_2_9 | L74: 2.2.9 | M74: расходы на компенсацию экономически обоснованных расходов (выпадающих доходов прошлых периодов) | O74: тыс.руб.
A75: 2 | B75: Займы и кредиты (для метода индексации) | D75: L1_2_2_10 | L75: 2.2.10 | M75: расходы на займы и кредиты (для метода индексации) | O75: тыс.руб.
A76: 2 | B76: Расходы концессионера на осуществление государственного кадастрового учета | D76: L1_2_2_11 | L76: 2.2.11 | M76: расходы концессионера на осуществление государственного кадастрового учета и (или) государственной регистрации права собственности концедента | O76: тыс.руб.
A77: 2 | D77: L1_2_3 | L77: 2.3 | M77: расходы на электрическую энергию | N77: РТФi-2 | O77: тыс.руб.
A78: 2 | D78: L1_2_3_1 | L78: 2.3.1 | M78: удельное потребление электрической энергии, установленное на соответствующий год | N78: УПЭФi-2 | O78: кВтч/куб.м.
A79: 2 | D79: L1_2_3_2 | L79: 2.3.2 | M79: фактический объём поданной воды (принятых сточных вод) | N79: Q ф i-2 | O79: тыс.куб.м.
A80: 2 | D80: L1_2_3_3 | L80: 2.3.3 | M80: фактическая (расчетная) цена на электрическую энергию, определяемая в i-2 году | N80: ЦТ ф i-2 | O80: руб./кВтч
A81: 2 | B81: амортизация | D81: L1_2_4 | L81: 2.4 | M81: расходы на амортизацию в (i-2)-м году, определенные исходя из фактического состава имущества в (i-2)-м году | N81: АФi-2 | O81: тыс.руб.
A82: 2 | D82: L1_2_5 | L82: 2.5 | M82: величина нормативной прибыли | N82: ПРi-2 | O82: тыс.руб.
A83: 2 | B83: Расчетная предпринимательская прибыль гарантирующей организации | D83: L1_2_6 | L83: 2.6 | M83: расчетная предпринимательская прибыль гарантирующей организации | N83: ПРГО Фi-2 | O83: тыс.руб.
A84: 2 | D84: L1_2_7_0 | L84: 2.7 | M84: размер корректировки необходимой валовой выручки, учтенной при регулирования на год i-2 | O84: тыс.руб.
A85: 2 | D85: L1_2_7 | L85: 2.7.1 | M85: величина отклонения показателя ввода объектов системы водоснабжения и (или) водоотведения в эксплуатацию и изменения инвестиционной программы | N85: ΔИi-4 | O85: тыс.руб.
A86: 2 | D86: L1_2_8 | L86: 2.7.2 | M86: степень исполнения регулируемой организацией производственной программы | N86: ΔЦПi-4 | O86: тыс.руб.
A87: 2 | D87: L1_2_10 | L87: 2.7.3 | M87: размер корректировки необходимой валовой выручки по результатам деятельности прошлых периодов регулирования, а также осуществляемой с целью учета отклонения фактических значений параметров расчета тарифов от значений, учтенных при установлении | N87: ΔHBBKi-4 | O87: тыс.руб.
A88: 2 | D88: L1_2_9 | L88: 2.9 | M88: величина изменения необходимой валовой выручки в году i-2, проводимого в целях сглаживания | N88: ΔHBBСi-2 | O88: тыс.руб.
A89: 2 | D89: L2 | L89: II | M89: Расчет размера корректировки необходимой валовой выручки, в случае если на i-2 год применялся метод экономически обоснованных расходов | N89: ΔHBBKi-2 | O89: тыс.руб. | P89: =P90 -> 0 | Q89: =Q90 -> 0
A90: 2 | D90: L2_1 | L90: 1 | M90: Величина, определяющая результаты деятельности регулируемой организации до перехода к регулированию цен (тарифов) на основе долгосрочных параметров регулирования | N90: ΔРЕЗi-2 | O90: тыс.руб. | P90: =P91+P92 -> 0 | Q90: =Q91+Q92 -> 0
A91: 2 | D91: L2_1_1 | L91: 1.1 | M91: экономически обоснованные расходы регулируемой организации, понесенные в периоды регулирования, предшествовавшие переходу к регулированию цен (тарифов) на основе долгосрочных параметров регулирования и не возмещенные регулируемой организации (не учтенные в тарифах) | N91: ΔРЕЗ+i-2 | O91: тыс.руб.
A92: 2 | D92: L2_1_2 | L92: 1.2 | M92: доходы регулируемой организации, необоснованно полученные в периоды регулирования, предшествовавшие переходу к регулированию цен (тарифов) на основе долгосрочных параметров регулирования | N92: ΔРЕЗ-i-2 | O92: тыс.руб.
A93: 2 | D93: L3 | L93: III | M93: Величина отклонения показателя ввода объектов системы водоснабжения и (или) водоотведения в эксплуатацию и изменения инвестиционной программы | N93: ΔИi-2 | O93: тыс.руб.
A94: 2 | D94: L4 | L94: IV | M94: Степень исполнения регулируемой организацией обязательств по созданию и (или) реконструкции объектов концессионного соглашения, по эксплуатации объектов по договору аренды централизованных систем горячего водоснабжения, холодного водоснабжения и (или) водоотведения, отдельных объектов таких систем, находящихся в государственной или муниципальной собственности, по реализации инвестиционной программы, производственной программы при недостижении регулируемой организацией утверждённых плановых значений показателей надежности и качества объектов централизованных систем водоснабжения и (или) водоотведения (корректировка по показателям надежности и качества) | N94: ΔЦПi-2 | O94: тыс.руб.
A95: 2 | C95: =B60="Водоотведение" -> TRUE | D95: L5 | L95: V | M95: Доходы от взимания платы за нарушение нормативов по объёму и (или) составу сточных вод, за исключением направленных целевым образом на внесение платы за негативное воздействие на окружающую среду, компенсацию вреда, причиненного водному объекту, и финансирование мероприятий инвестиционной программы по строительству, реконструкции и модернизации объектов централизованной системы водоотведения (в соответствии с п.14 Методических указаний) | O95: тыс.руб. | Q95: =IFERROR(SUMIFS('Плата за негативное возд'!$V$14:$V$18,'Плата за негативное возд'!$A$14:$A$18,A95,'Плата за негативное возд'!$L$14:$L$18,"1"),0) -> 0
A96: 2 | C96: =B60="Водоотведение" -> TRUE | D96: L6 | L96: VI | M96: Доходы от взимания платы за негативное воздействие на централизованную систему водоотведения, за исключением направленных целевым образом на финансирование мероприятий инвестиционной и (или) производственной программы регулируемой организации (в соответствии с п.14 Методических указаний) | O96: тыс.руб. | Q96: =IFERROR(SUMIFS('Плата за негативное возд'!$V$14:$V$18,'Плата за негативное возд'!$A$14:$A$18,A96,'Плата за негативное возд'!$L$14:$L$18,"2"),0) -> 0
A97: 2 | D97: L7 | L97: VII | M97: Недополученные доходы / Выпадающие расходы | O97: тыс.руб.
A98: 2 | D98: L8 | L98: VIII | M98: Избыток средств, полученный за отчётные периоды регулирования | O98: тыс.руб. | P98: =P99+P100 -> 0 | Q98: =Q99+Q100 -> 0
A99: 2 | D99: L8_1 | L99: 1 | M99: Экономически не обоснованные доходы / расходы прошлых периодов регулирования | O99: тыс.руб.
A100: 2 | D100: L8_2 | L100: 2 | M100: Бюджетные субсидии, полученные на финансирование расходов, учтенных в тарифах | O100: тыс.руб.
A101: 2 | D101: L9 | L101: IX | M101: Величина отклонения по результатам досудебного рассмотрения споров | O101: тыс.руб.
A102: 2 | D102: L10 | L102: X | M102: Величина отклонения по результатам рассмотрения разногласий | O102: тыс.руб.
A103: 2 | D103: L11 | L103: XI | M103: Корректировка НВВ всего | O103: тыс.руб. | P103: =P61+P93+P94+P95+P96+P97+P98+P101+P102 -> 0 | Q103: =Q61+Q93+Q94+Q95+Q96+Q97+Q98+Q101+Q102 -> 0
L105: Комментарии и обоснования к разделу
L107: Добавить комментарий

Sheet Калькуляция
O1: =god-2 -> 2022 | P1: =god-2 -> 2022 | Q1: =god-2 -> 2022 | R1: =god-2 -> 2022 | S1: =god-1 -> 2023 | T1: =god -> 2024 | U1: =god+1 -> 2025 | V1: =god+2 -> 2026 | W1: =god+3 -> 2027 | X1: =god+4 -> 2028 | Y1: =god+5 -> 2029 | Z1: =god+6 -> 2030 | AA1: =god+7 -> 2031 | AB1: =god+8 -> 2032 | AC1: =god+9 -> 2033 | AD1: =god -> 2024 | AE1: =god+1 -> 2025 | AF1: =god+2 -> 2026 | AG1: =god+3 -> 2027 | AH1: =god+4 -> 2028 | AI1: =god+5 -> 2029 | AJ1: =god+6 -> 2030 | AK1: =god+7 -> 2031 | AL1: =god+8 -> 2032 | AM1: =god+9 -> 2033 | AN1: =god -> 2024 | AO1: =god+1 -> 2025 | AP1: =god+2 -> 2026 | AQ1: =god+3 -> 2027 | AR1: =god+4 -> 2028 | AS1: =god+5 -> 2029 | AT1: =god+6 -> 2030 | AU1: =god+7 -> 2031 | AV1: =god+8 -> 2032 | AW1: =god+9 -> 2033
O2: =O15 -> Принято органом регулирования | P2: =P15 -> Факт по данным организации | Q2: =Q15 -> Факт, принятый органом регулирования | R2: =R15 -> отклонение факта по данным организации к факту принятому органом регулирования | S2: =S15 -> Принято органом регулирования | T2: =$T$15 -> Предложение организации | U2: =$T$15 -> Предложение организации | V2: Предложение организации | W2: Предложение организации | X2: Предложение организации | Y2: Предложение организации | Z2: Предложение организации | AA2: Предложение организации | AB2: Предложение организации | AC2: Предложение организации | AD2: =$AD$15 -> Принято органом регулирования | AE2: =$AD$15 -> Принято органом регулирования | AF2: Принято органом регулирования | AG2: Принято органом регулирования | AH2: Принято органом регулирования | AI2: Принято органом регулирования | AJ2: Принято органом регулирования | AK2: Принято органом регулирования | AL2: Принято органом регулирования | AM2: Принято органом регулирования
O3: =O1&O2 -> 2022Принято органом регулирования | P3: 2022Факт по данным организации | Q3: 2022Факт, принятый органом регулирования | R3: 2022отклонение факта по данным организации к факту принятому органом регулирования | S3: 2023Принято органом регулирования | T3: 2024Предложение организации | U3: =U1&U2 -> 2025Предложение организации | V3: 2026Предложение организации | W3: 2027Предложение организации | X3: 2028Предложение организации | Y3: 2029Предложение организации | Z3: 2030Предложение организации | AA3: 2031Предложение организации | AB3: 2032Предложение организации | AC3: 2033Предложение организации | AD3: 2024Принято органом регулирования | AE3: 2025Принято органом регулирования | AF3: 2026Принято органом регулирования | AG3: 2027Принято органом регулирования | AH3: 2028Принято органом регулирования | AI3: 2029Принято органом регулирования | AJ3: 2030Принято органом регулирования | AK3: 2031Принято органом регулирования | AL3: 2032Принято органом регулирования | AM3: 2033Принято органом регулирования
T7: =T1<=last_year_vis -> TRUE | U7: TRUE | V7: TRUE | W7: TRUE | X7: TRUE | Y7: FALSE | Z7: FALSE | AA7: FALSE | AB7: FALSE | AC7: FALSE | AD7: TRUE | AE7: TRUE | AF7: TRUE | AG7: TRUE | AH7: TRUE | AI7: FALSE | AJ7: FALSE | AK7: FALSE | AL7: FALSE | AM7: FALSE | AN7: TRUE | AO7: TRUE | AP7: TRUE | AQ7: TRUE | AR7: TRUE | AS7: FALSE | AT7: FALSE | AU7: FALSE | AV7: FALSE | AW7: FALSE
M11: =tpl_title -> Кемеровская область / 2024 / ООО "ТВК" (ИНН:4202026697, КПП:420201001) / ДПР: 2024-2028
L12: 21. Расчет тарифа методом индексации
L14: № п/п | M14: Наименование показателя | N14: Единица измерения | O14: =god-2 & " год" -> 2022 год | P14: =god-2 & " год" -> 2022 год | Q14: =god-2 & " год" -> 2022 год | R14: =god-2 & " год" -> 2022 год | S14: =god-1 & " год" -> 2023 год | T14: =god & " год" -> 2024 год | U14: =god+1 & " год" -> 2025 год | V14: =god+2 & " год" -> 2026 год | W14: =god+3 & " год" -> 2027 год | X14: =god+4 & " год" -> 2028 год | Y14: =god+5 & " год" -> 2029 год | Z14: =god+6 & " год" -> 2030 год | AA14: =god+7 & " год" -> 2031 год | AB14: =god+8 & " год" -> 2032 год | AC14: =god+9 & " год" -> 2033 год | AD14: =god & " год" -> 2024 год | AE14: =god+1 & " год" -> 2025 год | AF14: =god+2 & " год" -> 2026 год | AG14: =god+3 & " год" -> 2027 год | AH14: =god+4 & " год" -> 2028 год | AI14: =god+5 & " год" -> 2029 год | AJ14: =god+6 & " год" -> 2030 год | AK14: =god+7 & " год" -> 2031 год | AL14: =god+8 & " год" -> 2032 год | AM14: =god+9 & " год" -> 2033 год | AN14: =god & " год" -> 2024 год | AO14: =god+1 & " год" -> 2025 год | AP14: =god+2 & " год" -> 2026 год | AQ14: =god+3 & " год" -> 2027 год | AR14: =god+4 & " год" -> 2028 год | AS14: =god+5 & " год" -> 2029 год | AT14: =god+6 & " год" -> 2030 год | AU14: =god+7 & " год" -> 2031 год | AV14: =god+8 & " год" -> 2032 год | AW14: =god+9 & " год" -> 2033 год | AX14: Указание на подтверждающие документы / URL-ссылка на копии подтверждающих документов | AY14: Ссылка на правовую норму (основание для принятия показателя в расчет тарифа) | AZ14: Обоснование причин, на основании которых принято решение об исключении из расчета тарифов экономически не обоснованных расходов, учтенных регулируемой организацией в предложении об установлении тарифов
O15: Принято органом регулирования | P15: Факт по данным организации | Q15: Факт, принятый органом регулирования | R15: отклонение факта по данным организации к факту принятому органом регулирования | S15: Принято органом регулирования | T15: Предложение организации | U15: Предложение организации | V15: Предложение организации | W15: Предложение организации | X15: Предложение организации | Y15: Предложение организации | Z15: Предложение организации | AA15: Предложение организации | AB15: Предложение организации | AC15: Предложение организации | AD15: Принято органом регулирования | AE15: Принято органом регулирования | AF15: Принято органом регулирования | AG15: Принято органом регулирования | AH15: Принято органом регулирования | AI15: Принято органом регулирования | AJ15: Принято органом регулирования | AK15: Принято органом регулирования | AL15: Принято органом регулирования | AM15: Принято органом регулирования | AN15: Сравнительный анализ динамики НВВ, в том числе расходов по отдельным статьям (группам расходов), прибыли и их величины по отношению к предыдущим периодам регулирования, %
A16: ='Общие сведения'!$D$122 -> 1 | B16: =INDEX('Общие сведения'!$N$121:$N$148,MATCH($A16,'Общие сведения'!$D$121:$D$148,0)) -> одноставочный | D16: =INDEX('Общие сведения'!$H$121:$H$148,MATCH($A16,'Общие сведения'!$D$121:$D$148,0)) -> Водоснабжение | L16: =INDEX('Общие сведения'!$J$121:$J$148,MATCH($A16,'Общие сведения'!$D$121:$D$148,0)) -> Тариф 1 (Водоснабжение) - тариф на питьевую воду
A17: =A16 -> 1 | D17: L1 | L17: 1 | M17: Операционные расходы | N17: тыс.руб. | O17: =SUM(O19,O36,O42,O62,O63,O64) -> 5302.469929 | P17: =SUM(P19,P36,P42,P62,P63,P64) -> 6418.20656 | Q17: =SUM(Q19,Q36,Q42,Q62,Q63,Q64) -> 5900.802262 | R17: =Q17-P17 -> -517.404298 | S17: =SUM(S19,S36,S42,S62,S63,S64) -> 6116.700893 | T17: =SUM(T19,T36,T42,T62,T63,T64) -> 8938.079574 | U17: =T17*U18 -> 9295.602757 | V17: 9667.426868 | W17: 10054.12394 | X17: 10456.2889 | Y17: 10456.2889 | Z17: 10456.2889 | AA17: 10456.2889 | AB17: 10456.2889 | AC17: 10456.2889 | AD17: =SUM(AD19,AD36,AD42,AD62,AD63,AD64) -> 6219.40177 | AE17: =AD17*AE18 -> 6415.810478 | AF17: 6605.718468 | AG17: 6801.247734 | AH17: 7002.564667 | AI17: 7002.564667 | AJ17: 7002.564667 | AK17: 7002.564667 | AL17: 7002.564667 | AM17: 7002.564667 | AN17: =IF(S17=0,0,(AD17-S17)/S17*100) -> 1.679024019 | AO17: =IF(AD17=0,0,(AE17-AD17)/AD17*100) -> 3.158 | AP17: 2.96 | AQ17: 2.96 | AR17: 2.96 | AS17: 0 | AT17: 0 | AU17: 0 | AV17: 0 | AW17: 0 | AY17: П. 88, 44 - 48, 17 -26 Методических указаний ФСТ № 1746-э. | AZ17: Плановые расходы на 2024 год (Базовый уровень Операционных расходов) рассчитаны методом экономически обоснованных расходов в соответствии с пунктами 17 -26 Методических указаний. Плановые расходы на 2024-2028 гг. - в соответствии с Формулой (8) (пункт 45 Методических указаний), исходя из Базового уровня Операционных расходов, индексов эффективности Операционных расходов на 2024-2028 гг. в размере 1; индексов изменения количества активов на 2024-2028 гг. в размере 0; индексов потребительских цен (ИПЦ) Минэкономразвития России 104,2% на 2025 г., 104,0% на 2026-2028 гг.
A18: =A17 -> 1 | D18: L1_1 | L18: 1.1 | M18: коэффициент индекса операционных расходов | R18: 0 | U18: =SUMIFS(INDEX(Сценарии!$O$15:$AP$53,,MATCH(U$3,Сценарии!$O$3:$AP$3,0)),Сценарии!$A$15:$A$53,$A18,Сценарии!$B$15:$B$53,"ИОР") -> 1.04 | V18: =SUMIFS(INDEX(Сценарии!$O$15:$AP$53,,MATCH(V$3,Сценарии!$O$3:$AP$3,0)),Сценарии!$A$15:$A$53,$A18,Сценарии!$B$15:$B$53,"ИОР") -> 1.04 | W18: =SUMIFS(INDEX(Сценарии!$O$15:$AP$53,,MATCH(W$3,Сценарии!$O$3:$AP$3,0)),Сценарии!$A$15:$A$53,$A18,Сценарии!$B$15:$B$53,"ИОР") -> 1.04 | X18: =SUMIFS(INDEX(Сценарии!$O$15:$AP$53,,MATCH(X$3,Сценарии!$O$3:$AP$3,0)),Сценарии!$A$15:$A$53,$A18,Сценарии!$B$15:$B$53,"ИОР") -> 1.04 | Y18: =SUMIFS(INDEX(Сценарии!$O$15:$AP$53,,MATCH(Y$3,Сценарии!$O$3:$AP$3,0)),Сценарии!$A$15:$A$53,$A18,Сценарии!$B$15:$B$53,"ИОР") -> 1 | Z18: =SUMIFS(INDEX(Сценарии!$O$15:$AP$53,,MATCH(Z$3,Сценарии!$O$3:$AP$3,0)),Сценарии!$A$15:$A$53,$A18,Сценарии!$B$15:$B$53,"ИОР") -> 1 | AA18: =SUMIFS(INDEX(Сценарии!$O$15:$AP$53,,MATCH(AA$3,Сценарии!$O$3:$AP$3,0)),Сценарии!$A$15:$A$53,$A18,Сценарии!$B$15:$B$53,"ИОР") -> 1 | AB18: =SUMIFS(INDEX(Сценарии!$O$15:$AP$53,,MATCH(AB$3,Сценарии!$O$3:$AP$3,0)),Сценарии!$A$15:$A$53,$A18,Сценарии!$B$15:$B$53,"ИОР") -> 1 | AC18: =SUMIFS(INDEX(Сценарии!$O$15:$AP$53,,MATCH(AC$3,Сценарии!$O$3:$AP$3,0)),Сценарии!$A$15:$A$53,$A18,Сценарии!$B$15:$B$53,"ИОР") -> 1 | AE18: =SUMIFS(INDEX(Сценарии!$O$15:$AP$53,,MATCH(AE$3,Сценарии!$O$3:$AP$3,0)),Сценарии!$A$15:$A$53,$A18,Сценарии!$B$15:$B$53,"ИОР") -> 1.03158 | AF18: =SUMIFS(INDEX(Сценарии!$O$15:$AP$53,,MATCH(AF$3,Сценарии!$O$3:$AP$3,0)),Сценарии!$A$15:$A$53,$A18,Сценарии!$B$15:$B$53,"ИОР") -> 1.0296 | AG18: =SUMIFS(INDEX(Сценарии!$O$15:$AP$53,,MATCH(AG$3,Сценарии!$O$3:$AP$3,0)),Сценарии!$A$15:$A$53,$A18,Сценарии!$B$15:$B$53,"ИОР") -> 1.0296 | AH18: =SUMIFS(INDEX(Сценарии!$O$15:$AP$53,,MATCH(AH$3,Сценарии!$O$3:$AP$3,0)),Сценарии!$A$15:$A$53,$A18,Сценарии!$B$15:$B$53,"ИОР") -> 1.0296 | AI18: =SUMIFS(INDEX(Сценарии!$O$15:$AP$53,,MATCH(AI$3,Сценарии!$O$3:$AP$3,0)),Сценарии!$A$15:$A$53,$A18,Сценарии!$B$15:$B$53,"ИОР") -> 1 | AJ18: =SUMIFS(INDEX(Сценарии!$O$15:$AP$53,,MATCH(AJ$3,Сценарии!$O$3:$AP$3,0)),Сценарии!$A$15:$A$53,$A18,Сценарии!$B$15:$B$53,"ИОР") -> 1 | AK18: =SUMIFS(INDEX(Сценарии!$O$15:$AP$53,,MATCH(AK$3,Сценарии!$O$3:$AP$3,0)),Сценарии!$A$15:$A$53,$A18,Сценарии!$B$15:$B$53,"ИОР") -> 1 | AL18: =SUMIFS(INDEX(Сценарии!$O$15:$AP$53,,MATCH(AL$3,Сценарии!$O$3:$AP$3,0)),Сценарии!$A$15:$A$53,$A18,Сценарии!$B$15:$B$53,"ИОР") -> 1 | AM18: =SUMIFS(INDEX(Сценарии!$O$15:$AP$53,,MATCH(AM$3,Сценарии!$O$3:$AP$3,0)),Сценарии!$A$15:$A$53,$A18,Сценарии!$B$15:$B$53,"ИОР") -> 1 | AN18: =IF(S18=0,0,(AD18-S18)/S18*100) -> 0
A19: 1 | D19: L1_2 | L19: 1.2 | M19: Производственные расходы: | N19: тыс.руб. | O19: =SUM(O20,O23,O24,O27,O28) -> 2623.488327 | P19: =SUM(P20,P23,P24,P27,P28) -> 5160.38524 | Q19: =SUM(Q20,Q23,Q24,Q27,Q28) -> 3531.25502 | R19: -1629.13022 | S19: =SUM(S20,S23,S24,S27,S28) -> 3026.34312 | T19: =SUM(T20,T23,T24,T27,T28) -> 5643.582571 | AD19: =SUM(AD20,AD23,AD24,AD27,AD28) -> 4701.795108 | AN19: =IF(S19=0,0,(AD19-S19)/S19*100) -> 55.36226137 | AY19: П. 18 Методических указаний ФСТ № 1746-э.
A20: 1 | D20: L1_2_1 | L20: 1.2.1 | M20: расходы на приобретение сырья и материалов и их хранение, в том числе: | N20: тыс.руб. | O20: =SUM(O21,O22) -> 0 | P20: =SUM(P21,P22) -> 0 | Q20: =SUM(Q21,Q22) -> 0 | R20: 0 | S20: =SUM(S21,S22) -> 0 | T20: =SUM(T21,T22) -> 70.48 | AD20: =SUM(AD21,AD22) -> 22.97683958 | AN20: =IF(S20=0,0,(AD20-S20)/S20*100) -> 0 | AY20: П 16, 19 Методических указаний ФСТ № 1746-э.
A21: 1 | D21: L1_2_1_1 | L21: 1.2.1.1 | M21: горюче-смазочные материалы | N21: тыс.руб. | R21: 0 | T21: 70.48 | AD21: 22.97683958 | AN21: 0 | AZ21: Среднегодовые фактические расходы ГСМ за 2020 г. ( 47,55 тыс. руб.), за 2021 г. ( 2,67 тыс. руб.) и за 2022 г. ( 0,00 тыс. руб.), приведенные к ценам 2022 г. с применением ИПЦ Минэкономразвития России 106,7% на 2021 г. и 113,8% на 2022 г.: ( 47,55 * 1,067 * 1,138 + 2,67 * 1,138 + 0,00 ) / 3 = 20,26 тыс. руб. С учетом ИПЦ Минэкономразвития России 105,8% на 2023 г. и 107,2% на 2024 г.: 20,26 тыс. руб. * 1,058 * 1,072 = 22,98 тыс. руб.
A22: 1 | D22: L1_2_1_2 | L22: 1.2.1.2 | M22: материалы и малоценные основные средства | N22: тыс.руб. | R22: 0 | AN22: 0
A23: 1 | D23: L1_2_2 | L23: 1.2.2 | M23: расходы на оплату регулируемыми организациями выполняемых сторонними организациями работ и (или) услуг | N23: тыс.руб. | O23: 117.0371006 | P23: 838.24 | Q23: =(177.29-104) -> 73.29 | R23: -764.95 | S23: 135.0089576 | T23: 473.63 | AD23: =(177.29-104)*1.058*1.072 -> 83.12375904 | AN23: -38.4309304 | AY23: П. 18 (3) Методических указаний ФСТ № 1746-э. | AZ23: В размере фактических затрат 2022 г. на услуги производственного характера (за вычетом услуг лабораторий, учтенных по п. 1.2.5.5), с учетом ИПЦ Минэкономразвития Россиии 105,8% на 2023 г. и 107,2% на 2024 г.
A24: 1 | D24: L1_2_3 | L24: 1.2.3 | M24: расходы на оплату труда и страховые взносы на обязательное социальное страхование основного производственного персонала, в том числе: | N24: тыс.руб. | O24: =O25+O26 -> 2386.871532 | P24: =P25+P26 -> 4322.14524 | Q24: =Q25+Q26 -> 3353.96502 | R24: -968.18022 | S24: =S25+S26 -> 2753.392178 | T24: =T25+T26 -> 5099.472571 | AD24: =AD25+AD26 -> 4477.740206 | AN24: =IF(S24=0,0,(AD24-S24)/S24*100) -> 62.62631387 | AY24: П. 17 "Методических указаний" (приказ ФСТ от 27.12.2013 № 1746-э).
A25: 1 | B25: ПП | D25: L1_2_3_1 | L25: 1.2.3.1 | M25: расходы на оплату труда основного производственного персонала | N25: тыс.руб. | O25: =SUMIFS(ФОТ!O$15:O$65,ФОТ!$A$15:$A$65,$A25,ФОТ!$B$15:$B$65,$B25) -> 1833.234663 | P25: =SUMIFS(ФОТ!P$15:P$65,ФОТ!$A$15:$A$65,$A25,ФОТ!$B$15:$B$65,$B25) -> 3319.62 | Q25: =SUMIFS(ФОТ!Q$15:Q$65,ФОТ!$A$15:$A$65,$A25,ФОТ!$B$15:$B$65,$B25) -> 2576.01 | R25: -743.61 | S25: =SUMIFS(ФОТ!R$15:R$65,ФОТ!$A$15:$A$65,$A25,ФОТ!$B$15:$B$65,$B25) -> 2114.740536 | T25: =SUMIFS(ФОТ!S$15:S$65,ФОТ!$A$15:$A$65,$A25,ФОТ!$B$15:$B$65,$B25) -> 3916.6456 | AD25: =SUMIFS(ФОТ!T$15:T$65,ФОТ!$A$15:$A$65,$A25,ФОТ!$B$15:$B$65,$B25) -> 3439.124582 | AN25: =IF(S25=0,0,(AD25-S25)/S25*100) -> 62.62631387 | AY25: 1) "Федеральное отраслевое тарифное соглашение в жилищно-коммунальном хозяйстве Российской Федерации на 2023 - 2025 годы" (утв. Общероссийским отраслевым объединением работодателей сферы жизнеобеспечения, Общероссийским профсоюзом работников жизнеобеспечения 12.05.2022) (ред. от 05.12.2022). 2) "Кузбасское региональное соглашение между Кемеровским областным союзом организаций профсоюзов "Федерация профсоюзных организаций Кузбасса", Правительством Кемеровской области - Кузбасса и работодателями Кемеровской области - Кузбасса на 2022 - 2024 годы" (Подписано 07.10.2021). 3) Приказ Министерства строительства и ЖКХ Российской Федерации от 23.03.2020 № 154/пр "Об утверждении Типовых отраслевых норм численности работников водопроводно-канализационного хозяйства". | AZ25: См. Лист "ФОТ".
A26: 1 | B26: СОЦ_ПП | D26: L1_2_3_2 | L26: 1.2.3.2 | M26: страховые взносы на обязательное социальное страхование основного производственного персонала | N26: тыс.руб. | O26: =SUMIFS(ФОТ!O$15:O$65,ФОТ!$A$15:$A$65,$A26,ФОТ!$B$15:$B$65,$B26) -> 553.6368683 | P26: =SUMIFS(ФОТ!P$15:P$65,ФОТ!$A$15:$A$65,$A26,ФОТ!$B$15:$B$65,$B26) -> 1002.52524 | Q26: =SUMIFS(ФОТ!Q$15:Q$65,ФОТ!$A$15:$A$65,$A26,ФОТ!$B$15:$B$65,$B26) -> 777.95502 | R26: -224.57022 | S26: =SUMIFS(ФОТ!R$15:R$65,ФОТ!$A$15:$A$65,$A26,ФОТ!$B$15:$B$65,$B26) -> 638.6516419 | T26: =SUMIFS(ФОТ!S$15:S$65,ФОТ!$A$15:$A$65,$A26,ФОТ!$B$15:$B$65,$B26) -> 1182.826971 | AD26: =SUMIFS(ФОТ!T$15:T$65,ФОТ!$A$15:$A$65,$A26,ФОТ!$B$15:$B$65,$B26) -> 1038.615624 | AN26: =IF(S26=0,0,(AD26-S26)/S26*100) -> 62.62631387 | AY26: 1) Глава 34 "СТРАХОВЫЕ ВЗНОСЫ" "Налогового кодекса Российской Федерации (Часть вторая)" (в ред. от 10.07.2023 № 318-ФЗ); 2) Федеральные законы от 22.12.2005 № 179-ФЗ, от 31.12.2017 № 484-ФЗ; от 24.07.1998 № 125-ФЗ); 3) "Уведомление о страховом тарифе на обязательное социальное страхование от несчастных случаев на производстве и профессиональных заболеваний" от 22.03.2022. | AZ26: Рассчитано: 1) отчисления на обязательное пенсионное страхование – 22,0%; на обязательное социальное страхование на случай временной нетрудоспособности и в связи с материнством - 2,9%; на обязательное медицинское страхование - 5,1%; 2) на обязаельное социальное страхование от несчастных случаев на производстве и профессиональных заболеваний – 0,2% в соответствии с федеральным законом от 24.07.1998 № 125-ФЗ, а также с представленной формой отчетности "4-ФСС" за 2022 год .
A27: 1 | D27: L1_2_4 | L27: 1.2.4 | M27: общехозяйственные расходы | N27: тыс.руб. | R27: 0 | AN27: 0
A28: 1 | D28: L1_2_5 | L28: 1.2.5 | M28: прочие производственные расходы | N28: тыс.руб. | O28: =SUM(O29:O35) -> 119.5796945 | P28: =SUM(P29:P35) -> 0 | Q28: =SUM(Q29:Q35) -> 104 | R28: 104 | S28: =SUM(S29:S35) -> 137.9419844 | T28: =SUM(T29:T35) -> 0 | AD28: =SUM(AD29:AD35) -> 117.954304 | AN28: -14.48991797
A29: 1 | D29: L1_2_5_1 | L29: 1.2.5.1 | M29: амортизация автотранспорта | N29: тыс.руб. | R29: 0 | AN29: 0
A30: 1 | D30: L1_2_5_2 | L30: 1.2.5.2 | M30: расходы на обезвоживание, обезвреживание и захоронение осадка сточных вод | N30: тыс.руб. | R30: 0 | AN30: 0
A31: 1 | D31: L1_2_5_3 | L31: 1.2.5.3 | M31: расходы на приобретение (использование) вспомогательных материалов, запасных частей | N31: тыс.руб. | R31: 0 | AN31: 0
A32: 1 | D32: L1_2_5_4 | L32: 1.2.5.4 | M32: расходы на эксплуатацию, техническое обслуживание и ремонт автотранспорта | N32: тыс.руб. | R32: 0 | AN32: 0
A33: 1 | D33: L1_2_5_5 | L33: 1.2.5.5 | M33: расходы на осуществление производственного контроля качества воды и производственного контроля состава и свойств сточных вод расходы на осуществление производственного контроля качества воды и производственного контроля состава и свойств сточных вод | N33: тыс.руб. | O33: 119.5796945 | Q33: 104 | R33: 104 | S33: 137.9419844 | AD33: 117.954304 | AN33: -14.48991797 | AY33: П. 18(7) Методических указаний ФСТ № 1746-э. | AZ33: Выделено из расходов, предложенных организацией в составе затрат по п. 1.2.2. Принято в размере фактических затрат 2022 г. (104,0 тыс. руб., не отражено организацией ошибочно), с учетом ИПЦ Минэкономразвития Россиии 105,8% на 2023 г. и 107,2% на 2024 г.
A34: 1 | D34: L1_2_5_6 | L34: 1.2.5.6 | M34: расходы на аварийно-диспетчерское обслуживание | N34: тыс.руб. | R34: 0 | AN34: 0
A35: 1 | D35: L1_2_5_7 | L35: 1.2.5.7 | M35: иные производственные расходы | N35: тыс.руб. | R35: 0 | AN35: =IF(S35=0,0,(AD35-S35)/S35*100) -> 0
A36: 1 | D36: L1_3 | L36: 1.3 | M36: Ремонтные расходы: | N36: тыс.руб. | O36: =O37+O38+O39 -> 1622.816634 | P36: =P37+P38+P39 -> 200 | Q36: =Q37+Q38+Q39 -> 0 | R36: -200 | S36: =S37+S38+S39 -> 1872.011362 | T36: =T37+T38+T39 -> 2169.16 | AD36: =AD37+AD38+AD39 -> 502.90943 | AN36: =IF(S36=0,0,(AD36-S36)/S36*100) -> -73.13534308 | AY36: П. 19, 23, 24 Методических указаний ФСТ № 1746-э.
A37: 1 | D37: L1_3_1 | L37: 1.3.1 | M37: расходы на текущий ремонт централизованных систем водоснабжения и (или) водоотведения либо объектов, входящих в состав таких систем | N37: тыс.руб. | O37: 791.370178 | P37: 200 | Q37: 0 | R37: -200 | S37: 912.8905469 | T37: 1862.37 | AD37: 209.60943 | AN37: -77.03893082 | AZ37: Расходы по данной статье включают, в том числе, запасные части для транспортных средств, малоценные ТМЦ и материалы для охраны труда и техники безопасности. Среднегодовые фактические расходы на материалы (сч. 10 без ГСМ и реагентов) за 2020 г. ( 338,99 тыс. руб.), за 2021 г. (125,50 тыс. руб.) и за 2022 г. ( 0,00 тыс. руб.), приведенные к ценам 2022 г. с применением ИПЦ Минэкономразвития России 106,7% на 2021 г. и 113,8% на 2022 г.: (338,99 * 1,067 * 1,138 + 125,50 * 1,138 + 0,00) / 3 = 184,81 тыс. руб. С учетом ИПЦ Минэкономразвития России 105,8% на 2023 г. и 107,2% на 2024 г.: 184,81 тыс. руб. * 1,058 * 1,072 = 209,61 тыс. руб.
A38: 1 | D38: L1_3_2 | L38: 1.3.2 | M38: расходы на капитальный ремонт централизованных систем водоснабжения и (или) водоотведения либо объектов, входящих в состав таких систем | N38: тыс.руб. | O38: 831.4464562 | P38: 0 | Q38: 0 | R38: 0 | S38: 959.1208151 | T38: 306.79 | AD38: 293.3 | AN38: -69.41991088 | AY38: 1) "Заключение по анализу материалов ООО "ТВК" (г. Белово), ИНН 4202026697, представленных для подтверждения фактических расходов ремонтной программы в сфере водоснабжения за 2022 год (в рамках госконтракта от 29.05.2023 № 5к)" (ОАО "Агентство энергетических экспертиз", г. Кемерово, 2023); 2) "Заключение по анализу материалов ООО "ТВК" (г. Белово), ИНН 4202026697, представленных для подтверждения планируемых расходов ремонтной программы на 2024 год (в рамках госконтракта от 29.05.2023 № 5к)" (ОАО "Агентство энергетических экспертиз", г. Кемерово, 2023). | AZ38: Плановые затраты на 2024 год приняты в размере величины, согласованной ОАО "Агентство энергетических экспертиз", в соответствии с представленными документами.
A39: 1 | D39: L1_3_3 | L39: 1.3.3 | M39: расходы на оплату труда и страховые взносы на обязательное социальное страхование ремонтного персонала, в том числе: | N39: тыс.руб. | O39: =O40+O41 -> 0 | P39: =P40+P41 -> 0 | Q39: =Q40+Q41 -> 0 | R39: 0 | S39: =S40+S41 -> 0 | T39: =T40+T41 -> 0 | AD39: =AD40+AD41 -> 0 | AN39: =IF(S39=0,0,(AD39-S39)/S39*100) -> 0
A40: 1 | B40: РП | D40: L1_3_3_1 | L40: 1.3.3.1 | M40: расходы на оплату труда ремонтного персонала | N40: тыс.руб. | O40: =SUMIFS(ФОТ!O$15:O$65,ФОТ!$A$15:$A$65,$A40,ФОТ!$B$15:$B$65,$B40) -> 0 | P40: =SUMIFS(ФОТ!P$15:P$65,ФОТ!$A$15:$A$65,$A40,ФОТ!$B$15:$B$65,$B40) -> 0 | Q40: =SUMIFS(ФОТ!Q$15:Q$65,ФОТ!$A$15:$A$65,$A40,ФОТ!$B$15:$B$65,$B40) -> 0 | R40: 0 | S40: =SUMIFS(ФОТ!R$15:R$65,ФОТ!$A$15:$A$65,$A40,ФОТ!$B$15:$B$65,$B40) -> 0 | T40: =SUMIFS(ФОТ!S$15:S$65,ФОТ!$A$15:$A$65,$A40,ФОТ!$B$15:$B$65,$B40) -> 0 | AD40: =SUMIFS(ФОТ!T$15:T$65,ФОТ!$A$15:$A$65,$A40,ФОТ!$B$15:$B$65,$B40) -> 0 | AN40: =IF(S40=0,0,(AD40-S40)/S40*100) -> 0
A41: 1 | B41: СОЦ_РП | D41: L1_3_3_2 | L41: 1.3.3.2 | M41: страховые взносы на обязательное социальное страхование ремонтного персонала | N41: тыс.руб. | O41: =SUMIFS(ФОТ!O$15:O$65,ФОТ!$A$15:$A$65,$A41,ФОТ!$B$15:$B$65,$B41) -> 0 | P41: =SUMIFS(ФОТ!P$15:P$65,ФОТ!$A$15:$A$65,$A41,ФОТ!$B$15:$B$65,$B41) -> 0 | Q41: =SUMIFS(ФОТ!Q$15:Q$65,ФОТ!$A$15:$A$65,$A41,ФОТ!$B$15:$B$65,$B41) -> 0 | R41: 0 | S41: =SUMIFS(ФОТ!R$15:R$65,ФОТ!$A$15:$A$65,$A41,ФОТ!$B$15:$B$65,$B41) -> 0 | T41: =SUMIFS(ФОТ!S$15:S$65,ФОТ!$A$15:$A$65,$A41,ФОТ!$B$15:$B$65,$B41) -> 0 | AD41: =SUMIFS(ФОТ!T$15:T$65,ФОТ!$A$15:$A$65,$A41,ФОТ!$B$15:$B$65,$B41) -> 0 | AN41: =IF(S41=0,0,(AD41-S41)/S41*100) -> 0
A42: 1 | D42: L1_4 | L42: 1.4 | M42: Административные расходы | N42: тыс.руб. | O42: =O43+O51+O54+O55+O56+O57+O58 -> 981.2782079 | P42: =P43+P51+P54+P55+P56+P57+P58 -> 937.81132 | Q42: =Q43+Q51+Q54+Q55+Q56+Q57+Q58 -> 2249.554242 | R42: 1311.742922 | S42: =S43+S51+S54+S55+S56+S57+S58 -> 1131.960269 | T42: =T43+T51+T54+T55+T56+T57+T58 -> 1125.337003 | AD42: =AD43+AD51+AD54+AD55+AD56+AD57+AD58 -> 1014.697231 | AN42: =IF(S42=0,0,(AD42-S42)/S42*100) -> -10.35928922 | AY42: П. 25 Методических указаний ФСТ РФ № 1746-э. | AZ42: См. Лист "Административные".
A43: 1 | B43: p3 | D43: L1_4_1 | L43: 1.4.1 | M43: расходы на оплату работ и услуг, выполняемых сторонними организациями, в том числе: | N43: тыс.руб. | O43: =SUMIFS(Административные!O$15:O$54,Административные!$A$15:$A$54,$A43,Административные!$B$15:$B$54,$B43) -> 0 | P43: =SUMIFS(Административные!P$15:P$54,Административные!$A$15:$A$54,$A43,Административные!$B$15:$B$54,$B43) -> 293.38 | Q43: =SUMIFS(Административные!Q$15:Q$54,Административные!$A$15:$A$54,$A43,Административные!$B$15:$B$54,$B43) -> 0 | R43: -293.38 | S43: =SUMIFS(Административные!R$15:R$54,Административные!$A$15:$A$54,$A43,Административные!$B$15:$B$54,$B43) -> 0 | T43: =SUMIFS(Административные!S$15:S$54,Административные!$A$15:$A$54,$A43,Административные!$B$15:$B$54,$B43) -> 264.35 | AD43: =SUMIFS(Административные!T$15:T$54,Административные!$A$15:$A$54,$A43,Административные!$B$15:$B$54,$B43) -> 47.11991999 | AN43: 0
A44: 1 | B44: p3_1 | D44: L1_4_1_1 | L44: 1.4.1.1 | M44: услуги связи и интернет | N44: тыс.руб. | O44: =SUMIFS(Административные!O$15:O$54,Административные!$A$15:$A$54,$A44,Административные!$B$15:$B$54,$B44) -> 0 | P44: =SUMIFS(Административные!P$15:P$54,Административные!$A$15:$A$54,$A44,Административные!$B$15:$B$54,$B44) -> 1.59 | Q44: =SUMIFS(Административные!Q$15:Q$54,Административные!$A$15:$A$54,$A44,Административные!$B$15:$B$54,$B44) -> 0 | R44: -1.59 | S44: =SUMIFS(Административные!R$15:R$54,Административные!$A$15:$A$54,$A44,Административные!$B$15:$B$54,$B44) -> 0 | T44: =SUMIFS(Административные!S$15:S$54,Административные!$A$15:$A$54,$A44,Административные!$B$15:$B$54,$B44) -> 1.95 | AD44: =SUMIFS(Административные!T$15:T$54,Административные!$A$15:$A$54,$A44,Административные!$B$15:$B$54,$B44) -> 0 | AN44: 0
A45: 1 | B45: p3_2 | D45: L1_4_1_2 | L45: 1.4.1.2 | M45: юридические услуги | N45: тыс.руб. | O45: =SUMIFS(Административные!O$15:O$54,Административные!$A$15:$A$54,$A45,Административные!$B$15:$B$54,$B45) -> 0 | P45: =SUMIFS(Административные!P$15:P$54,Административные!$A$15:$A$54,$A45,Административные!$B$15:$B$54,$B45) -> 105.54 | Q45: =SUMIFS(Административные!Q$15:Q$54,Административные!$A$15:$A$54,$A45,Административные!$B$15:$B$54,$B45) -> 0 | R45: -105.54 | S45: =SUMIFS(Административные!R$15:R$54,Административные!$A$15:$A$54,$A45,Административные!$B$15:$B$54,$B45) -> 0 | T45: =SUMIFS(Административные!S$15:S$54,Административные!$A$15:$A$54,$A45,Административные!$B$15:$B$54,$B45) -> 115.11 | AD45: =SUMIFS(Административные!T$15:T$54,Административные!$A$15:$A$54,$A45,Административные!$B$15:$B$54,$B45) -> 47.11991999 | AN45: 0 | AZ45: См. Лист "Административные".
A46: 1 | B46: p3_3 | D46: L1_4_1_3 | L46: 1.4.1.3 | M46: аудиторские услуги | N46: тыс.руб. | O46: =SUMIFS(Административные!O$15:O$54,Административные!$A$15:$A$54,$A46,Административные!$B$15:$B$54,$B46) -> 0 | P46: =SUMIFS(Административные!P$15:P$54,Административные!$A$15:$A$54,$A46,Административные!$B$15:$B$54,$B46) -> 5.22 | Q46: =SUMIFS(Административные!Q$15:Q$54,Административные!$A$15:$A$54,$A46,Административные!$B$15:$B$54,$B46) -> 0 | R46: -5.22 | S46: =SUMIFS(Административные!R$15:R$54,Административные!$A$15:$A$54,$A46,Административные!$B$15:$B$54,$B46) -> 0 | T46: =SUMIFS(Административные!S$15:S$54,Административные!$A$15:$A$54,$A46,Административные!$B$15:$B$54,$B46) -> 0 | AD46: =SUMIFS(Административные!T$15:T$54,Административные!$A$15:$A$54,$A46,Административные!$B$15:$B$54,$B46) -> 0 | AN46: 0
A47: 1 | B47: p3_4 | D47: L1_4_1_4 | L47: 1.4.1.4 | M47: консультационные услуги | N47: тыс.руб. | O47: =SUMIFS(Административные!O$15:O$54,Административные!$A$15:$A$54,$A47,Административные!$B$15:$B$54,$B47) -> 0 | P47: =SUMIFS(Административные!P$15:P$54,Административные!$A$15:$A$54,$A47,Административные!$B$15:$B$54,$B47) -> 0 | Q47: =SUMIFS(Административные!Q$15:Q$54,Административные!$A$15:$A$54,$A47,Административные!$B$15:$B$54,$B47) -> 0 | R47: 0 | S47: =SUMIFS(Административные!R$15:R$54,Административные!$A$15:$A$54,$A47,Административные!$B$15:$B$54,$B47) -> 0 | T47: =SUMIFS(Административные!S$15:S$54,Административные!$A$15:$A$54,$A47,Административные!$B$15:$B$54,$B47) -> 0 | AD47: =SUMIFS(Административные!T$15:T$54,Административные!$A$15:$A$54,$A47,Административные!$B$15:$B$54,$B47) -> 0 | AN47: 0
A48: 1 | B48: p3_5 | D48: L1_4_1_5 | L48: 1.4.1.5 | M48: услуги по вневедомственной охране объектов и территорий | N48: тыс.руб. | O48: =SUMIFS(Административные!O$15:O$54,Административные!$A$15:$A$54,$A48,Административные!$B$15:$B$54,$B48) -> 0 | P48: =SUMIFS(Административные!P$15:P$54,Административные!$A$15:$A$54,$A48,Административные!$B$15:$B$54,$B48) -> 118.62 | Q48: =SUMIFS(Административные!Q$15:Q$54,Административные!$A$15:$A$54,$A48,Административные!$B$15:$B$54,$B48) -> 0 | R48: -118.62 | S48: =SUMIFS(Административные!R$15:R$54,Административные!$A$15:$A$54,$A48,Административные!$B$15:$B$54,$B48) -> 0 | T48: =SUMIFS(Административные!S$15:S$54,Административные!$A$15:$A$54,$A48,Административные!$B$15:$B$54,$B48) -> 5.63 | AD48: =SUMIFS(Административные!T$15:T$54,Административные!$A$15:$A$54,$A48,Административные!$B$15:$B$54,$B48) -> 0 | AN48: 0
A49: 1 | B49: p3_6 | D49: L1_4_1_6 | L49: 1.4.1.6 | M49: информационные услуги | N49: тыс.руб. | O49: =SUMIFS(Административные!O$15:O$54,Административные!$A$15:$A$54,$A49,Административные!$B$15:$B$54,$B49) -> 0 | P49: =SUMIFS(Административные!P$15:P$54,Административные!$A$15:$A$54,$A49,Административные!$B$15:$B$54,$B49) -> 62.41 | Q49: =SUMIFS(Административные!Q$15:Q$54,Административные!$A$15:$A$54,$A49,Административные!$B$15:$B$54,$B49) -> 0 | R49: -62.41 | S49: =SUMIFS(Административные!R$15:R$54,Административные!$A$15:$A$54,$A49,Административные!$B$15:$B$54,$B49) -> 0 | T49: =SUMIFS(Административные!S$15:S$54,Административные!$A$15:$A$54,$A49,Административные!$B$15:$B$54,$B49) -> 126.96 | AD49: =SUMIFS(Административные!T$15:T$54,Административные!$A$15:$A$54,$A49,Административные!$B$15:$B$54,$B49) -> 0 | AN49: 0
A50: 1 | B50: p3_7 | D50: L1_4_1_7 | L50: 1.4.1.7 | M50: иные работы и (или) услуги | N50: тыс.руб. | O50: =SUMIFS(Административные!O$15:O$54,Административные!$A$15:$A$54,$A50,Административные!$B$15:$B$54,$B50) -> 0 | P50: =SUMIFS(Административные!P$15:P$54,Административные!$A$15:$A$54,$A50,Административные!$B$15:$B$54,$B50) -> 0 | Q50: =SUMIFS(Административные!Q$15:Q$54,Административные!$A$15:$A$54,$A50,Административные!$B$15:$B$54,$B50) -> 0 | R50: 0 | S50: =SUMIFS(Административные!R$15:R$54,Административные!$A$15:$A$54,$A50,Административные!$B$15:$B$54,$B50) -> 0 | T50: =SUMIFS(Административные!S$15:S$54,Административные!$A$15:$A$54,$A50,Административные!$B$15:$B$54,$B50) -> 14.7 | AD50: =SUMIFS(Административные!T$15:T$54,Административные!$A$15:$A$54,$A50,Административные!$B$15:$B$54,$B50) -> 0 | AN50: =IF(S50=0,0,(AD50-S50)/S50*100) -> 0
A51: 1 | D51: L1_4_2 | L51: 1.4.2 | M51: расходы на оплату труда и страховые взносы на обязательное социальное страхование административно-управленческого персонала, в том числе: | N51: тыс.руб. | O51: =O52+O53 -> 750.281052 | P51: =P52+P53 -> 601.08132 | Q51: =Q52+Q53 -> 2072.5887 | R51: 1471.50738 | S51: =S52+S53 -> 865.4919013 | T51: =T52+T53 -> 766.6970033 | AD51: =AD52+AD53 -> 766.6970033 | AN51: =IF(S51=0,0,(AD51-S51)/S51*100) -> -11.41488417 | AY51: 1) П. 17 "Методических указаний" (приказ ФСТ от 27.12.2013 № 1746-э). 2) Приказ Министерства строительства и ЖКХ Российской Федерации от 23.03.2020 № 154/пр "Об утверждении Типовых отраслевых норм численности работников водопроводно-канализационного хозяйства".
A52: 1 | B52: АУП | D52: L1_4_2_1 | L52: 1.4.2.1 | M52: расходы на оплату труда административно-управленческого персонала | N52: тыс.руб. | O52: =SUMIFS(ФОТ!O$15:O$65,ФОТ!$A$15:$A$65,$A52,ФОТ!$B$15:$B$65,$B52) -> 576.2527281 | P52: =SUMIFS(ФОТ!P$15:P$65,ФОТ!$A$15:$A$65,$A52,ФОТ!$B$15:$B$65,$B52) -> 461.66 | Q52: =SUMIFS(ФОТ!Q$15:Q$65,ФОТ!$A$15:$A$65,$A52,ФОТ!$B$15:$B$65,$B52) -> 1591.85 | R52: 1130.19 | S52: =SUMIFS(ФОТ!R$15:R$65,ФОТ!$A$15:$A$65,$A52,ФОТ!$B$15:$B$65,$B52) -> 664.7403236 | T52: =SUMIFS(ФОТ!S$15:S$65,ФОТ!$A$15:$A$65,$A52,ФОТ!$B$15:$B$65,$B52) -> 588.8609856 | AD52: =SUMIFS(ФОТ!T$15:T$65,ФОТ!$A$15:$A$65,$A52,ФОТ!$B$15:$B$65,$B52) -> 588.8609856 | AN52: =IF(S52=0,0,(AD52-S52)/S52*100) -> -11.41488417 | AY52: 1) "Федеральное отраслевое тарифное соглашение в жилищно-коммунальном хозяйстве Российской Федерации на 2023 - 2025 годы" (утв. Общероссийским отраслевым объединением работодателей сферы жизнеобеспечения, Общероссийским профсоюзом работников жизнеобеспечения 12.05.2022) (ред. от 05.12.2022). 2) "Кузбасское региональное соглашение между Кемеровским областным союзом организаций профсоюзов "Федерация профсоюзных организаций Кузбасса", Правительством Кемеровской области - Кузбасса и работодателями Кемеровской области - Кузбасса на 2022 - 2024 годы" (Подписано 07.10.2021). | AZ52: См. Лист "ФОТ".
A53: 1 | B53: СОЦ_АУП | D53: L1_4_2_2 | L53: 1.4.2.2 | M53: страховые взносы на обязательное социальное страхование административно-управленческого персонала | N53: тыс.руб. | O53: =SUMIFS(ФОТ!O$15:O$65,ФОТ!$A$15:$A$65,$A53,ФОТ!$B$15:$B$65,$B53) -> 174.0283239 | P53: =SUMIFS(ФОТ!P$15:P$65,ФОТ!$A$15:$A$65,$A53,ФОТ!$B$15:$B$65,$B53) -> 139.42132 | Q53: =SUMIFS(ФОТ!Q$15:Q$65,ФОТ!$A$15:$A$65,$A53,ФОТ!$B$15:$B$65,$B53) -> 480.7387 | R53: 341.31738 | S53: =SUMIFS(ФОТ!R$15:R$65,ФОТ!$A$15:$A$65,$A53,ФОТ!$B$15:$B$65,$B53) -> 200.7515777 | T53: =SUMIFS(ФОТ!S$15:S$65,ФОТ!$A$15:$A$65,$A53,ФОТ!$B$15:$B$65,$B53) -> 177.8360177 | AD53: =SUMIFS(ФОТ!T$15:T$65,ФОТ!$A$15:$A$65,$A53,ФОТ!$B$15:$B$65,$B53) -> 177.8360177 | AN53: =IF(S53=0,0,(AD53-S53)/S53*100) -> -11.41488417 | AY53: 1) Глава 34 "СТРАХОВЫЕ ВЗНОСЫ" "Налогового кодекса Российской Федерации (Часть вторая)" (в ред. от 10.07.2023 № 318-ФЗ); 2) Федеральные законы от 22.12.2005 № 179-ФЗ, от 31.12.2017 № 484-ФЗ; от 24.07.1998 № 125-ФЗ); 3) "Уведомление о страховом тарифе на обязательное социальное страхование от несчастных случаев на производстве и профессиональных заболеваний" от 22.03.2022. | AZ53: Рассчитано: 1) отчисления на обязательное пенсионное страхование – 22,0%; на обязательное социальное страхование на случай временной нетрудоспособности и в связи с материнством - 2,9%; на обязательное медицинское страхование - 5,1%; 2) на обязаельное социальное страхование от несчастных случаев на производстве и профессиональных заболеваний – 0,2% в соответствии с федеральным законом от 24.07.1998 № 125-ФЗ, а также с представленной формой отчетности "4-ФСС" за 2022 год .
